Workbook

Sheet Macro1

Sheet Sheet1
N1: Seed Columns | DG1: As the radiated optical power of light emitting diodes (LEDs) has increased in recent years, the issue of eye safety has received an ever increasing amount of attention. Within this context there has been much discussion about the right safety standard – either the laser standard IEC-60825 or the lamp safety standard IEC-62471 – to apply to the classification of LEDs. Before mid 2006 all LED applications were covered by the IEC-60825. Today most of the LED applications are covered by the lamp standard. Other than lasers, lamps are only generally defined in this standard as sources made to produce optical radiation. Lamp devices may also contain optical components like lenses or reflectors.
DG2: Examples are lensed LEDs or reflector type lamps which may include lens covers as well. The status quo is, that for different applications of LEDs, like data transmission or irradiation of objects, different standards have to be used: - data transmission → IEC-60825 lamp applications → IEC-62471. Both safety standards do not cover general exposure scenarios and are not legally binding. However the presented methods and limit calculations are used as a basis in regional guidelines, e.g. in the European Directive 2006/25/EC, which describes “the minimum health and safety requirements regarding the exposure of workers to risks arising from physical agents (artificial optical radiation)”. This application note describes the possible hazards of infrared LEDs (IREDs) used for lamp applications with respect to the IEC62471 standard and how to classify IREDs according to different risk groups.
N3: 810 | O3: Non Automotive | P3: Max Rated DC operation
N4: 850 | O4: Automotive | P4: Max Rated Pulsed operation
N5: 940
N6: Hard Coded Emitter Data | BS6: Half Angle | CK6: Radiant Intensity
B7: Make a Selection | D7: START HERE-> Application: | E7: Automotive | H7: Max Ambient Temperature (>=85˚ C): | I7: 85 | J7: ˚ C | N7: LED Model Number | O7: Operation | P7: WL | Q7: HA | R7: Max RI | S7: Forward Current | T7: Forward Voltage | U7: Duty Cycle | V7: Pulse length | W7: Chip Size (mm) | X7: Placeholder Number | Y7: Application | Z7: H1 | AA7: H2 | AB7: H3 | AD7: LED Model Number | AE7: Operation | AF7: WL | AG7: HA | AH7: Max RI | AI7: Forward Current | AJ7: Forward Voltage | AK7: Duty Cycle | AL7: Chip Size (mm) | AM7: Pulse length | AN7: Placeholder Number | AO7: Application | AP7: H1 | AQ7: H2 | AR7: H3 | AT7: LED Model Number | AU7: Operation | AV7: WL | AW7: HA | AX7: Max RI | AY7: Forward Current | AZ7: Forward Voltage | BA7: Duty Cycle | BB7: Chip Size (mm) | BC7: Pulse length | BD7: Placeholder Number | BE7: Application | BF7: H1 | BG7: H2 | BH7: H3 | BJ7: LED Model Number | BK7: Operation | BL7: WL | BN7: Max RI | BO7: Forward Current | BP7: Forward Voltage | BQ7: Duty Cycle | BR7: Chip Size (mm) | BS7: Pulse length | BT7: Placeholder Number | BU7: Application | BV7: H1 | BW7: H2 | BX7: H3 | BY7: H1 | BZ7: H2 | CA7: H3 | CD7: LED Model Number | CE7: Operation | CF7: WL | CG7: HA | CI7: Forward Current | CJ7: Forward Voltage | CK7: Duty Cycle | CL7: Chip Size (mm) | CM7: Pulse length | CN7: Placeholder Number | CO7: Application | CP7: H1 | CQ7: H2 | CR7: H3 | CT7: LED Model Number | CU7: Operation | CV7: WL | CW7: HA | CX7: Max RI | CY7: Forward Current | CZ7: Forward Voltage | DA7: Duty Cycle | DB7: Chip Size (mm) | DC7: Pulse length | DD7: Placeholder Number | DE7: Application
B8: Enter a Numeric Value | N8: SFH 4780S | O8: Max Rated DC operation | P8: 810 | Q8: 10 | R8: =2900*0.5 -> 1450 | S8: 500 | T8: 3.3 | U8: 100 | V8: 1 | W8: 0.75 | X8: 1 | Y8: Non Automotive | Z8: 1 | AA8: =IF($E$7=Y8,Z8,"") ->  | AB8: =IFERROR(SMALL($AA$8:$AA$49,ROWS($AA$8:AA8)),"") -> 3 | AD8: =IFERROR(INDEX($N$8:$Y$49,$AB8,COLUMNS($M$8:M8)),"") -> SFH 4717AS A01 | AE8: =IFERROR(INDEX($N$8:$Y$49,$AB8,COLUMNS($M$8:N8)),"") -> Max Rated DC operation | AF8: =IFERROR(INDEX($N$8:$Y$49,$AB8,COLUMNS($M$8:O8)),"") -> 850 | AG8: =IFERROR(INDEX($N$8:$Y$49,$AB8,COLUMNS($M$8:P8)),"") -> 25 | AH8: =IFERROR(INDEX($N$8:$Y$49,$AB8,COLUMNS($M$8:Q8)),"") -> 1875 | AI8: =IFERROR(INDEX($N$8:$Y$49,$AB8,COLUMNS($M$8:R8)),"") -> 1500 | AJ8: =IFERROR(INDEX($N$8:$Y$49,$AB8,COLUMNS($M$8:S8)),"") -> 2.95 | AK8: =IFERROR(INDEX($N$8:$Y$49,$AB8,COLUMNS($M$8:T8)),"") -> 100 | AL8: =IFERROR(INDEX($N$8:$Y$49,$AB8,COLUMNS($M$8:U8)),"") -> 1 | AM8: =IFERROR(INDEX($N$8:$Y$49,$AB8,COLUMNS($M$8:V8)),"") -> 1 | AN8: =IFERROR(INDEX($N$8:$Y$49,$AB8,COLUMNS($M$8:W8)),"") -> 3 | AO8: =IFERROR(INDEX($N$8:$Y$49,$AB8,COLUMNS($M$8:X8)),"") -> Automotive | AP8: 1 | AQ8: =IF($E$9=AE8,Z8,"") ->  | AR8: =IFERROR(SMALL($AQ$8:$AQ$49,ROWS($AQ$8:AQ8)),"") -> 6 | AT8: =IFERROR(INDEX($AD$8:$AO$49,$AR8,COLUMNS($M$8:M8)),"") -> SFH 4717AS A01 | AU8: =IFERROR(INDEX($AD$8:$AO$49,$AR8,COLUMNS($M$8:N8)),"") -> Max Rated Pulsed operation | AV8: =IFERROR(INDEX($AD$8:$AO$49,$AR8,COLUMNS($M$8:O8)),"") -> 850 | AW8: =IFERROR(INDEX($AD$8:$AO$49,$AR8,COLUMNS($M$8:P8)),"") -> 25 | AX8: =IFERROR(INDEX($AD$8:$AO$49,$AR8,COLUMNS($M$8:Q8)),"") -> 5250 | AY8: =IFERROR(INDEX($AD$8:$AO$49,$AR8,COLUMNS($M$8:R8)),"") -> 5000 | AZ8: =IFERROR(INDEX($AD$8:$AO$49,$AR8,COLUMNS($M$8:S8)),"") -> 3.5 | BA8: =IFERROR(INDEX($AD$8:$AO$49,$AR8,COLUMNS($M$8:T8)),"") -> 0.01 | BB8: =IFERROR(INDEX($AD$8:$AO$49,$AR8,COLUMNS($M$8:U8)),"") -> 0.0001 | BC8: =IFERROR(INDEX($AD$8:$AO$49,$AR8,COLUMNS($M$8:V8)),"") -> 1 | BD8: =IFERROR(INDEX($AD$8:$AO$49,$AR8,COLUMNS($M$8:W8)),"") -> 3 | BE8: =IFERROR(INDEX($AD$8:$AO$49,$AR8,COLUMNS($M$8:X8)),"") -> Automotive | BF8: 1 | BG8: =IF($E$11=AV8,BF8,"") ->  | BH8: =IFERROR(SMALL($BG$8:$BG$49,ROWS($BG$8:BG8)),"") -> 4 | BJ8: =IFERROR(INDEX($AT$8:$BE$46,$BH8,COLUMNS($AT$8:AT8)),"") -> SFH 4725AS A01 | BK8: =IFERROR(INDEX($AT$8:$BE$46,$BH8,COLUMNS($AT$8:AU8)),"") -> Max Rated Pulsed operation | BL8: =IFERROR(INDEX($AT$8:$BE$46,$BH8,COLUMNS($AT$8:AV8)),"") -> 940 | BM8: =IFERROR(INDEX($AT$8:$BE$46,$BH8,COLUMNS($AT$8:AW8)),"") -> 40 | BN8: =IFERROR(INDEX($AT$8:$BE$46,$BH8,COLUMNS($AT$8:AX8)),"") -> 3360 | BO8: =IFERROR(INDEX($AT$8:$BE$46,$BH8,COLUMNS($AT$8:AY8)),"") -> 5000 | BP8: =IFERROR(INDEX($AT$8:$BE$46,$BH8,COLUMNS($AT$8:AZ8)),"") -> 3.2 | BQ8: =IFERROR(INDEX($AT$8:$BE$46,$BH8,COLUMNS($AT$8:BA8)),"") -> 0.01 | BR8: =IFERROR(INDEX($AT$8:$BE$46,$BH8,COLUMNS($AT$8:BB8)),"") -> 0.0008 | BS8: =IFERROR(INDEX($AT$8:$BE$46,$BH8,COLUMNS($AT$8:BC8)),"") -> 1 | BT8: =IFERROR(INDEX($AT$8:$BE$46,$BH8,COLUMNS($AT$8:BD8)),"") -> 17 | BU8: =IFERROR(INDEX($AT$8:$BE$46,$BH8,COLUMNS($AT$8:BE8)),"") -> Automotive | BV8: 1 | BW8: =IF($E$13=BM8,BV8,"") ->  | BX8: =IFERROR(SMALL($BW$8:$BW$49,ROWS($BW$8:BW8)),"") -> 2 | BY8: =INDEX(BM8:$BM$49,1,1) -> 40 | BZ8: =COUNTIF($BM$8:BM8,BY8) -> 1 | CA8: =IF(BZ8=1,BY8,"") -> 40 | CB8: =IFERROR(SMALL($CA$8:$CA$49,ROWS($CA$8:CA8)),"") -> 25 | CD8: =IFERROR(INDEX($BJ$8:$BU$49,$BX8,COLUMNS($BI$8:BI8)),"") -> SFH 4727AS A01 | CE8: =IFERROR(INDEX($BJ$8:$BU$46,$BX8,COLUMNS($BI$8:BJ8)),"") -> Max Rated Pulsed operation | CF8: =IFERROR(INDEX($BJ$8:$BU$46,$BX8,COLUMNS($BI$8:BK8)),"") -> 940 | CG8: =IFERROR(INDEX($BJ$8:$BU$46,$BX8,COLUMNS($BI$8:BL8)),"") -> 25 | CH8: =IFERROR(INDEX($BJ$8:$BU$46,$BX8,COLUMNS($BI$8:BM8)),"") -> 5250 | CI8: =IFERROR(INDEX($BJ$8:$BU$46,$BX8,COLUMNS($BI$8:BN8)),"") -> 5000 | CJ8: =IFERROR(INDEX($BJ$8:$BU$46,$BX8,COLUMNS($BI$8:BO8)),"") -> 3.2 | CK8: =IFERROR(INDEX($BJ$8:$BU$46,$BX8,COLUMNS($BI$8:BP8)),"") -> 0.01 | CL8: =IFERROR(INDEX($BJ$8:$BU$46,$BX8,COLUMNS($BI$8:BQ8)),"") -> 0.0005 | CM8: =IFERROR(INDEX($BJ$8:$BU$46,$BX8,COLUMNS($BI$8:BR8)),"") -> 1 | CN8: =IFERROR(INDEX($BJ$8:$BU$46,$BX8,COLUMNS($BI$8:BS8)),"") -> 18 | CO8: =IFERROR(INDEX($BJ$8:$BU$46,$BX8,COLUMNS($BI$8:BT8)),"") -> Automotive | CP8: 1 | CQ8: =IF($E$15=CH8,CP8,"") -> 1 | CR8: =IFERROR(SMALL($CQ$8:$CQ$49,ROWS($CQ$8:CQ8)),"") -> 1 | CT8: =IFERROR(INDEX($CD$8:$CO$49,$CR8,COLUMNS($CC$8:CC8)),"") -> SFH 4727AS A01 | CU8: =IFERROR(INDEX($CD$8:$CO$49,$CR8,COLUMNS($CC$8:CD8)),"") -> Max Rated Pulsed operation | CV8: =IFERROR(INDEX($CD$8:$CO$49,$CR8,COLUMNS($CC$8:CE8)),"") -> 940 | CW8: =IFERROR(INDEX($CD$8:$CO$49,$CR8,COLUMNS($CC$8:CF8)),"") -> 25 | CX8: =IFERROR(INDEX($CD$8:$CO$49,$CR8,COLUMNS($CC$8:CG8)),"") -> 5250 | CY8: =IFERROR(INDEX($CD$8:$CO$49,$CR8,COLUMNS($CC$8:CH8)),"") -> 5000 | CZ8: =IFERROR(INDEX($CD$8:$CO$49,$CR8,COLUMNS($CC$8:CI8)),"") -> 3.2 | DA8: =IFERROR(INDEX($CD$8:$CO$49,$CR8,COLUMNS($CC$8:CJ8)),"") -> 0.01 | DB8: =IFERROR(INDEX($CD$8:$CO$49,$CR8,COLUMNS($CC$8:CK8)),"") -> 0.0005 | DC8: =IFERROR(INDEX($CD$8:$CO$49,$CR8,COLUMNS($CC$8:CL8)),"") -> 1 | DD8: =IFERROR(INDEX($CD$8:$CO$49,$CR8,COLUMNS($CC$8:CM8)),"") -> 18 | DE8: =IFERROR(INDEX($CD$8:$CO$49,$CR8,COLUMNS($CC$8:CN8)),"") -> Automotive
B9: Output | D9: DC or pulsed operation: | E9: Max Rated Pulsed operation | H9: Number of Emitters: | I9: 1 | N9: SFH 4703AS | O9: Max Rated DC operation | P9: 810 | Q9: 40 | R9: 800 | S9: 1000 | T9: 3.6 | U9: 100 | V9: 1 | W9: 0.75 | X9: =1+X8 -> 2 | Y9: Non Automotive | Z9: =Z8+1 -> 2 | AA9: =IF($E$7=Y9,Z9,"") ->  | AB9: =IFERROR(SMALL($AA$8:$AA$49,ROWS($AA$8:AA9)),"") -> 5 | AD9: =IFERROR(INDEX($N$8:$Y$49,$AB9,COLUMNS($M$8:M9)),"") -> SFH 4715AS A01 | AE9: =IFERROR(INDEX($N$8:$Y$49,$AB9,COLUMNS($M$8:N9)),"") -> Max Rated DC operation | AF9: =IFERROR(INDEX($N$8:$Y$49,$AB9,COLUMNS($M$8:O9)),"") -> 850 | AG9: =IFERROR(INDEX($N$8:$Y$49,$AB9,COLUMNS($M$8:P9)),"") -> 40 | AH9: =IFERROR(INDEX($N$8:$Y$49,$AB9,COLUMNS($M$8:Q9)),"") -> 1200 | AI9: =IFERROR(INDEX($N$8:$Y$49,$AB9,COLUMNS($M$8:R9)),"") -> 1500 | AJ9: =IFERROR(INDEX($N$8:$Y$49,$AB9,COLUMNS($M$8:S9)),"") -> 2.95 | AK9: =IFERROR(INDEX($N$8:$Y$49,$AB9,COLUMNS($M$8:T9)),"") -> 100 | AL9: =IFERROR(INDEX($N$8:$Y$49,$AB9,COLUMNS($M$8:U9)),"") -> 1 | AM9: =IFERROR(INDEX($N$8:$Y$49,$AB9,COLUMNS($M$8:V9)),"") -> 1 | AN9: =IFERROR(INDEX($N$8:$Y$49,$AB9,COLUMNS($M$8:W9)),"") -> 5 | AO9: =IFERROR(INDEX($N$8:$Y$49,$AB9,COLUMNS($M$8:X9)),"") -> Automotive | AP9: =1+AP8 -> 2 | AR9: =IFERROR(SMALL($AQ$8:$AQ$49,ROWS($AQ$8:AQ9)),"") -> 7 | AT9: =IFERROR(INDEX($AD$8:$AO$49,$AR9,COLUMNS($M$8:M9)),"") -> SFH 4715AS A01 | AU9: =IFERROR(INDEX($AD$8:$AO$49,$AR9,COLUMNS($M$8:N9)),"") -> Max Rated Pulsed operation | AV9: =IFERROR(INDEX($AD$8:$AO$49,$AR9,COLUMNS($M$8:O9)),"") -> 850 | AW9: =IFERROR(INDEX($AD$8:$AO$49,$AR9,COLUMNS($M$8:P9)),"") -> 40 | AX9: =IFERROR(INDEX($AD$8:$AO$49,$AR9,COLUMNS($M$8:Q9)),"") -> 3360 | AY9: =IFERROR(INDEX($AD$8:$AO$49,$AR9,COLUMNS($M$8:R9)),"") -> 5000 | AZ9: =IFERROR(INDEX($AD$8:$AO$49,$AR9,COLUMNS($M$8:S9)),"") -> 3.5 | BA9: =IFERROR(INDEX($AD$8:$AO$49,$AR9,COLUMNS($M$8:T9)),"") -> 0.01 | BB9: =IFERROR(INDEX($AD$8:$AO$49,$AR9,COLUMNS($M$8:U9)),"") -> 0.0001 | BC9: =IFERROR(INDEX($AD$8:$AO$49,$AR9,COLUMNS($M$8:V9)),"") -> 1 | BD9: =IFERROR(INDEX($AD$8:$AO$49,$AR9,COLUMNS($M$8:W9)),"") -> 5 | BE9: =IFERROR(INDEX($AD$8:$AO$49,$AR9,COLUMNS($M$8:X9)),"") -> Automotive | BF9: =1+BF8 -> 2 | BG9: =IF($E$11=AV9,BF9,"") ->  | BH9: =IFERROR(SMALL($BG$8:$BG$49,ROWS($BG$8:BG9)),"") -> 5 | BJ9: =IFERROR(INDEX($AT$8:$BE$46,$BH9,COLUMNS($AT$8:AT9)),"") -> SFH 4727AS A01 | BK9: =IFERROR(INDEX($AT$8:$BE$46,$BH9,COLUMNS($AT$8:AU9)),"") -> Max Rated Pulsed operation | BL9: =IFERROR(INDEX($AT$8:$BE$46,$BH9,COLUMNS($AT$8:AV9)),"") -> 940 | BM9: =IFERROR(INDEX($AT$8:$BE$46,$BH9,COLUMNS($AT$8:AW9)),"") -> 25 | BN9: =IFERROR(INDEX($AT$8:$BE$46,$BH9,COLUMNS($AT$8:AX9)),"") -> 5250 | BO9: =IFERROR(INDEX($AT$8:$BE$46,$BH9,COLUMNS($AT$8:AY9)),"") -> 5000 | BP9: =IFERROR(INDEX($AT$8:$BE$46,$BH9,COLUMNS($AT$8:AZ9)),"") -> 3.2 | BQ9: =IFERROR(INDEX($AT$8:$BE$46,$BH9,COLUMNS($AT$8:BA9)),"") -> 0.01 | BR9: =IFERROR(INDEX($AT$8:$BE$46,$BH9,COLUMNS($AT$8:BB9)),"") -> 0.0005 | BS9: =IFERROR(INDEX($AT$8:$BE$46,$BH9,COLUMNS($AT$8:BC9)),"") -> 1 | BT9: =IFERROR(INDEX($AT$8:$BE$46,$BH9,COLUMNS($AT$8:BD9)),"") -> 18 | BU9: =IFERROR(INDEX($AT$8:$BE$46,$BH9,COLUMNS($AT$8:BE9)),"") -> Automotive | BV9: =1+BV8 -> 2 | BW9: =IF($E$13=BM9,BV9,"") -> 2 | BX9: =IFERROR(SMALL($BW$8:$BW$49,ROWS($BW$8:BW9)),"") ->  | BY9: =INDEX(BM9:$BM$49,1,1) -> 25 | BZ9: =COUNTIF($BM$8:BM9,BY9) -> 1 | CA9: =IF(BZ9=1,BY9,"") -> 25 | CB9: =IFERROR(SMALL($CA$8:$CA$49,ROWS($CA$8:CA9)),"") -> 40 | CD9: =IFERROR(INDEX($BJ$8:$BU$46,$BX9,COLUMNS($BI$8:BI9)),"") ->  | CE9: =IFERROR(INDEX($BJ$8:$BU$46,$BX9,COLUMNS($BI$8:BJ9)),"") ->  | CF9: =IFERROR(INDEX($BJ$8:$BU$46,$BX9,COLUMNS($BI$8:BK9)),"") ->  | CG9: =IFERROR(INDEX($BJ$8:$BU$46,$BX9,COLUMNS($BI$8:BL9)),"") ->  | CH9: =IFERROR(INDEX($BJ$8:$BU$46,$BX9,COLUMNS($BI$8:BM9)),"") ->  | CI9: =IFERROR(INDEX($BJ$8:$BU$46,$BX9,COLUMNS($BI$8:BN9)),"") ->  | CJ9: =IFERROR(INDEX($BJ$8:$BU$46,$BX9,COLUMNS($BI$8:BO9)),"") ->  | CK9: =IFERROR(INDEX($BJ$8:$BU$46,$BX9,COLUMNS($BI$8:BP9)),"") ->  | CL9: =IFERROR(INDEX($BJ$8:$BU$46,$BX9,COLUMNS($BI$8:BQ9)),"") ->  | CM9: =IFERROR(INDEX($BJ$8:$BU$46,$BX9,COLUMNS($BI$8:BR9)),"") ->  | CN9: =IFERROR(INDEX($BJ$8:$BU$46,$BX9,COLUMNS($BI$8:BS9)),"") ->  | CO9: =IFERROR(INDEX($BJ$8:$BU$46,$BX9,COLUMNS($BI$8:BT9)),"") ->  | CP9: =1+CP8 -> 2 | CQ9: =IF($E$15=CH9,CP9,"") ->  | CR9: =IFERROR(SMALL($CQ$8:$CQ$49,ROWS($CQ$8:CQ9)),"") ->  | CT9: =IFERROR(INDEX($CD$8:$CO$49,$CR9,COLUMNS($CC$8:CC9)),"") ->  | CU9: =IFERROR(INDEX($CD$8:$CO$49,$CR9,COLUMNS($CC$8:CD9)),"") ->  | CV9: =IFERROR(INDEX($CD$8:$CO$49,$CR9,COLUMNS($CC$8:CE9)),"") ->  | CW9: =IFERROR(INDEX($CD$8:$CO$49,$CR9,COLUMNS($CC$8:CF9)),"") ->  | CX9: =IFERROR(INDEX($CD$8:$CO$49,$CR9,COLUMNS($CC$8:CG9)),"") ->  | CY9: =IFERROR(INDEX($CD$8:$CO$49,$CR9,COLUMNS($CC$8:CH9)),"") ->  | CZ9: =IFERROR(INDEX($CD$8:$CO$49,$CR9,COLUMNS($CC$8:CI9)),"") ->  | DA9: =IFERROR(INDEX($CD$8:$CO$49,$CR9,COLUMNS($CC$8:CJ9)),"") ->  | DB9: =IFERROR(INDEX($CD$8:$CO$49,$CR9,COLUMNS($CC$8:CK9)),"") ->  | DC9: =IFERROR(INDEX($CD$8:$CO$49,$CR9,COLUMNS($CC$8:CL9)),"") ->  | DD9: =IFERROR(INDEX($CD$8:$CO$49,$CR9,COLUMNS($CC$8:CM9)),"") ->  | DE9: =IFERROR(INDEX($CD$8:$CO$49,$CR9,COLUMNS($CC$8:CN9)),"") -> 
N10: SFH 4717AS A01 | O10: Max Rated DC operation | P10: 850 | Q10: 25 | R10: =1.5*1250 -> 1875 | S10: 1500 | T10: 2.95 | U10: 100 | V10: 1 | W10: 1 | X10: =1+X9 -> 3 | Y10: Automotive | Z10: =Z9+1 -> 3 | AA10: =IF($E$7=Y10,Z10,"") -> 3 | AB10: =IFERROR(SMALL($AA$8:$AA$49,ROWS($AA$8:AA10)),"") -> 15 | AD10: =IFERROR(INDEX($N$8:$Y$49,$AB10,COLUMNS($M$8:M10)),"") -> SFH 4716AS A01 | AE10: =IFERROR(INDEX($N$8:$Y$49,$AB10,COLUMNS($M$8:N10)),"") -> Max Rated DC operation | AF10: =IFERROR(INDEX($N$8:$Y$49,$AB10,COLUMNS($M$8:O10)),"") -> 850 | AG10: =IFERROR(INDEX($N$8:$Y$49,$AB10,COLUMNS($M$8:P10)),"") -> 75 | AH10: =IFERROR(INDEX($N$8:$Y$49,$AB10,COLUMNS($M$8:Q10)),"") -> 480 | AI10: =IFERROR(INDEX($N$8:$Y$49,$AB10,COLUMNS($M$8:R10)),"") -> 1500 | AJ10: =IFERROR(INDEX($N$8:$Y$49,$AB10,COLUMNS($M$8:S10)),"") -> 3.1 | AK10: =IFERROR(INDEX($N$8:$Y$49,$AB10,COLUMNS($M$8:T10)),"") -> 100 | AL10: =IFERROR(INDEX($N$8:$Y$49,$AB10,COLUMNS($M$8:U10)),"") -> 1 | AM10: =IFERROR(INDEX($N$8:$Y$49,$AB10,COLUMNS($M$8:V10)),"") -> 1 | AN10: =IFERROR(INDEX($N$8:$Y$49,$AB10,COLUMNS($M$8:W10)),"") -> 15 | AO10: =IFERROR(INDEX($N$8:$Y$49,$AB10,COLUMNS($M$8:X10)),"") -> Automotive | AP10: =1+AP9 -> 3 | AR10: =IFERROR(SMALL($AQ$8:$AQ$49,ROWS($AQ$8:AQ10)),"") -> 8 | AT10: =IFERROR(INDEX($AD$8:$AO$49,$AR10,COLUMNS($M$8:M10)),"") -> SFH 4716AS A01 | AU10: =IFERROR(INDEX($AD$8:$AO$49,$AR10,COLUMNS($M$8:N10)),"") -> Max Rated Pulsed operation | AV10: =IFERROR(INDEX($AD$8:$AO$49,$AR10,COLUMNS($M$8:O10)),"") -> 850 | AW10: =IFERROR(INDEX($AD$8:$AO$49,$AR10,COLUMNS($M$8:P10)),"") -> 75 | AX10: =IFERROR(INDEX($AD$8:$AO$49,$AR10,COLUMNS($M$8:Q10)),"") -> 1312 | AY10: =IFERROR(INDEX($AD$8:$AO$49,$AR10,COLUMNS($M$8:R10)),"") -> 5000 | AZ10: =IFERROR(INDEX($AD$8:$AO$49,$AR10,COLUMNS($M$8:S10)),"") -> 3.5 | BA10: =IFERROR(INDEX($AD$8:$AO$49,$AR10,COLUMNS($M$8:T10)),"") -> 0.01 | BB10: =IFERROR(INDEX($AD$8:$AO$49,$AR10,COLUMNS($M$8:U10)),"") -> 0.001 | BC10: =IFERROR(INDEX($AD$8:$AO$49,$AR10,COLUMNS($M$8:V10)),"") -> 1 | BD10: =IFERROR(INDEX($AD$8:$AO$49,$AR10,COLUMNS($M$8:W10)),"") -> 16 | BE10: =IFERROR(INDEX($AD$8:$AO$49,$AR10,COLUMNS($M$8:X10)),"") -> Automotive | BF10: =1+BF9 -> 3 | BH10: =IFERROR(SMALL($BG$8:$BG$49,ROWS($BG$8:BG10)),"") ->  | BJ10: =IFERROR(INDEX($AT$8:$BE$46,$BH10,COLUMNS($AT$8:AT10)),"") ->  | BK10: =IFERROR(INDEX($AT$8:$BE$46,$BH10,COLUMNS($AT$8:AU10)),"") ->  | BL10: =IFERROR(INDEX($AT$8:$BE$46,$BH10,COLUMNS($AT$8:AV10)),"") ->  | BM10: =IFERROR(INDEX($AT$8:$BE$46,$BH10,COLUMNS($AT$8:AW10)),"") ->  | BN10: =IFERROR(INDEX($AT$8:$BE$46,$BH10,COLUMNS($AT$8:AX10)),"") ->  | BO10: =IFERROR(INDEX($AT$8:$BE$46,$BH10,COLUMNS($AT$8:AY10)),"") ->  | BP10: =IFERROR(INDEX($AT$8:$BE$46,$BH10,COLUMNS($AT$8:AZ10)),"") ->  | BQ10: =IFERROR(INDEX($AT$8:$BE$46,$BH10,COLUMNS($AT$8:BA10)),"") ->  | BR10: =IFERROR(INDEX($AT$8:$BE$46,$BH10,COLUMNS($AT$8:BB10)),"") ->  | BS10: =IFERROR(INDEX($AT$8:$BE$46,$BH10,COLUMNS($AT$8:BC10)),"") ->  | BT10: =IFERROR(INDEX($AT$8:$BE$46,$BH10,COLUMNS($AT$8:BD10)),"") ->  | BU10: =IFERROR(INDEX($AT$8:$BE$46,$BH10,COLUMNS($AT$8:BE10)),"") ->  | BV10: =1+BV9 -> 3 | BX10: =IFERROR(SMALL($BW$8:$BW$49,ROWS($BW$8:BW10)),"") ->  | BY10: =INDEX(BM10:$BM$49,1,1) ->  | BZ10: =COUNTIF($BM$8:BM10,BY10) -> 1 | CB10: =IFERROR(SMALL($CA$8:$CA$49,ROWS($CA$8:CA10)),"") ->  | CD10: =IFERROR(INDEX($BJ$8:$BU$46,$BX10,COLUMNS($BI$8:BI10)),"") ->  | CE10: =IFERROR(INDEX($BJ$8:$BU$46,$BX10,COLUMNS($BI$8:BJ10)),"") ->  | CF10: =IFERROR(INDEX($BJ$8:$BU$46,$BX10,COLUMNS($BI$8:BK10)),"") ->  | CG10: =IFERROR(INDEX($BJ$8:$BU$46,$BX10,COLUMNS($BI$8:BL10)),"") ->  | CH10: =IFERROR(INDEX($BJ$8:$BU$46,$BX10,COLUMNS($BI$8:BM10)),"") ->  | CI10: =IFERROR(INDEX($BJ$8:$BU$46,$BX10,COLUMNS($BI$8:BN10)),"") ->  | CJ10: =IFERROR(INDEX($BJ$8:$BU$46,$BX10,COLUMNS($BI$8:BO10)),"") ->  | CK10: =IFERROR(INDEX($BJ$8:$BU$46,$BX10,COLUMNS($BI$8:BP10)),"") ->  | CL10: =IFERROR(INDEX($BJ$8:$BU$46,$BX10,COLUMNS($BI$8:BQ10)),"") ->  | CM10: =IFERROR(INDEX($BJ$8:$BU$46,$BX10,COLUMNS($BI$8:BR10)),"") ->  | CN10: =IFERROR(INDEX($BJ$8:$BU$46,$BX10,COLUMNS($BI$8:BS10)),"") ->  | CO10: =IFERROR(INDEX($BJ$8:$BU$46,$BX10,COLUMNS($BI$8:BT10)),"") ->  | CP10: =1+CP9 -> 3 | CR10: =IFERROR(SMALL($CQ$8:$CQ$49,ROWS($CQ$8:CQ10)),"") ->  | CT10: =IFERROR(INDEX($CD$8:$CO$49,$CR10,COLUMNS($CC$8:CC10)),"") ->  | CU10: =IFERROR(INDEX($CD$8:$CO$49,$CR10,COLUMNS($CC$8:CD10)),"") ->  | CV10: =IFERROR(INDEX($CD$8:$CO$49,$CR10,COLUMNS($CC$8:CE10)),"") ->  | CW10: =IFERROR(INDEX($CD$8:$CO$49,$CR10,COLUMNS($CC$8:CF10)),"") ->  | CX10: =IFERROR(INDEX($CD$8:$CO$49,$CR10,COLUMNS($CC$8:CG10)),"") ->  | CY10: =IFERROR(INDEX($CD$8:$CO$49,$CR10,COLUMNS($CC$8:CH10)),"") ->  | CZ10: =IFERROR(INDEX($CD$8:$CO$49,$CR10,COLUMNS($CC$8:CI10)),"") ->  | DA10: =IFERROR(INDEX($CD$8:$CO$49,$CR10,COLUMNS($CC$8:CJ10)),"") ->  | DB10: =IFERROR(INDEX($CD$8:$CO$49,$CR10,COLUMNS($CC$8:CK10)),"") ->  | DC10: =IFERROR(INDEX($CD$8:$CO$49,$CR10,COLUMNS($CC$8:CL10)),"") ->  | DD10: =IFERROR(INDEX($CD$8:$CO$49,$CR10,COLUMNS($CC$8:CM10)),"") ->  | DE10: =IFERROR(INDEX($CD$8:$CO$49,$CR10,COLUMNS($CC$8:CN10)),"") -> 
D11: Centroid Wavelength, λ: | E11: 940 | F11: nm | H11: Distance from LED to target: | I11: 100 | J11: cm | N11: SFH 4713A | O11: Max Rated DC operation | P11: 850 | Q11: 40 | R11: 500 | S11: 1000 | T11: 1.75 | U11: 100 | V11: 1 | W11: 0.75 | X11: =1+X10 -> 4 | Y11: Non Automotive | Z11: 4 | AB11: =IFERROR(SMALL($AA$8:$AA$49,ROWS($AA$8:AA11)),"") -> 17 | AD11: =IFERROR(INDEX($N$8:$Y$49,$AB11,COLUMNS($M$8:M11)),"") -> SFH 4727AS A01 | AE11: =IFERROR(INDEX($N$8:$Y$49,$AB11,COLUMNS($M$8:N11)),"") -> Max Rated DC operation | AF11: =IFERROR(INDEX($N$8:$Y$49,$AB11,COLUMNS($M$8:O11)),"") -> 940 | AG11: =IFERROR(INDEX($N$8:$Y$49,$AB11,COLUMNS($M$8:P11)),"") -> 25 | AH11: =IFERROR(INDEX($N$8:$Y$49,$AB11,COLUMNS($M$8:Q11)),"") -> 1875 | AI11: =IFERROR(INDEX($N$8:$Y$49,$AB11,COLUMNS($M$8:R11)),"") -> 1500 | AJ11: =IFERROR(INDEX($N$8:$Y$49,$AB11,COLUMNS($M$8:S11)),"") -> 2.7 | AK11: =IFERROR(INDEX($N$8:$Y$49,$AB11,COLUMNS($M$8:T11)),"") -> 100 | AL11: =IFERROR(INDEX($N$8:$Y$49,$AB11,COLUMNS($M$8:U11)),"") -> 1 | AM11: =IFERROR(INDEX($N$8:$Y$49,$AB11,COLUMNS($M$8:V11)),"") -> 1 | AN11: =IFERROR(INDEX($N$8:$Y$49,$AB11,COLUMNS($M$8:W11)),"") -> 17 | AO11: =IFERROR(INDEX($N$8:$Y$49,$AB11,COLUMNS($M$8:X11)),"") -> Automotive | AP11: 4 | AR11: =IFERROR(SMALL($AQ$8:$AQ$49,ROWS($AQ$8:AQ11)),"") -> 9 | AT11: =IFERROR(INDEX($AD$8:$AO$49,$AR11,COLUMNS($M$8:M11)),"") -> SFH 4725AS A01 | AU11: =IFERROR(INDEX($AD$8:$AO$49,$AR11,COLUMNS($M$8:N11)),"") -> Max Rated Pulsed operation | AV11: =IFERROR(INDEX($AD$8:$AO$49,$AR11,COLUMNS($M$8:O11)),"") -> 940 | AW11: =IFERROR(INDEX($AD$8:$AO$49,$AR11,COLUMNS($M$8:P11)),"") -> 40 | AX11: =IFERROR(INDEX($AD$8:$AO$49,$AR11,COLUMNS($M$8:Q11)),"") -> 3360 | AY11: =IFERROR(INDEX($AD$8:$AO$49,$AR11,COLUMNS($M$8:R11)),"") -> 5000 | AZ11: =IFERROR(INDEX($AD$8:$AO$49,$AR11,COLUMNS($M$8:S11)),"") -> 3.2 | BA11: =IFERROR(INDEX($AD$8:$AO$49,$AR11,COLUMNS($M$8:T11)),"") -> 0.01 | BB11: =IFERROR(INDEX($AD$8:$AO$49,$AR11,COLUMNS($M$8:U11)),"") -> 0.0008 | BC11: =IFERROR(INDEX($AD$8:$AO$49,$AR11,COLUMNS($M$8:V11)),"") -> 1 | BD11: =IFERROR(INDEX($AD$8:$AO$49,$AR11,COLUMNS($M$8:W11)),"") -> 17 | BE11: =IFERROR(INDEX($AD$8:$AO$49,$AR11,COLUMNS($M$8:X11)),"") -> Automotive | BF11: 4 | BG11: 4 | BH11: =IFERROR(SMALL($BG$8:$BG$49,ROWS($BG$8:BG11)),"") ->  | BJ11: =IFERROR(INDEX($AT$8:$BE$46,$BH11,COLUMNS($AT$8:AT11)),"") ->  | BK11: =IFERROR(INDEX($AT$8:$BE$46,$BH11,COLUMNS($AT$8:AU11)),"") ->  | BL11: =IFERROR(INDEX($AT$8:$BE$46,$BH11,COLUMNS($AT$8:AV11)),"") ->  | BM11: =IFERROR(INDEX($AT$8:$BE$46,$BH11,COLUMNS($AT$8:AW11)),"") ->  | BN11: =IFERROR(INDEX($AT$8:$BE$46,$BH11,COLUMNS($AT$8:AX11)),"") ->  | BO11: =IFERROR(INDEX($AT$8:$BE$46,$BH11,COLUMNS($AT$8:AY11)),"") ->  | BP11: =IFERROR(INDEX($AT$8:$BE$46,$BH11,COLUMNS($AT$8:AZ11)),"") ->  | BQ11: =IFERROR(INDEX($AT$8:$BE$46,$BH11,COLUMNS($AT$8:BA11)),"") ->  | BR11: =IFERROR(INDEX($AT$8:$BE$46,$BH11,COLUMNS($AT$8:BB11)),"") ->  | BS11: =IFERROR(INDEX($AT$8:$BE$46,$BH11,COLUMNS($AT$8:BC11)),"") ->  | BT11: =IFERROR(INDEX($AT$8:$BE$46,$BH11,COLUMNS($AT$8:BD11)),"") ->  | BU11: =IFERROR(INDEX($AT$8:$BE$46,$BH11,COLUMNS($AT$8:BE11)),"") ->  | BV11: 4 | BX11: =IFERROR(SMALL($BW$8:$BW$49,ROWS($BW$8:BW11)),"") ->  | BY11: =INDEX(BM11:$BM$49,1,1) ->  | BZ11: =COUNTIF($BM$8:BM11,BY11) -> 2 | CB11: =IFERROR(SMALL($CA$8:$CA$49,ROWS($CA$8:CA11)),"") ->  | CD11: =IFERROR(INDEX($BJ$8:$BU$46,$BX11,COLUMNS($BI$8:BI11)),"") ->  | CE11: =IFERROR(INDEX($BJ$8:$BU$46,$BX11,COLUMNS($BI$8:BJ11)),"") ->  | CF11: =IFERROR(INDEX($BJ$8:$BU$46,$BX11,COLUMNS($BI$8:BK11)),"") ->  | CG11: =IFERROR(INDEX($BJ$8:$BU$46,$BX11,COLUMNS($BI$8:BL11)),"") ->  | CH11: =IFERROR(INDEX($BJ$8:$BU$46,$BX11,COLUMNS($BI$8:BM11)),"") ->  | CI11: =IFERROR(INDEX($BJ$8:$BU$46,$BX11,COLUMNS($BI$8:BN11)),"") ->  | CJ11: =IFERROR(INDEX($BJ$8:$BU$46,$BX11,COLUMNS($BI$8:BO11)),"") ->  | CK11: =IFERROR(INDEX($BJ$8:$BU$46,$BX11,COLUMNS($BI$8:BP11)),"") ->  | CL11: =IFERROR(INDEX($BJ$8:$BU$46,$BX11,COLUMNS($BI$8:BQ11)),"") ->  | CM11: =IFERROR(INDEX($BJ$8:$BU$46,$BX11,COLUMNS($BI$8:BR11)),"") ->  | CN11: =IFERROR(INDEX($BJ$8:$BU$46,$BX11,COLUMNS($BI$8:BS11)),"") ->  | CO11: =IFERROR(INDEX($BJ$8:$BU$46,$BX11,COLUMNS($BI$8:BT11)),"") ->  | CP11: 4 | CR11: =IFERROR(SMALL($CQ$8:$CQ$49,ROWS($CQ$8:CQ11)),"") ->  | CT11: =IFERROR(INDEX($CD$8:$CO$49,$CR11,COLUMNS($CC$8:CC11)),"") ->  | CU11: =IFERROR(INDEX($CD$8:$CO$49,$CR11,COLUMNS($CC$8:CD11)),"") ->  | CV11: =IFERROR(INDEX($CD$8:$CO$49,$CR11,COLUMNS($CC$8:CE11)),"") ->  | CW11: =IFERROR(INDEX($CD$8:$CO$49,$CR11,COLUMNS($CC$8:CF11)),"") ->  | CX11: =IFERROR(INDEX($CD$8:$CO$49,$CR11,COLUMNS($CC$8:CG11)),"") ->  | CY11: =IFERROR(INDEX($CD$8:$CO$49,$CR11,COLUMNS($CC$8:CH11)),"") ->  | CZ11: =IFERROR(INDEX($CD$8:$CO$49,$CR11,COLUMNS($CC$8:CI11)),"") ->  | DA11: =IFERROR(INDEX($CD$8:$CO$49,$CR11,COLUMNS($CC$8:CJ11)),"") ->  | DB11: =IFERROR(INDEX($CD$8:$CO$49,$CR11,COLUMNS($CC$8:CK11)),"") ->  | DC11: =IFERROR(INDEX($CD$8:$CO$49,$CR11,COLUMNS($CC$8:CL11)),"") ->  | DD11: =IFERROR(INDEX($CD$8:$CO$49,$CR11,COLUMNS($CC$8:CM11)),"") ->  | DE11: =IFERROR(INDEX($CD$8:$CO$49,$CR11,COLUMNS($CC$8:CN11)),"") -> 
N12: SFH 4715AS A01 | O12: Max Rated DC operation | P12: 850 | Q12: 40 | R12: =1.5*800 -> 1200 | S12: 1500 | T12: 2.95 | U12: 100 | V12: 1 | W12: 1 | X12: 5 | Y12: Automotive | Z12: 5 | AA12: 5 | AB12: =IFERROR(SMALL($AA$8:$AA$49,ROWS($AA$8:AA12)),"") -> 18 | AD12: =IFERROR(INDEX($N$8:$Y$49,$AB12,COLUMNS($M$8:M12)),"") -> SFH 4725AS A01 | AE12: =IFERROR(INDEX($N$8:$Y$49,$AB12,COLUMNS($M$8:N12)),"") -> Max Rated DC operation | AF12: =IFERROR(INDEX($N$8:$Y$49,$AB12,COLUMNS($M$8:O12)),"") -> 940 | AG12: =IFERROR(INDEX($N$8:$Y$49,$AB12,COLUMNS($M$8:P12)),"") -> 40 | AH12: =IFERROR(INDEX($N$8:$Y$49,$AB12,COLUMNS($M$8:Q12)),"") -> 1200 | AI12: =IFERROR(INDEX($N$8:$Y$49,$AB12,COLUMNS($M$8:R12)),"") -> 1500 | AJ12: =IFERROR(INDEX($N$8:$Y$49,$AB12,COLUMNS($M$8:S12)),"") -> 2.75 | AK12: =IFERROR(INDEX($N$8:$Y$49,$AB12,COLUMNS($M$8:T12)),"") -> 100 | AL12: =IFERROR(INDEX($N$8:$Y$49,$AB12,COLUMNS($M$8:U12)),"") -> 1 | AM12: =IFERROR(INDEX($N$8:$Y$49,$AB12,COLUMNS($M$8:V12)),"") -> 1 | AN12: =IFERROR(INDEX($N$8:$Y$49,$AB12,COLUMNS($M$8:W12)),"") -> 18 | AO12: =IFERROR(INDEX($N$8:$Y$49,$AB12,COLUMNS($M$8:X12)),"") -> Automotive | AP12: 5 | AR12: =IFERROR(SMALL($AQ$8:$AQ$49,ROWS($AQ$8:AQ12)),"") -> 10 | AT12: =IFERROR(INDEX($AD$8:$AO$49,$AR12,COLUMNS($M$8:M12)),"") -> SFH 4727AS A01 | AU12: =IFERROR(INDEX($AD$8:$AO$49,$AR12,COLUMNS($M$8:N12)),"") -> Max Rated Pulsed operation | AV12: =IFERROR(INDEX($AD$8:$AO$49,$AR12,COLUMNS($M$8:O12)),"") -> 940 | AW12: =IFERROR(INDEX($AD$8:$AO$49,$AR12,COLUMNS($M$8:P12)),"") -> 25 | AX12: =IFERROR(INDEX($AD$8:$AO$49,$AR12,COLUMNS($M$8:Q12)),"") -> 5250 | AY12: =IFERROR(INDEX($AD$8:$AO$49,$AR12,COLUMNS($M$8:R12)),"") -> 5000 | AZ12: =IFERROR(INDEX($AD$8:$AO$49,$AR12,COLUMNS($M$8:S12)),"") -> 3.2 | BA12: =IFERROR(INDEX($AD$8:$AO$49,$AR12,COLUMNS($M$8:T12)),"") -> 0.01 | BB12: =IFERROR(INDEX($AD$8:$AO$49,$AR12,COLUMNS($M$8:U12)),"") -> 0.0005 | BC12: =IFERROR(INDEX($AD$8:$AO$49,$AR12,COLUMNS($M$8:V12)),"") -> 1 | BD12: =IFERROR(INDEX($AD$8:$AO$49,$AR12,COLUMNS($M$8:W12)),"") -> 18 | BE12: =IFERROR(INDEX($AD$8:$AO$49,$AR12,COLUMNS($M$8:X12)),"") -> Automotive | BF12: 5 | BG12: 5 | BH12: =IFERROR(SMALL($BG$8:$BG$49,ROWS($BG$8:BG12)),"") ->  | BJ12: =IFERROR(INDEX($AT$8:$BE$46,$BH12,COLUMNS($AT$8:AT12)),"") ->  | BK12: =IFERROR(INDEX($AT$8:$BE$46,$BH12,COLUMNS($AT$8:AU12)),"") ->  | BL12: =IFERROR(INDEX($AT$8:$BE$46,$BH12,COLUMNS($AT$8:AV12)),"") ->  | BM12: =IFERROR(INDEX($AT$8:$BE$46,$BH12,COLUMNS($AT$8:AW12)),"") ->  | BN12: =IFERROR(INDEX($AT$8:$BE$46,$BH12,COLUMNS($AT$8:AX12)),"") ->  | BO12: =IFERROR(INDEX($AT$8:$BE$46,$BH12,COLUMNS($AT$8:AY12)),"") ->  | BP12: =IFERROR(INDEX($AT$8:$BE$46,$BH12,COLUMNS($AT$8:AZ12)),"") ->  | BQ12: =IFERROR(INDEX($AT$8:$BE$46,$BH12,COLUMNS($AT$8:BA12)),"") ->  | BR12: =IFERROR(INDEX($AT$8:$BE$46,$BH12,COLUMNS($AT$8:BB12)),"") ->  | BS12: =IFERROR(INDEX($AT$8:$BE$46,$BH12,COLUMNS($AT$8:BC12)),"") ->  | BT12: =IFERROR(INDEX($AT$8:$BE$46,$BH12,COLUMNS($AT$8:BD12)),"") ->  | BU12: =IFERROR(INDEX($AT$8:$BE$46,$BH12,COLUMNS($AT$8:BE12)),"") ->  | BV12: 5 | BX12: =IFERROR(SMALL($BW$8:$BW$49,ROWS($BW$8:BW12)),"") ->  | BY12: =INDEX(BM12:$BM$49,1,1) ->  | BZ12: =COUNTIF($BM$8:BM12,BY12) -> 3 | CB12: =IFERROR(SMALL($CA$8:$CA$49,ROWS($CA$8:CA12)),"") ->  | CD12: =IFERROR(INDEX($BJ$8:$BU$46,$BX12,COLUMNS($BI$8:BI12)),"") ->  | CE12: =IFERROR(INDEX($BJ$8:$BU$46,$BX12,COLUMNS($BI$8:BJ12)),"") ->  | CF12: =IFERROR(INDEX($BJ$8:$BU$46,$BX12,COLUMNS($BI$8:BK12)),"") ->  | CG12: =IFERROR(INDEX($BJ$8:$BU$46,$BX12,COLUMNS($BI$8:BL12)),"") ->  | CH12: =IFERROR(INDEX($BJ$8:$BU$46,$BX12,COLUMNS($BI$8:BM12)),"") ->  | CI12: =IFERROR(INDEX($BJ$8:$BU$46,$BX12,COLUMNS($BI$8:BN12)),"") ->  | CJ12: =IFERROR(INDEX($BJ$8:$BU$46,$BX12,COLUMNS($BI$8:BO12)),"") ->  | CK12: =IFERROR(INDEX($BJ$8:$BU$46,$BX12,COLUMNS($BI$8:BP12)),"") ->  | CL12: =IFERROR(INDEX($BJ$8:$BU$46,$BX12,COLUMNS($BI$8:BQ12)),"") ->  | CM12: =IFERROR(INDEX($BJ$8:$BU$46,$BX12,COLUMNS($BI$8:BR12)),"") ->  | CN12: =IFERROR(INDEX($BJ$8:$BU$46,$BX12,COLUMNS($BI$8:BS12)),"") ->  | CO12: =IFERROR(INDEX($BJ$8:$BU$46,$BX12,COLUMNS($BI$8:BT12)),"") ->  | CP12: 5 | CR12: =IFERROR(SMALL($CQ$8:$CQ$49,ROWS($CQ$8:CQ12)),"") ->  | CT12: =IFERROR(INDEX($CD$8:$CO$49,$CR12,COLUMNS($CC$8:CC12)),"") ->  | CU12: =IFERROR(INDEX($CD$8:$CO$49,$CR12,COLUMNS($CC$8:CD12)),"") ->  | CV12: =IFERROR(INDEX($CD$8:$CO$49,$CR12,COLUMNS($CC$8:CE12)),"") ->  | CW12: =IFERROR(INDEX($CD$8:$CO$49,$CR12,COLUMNS($CC$8:CF12)),"") ->  | CX12: =IFERROR(INDEX($CD$8:$CO$49,$CR12,COLUMNS($CC$8:CG12)),"") ->  | CY12: =IFERROR(INDEX($CD$8:$CO$49,$CR12,COLUMNS($CC$8:CH12)),"") ->  | CZ12: =IFERROR(INDEX($CD$8:$CO$49,$CR12,COLUMNS($CC$8:CI12)),"") ->  | DA12: =IFERROR(INDEX($CD$8:$CO$49,$CR12,COLUMNS($CC$8:CJ12)),"") ->  | DB12: =IFERROR(INDEX($CD$8:$CO$49,$CR12,COLUMNS($CC$8:CK12)),"") ->  | DC12: =IFERROR(INDEX($CD$8:$CO$49,$CR12,COLUMNS($CC$8:CL12)),"") ->  | DD12: =IFERROR(INDEX($CD$8:$CO$49,$CR12,COLUMNS($CC$8:CM12)),"") ->  | DE12: =IFERROR(INDEX($CD$8:$CO$49,$CR12,COLUMNS($CC$8:CN12)),"") -> 
D13: Emission Half-Angle, ψ: ± | E13: 25 | F13: ˚ | H13: Smallest target area: | I13: 22285 | J13: cm2 --> Illumination area=target area | N13: SFH 4711A | O13: Max Rated DC operation | P13: 850 | Q13: 45 | R13: 200 | S13: 500 | T13: 1.7 | U13: 100 | V13: 1 | W13: 0.5 | X13: 6 | Y13: Non Automotive | Z13: 6 | AB13: =IFERROR(SMALL($AA$8:$AA$49,ROWS($AA$8:AA13)),"") -> 24 | AD13: =IFERROR(INDEX($N$8:$Y$49,$AB13,COLUMNS($M$8:M13)),"") -> SFH 4717AS A01 | AE13: =IFERROR(INDEX($N$8:$Y$49,$AB13,COLUMNS($M$8:N13)),"") -> Max Rated Pulsed operation | AF13: =IFERROR(INDEX($N$8:$Y$49,$AB13,COLUMNS($M$8:O13)),"") -> 850 | AG13: =IFERROR(INDEX($N$8:$Y$49,$AB13,COLUMNS($M$8:P13)),"") -> 25 | AH13: =IFERROR(INDEX($N$8:$Y$49,$AB13,COLUMNS($M$8:Q13)),"") -> 5250 | AI13: =IFERROR(INDEX($N$8:$Y$49,$AB13,COLUMNS($M$8:R13)),"") -> 5000 | AJ13: =IFERROR(INDEX($N$8:$Y$49,$AB13,COLUMNS($M$8:S13)),"") -> 3.5 | AK13: =IFERROR(INDEX($N$8:$Y$49,$AB13,COLUMNS($M$8:T13)),"") -> 0.01 | AL13: =IFERROR(INDEX($N$8:$Y$49,$AB13,COLUMNS($M$8:U13)),"") -> 0.0001 | AM13: =IFERROR(INDEX($N$8:$Y$49,$AB13,COLUMNS($M$8:V13)),"") -> 1 | AN13: =IFERROR(INDEX($N$8:$Y$49,$AB13,COLUMNS($M$8:W13)),"") -> 3 | AO13: =IFERROR(INDEX($N$8:$Y$49,$AB13,COLUMNS($M$8:X13)),"") -> Automotive | AP13: 6 | AQ13: 6 | AR13: =IFERROR(SMALL($AQ$8:$AQ$49,ROWS($AQ$8:AQ13)),"") ->  | AT13: =IFERROR(INDEX($AD$8:$AO$49,$AR13,COLUMNS($M$8:M13)),"") ->  | AU13: =IFERROR(INDEX($AD$8:$AO$49,$AR13,COLUMNS($M$8:N13)),"") ->  | AV13: =IFERROR(INDEX($AD$8:$AO$49,$AR13,COLUMNS($M$8:O13)),"") ->  | AW13: =IFERROR(INDEX($AD$8:$AO$49,$AR13,COLUMNS($M$8:P13)),"") ->  | AX13: =IFERROR(INDEX($AD$8:$AO$49,$AR13,COLUMNS($M$8:Q13)),"") ->  | AY13: =IFERROR(INDEX($AD$8:$AO$49,$AR13,COLUMNS($M$8:R13)),"") ->  | AZ13: =IFERROR(INDEX($AD$8:$AO$49,$AR13,COLUMNS($M$8:S13)),"") ->  | BA13: =IFERROR(INDEX($AD$8:$AO$49,$AR13,COLUMNS($M$8:T13)),"") ->  | BB13: =IFERROR(INDEX($AD$8:$AO$49,$AR13,COLUMNS($M$8:U13)),"") ->  | BC13: =IFERROR(INDEX($AD$8:$AO$49,$AR13,COLUMNS($M$8:V13)),"") ->  | BD13: =IFERROR(INDEX($AD$8:$AO$49,$AR13,COLUMNS($M$8:W13)),"") ->  | BE13: =IFERROR(INDEX($AD$8:$AO$49,$AR13,COLUMNS($M$8:X13)),"") ->  | BF13: 6 | BH13: =IFERROR(SMALL($BG$8:$BG$49,ROWS($BG$8:BG13)),"") ->  | BJ13: =IFERROR(INDEX($AT$8:$BE$46,$BH13,COLUMNS($AT$8:AT13)),"") ->  | BK13: =IFERROR(INDEX($AT$8:$BE$46,$BH13,COLUMNS($AT$8:AU13)),"") ->  | BL13: =IFERROR(INDEX($AT$8:$BE$46,$BH13,COLUMNS($AT$8:AV13)),"") ->  | BM13: =IFERROR(INDEX($AT$8:$BE$46,$BH13,COLUMNS($AT$8:AW13)),"") ->  | BN13: =IFERROR(INDEX($AT$8:$BE$46,$BH13,COLUMNS($AT$8:AX13)),"") ->  | BO13: =IFERROR(INDEX($AT$8:$BE$46,$BH13,COLUMNS($AT$8:AY13)),"") ->  | BP13: =IFERROR(INDEX($AT$8:$BE$46,$BH13,COLUMNS($AT$8:AZ13)),"") ->  | BQ13: =IFERROR(INDEX($AT$8:$BE$46,$BH13,COLUMNS($AT$8:BA13)),"") ->  | BR13: =IFERROR(INDEX($AT$8:$BE$46,$BH13,COLUMNS($AT$8:BB13)),"") ->  | BS13: =IFERROR(INDEX($AT$8:$BE$46,$BH13,COLUMNS($AT$8:BC13)),"") ->  | BT13: =IFERROR(INDEX($AT$8:$BE$46,$BH13,COLUMNS($AT$8:BD13)),"") ->  | BU13: =IFERROR(INDEX($AT$8:$BE$46,$BH13,COLUMNS($AT$8:BE13)),"") ->  | BV13: 6 | BX13: =IFERROR(SMALL($BW$8:$BW$49,ROWS($BW$8:BW13)),"") ->  | BY13: =INDEX(BM13:$BM$49,1,1) ->  | BZ13: =COUNTIF($BM$8:BM13,BY13) -> 4 | CB13: =IFERROR(SMALL($CA$8:$CA$49,ROWS($CA$8:CA13)),"") ->  | CD13: =IFERROR(INDEX($BJ$8:$BU$46,$BX13,COLUMNS($BI$8:BI13)),"") ->  | CE13: =IFERROR(INDEX($BJ$8:$BU$46,$BX13,COLUMNS($BI$8:BJ13)),"") ->  | CF13: =IFERROR(INDEX($BJ$8:$BU$46,$BX13,COLUMNS($BI$8:BK13)),"") ->  | CG13: =IFERROR(INDEX($BJ$8:$BU$46,$BX13,COLUMNS($BI$8:BL13)),"") ->  | CH13: =IFERROR(INDEX($BJ$8:$BU$46,$BX13,COLUMNS($BI$8:BM13)),"") ->  | CI13: =IFERROR(INDEX($BJ$8:$BU$46,$BX13,COLUMNS($BI$8:BN13)),"") ->  | CJ13: =IFERROR(INDEX($BJ$8:$BU$46,$BX13,COLUMNS($BI$8:BO13)),"") ->  | CK13: =IFERROR(INDEX($BJ$8:$BU$46,$BX13,COLUMNS($BI$8:BP13)),"") ->  | CL13: =IFERROR(INDEX($BJ$8:$BU$46,$BX13,COLUMNS($BI$8:BQ13)),"") ->  | CM13: =IFERROR(INDEX($BJ$8:$BU$46,$BX13,COLUMNS($BI$8:BR13)),"") ->  | CN13: =IFERROR(INDEX($BJ$8:$BU$46,$BX13,COLUMNS($BI$8:BS13)),"") ->  | CO13: =IFERROR(INDEX($BJ$8:$BU$46,$BX13,COLUMNS($BI$8:BT13)),"") ->  | CP13: 6 | CR13: =IFERROR(SMALL($CQ$8:$CQ$49,ROWS($CQ$8:CQ13)),"") ->  | CT13: =IFERROR(INDEX($CD$8:$CO$49,$CR13,COLUMNS($CC$8:CC13)),"") ->  | CU13: =IFERROR(INDEX($CD$8:$CO$49,$CR13,COLUMNS($CC$8:CD13)),"") ->  | CV13: =IFERROR(INDEX($CD$8:$CO$49,$CR13,COLUMNS($CC$8:CE13)),"") ->  | CW13: =IFERROR(INDEX($CD$8:$CO$49,$CR13,COLUMNS($CC$8:CF13)),"") ->  | CX13: =IFERROR(INDEX($CD$8:$CO$49,$CR13,COLUMNS($CC$8:CG13)),"") ->  | CY13: =IFERROR(INDEX($CD$8:$CO$49,$CR13,COLUMNS($CC$8:CH13)),"") ->  | CZ13: =IFERROR(INDEX($CD$8:$CO$49,$CR13,COLUMNS($CC$8:CI13)),"") ->  | DA13: =IFERROR(INDEX($CD$8:$CO$49,$CR13,COLUMNS($CC$8:CJ13)),"") ->  | DB13: =IFERROR(INDEX($CD$8:$CO$49,$CR13,COLUMNS($CC$8:CK13)),"") ->  | DC13: =IFERROR(INDEX($CD$8:$CO$49,$CR13,COLUMNS($CC$8:CL13)),"") ->  | DD13: =IFERROR(INDEX($CD$8:$CO$49,$CR13,COLUMNS($CC$8:CM13)),"") ->  | DE13: =IFERROR(INDEX($CD$8:$CO$49,$CR13,COLUMNS($CC$8:CN13)),"") -> 
N14: SFH 4715S | O14: Max Rated DC operation | P14: 850 | Q14: 45 | R14: 630 | S14: 1000 | T14: 2.9 | U14: 100 | V14: 1 | W14: 1 | X14: 7 | Y14: Non Automotive | Z14: 7 | AB14: =IFERROR(SMALL($AA$8:$AA$49,ROWS($AA$8:AA14)),"") -> 26 | AD14: =IFERROR(INDEX($N$8:$Y$49,$AB14,COLUMNS($M$8:M14)),"") -> SFH 4715AS A01 | AE14: =IFERROR(INDEX($N$8:$Y$49,$AB14,COLUMNS($M$8:N14)),"") -> Max Rated Pulsed operation | AF14: =IFERROR(INDEX($N$8:$Y$49,$AB14,COLUMNS($M$8:O14)),"") -> 850 | AG14: =IFERROR(INDEX($N$8:$Y$49,$AB14,COLUMNS($M$8:P14)),"") -> 40 | AH14: =IFERROR(INDEX($N$8:$Y$49,$AB14,COLUMNS($M$8:Q14)),"") -> 3360 | AI14: =IFERROR(INDEX($N$8:$Y$49,$AB14,COLUMNS($M$8:R14)),"") -> 5000 | AJ14: =IFERROR(INDEX($N$8:$Y$49,$AB14,COLUMNS($M$8:S14)),"") -> 3.5 | AK14: =IFERROR(INDEX($N$8:$Y$49,$AB14,COLUMNS($M$8:T14)),"") -> 0.01 | AL14: =IFERROR(INDEX($N$8:$Y$49,$AB14,COLUMNS($M$8:U14)),"") -> 0.0001 | AM14: =IFERROR(INDEX($N$8:$Y$49,$AB14,COLUMNS($M$8:V14)),"") -> 1 | AN14: =IFERROR(INDEX($N$8:$Y$49,$AB14,COLUMNS($M$8:W14)),"") -> 5 | AO14: =IFERROR(INDEX($N$8:$Y$49,$AB14,COLUMNS($M$8:X14)),"") -> Automotive | AP14: 7 | AQ14: 7 | AR14: =IFERROR(SMALL($AQ$8:$AQ$49,ROWS($AQ$8:AQ14)),"") ->  | AT14: =IFERROR(INDEX($AD$8:$AO$49,$AR14,COLUMNS($M$8:M14)),"") ->  | AU14: =IFERROR(INDEX($AD$8:$AO$49,$AR14,COLUMNS($M$8:N14)),"") ->  | AV14: =IFERROR(INDEX($AD$8:$AO$49,$AR14,COLUMNS($M$8:O14)),"") ->  | AW14: =IFERROR(INDEX($AD$8:$AO$49,$AR14,COLUMNS($M$8:P14)),"") ->  | AX14: =IFERROR(INDEX($AD$8:$AO$49,$AR14,COLUMNS($M$8:Q14)),"") ->  | AY14: =IFERROR(INDEX($AD$8:$AO$49,$AR14,COLUMNS($M$8:R14)),"") ->  | AZ14: =IFERROR(INDEX($AD$8:$AO$49,$AR14,COLUMNS($M$8:S14)),"") ->  | BA14: =IFERROR(INDEX($AD$8:$AO$49,$AR14,COLUMNS($M$8:T14)),"") ->  | BB14: =IFERROR(INDEX($AD$8:$AO$49,$AR14,COLUMNS($M$8:U14)),"") ->  | BC14: =IFERROR(INDEX($AD$8:$AO$49,$AR14,COLUMNS($M$8:V14)),"") ->  | BD14: =IFERROR(INDEX($AD$8:$AO$49,$AR14,COLUMNS($M$8:W14)),"") ->  | BE14: =IFERROR(INDEX($AD$8:$AO$49,$AR14,COLUMNS($M$8:X14)),"") ->  | BF14: 7 | BH14: =IFERROR(SMALL($BG$8:$BG$49,ROWS($BG$8:BG14)),"") ->  | BJ14: =IFERROR(INDEX($AT$8:$BE$46,$BH14,COLUMNS($AT$8:AT14)),"") ->  | BK14: =IFERROR(INDEX($AT$8:$BE$46,$BH14,COLUMNS($AT$8:AU14)),"") ->  | BL14: =IFERROR(INDEX($AT$8:$BE$46,$BH14,COLUMNS($AT$8:AV14)),"") ->  | BM14: =IFERROR(INDEX($AT$8:$BE$46,$BH14,COLUMNS($AT$8:AW14)),"") ->  | BN14: =IFERROR(INDEX($AT$8:$BE$46,$BH14,COLUMNS($AT$8:AX14)),"") ->  | BO14: =IFERROR(INDEX($AT$8:$BE$46,$BH14,COLUMNS($AT$8:AY14)),"") ->  | BP14: =IFERROR(INDEX($AT$8:$BE$46,$BH14,COLUMNS($AT$8:AZ14)),"") ->  | BQ14: =IFERROR(INDEX($AT$8:$BE$46,$BH14,COLUMNS($AT$8:BA14)),"") ->  | BR14: =IFERROR(INDEX($AT$8:$BE$46,$BH14,COLUMNS($AT$8:BB14)),"") ->  | BS14: =IFERROR(INDEX($AT$8:$BE$46,$BH14,COLUMNS($AT$8:BC14)),"") ->  | BT14: =IFERROR(INDEX($AT$8:$BE$46,$BH14,COLUMNS($AT$8:BD14)),"") ->  | BU14: =IFERROR(INDEX($AT$8:$BE$46,$BH14,COLUMNS($AT$8:BE14)),"") ->  | BV14: 7 | BX14: =IFERROR(SMALL($BW$8:$BW$49,ROWS($BW$8:BW14)),"") ->  | BY14: =INDEX(BM14:$BM$49,1,1) ->  | BZ14: =COUNTIF($BM$8:BM14,BY14) -> 5 | CB14: =IFERROR(SMALL($CA$8:$CA$49,ROWS($CA$8:CA14)),"") ->  | CD14: =IFERROR(INDEX($BJ$8:$BU$46,$BX14,COLUMNS($BI$8:BI14)),"") ->  | CE14: =IFERROR(INDEX($BJ$8:$BU$46,$BX14,COLUMNS($BI$8:BJ14)),"") ->  | CF14: =IFERROR(INDEX($BJ$8:$BU$46,$BX14,COLUMNS($BI$8:BK14)),"") ->  | CG14: =IFERROR(INDEX($BJ$8:$BU$46,$BX14,COLUMNS($BI$8:BL14)),"") ->  | CH14: =IFERROR(INDEX($BJ$8:$BU$46,$BX14,COLUMNS($BI$8:BM14)),"") ->  | CI14: =IFERROR(INDEX($BJ$8:$BU$46,$BX14,COLUMNS($BI$8:BN14)),"") ->  | CJ14: =IFERROR(INDEX($BJ$8:$BU$46,$BX14,COLUMNS($BI$8:BO14)),"") ->  | CK14: =IFERROR(INDEX($BJ$8:$BU$46,$BX14,COLUMNS($BI$8:BP14)),"") ->  | CL14: =IFERROR(INDEX($BJ$8:$BU$46,$BX14,COLUMNS($BI$8:BQ14)),"") ->  | CM14: =IFERROR(INDEX($BJ$8:$BU$46,$BX14,COLUMNS($BI$8:BR14)),"") ->  | CN14: =IFERROR(INDEX($BJ$8:$BU$46,$BX14,COLUMNS($BI$8:BS14)),"") ->  | CO14: =IFERROR(INDEX($BJ$8:$BU$46,$BX14,COLUMNS($BI$8:BT14)),"") ->  | CP14: 7 | CR14: =IFERROR(SMALL($CQ$8:$CQ$49,ROWS($CQ$8:CQ14)),"") ->  | CT14: =IFERROR(INDEX($CD$8:$CO$49,$CR14,COLUMNS($CC$8:CC14)),"") ->  | CU14: =IFERROR(INDEX($CD$8:$CO$49,$CR14,COLUMNS($CC$8:CD14)),"") ->  | CV14: =IFERROR(INDEX($CD$8:$CO$49,$CR14,COLUMNS($CC$8:CE14)),"") ->  | CW14: =IFERROR(INDEX($CD$8:$CO$49,$CR14,COLUMNS($CC$8:CF14)),"") ->  | CX14: =IFERROR(INDEX($CD$8:$CO$49,$CR14,COLUMNS($CC$8:CG14)),"") ->  | CY14: =IFERROR(INDEX($CD$8:$CO$49,$CR14,COLUMNS($CC$8:CH14)),"") ->  | CZ14: =IFERROR(INDEX($CD$8:$CO$49,$CR14,COLUMNS($CC$8:CI14)),"") ->  | DA14: =IFERROR(INDEX($CD$8:$CO$49,$CR14,COLUMNS($CC$8:CJ14)),"") ->  | DB14: =IFERROR(INDEX($CD$8:$CO$49,$CR14,COLUMNS($CC$8:CK14)),"") ->  | DC14: =IFERROR(INDEX($CD$8:$CO$49,$CR14,COLUMNS($CC$8:CL14)),"") ->  | DD14: =IFERROR(INDEX($CD$8:$CO$49,$CR14,COLUMNS($CC$8:CM14)),"") ->  | DE14: =IFERROR(INDEX($CD$8:$CO$49,$CR14,COLUMNS($CC$8:CN14)),"") -> 
D15: Max Radiant Intensity, IRI: | E15: 5250 | F15: mW/sr | H15: Reflectivity of Target: | I15: 10 | J15: % | N15: SFH 4715 | O15: Max Rated DC operation | P15: 850 | Q15: 45 | R15: 320 | S15: 1000 | T15: 1.5 | U15: 100 | V15: 1 | W15: 1 | X15: 8 | Y15: Non Automotive | Z15: 8 | AB15: =IFERROR(SMALL($AA$8:$AA$49,ROWS($AA$8:AA15)),"") -> 37 | AD15: =IFERROR(INDEX($N$8:$Y$49,$AB15,COLUMNS($M$8:M15)),"") -> SFH 4716AS A01 | AE15: =IFERROR(INDEX($N$8:$Y$49,$AB15,COLUMNS($M$8:N15)),"") -> Max Rated Pulsed operation | AF15: =IFERROR(INDEX($N$8:$Y$49,$AB15,COLUMNS($M$8:O15)),"") -> 850 | AG15: =IFERROR(INDEX($N$8:$Y$49,$AB15,COLUMNS($M$8:P15)),"") -> 75 | AH15: =IFERROR(INDEX($N$8:$Y$49,$AB15,COLUMNS($M$8:Q15)),"") -> 1312 | AI15: =IFERROR(INDEX($N$8:$Y$49,$AB15,COLUMNS($M$8:R15)),"") -> 5000 | AJ15: =IFERROR(INDEX($N$8:$Y$49,$AB15,COLUMNS($M$8:S15)),"") -> 3.5 | AK15: =IFERROR(INDEX($N$8:$Y$49,$AB15,COLUMNS($M$8:T15)),"") -> 0.01 | AL15: =IFERROR(INDEX($N$8:$Y$49,$AB15,COLUMNS($M$8:U15)),"") -> 0.001 | AM15: =IFERROR(INDEX($N$8:$Y$49,$AB15,COLUMNS($M$8:V15)),"") -> 1 | AN15: =IFERROR(INDEX($N$8:$Y$49,$AB15,COLUMNS($M$8:W15)),"") -> 16 | AO15: =IFERROR(INDEX($N$8:$Y$49,$AB15,COLUMNS($M$8:X15)),"") -> Automotive | AP15: 8 | AQ15: 8 | AR15: =IFERROR(SMALL($AQ$8:$AQ$49,ROWS($AQ$8:AQ15)),"") ->  | AT15: =IFERROR(INDEX($AD$8:$AO$49,$AR15,COLUMNS($M$8:M15)),"") ->  | AU15: =IFERROR(INDEX($AD$8:$AO$49,$AR15,COLUMNS($M$8:N15)),"") ->  | AV15: =IFERROR(INDEX($AD$8:$AO$49,$AR15,COLUMNS($M$8:O15)),"") ->  | AW15: =IFERROR(INDEX($AD$8:$AO$49,$AR15,COLUMNS($M$8:P15)),"") ->  | AX15: =IFERROR(INDEX($AD$8:$AO$49,$AR15,COLUMNS($M$8:Q15)),"") ->  | AY15: =IFERROR(INDEX($AD$8:$AO$49,$AR15,COLUMNS($M$8:R15)),"") ->  | AZ15: =IFERROR(INDEX($AD$8:$AO$49,$AR15,COLUMNS($M$8:S15)),"") ->  | BA15: =IFERROR(INDEX($AD$8:$AO$49,$AR15,COLUMNS($M$8:T15)),"") ->  | BB15: =IFERROR(INDEX($AD$8:$AO$49,$AR15,COLUMNS($M$8:U15)),"") ->  | BC15: =IFERROR(INDEX($AD$8:$AO$49,$AR15,COLUMNS($M$8:V15)),"") ->  | BD15: =IFERROR(INDEX($AD$8:$AO$49,$AR15,COLUMNS($M$8:W15)),"") ->  | BE15: =IFERROR(INDEX($AD$8:$AO$49,$AR15,COLUMNS($M$8:X15)),"") ->  | BF15: 8 | BH15: =IFERROR(SMALL($BG$8:$BG$49,ROWS($BG$8:BG15)),"") ->  | BJ15: =IFERROR(INDEX($AT$8:$BE$46,$BH15,COLUMNS($AT$8:AT15)),"") ->  | BK15: =IFERROR(INDEX($AT$8:$BE$46,$BH15,COLUMNS($AT$8:AU15)),"") ->  | BL15: =IFERROR(INDEX($AT$8:$BE$46,$BH15,COLUMNS($AT$8:AV15)),"") ->  | BM15: =IFERROR(INDEX($AT$8:$BE$46,$BH15,COLUMNS($AT$8:AW15)),"") ->  | BN15: =IFERROR(INDEX($AT$8:$BE$46,$BH15,COLUMNS($AT$8:AX15)),"") ->  | BO15: =IFERROR(INDEX($AT$8:$BE$46,$BH15,COLUMNS($AT$8:AY15)),"") ->  | BP15: =IFERROR(INDEX($AT$8:$BE$46,$BH15,COLUMNS($AT$8:AZ15)),"") ->  | BQ15: =IFERROR(INDEX($AT$8:$BE$46,$BH15,COLUMNS($AT$8:BA15)),"") ->  | BR15: =IFERROR(INDEX($AT$8:$BE$46,$BH15,COLUMNS($AT$8:BB15)),"") ->  | BS15: =IFERROR(INDEX($AT$8:$BE$46,$BH15,COLUMNS($AT$8:BC15)),"") ->  | BT15: =IFERROR(INDEX($AT$8:$BE$46,$BH15,COLUMNS($AT$8:BD15)),"") ->  | BU15: =IFERROR(INDEX($AT$8:$BE$46,$BH15,COLUMNS($AT$8:BE15)),"") ->  | BV15: 8 | BX15: =IFERROR(SMALL($BW$8:$BW$49,ROWS($BW$8:BW15)),"") ->  | BY15: =INDEX(BM15:$BM$49,1,1) ->  | BZ15: =COUNTIF($BM$8:BM15,BY15) -> 6 | CB15: =IFERROR(SMALL($CA$8:$CA$49,ROWS($CA$8:CA15)),"") ->  | CD15: =IFERROR(INDEX($BJ$8:$BU$46,$BX15,COLUMNS($BI$8:BI15)),"") ->  | CE15: =IFERROR(INDEX($BJ$8:$BU$46,$BX15,COLUMNS($BI$8:BJ15)),"") ->  | CF15: =IFERROR(INDEX($BJ$8:$BU$46,$BX15,COLUMNS($BI$8:BK15)),"") ->  | CG15: =IFERROR(INDEX($BJ$8:$BU$46,$BX15,COLUMNS($BI$8:BL15)),"") ->  | CH15: =IFERROR(INDEX($BJ$8:$BU$46,$BX15,COLUMNS($BI$8:BM15)),"") ->  | CI15: =IFERROR(INDEX($BJ$8:$BU$46,$BX15,COLUMNS($BI$8:BN15)),"") ->  | CJ15: =IFERROR(INDEX($BJ$8:$BU$46,$BX15,COLUMNS($BI$8:BO15)),"") ->  | CK15: =IFERROR(INDEX($BJ$8:$BU$46,$BX15,COLUMNS($BI$8:BP15)),"") ->  | CL15: =IFERROR(INDEX($BJ$8:$BU$46,$BX15,COLUMNS($BI$8:BQ15)),"") ->  | CM15: =IFERROR(INDEX($BJ$8:$BU$46,$BX15,COLUMNS($BI$8:BR15)),"") ->  | CN15: =IFERROR(INDEX($BJ$8:$BU$46,$BX15,COLUMNS($BI$8:BS15)),"") ->  | CO15: =IFERROR(INDEX($BJ$8:$BU$46,$BX15,COLUMNS($BI$8:BT15)),"") ->  | CP15: 8 | CR15: =IFERROR(SMALL($CQ$8:$CQ$49,ROWS($CQ$8:CQ15)),"") ->  | CT15: =IFERROR(INDEX($CD$8:$CO$49,$CR15,COLUMNS($CC$8:CC15)),"") ->  | CU15: =IFERROR(INDEX($CD$8:$CO$49,$CR15,COLUMNS($CC$8:CD15)),"") ->  | CV15: =IFERROR(INDEX($CD$8:$CO$49,$CR15,COLUMNS($CC$8:CE15)),"") ->  | CW15: =IFERROR(INDEX($CD$8:$CO$49,$CR15,COLUMNS($CC$8:CF15)),"") ->  | CX15: =IFERROR(INDEX($CD$8:$CO$49,$CR15,COLUMNS($CC$8:CG15)),"") ->  | CY15: =IFERROR(INDEX($CD$8:$CO$49,$CR15,COLUMNS($CC$8:CH15)),"") ->  | CZ15: =IFERROR(INDEX($CD$8:$CO$49,$CR15,COLUMNS($CC$8:CI15)),"") ->  | DA15: =IFERROR(INDEX($CD$8:$CO$49,$CR15,COLUMNS($CC$8:CJ15)),"") ->  | DB15: =IFERROR(INDEX($CD$8:$CO$49,$CR15,COLUMNS($CC$8:CK15)),"") ->  | DC15: =IFERROR(INDEX($CD$8:$CO$49,$CR15,COLUMNS($CC$8:CL15)),"") ->  | DD15: =IFERROR(INDEX($CD$8:$CO$49,$CR15,COLUMNS($CC$8:CM15)),"") ->  | DE15: =IFERROR(INDEX($CD$8:$CO$49,$CR15,COLUMNS($CC$8:CN15)),"") -> 
N16: SFH 4715A | O16: Max Rated DC operation | P16: 850 | Q16: 45 | R16: =2*500 -> 1000 | S16: 2000 | T16: 1.9 | U16: 100 | V16: 1 | W16: 1 | X16: 9 | Y16: Non Automotive | Z16: 9 | AB16: =IFERROR(SMALL($AA$8:$AA$49,ROWS($AA$8:AA16)),"") -> 38 | AD16: =IFERROR(INDEX($N$8:$Y$49,$AB16,COLUMNS($M$8:M16)),"") -> SFH 4725AS A01 | AE16: =IFERROR(INDEX($N$8:$Y$49,$AB16,COLUMNS($M$8:N16)),"") -> Max Rated Pulsed operation | AF16: =IFERROR(INDEX($N$8:$Y$49,$AB16,COLUMNS($M$8:O16)),"") -> 940 | AG16: =IFERROR(INDEX($N$8:$Y$49,$AB16,COLUMNS($M$8:P16)),"") -> 40 | AH16: =IFERROR(INDEX($N$8:$Y$49,$AB16,COLUMNS($M$8:Q16)),"") -> 3360 | AI16: =IFERROR(INDEX($N$8:$Y$49,$AB16,COLUMNS($M$8:R16)),"") -> 5000 | AJ16: =IFERROR(INDEX($N$8:$Y$49,$AB16,COLUMNS($M$8:S16)),"") -> 3.2 | AK16: =IFERROR(INDEX($N$8:$Y$49,$AB16,COLUMNS($M$8:T16)),"") -> 0.01 | AL16: =IFERROR(INDEX($N$8:$Y$49,$AB16,COLUMNS($M$8:U16)),"") -> 0.0008 | AM16: =IFERROR(INDEX($N$8:$Y$49,$AB16,COLUMNS($M$8:V16)),"") -> 1 | AN16: =IFERROR(INDEX($N$8:$Y$49,$AB16,COLUMNS($M$8:W16)),"") -> 17 | AO16: =IFERROR(INDEX($N$8:$Y$49,$AB16,COLUMNS($M$8:X16)),"") -> Automotive | AP16: 9 | AQ16: 9 | AR16: =IFERROR(SMALL($AQ$8:$AQ$49,ROWS($AQ$8:AQ16)),"") ->  | AT16: =IFERROR(INDEX($AD$8:$AO$49,$AR16,COLUMNS($M$8:M16)),"") ->  | AU16: =IFERROR(INDEX($AD$8:$AO$49,$AR16,COLUMNS($M$8:N16)),"") ->  | AV16: =IFERROR(INDEX($AD$8:$AO$49,$AR16,COLUMNS($M$8:O16)),"") ->  | AW16: =IFERROR(INDEX($AD$8:$AO$49,$AR16,COLUMNS($M$8:P16)),"") ->  | AX16: =IFERROR(INDEX($AD$8:$AO$49,$AR16,COLUMNS($M$8:Q16)),"") ->  | AY16: =IFERROR(INDEX($AD$8:$AO$49,$AR16,COLUMNS($M$8:R16)),"") ->  | AZ16: =IFERROR(INDEX($AD$8:$AO$49,$AR16,COLUMNS($M$8:S16)),"") ->  | BA16: =IFERROR(INDEX($AD$8:$AO$49,$AR16,COLUMNS($M$8:T16)),"") ->  | BB16: =IFERROR(INDEX($AD$8:$AO$49,$AR16,COLUMNS($M$8:U16)),"") ->  | BC16: =IFERROR(INDEX($AD$8:$AO$49,$AR16,COLUMNS($M$8:V16)),"") ->  | BD16: =IFERROR(INDEX($AD$8:$AO$49,$AR16,COLUMNS($M$8:W16)),"") ->  | BE16: =IFERROR(INDEX($AD$8:$AO$49,$AR16,COLUMNS($M$8:X16)),"") ->  | BF16: 9 | BH16: =IFERROR(SMALL($BG$8:$BG$49,ROWS($BG$8:BG16)),"") ->  | BJ16: =IFERROR(INDEX($AT$8:$BE$46,$BH16,COLUMNS($AT$8:AT16)),"") ->  | BK16: =IFERROR(INDEX($AT$8:$BE$46,$BH16,COLUMNS($AT$8:AU16)),"") ->  | BL16: =IFERROR(INDEX($AT$8:$BE$46,$BH16,COLUMNS($AT$8:AV16)),"") ->  | BM16: =IFERROR(INDEX($AT$8:$BE$46,$BH16,COLUMNS($AT$8:AW16)),"") ->  | BN16: =IFERROR(INDEX($AT$8:$BE$46,$BH16,COLUMNS($AT$8:AX16)),"") ->  | BO16: =IFERROR(INDEX($AT$8:$BE$46,$BH16,COLUMNS($AT$8:AY16)),"") ->  | BP16: =IFERROR(INDEX($AT$8:$BE$46,$BH16,COLUMNS($AT$8:AZ16)),"") ->  | BQ16: =IFERROR(INDEX($AT$8:$BE$46,$BH16,COLUMNS($AT$8:BA16)),"") ->  | BR16: =IFERROR(INDEX($AT$8:$BE$46,$BH16,COLUMNS($AT$8:BB16)),"") ->  | BS16: =IFERROR(INDEX($AT$8:$BE$46,$BH16,COLUMNS($AT$8:BC16)),"") ->  | BT16: =IFERROR(INDEX($AT$8:$BE$46,$BH16,COLUMNS($AT$8:BD16)),"") ->  | BU16: =IFERROR(INDEX($AT$8:$BE$46,$BH16,COLUMNS($AT$8:BE16)),"") ->  | BV16: 9 | BX16: =IFERROR(SMALL($BW$8:$BW$49,ROWS($BW$8:BW16)),"") ->  | BY16: =INDEX(BM16:$BM$49,1,1) ->  | BZ16: =COUNTIF($BM$8:BM16,BY16) -> 7 | CB16: =IFERROR(SMALL($CA$8:$CA$49,ROWS($CA$8:CA16)),"") ->  | CD16: =IFERROR(INDEX($BJ$8:$BU$46,$BX16,COLUMNS($BI$8:BI16)),"") ->  | CE16: =IFERROR(INDEX($BJ$8:$BU$46,$BX16,COLUMNS($BI$8:BJ16)),"") ->  | CF16: =IFERROR(INDEX($BJ$8:$BU$46,$BX16,COLUMNS($BI$8:BK16)),"") ->  | CG16: =IFERROR(INDEX($BJ$8:$BU$46,$BX16,COLUMNS($BI$8:BL16)),"") ->  | CH16: =IFERROR(INDEX($BJ$8:$BU$46,$BX16,COLUMNS($BI$8:BM16)),"") ->  | CI16: =IFERROR(INDEX($BJ$8:$BU$46,$BX16,COLUMNS($BI$8:BN16)),"") ->  | CJ16: =IFERROR(INDEX($BJ$8:$BU$46,$BX16,COLUMNS($BI$8:BO16)),"") ->  | CK16: =IFERROR(INDEX($BJ$8:$BU$46,$BX16,COLUMNS($BI$8:BP16)),"") ->  | CL16: =IFERROR(INDEX($BJ$8:$BU$46,$BX16,COLUMNS($BI$8:BQ16)),"") ->  | CM16: =IFERROR(INDEX($BJ$8:$BU$46,$BX16,COLUMNS($BI$8:BR16)),"") ->  | CN16: =IFERROR(INDEX($BJ$8:$BU$46,$BX16,COLUMNS($BI$8:BS16)),"") ->  | CO16: =IFERROR(INDEX($BJ$8:$BU$46,$BX16,COLUMNS($BI$8:BT16)),"") ->  | CP16: 9 | CR16: =IFERROR(SMALL($CQ$8:$CQ$49,ROWS($CQ$8:CQ16)),"") ->  | CT16: =IFERROR(INDEX($CD$8:$CO$49,$CR16,COLUMNS($CC$8:CC16)),"") ->  | CU16: =IFERROR(INDEX($CD$8:$CO$49,$CR16,COLUMNS($CC$8:CD16)),"") ->  | CV16: =IFERROR(INDEX($CD$8:$CO$49,$CR16,COLUMNS($CC$8:CE16)),"") ->  | CW16: =IFERROR(INDEX($CD$8:$CO$49,$CR16,COLUMNS($CC$8:CF16)),"") ->  | CX16: =IFERROR(INDEX($CD$8:$CO$49,$CR16,COLUMNS($CC$8:CG16)),"") ->  | CY16: =IFERROR(INDEX($CD$8:$CO$49,$CR16,COLUMNS($CC$8:CH16)),"") ->  | CZ16: =IFERROR(INDEX($CD$8:$CO$49,$CR16,COLUMNS($CC$8:CI16)),"") ->  | DA16: =IFERROR(INDEX($CD$8:$CO$49,$CR16,COLUMNS($CC$8:CJ16)),"") ->  | DB16: =IFERROR(INDEX($CD$8:$CO$49,$CR16,COLUMNS($CC$8:CK16)),"") ->  | DC16: =IFERROR(INDEX($CD$8:$CO$49,$CR16,COLUMNS($CC$8:CL16)),"") ->  | DD16: =IFERROR(INDEX($CD$8:$CO$49,$CR16,COLUMNS($CC$8:CM16)),"") ->  | DE16: =IFERROR(INDEX($CD$8:$CO$49,$CR16,COLUMNS($CC$8:CN16)),"") -> 
N17: SFH 4715AS | O17: Max Rated DC operation | P17: 850 | Q17: 45 | R17: =1.5*800 -> 1200 | S17: 1500 | T17: 3.4 | U17: 100 | V17: 1 | W17: 1 | X17: 10 | Y17: Non Automotive | Z17: 10 | AB17: =IFERROR(SMALL($AA$8:$AA$49,ROWS($AA$8:AA17)),"") -> 39 | AD17: =IFERROR(INDEX($N$8:$Y$49,$AB17,COLUMNS($M$8:M17)),"") -> SFH 4727AS A01 | AE17: =IFERROR(INDEX($N$8:$Y$49,$AB17,COLUMNS($M$8:N17)),"") -> Max Rated Pulsed operation | AF17: =IFERROR(INDEX($N$8:$Y$49,$AB17,COLUMNS($M$8:O17)),"") -> 940 | AG17: =IFERROR(INDEX($N$8:$Y$49,$AB17,COLUMNS($M$8:P17)),"") -> 25 | AH17: =IFERROR(INDEX($N$8:$Y$49,$AB17,COLUMNS($M$8:Q17)),"") -> 5250 | AI17: =IFERROR(INDEX($N$8:$Y$49,$AB17,COLUMNS($M$8:R17)),"") -> 5000 | AJ17: =IFERROR(INDEX($N$8:$Y$49,$AB17,COLUMNS($M$8:S17)),"") -> 3.2 | AK17: =IFERROR(INDEX($N$8:$Y$49,$AB17,COLUMNS($M$8:T17)),"") -> 0.01 | AL17: =IFERROR(INDEX($N$8:$Y$49,$AB17,COLUMNS($M$8:U17)),"") -> 0.0005 | AM17: =IFERROR(INDEX($N$8:$Y$49,$AB17,COLUMNS($M$8:V17)),"") -> 1 | AN17: =IFERROR(INDEX($N$8:$Y$49,$AB17,COLUMNS($M$8:W17)),"") -> 18 | AO17: =IFERROR(INDEX($N$8:$Y$49,$AB17,COLUMNS($M$8:X17)),"") -> Automotive | AP17: 10 | AQ17: 10 | AR17: =IFERROR(SMALL($AQ$8:$AQ$49,ROWS($AQ$8:AQ17)),"") ->  | AT17: =IFERROR(INDEX($AD$8:$AO$49,$AR17,COLUMNS($M$8:M17)),"") ->  | AU17: =IFERROR(INDEX($AD$8:$AO$49,$AR17,COLUMNS($M$8:N17)),"") ->  | AV17: =IFERROR(INDEX($AD$8:$AO$49,$AR17,COLUMNS($M$8:O17)),"") ->  | AW17: =IFERROR(INDEX($AD$8:$AO$49,$AR17,COLUMNS($M$8:P17)),"") ->  | AX17: =IFERROR(INDEX($AD$8:$AO$49,$AR17,COLUMNS($M$8:Q17)),"") ->  | AY17: =IFERROR(INDEX($AD$8:$AO$49,$AR17,COLUMNS($M$8:R17)),"") ->  | AZ17: =IFERROR(INDEX($AD$8:$AO$49,$AR17,COLUMNS($M$8:S17)),"") ->  | BA17: =IFERROR(INDEX($AD$8:$AO$49,$AR17,COLUMNS($M$8:T17)),"") ->  | BB17: =IFERROR(INDEX($AD$8:$AO$49,$AR17,COLUMNS($M$8:U17)),"") ->  | BC17: =IFERROR(INDEX($AD$8:$AO$49,$AR17,COLUMNS($M$8:V17)),"") ->  | BD17: =IFERROR(INDEX($AD$8:$AO$49,$AR17,COLUMNS($M$8:W17)),"") ->  | BE17: =IFERROR(INDEX($AD$8:$AO$49,$AR17,COLUMNS($M$8:X17)),"") ->  | BF17: 10 | BH17: =IFERROR(SMALL($BG$8:$BG$49,ROWS($BG$8:BG17)),"") ->  | BJ17: =IFERROR(INDEX($AT$8:$BE$46,$BH17,COLUMNS($AT$8:AT17)),"") ->  | BK17: =IFERROR(INDEX($AT$8:$BE$46,$BH17,COLUMNS($AT$8:AU17)),"") ->  | BL17: =IFERROR(INDEX($AT$8:$BE$46,$BH17,COLUMNS($AT$8:AV17)),"") ->  | BM17: =IFERROR(INDEX($AT$8:$BE$46,$BH17,COLUMNS($AT$8:AW17)),"") ->  | BN17: =IFERROR(INDEX($AT$8:$BE$46,$BH17,COLUMNS($AT$8:AX17)),"") ->  | BO17: =IFERROR(INDEX($AT$8:$BE$46,$BH17,COLUMNS($AT$8:AY17)),"") ->  | BP17: =IFERROR(INDEX($AT$8:$BE$46,$BH17,COLUMNS($AT$8:AZ17)),"") ->  | BQ17: =IFERROR(INDEX($AT$8:$BE$46,$BH17,COLUMNS($AT$8:BA17)),"") ->  | BR17: =IFERROR(INDEX($AT$8:$BE$46,$BH17,COLUMNS($AT$8:BB17)),"") ->  | BS17: =IFERROR(INDEX($AT$8:$BE$46,$BH17,COLUMNS($AT$8:BC17)),"") ->  | BT17: =IFERROR(INDEX($AT$8:$BE$46,$BH17,COLUMNS($AT$8:BD17)),"") ->  | BU17: =IFERROR(INDEX($AT$8:$BE$46,$BH17,COLUMNS($AT$8:BE17)),"") ->  | BV17: 10 | BX17: =IFERROR(SMALL($BW$8:$BW$49,ROWS($BW$8:BW17)),"") ->  | BY17: =INDEX(BM17:$BM$49,1,1) ->  | BZ17: =COUNTIF($BM$8:BM17,BY17) -> 8 | CB17: =IFERROR(SMALL($CA$8:$CA$49,ROWS($CA$8:CA17)),"") ->  | CD17: =IFERROR(INDEX($BJ$8:$BU$46,$BX17,COLUMNS($BI$8:BI17)),"") ->  | CE17: =IFERROR(INDEX($BJ$8:$BU$46,$BX17,COLUMNS($BI$8:BJ17)),"") ->  | CF17: =IFERROR(INDEX($BJ$8:$BU$46,$BX17,COLUMNS($BI$8:BK17)),"") ->  | CG17: =IFERROR(INDEX($BJ$8:$BU$46,$BX17,COLUMNS($BI$8:BL17)),"") ->  | CH17: =IFERROR(INDEX($BJ$8:$BU$46,$BX17,COLUMNS($BI$8:BM17)),"") ->  | CI17: =IFERROR(INDEX($BJ$8:$BU$46,$BX17,COLUMNS($BI$8:BN17)),"") ->  | CJ17: =IFERROR(INDEX($BJ$8:$BU$46,$BX17,COLUMNS($BI$8:BO17)),"") ->  | CK17: =IFERROR(INDEX($BJ$8:$BU$46,$BX17,COLUMNS($BI$8:BP17)),"") ->  | CL17: =IFERROR(INDEX($BJ$8:$BU$46,$BX17,COLUMNS($BI$8:BQ17)),"") ->  | CM17: =IFERROR(INDEX($BJ$8:$BU$46,$BX17,COLUMNS($BI$8:BR17)),"") ->  | CN17: =IFERROR(INDEX($BJ$8:$BU$46,$BX17,COLUMNS($BI$8:BS17)),"") ->  | CO17: =IFERROR(INDEX($BJ$8:$BU$46,$BX17,COLUMNS($BI$8:BT17)),"") ->  | CP17: 10 | CR17: =IFERROR(SMALL($CQ$8:$CQ$49,ROWS($CQ$8:CQ17)),"") ->  | CT17: =IFERROR(INDEX($CD$8:$CO$49,$CR17,COLUMNS($CC$8:CC17)),"") ->  | CU17: =IFERROR(INDEX($CD$8:$CO$49,$CR17,COLUMNS($CC$8:CD17)),"") ->  | CV17: =IFERROR(INDEX($CD$8:$CO$49,$CR17,COLUMNS($CC$8:CE17)),"") ->  | CW17: =IFERROR(INDEX($CD$8:$CO$49,$CR17,COLUMNS($CC$8:CF17)),"") ->  | CX17: =IFERROR(INDEX($CD$8:$CO$49,$CR17,COLUMNS($CC$8:CG17)),"") ->  | CY17: =IFERROR(INDEX($CD$8:$CO$49,$CR17,COLUMNS($CC$8:CH17)),"") ->  | CZ17: =IFERROR(INDEX($CD$8:$CO$49,$CR17,COLUMNS($CC$8:CI17)),"") ->  | DA17: =IFERROR(INDEX($CD$8:$CO$49,$CR17,COLUMNS($CC$8:CJ17)),"") ->  | DB17: =IFERROR(INDEX($CD$8:$CO$49,$CR17,COLUMNS($CC$8:CK17)),"") ->  | DC17: =IFERROR(INDEX($CD$8:$CO$49,$CR17,COLUMNS($CC$8:CL17)),"") ->  | DD17: =IFERROR(INDEX($CD$8:$CO$49,$CR17,COLUMNS($CC$8:CM17)),"") ->  | DE17: =IFERROR(INDEX($CD$8:$CO$49,$CR17,COLUMNS($CC$8:CN17)),"") -> 
B18: Emitter Criteria: | D18: Max rated DC operation | G18: Max rated Pulsed Operation | N18: SFH 4770S | O18: Max Rated DC operation | P18: 850 | Q18: 60 | R18: =1.5*560 -> 840 | S18: 1500 | T18: 3.4 | U18: 100 | V18: 1 | W18: 1 | X18: 11 | Y18: Non Automotive | Z18: 11 | AB18: =IFERROR(SMALL($AA$8:$AA$49,ROWS($AA$8:AA18)),"") ->  | AD18: =IFERROR(INDEX($N$8:$Y$49,$AB18,COLUMNS($M$8:M18)),"") ->  | AE18: =IFERROR(INDEX($N$8:$Y$49,$AB18,COLUMNS($M$8:N18)),"") ->  | AF18: =IFERROR(INDEX($N$8:$Y$49,$AB18,COLUMNS($M$8:O18)),"") ->  | AG18: =IFERROR(INDEX($N$8:$Y$49,$AB18,COLUMNS($M$8:P18)),"") ->  | AH18: =IFERROR(INDEX($N$8:$Y$49,$AB18,COLUMNS($M$8:Q18)),"") ->  | AI18: =IFERROR(INDEX($N$8:$Y$49,$AB18,COLUMNS($M$8:R18)),"") ->  | AJ18: =IFERROR(INDEX($N$8:$Y$49,$AB18,COLUMNS($M$8:S18)),"") ->  | AK18: =IFERROR(INDEX($N$8:$Y$49,$AB18,COLUMNS($M$8:T18)),"") ->  | AL18: =IFERROR(INDEX($N$8:$Y$49,$AB18,COLUMNS($M$8:U18)),"") ->  | AM18: =IFERROR(INDEX($N$8:$Y$49,$AB18,COLUMNS($M$8:V18)),"") ->  | AN18: =IFERROR(INDEX($N$8:$Y$49,$AB18,COLUMNS($M$8:W18)),"") ->  | AO18: =IFERROR(INDEX($N$8:$Y$49,$AB18,COLUMNS($M$8:X18)),"") ->  | AP18: 11 | AR18: =IFERROR(SMALL($AQ$8:$AQ$49,ROWS($AQ$8:AQ18)),"") ->  | AT18: =IFERROR(INDEX($AD$8:$AO$49,$AR18,COLUMNS($M$8:M18)),"") ->  | AU18: =IFERROR(INDEX($AD$8:$AO$49,$AR18,COLUMNS($M$8:N18)),"") ->  | AV18: =IFERROR(INDEX($AD$8:$AO$49,$AR18,COLUMNS($M$8:O18)),"") ->  | AW18: =IFERROR(INDEX($AD$8:$AO$49,$AR18,COLUMNS($M$8:P18)),"") ->  | AX18: =IFERROR(INDEX($AD$8:$AO$49,$AR18,COLUMNS($M$8:Q18)),"") ->  | AY18: =IFERROR(INDEX($AD$8:$AO$49,$AR18,COLUMNS($M$8:R18)),"") ->  | AZ18: =IFERROR(INDEX($AD$8:$AO$49,$AR18,COLUMNS($M$8:S18)),"") ->  | BA18: =IFERROR(INDEX($AD$8:$AO$49,$AR18,COLUMNS($M$8:T18)),"") ->  | BB18: =IFERROR(INDEX($AD$8:$AO$49,$AR18,COLUMNS($M$8:U18)),"") ->  | BC18: =IFERROR(INDEX($AD$8:$AO$49,$AR18,COLUMNS($M$8:V18)),"") ->  | BD18: =IFERROR(INDEX($AD$8:$AO$49,$AR18,COLUMNS($M$8:W18)),"") ->  | BE18: =IFERROR(INDEX($AD$8:$AO$49,$AR18,COLUMNS($M$8:X18)),"") ->  | BF18: 11 | BH18: =IFERROR(SMALL($BG$8:$BG$49,ROWS($BG$8:BG18)),"") ->  | BJ18: =IFERROR(INDEX($AT$8:$BE$46,$BH18,COLUMNS($AT$8:AT18)),"") ->  | BK18: =IFERROR(INDEX($AT$8:$BE$46,$BH18,COLUMNS($AT$8:AU18)),"") ->  | BL18: =IFERROR(INDEX($AT$8:$BE$46,$BH18,COLUMNS($AT$8:AV18)),"") ->  | BM18: =IFERROR(INDEX($AT$8:$BE$46,$BH18,COLUMNS($AT$8:AW18)),"") ->  | BN18: =IFERROR(INDEX($AT$8:$BE$46,$BH18,COLUMNS($AT$8:AX18)),"") ->  | BO18: =IFERROR(INDEX($AT$8:$BE$46,$BH18,COLUMNS($AT$8:AY18)),"") ->  | BP18: =IFERROR(INDEX($AT$8:$BE$46,$BH18,COLUMNS($AT$8:AZ18)),"") ->  | BQ18: =IFERROR(INDEX($AT$8:$BE$46,$BH18,COLUMNS($AT$8:BA18)),"") ->  | BR18: =IFERROR(INDEX($AT$8:$BE$46,$BH18,COLUMNS($AT$8:BB18)),"") ->  | BS18: =IFERROR(INDEX($AT$8:$BE$46,$BH18,COLUMNS($AT$8:BC18)),"") ->  | BT18: =IFERROR(INDEX($AT$8:$BE$46,$BH18,COLUMNS($AT$8:BD18)),"") ->  | BU18: =IFERROR(INDEX($AT$8:$BE$46,$BH18,COLUMNS($AT$8:BE18)),"") ->  | BV18: 11 | BX18: =IFERROR(SMALL($BW$8:$BW$49,ROWS($BW$8:BW18)),"") ->  | BY18: =INDEX(BM18:$BM$49,1,1) ->  | BZ18: =COUNTIF($BM$8:BM18,BY18) -> 9 | CB18: =IFERROR(SMALL($CA$8:$CA$49,ROWS($CA$8:CA18)),"") ->  | CD18: =IFERROR(INDEX($BJ$8:$BU$46,$BX18,COLUMNS($BI$8:BI18)),"") ->  | CE18: =IFERROR(INDEX($BJ$8:$BU$46,$BX18,COLUMNS($BI$8:BJ18)),"") ->  | CF18: =IFERROR(INDEX($BJ$8:$BU$46,$BX18,COLUMNS($BI$8:BK18)),"") ->  | CG18: =IFERROR(INDEX($BJ$8:$BU$46,$BX18,COLUMNS($BI$8:BL18)),"") ->  | CH18: =IFERROR(INDEX($BJ$8:$BU$46,$BX18,COLUMNS($BI$8:BM18)),"") ->  | CI18: =IFERROR(INDEX($BJ$8:$BU$46,$BX18,COLUMNS($BI$8:BN18)),"") ->  | CJ18: =IFERROR(INDEX($BJ$8:$BU$46,$BX18,COLUMNS($BI$8:BO18)),"") ->  | CK18: =IFERROR(INDEX($BJ$8:$BU$46,$BX18,COLUMNS($BI$8:BP18)),"") ->  | CL18: =IFERROR(INDEX($BJ$8:$BU$46,$BX18,COLUMNS($BI$8:BQ18)),"") ->  | CM18: =IFERROR(INDEX($BJ$8:$BU$46,$BX18,COLUMNS($BI$8:BR18)),"") ->  | CN18: =IFERROR(INDEX($BJ$8:$BU$46,$BX18,COLUMNS($BI$8:BS18)),"") ->  | CO18: =IFERROR(INDEX($BJ$8:$BU$46,$BX18,COLUMNS($BI$8:BT18)),"") ->  | CP18: 11 | CR18: =IFERROR(SMALL($CQ$8:$CQ$49,ROWS($CQ$8:CQ18)),"") ->  | CT18: =IFERROR(INDEX($CD$8:$CO$49,$CR18,COLUMNS($CC$8:CC18)),"") ->  | CU18: =IFERROR(INDEX($CD$8:$CO$49,$CR18,COLUMNS($CC$8:CD18)),"") ->  | CV18: =IFERROR(INDEX($CD$8:$CO$49,$CR18,COLUMNS($CC$8:CE18)),"") ->  | CW18: =IFERROR(INDEX($CD$8:$CO$49,$CR18,COLUMNS($CC$8:CF18)),"") ->  | CX18: =IFERROR(INDEX($CD$8:$CO$49,$CR18,COLUMNS($CC$8:CG18)),"") ->  | CY18: =IFERROR(INDEX($CD$8:$CO$49,$CR18,COLUMNS($CC$8:CH18)),"") ->  | CZ18: =IFERROR(INDEX($CD$8:$CO$49,$CR18,COLUMNS($CC$8:CI18)),"") ->  | DA18: =IFERROR(INDEX($CD$8:$CO$49,$CR18,COLUMNS($CC$8:CJ18)),"") ->  | DB18: =IFERROR(INDEX($CD$8:$CO$49,$CR18,COLUMNS($CC$8:CK18)),"") ->  | DC18: =IFERROR(INDEX($CD$8:$CO$49,$CR18,COLUMNS($CC$8:CL18)),"") ->  | DD18: =IFERROR(INDEX($CD$8:$CO$49,$CR18,COLUMNS($CC$8:CM18)),"") ->  | DE18: =IFERROR(INDEX($CD$8:$CO$49,$CR18,COLUMNS($CC$8:CN18)),"") -> 
D19: LED Model Number: | E19: =CT8 -> SFH 4727AS A01 | G19: LED Model Number: | H19: =CT8 -> SFH 4727AS A01 | N19: SFH 4714A | O19: Max Rated DC operation | P19: 850 | Q19: 75 | R19: 200 | S19: 1000 | T19: 1.75 | U19: 100 | V19: 1 | W19: 0.75 | X19: 12 | Y19: Non Automotive | Z19: 12 | AB19: =IFERROR(SMALL($AA$8:$AA$49,ROWS($AA$8:AA19)),"") ->  | AD19: =IFERROR(INDEX($N$8:$Y$49,$AB19,COLUMNS($M$8:M19)),"") ->  | AE19: =IFERROR(INDEX($N$8:$Y$49,$AB19,COLUMNS($M$8:N19)),"") ->  | AF19: =IFERROR(INDEX($N$8:$Y$49,$AB19,COLUMNS($M$8:O19)),"") ->  | AG19: =IFERROR(INDEX($N$8:$Y$49,$AB19,COLUMNS($M$8:P19)),"") ->  | AH19: =IFERROR(INDEX($N$8:$Y$49,$AB19,COLUMNS($M$8:Q19)),"") ->  | AI19: =IFERROR(INDEX($N$8:$Y$49,$AB19,COLUMNS($M$8:R19)),"") ->  | AJ19: =IFERROR(INDEX($N$8:$Y$49,$AB19,COLUMNS($M$8:S19)),"") ->  | AK19: =IFERROR(INDEX($N$8:$Y$49,$AB19,COLUMNS($M$8:T19)),"") ->  | AL19: =IFERROR(INDEX($N$8:$Y$49,$AB19,COLUMNS($M$8:U19)),"") ->  | AM19: =IFERROR(INDEX($N$8:$Y$49,$AB19,COLUMNS($M$8:V19)),"") ->  | AN19: =IFERROR(INDEX($N$8:$Y$49,$AB19,COLUMNS($M$8:W19)),"") ->  | AO19: =IFERROR(INDEX($N$8:$Y$49,$AB19,COLUMNS($M$8:X19)),"") ->  | AP19: 12 | AR19: =IFERROR(SMALL($AQ$8:$AQ$49,ROWS($AQ$8:AQ19)),"") ->  | AT19: =IFERROR(INDEX($AD$8:$AO$49,$AR19,COLUMNS($M$8:M19)),"") ->  | AU19: =IFERROR(INDEX($AD$8:$AO$49,$AR19,COLUMNS($M$8:N19)),"") ->  | AV19: =IFERROR(INDEX($AD$8:$AO$49,$AR19,COLUMNS($M$8:O19)),"") ->  | AW19: =IFERROR(INDEX($AD$8:$AO$49,$AR19,COLUMNS($M$8:P19)),"") ->  | AX19: =IFERROR(INDEX($AD$8:$AO$49,$AR19,COLUMNS($M$8:Q19)),"") ->  | AY19: =IFERROR(INDEX($AD$8:$AO$49,$AR19,COLUMNS($M$8:R19)),"") ->  | AZ19: =IFERROR(INDEX($AD$8:$AO$49,$AR19,COLUMNS($M$8:S19)),"") ->  | BA19: =IFERROR(INDEX($AD$8:$AO$49,$AR19,COLUMNS($M$8:T19)),"") ->  | BB19: =IFERROR(INDEX($AD$8:$AO$49,$AR19,COLUMNS($M$8:U19)),"") ->  | BC19: =IFERROR(INDEX($AD$8:$AO$49,$AR19,COLUMNS($M$8:V19)),"") ->  | BD19: =IFERROR(INDEX($AD$8:$AO$49,$AR19,COLUMNS($M$8:W19)),"") ->  | BE19: =IFERROR(INDEX($AD$8:$AO$49,$AR19,COLUMNS($M$8:X19)),"") ->  | BF19: 12 | BH19: =IFERROR(SMALL($BG$8:$BG$49,ROWS($BG$8:BG19)),"") ->  | BJ19: =IFERROR(INDEX($AT$8:$BE$46,$BH19,COLUMNS($AT$8:AT19)),"") ->  | BK19: =IFERROR(INDEX($AT$8:$BE$46,$BH19,COLUMNS($AT$8:AU19)),"") ->  | BL19: =IFERROR(INDEX($AT$8:$BE$46,$BH19,COLUMNS($AT$8:AV19)),"") ->  | BM19: =IFERROR(INDEX($AT$8:$BE$46,$BH19,COLUMNS($AT$8:AW19)),"") ->  | BN19: =IFERROR(INDEX($AT$8:$BE$46,$BH19,COLUMNS($AT$8:AX19)),"") ->  | BO19: =IFERROR(INDEX($AT$8:$BE$46,$BH19,COLUMNS($AT$8:AY19)),"") ->  | BP19: =IFERROR(INDEX($AT$8:$BE$46,$BH19,COLUMNS($AT$8:AZ19)),"") ->  | BQ19: =IFERROR(INDEX($AT$8:$BE$46,$BH19,COLUMNS($AT$8:BA19)),"") ->  | BR19: =IFERROR(INDEX($AT$8:$BE$46,$BH19,COLUMNS($AT$8:BB19)),"") ->  | BS19: =IFERROR(INDEX($AT$8:$BE$46,$BH19,COLUMNS($AT$8:BC19)),"") ->  | BT19: =IFERROR(INDEX($AT$8:$BE$46,$BH19,COLUMNS($AT$8:BD19)),"") ->  | BU19: =IFERROR(INDEX($AT$8:$BE$46,$BH19,COLUMNS($AT$8:BE19)),"") ->  | BV19: 12 | BX19: =IFERROR(SMALL($BW$8:$BW$49,ROWS($BW$8:BW19)),"") ->  | BY19: =INDEX(BM19:$BM$49,1,1) ->  | BZ19: =COUNTIF($BM$8:BM19,BY19) -> 10 | CB19: =IFERROR(SMALL($CA$8:$CA$49,ROWS($CA$8:CA19)),"") ->  | CD19: =IFERROR(INDEX($BJ$8:$BU$46,$BX19,COLUMNS($BI$8:BI19)),"") ->  | CE19: =IFERROR(INDEX($BJ$8:$BU$46,$BX19,COLUMNS($BI$8:BJ19)),"") ->  | CF19: =IFERROR(INDEX($BJ$8:$BU$46,$BX19,COLUMNS($BI$8:BK19)),"") ->  | CG19: =IFERROR(INDEX($BJ$8:$BU$46,$BX19,COLUMNS($BI$8:BL19)),"") ->  | CH19: =IFERROR(INDEX($BJ$8:$BU$46,$BX19,COLUMNS($BI$8:BM19)),"") ->  | CI19: =IFERROR(INDEX($BJ$8:$BU$46,$BX19,COLUMNS($BI$8:BN19)),"") ->  | CJ19: =IFERROR(INDEX($BJ$8:$BU$46,$BX19,COLUMNS($BI$8:BO19)),"") ->  | CK19: =IFERROR(INDEX($BJ$8:$BU$46,$BX19,COLUMNS($BI$8:BP19)),"") ->  | CL19: =IFERROR(INDEX($BJ$8:$BU$46,$BX19,COLUMNS($BI$8:BQ19)),"") ->  | CM19: =IFERROR(INDEX($BJ$8:$BU$46,$BX19,COLUMNS($BI$8:BR19)),"") ->  | CN19: =IFERROR(INDEX($BJ$8:$BU$46,$BX19,COLUMNS($BI$8:BS19)),"") ->  | CO19: =IFERROR(INDEX($BJ$8:$BU$46,$BX19,COLUMNS($BI$8:BT19)),"") ->  | CP19: 12 | CR19: =IFERROR(SMALL($CQ$8:$CQ$49,ROWS($CQ$8:CQ19)),"") ->  | CT19: =IFERROR(INDEX($CD$8:$CO$49,$CR19,COLUMNS($CC$8:CC19)),"") ->  | CU19: =IFERROR(INDEX($CD$8:$CO$49,$CR19,COLUMNS($CC$8:CD19)),"") ->  | CV19: =IFERROR(INDEX($CD$8:$CO$49,$CR19,COLUMNS($CC$8:CE19)),"") ->  | CW19: =IFERROR(INDEX($CD$8:$CO$49,$CR19,COLUMNS($CC$8:CF19)),"") ->  | CX19: =IFERROR(INDEX($CD$8:$CO$49,$CR19,COLUMNS($CC$8:CG19)),"") ->  | CY19: =IFERROR(INDEX($CD$8:$CO$49,$CR19,COLUMNS($CC$8:CH19)),"") ->  | CZ19: =IFERROR(INDEX($CD$8:$CO$49,$CR19,COLUMNS($CC$8:CI19)),"") ->  | DA19: =IFERROR(INDEX($CD$8:$CO$49,$CR19,COLUMNS($CC$8:CJ19)),"") ->  | DB19: =IFERROR(INDEX($CD$8:$CO$49,$CR19,COLUMNS($CC$8:CK19)),"") ->  | DC19: =IFERROR(INDEX($CD$8:$CO$49,$CR19,COLUMNS($CC$8:CL19)),"") ->  | DD19: =IFERROR(INDEX($CD$8:$CO$49,$CR19,COLUMNS($CC$8:CM19)),"") ->  | DE19: =IFERROR(INDEX($CD$8:$CO$49,$CR19,COLUMNS($CC$8:CN19)),"") -> 
D20: Max Forward Current, IF,MAX: | E20: =CHOOSE(DD8,S8, S9,S10,S11,S12,S13,S14,S15, S16,S17,S18,S19,S20,S21,S22, S23,S24,S25, S26,S27,S28) -> 1500 | F20: mA | G20: Max Forward Current, IF,MAX: | H20: =CHOOSE(DD8,S29, S30,S31,S32,S33,S34,S35,S36, S37,S38,S39,S40,S41,S42,S43, S44,S45, S46,S47,S48,S49) -> 5000 | I20: mA | N20: SFH 4716A | O20: Max Rated DC operation | P20: 850 | Q20: 75 | R20: =200*2 -> 400 | S20: 2000 | T20: 1.9 | U20: 100 | V20: 1 | W20: 1 | X20: 13 | Y20: Non Automotive | Z20: 13 | AB20: =IFERROR(SMALL($AA$8:$AA$49,ROWS($AA$8:AA20)),"") ->  | AD20: =IFERROR(INDEX($N$8:$Y$49,$AB20,COLUMNS($M$8:M20)),"") ->  | AE20: =IFERROR(INDEX($N$8:$Y$49,$AB20,COLUMNS($M$8:N20)),"") ->  | AF20: =IFERROR(INDEX($N$8:$Y$49,$AB20,COLUMNS($M$8:O20)),"") ->  | AG20: =IFERROR(INDEX($N$8:$Y$49,$AB20,COLUMNS($M$8:P20)),"") ->  | AH20: =IFERROR(INDEX($N$8:$Y$49,$AB20,COLUMNS($M$8:Q20)),"") ->  | AI20: =IFERROR(INDEX($N$8:$Y$49,$AB20,COLUMNS($M$8:R20)),"") ->  | AJ20: =IFERROR(INDEX($N$8:$Y$49,$AB20,COLUMNS($M$8:S20)),"") ->  | AK20: =IFERROR(INDEX($N$8:$Y$49,$AB20,COLUMNS($M$8:T20)),"") ->  | AL20: =IFERROR(INDEX($N$8:$Y$49,$AB20,COLUMNS($M$8:U20)),"") ->  | AM20: =IFERROR(INDEX($N$8:$Y$49,$AB20,COLUMNS($M$8:V20)),"") ->  | AN20: =IFERROR(INDEX($N$8:$Y$49,$AB20,COLUMNS($M$8:W20)),"") ->  | AO20: =IFERROR(INDEX($N$8:$Y$49,$AB20,COLUMNS($M$8:X20)),"") ->  | AP20: 13 | AR20: =IFERROR(SMALL($AQ$8:$AQ$49,ROWS($AQ$8:AQ20)),"") ->  | AT20: =IFERROR(INDEX($AD$8:$AO$49,$AR20,COLUMNS($M$8:M20)),"") ->  | AU20: =IFERROR(INDEX($AD$8:$AO$49,$AR20,COLUMNS($M$8:N20)),"") ->  | AV20: =IFERROR(INDEX($AD$8:$AO$49,$AR20,COLUMNS($M$8:O20)),"") ->  | AW20: =IFERROR(INDEX($AD$8:$AO$49,$AR20,COLUMNS($M$8:P20)),"") ->  | AX20: =IFERROR(INDEX($AD$8:$AO$49,$AR20,COLUMNS($M$8:Q20)),"") ->  | AY20: =IFERROR(INDEX($AD$8:$AO$49,$AR20,COLUMNS($M$8:R20)),"") ->  | AZ20: =IFERROR(INDEX($AD$8:$AO$49,$AR20,COLUMNS($M$8:S20)),"") ->  | BA20: =IFERROR(INDEX($AD$8:$AO$49,$AR20,COLUMNS($M$8:T20)),"") ->  | BB20: =IFERROR(INDEX($AD$8:$AO$49,$AR20,COLUMNS($M$8:U20)),"") ->  | BC20: =IFERROR(INDEX($AD$8:$AO$49,$AR20,COLUMNS($M$8:V20)),"") ->  | BD20: =IFERROR(INDEX($AD$8:$AO$49,$AR20,COLUMNS($M$8:W20)),"") ->  | BE20: =IFERROR(INDEX($AD$8:$AO$49,$AR20,COLUMNS($M$8:X20)),"") ->  | BF20: 13 | BH20: =IFERROR(SMALL($BG$8:$BG$49,ROWS($BG$8:BG20)),"") ->  | BJ20: =IFERROR(INDEX($AT$8:$BE$46,$BH20,COLUMNS($AT$8:AT20)),"") ->  | BK20: =IFERROR(INDEX($AT$8:$BE$46,$BH20,COLUMNS($AT$8:AU20)),"") ->  | BL20: =IFERROR(INDEX($AT$8:$BE$46,$BH20,COLUMNS($AT$8:AV20)),"") ->  | BM20: =IFERROR(INDEX($AT$8:$BE$46,$BH20,COLUMNS($AT$8:AW20)),"") ->  | BN20: =IFERROR(INDEX($AT$8:$BE$46,$BH20,COLUMNS($AT$8:AX20)),"") ->  | BO20: =IFERROR(INDEX($AT$8:$BE$46,$BH20,COLUMNS($AT$8:AY20)),"") ->  | BP20: =IFERROR(INDEX($AT$8:$BE$46,$BH20,COLUMNS($AT$8:AZ20)),"") ->  | BQ20: =IFERROR(INDEX($AT$8:$BE$46,$BH20,COLUMNS($AT$8:BA20)),"") ->  | BR20: =IFERROR(INDEX($AT$8:$BE$46,$BH20,COLUMNS($AT$8:BB20)),"") ->  | BS20: =IFERROR(INDEX($AT$8:$BE$46,$BH20,COLUMNS($AT$8:BC20)),"") ->  | BT20: =IFERROR(INDEX($AT$8:$BE$46,$BH20,COLUMNS($AT$8:BD20)),"") ->  | BU20: =IFERROR(INDEX($AT$8:$BE$46,$BH20,COLUMNS($AT$8:BE20)),"") ->  | BV20: 13 | BX20: =IFERROR(SMALL($BW$8:$BW$49,ROWS($BW$8:BW20)),"") ->  | BY20: =INDEX(BM20:$BM$49,1,1) ->  | BZ20: =COUNTIF($BM$8:BM20,BY20) -> 11 | CB20: =IFERROR(SMALL($CA$8:$CA$49,ROWS($CA$8:CA20)),"") ->  | CD20: =IFERROR(INDEX($BJ$8:$BU$46,$BX20,COLUMNS($BI$8:BI20)),"") ->  | CE20: =IFERROR(INDEX($BJ$8:$BU$46,$BX20,COLUMNS($BI$8:BJ20)),"") ->  | CF20: =IFERROR(INDEX($BJ$8:$BU$46,$BX20,COLUMNS($BI$8:BK20)),"") ->  | CG20: =IFERROR(INDEX($BJ$8:$BU$46,$BX20,COLUMNS($BI$8:BL20)),"") ->  | CH20: =IFERROR(INDEX($BJ$8:$BU$46,$BX20,COLUMNS($BI$8:BM20)),"") ->  | CI20: =IFERROR(INDEX($BJ$8:$BU$46,$BX20,COLUMNS($BI$8:BN20)),"") ->  | CJ20: =IFERROR(INDEX($BJ$8:$BU$46,$BX20,COLUMNS($BI$8:BO20)),"") ->  | CK20: =IFERROR(INDEX($BJ$8:$BU$46,$BX20,COLUMNS($BI$8:BP20)),"") ->  | CL20: =IFERROR(INDEX($BJ$8:$BU$46,$BX20,COLUMNS($BI$8:BQ20)),"") ->  | CM20: =IFERROR(INDEX($BJ$8:$BU$46,$BX20,COLUMNS($BI$8:BR20)),"") ->  | CN20: =IFERROR(INDEX($BJ$8:$BU$46,$BX20,COLUMNS($BI$8:BS20)),"") ->  | CO20: =IFERROR(INDEX($BJ$8:$BU$46,$BX20,COLUMNS($BI$8:BT20)),"") ->  | CP20: 13 | CR20: =IFERROR(SMALL($CQ$8:$CQ$49,ROWS($CQ$8:CQ20)),"") ->  | CT20: =IFERROR(INDEX($CD$8:$CO$49,$CR20,COLUMNS($CC$8:CC20)),"") ->  | CU20: =IFERROR(INDEX($CD$8:$CO$49,$CR20,COLUMNS($CC$8:CD20)),"") ->  | CV20: =IFERROR(INDEX($CD$8:$CO$49,$CR20,COLUMNS($CC$8:CE20)),"") ->  | CW20: =IFERROR(INDEX($CD$8:$CO$49,$CR20,COLUMNS($CC$8:CF20)),"") ->  | CX20: =IFERROR(INDEX($CD$8:$CO$49,$CR20,COLUMNS($CC$8:CG20)),"") ->  | CY20: =IFERROR(INDEX($CD$8:$CO$49,$CR20,COLUMNS($CC$8:CH20)),"") ->  | CZ20: =IFERROR(INDEX($CD$8:$CO$49,$CR20,COLUMNS($CC$8:CI20)),"") ->  | DA20: =IFERROR(INDEX($CD$8:$CO$49,$CR20,COLUMNS($CC$8:CJ20)),"") ->  | DB20: =IFERROR(INDEX($CD$8:$CO$49,$CR20,COLUMNS($CC$8:CK20)),"") ->  | DC20: =IFERROR(INDEX($CD$8:$CO$49,$CR20,COLUMNS($CC$8:CL20)),"") ->  | DD20: =IFERROR(INDEX($CD$8:$CO$49,$CR20,COLUMNS($CC$8:CM20)),"") ->  | DE20: =IFERROR(INDEX($CD$8:$CO$49,$CR20,COLUMNS($CC$8:CN20)),"") -> 
D21: Typical Individual Resulting VF: | E21: =CHOOSE(DD8,T8, T9,T10,T11,T12,T13,T14,T15, T16,T17,T18,T19,T20,T21,T22, T23,T24,T25, T26,T27,T28) -> 2.75 | F21: Volts | G21: Typical Individual Resulting VF: | H21: =CHOOSE(DD8,T29, T30,T31,T32,T33,T34,T35,T36, T37,T38,T39,T40,T41,T42, T43,T44,T45, T46,T47,T48,T49) -> 3.2 | I21: Volts | N21: SFH 4716S | O21: Max Rated DC operation | P21: 850 | Q21: 75 | R21: 250 | S21: 1000 | T21: 2.9 | U21: 100 | V21: 1 | W21: 1 | X21: 14 | Y21: Non Automotive | Z21: 14 | AB21: =IFERROR(SMALL($AA$8:$AA$49,ROWS($AA$8:AA21)),"") ->  | AD21: =IFERROR(INDEX($N$8:$Y$49,$AB21,COLUMNS($M$8:M21)),"") ->  | AE21: =IFERROR(INDEX($N$8:$Y$49,$AB21,COLUMNS($M$8:N21)),"") ->  | AF21: =IFERROR(INDEX($N$8:$Y$49,$AB21,COLUMNS($M$8:O21)),"") ->  | AG21: =IFERROR(INDEX($N$8:$Y$49,$AB21,COLUMNS($M$8:P21)),"") ->  | AH21: =IFERROR(INDEX($N$8:$Y$49,$AB21,COLUMNS($M$8:Q21)),"") ->  | AI21: =IFERROR(INDEX($N$8:$Y$49,$AB21,COLUMNS($M$8:R21)),"") ->  | AJ21: =IFERROR(INDEX($N$8:$Y$49,$AB21,COLUMNS($M$8:S21)),"") ->  | AK21: =IFERROR(INDEX($N$8:$Y$49,$AB21,COLUMNS($M$8:T21)),"") ->  | AL21: =IFERROR(INDEX($N$8:$Y$49,$AB21,COLUMNS($M$8:U21)),"") ->  | AM21: =IFERROR(INDEX($N$8:$Y$49,$AB21,COLUMNS($M$8:V21)),"") ->  | AN21: =IFERROR(INDEX($N$8:$Y$49,$AB21,COLUMNS($M$8:W21)),"") ->  | AO21: =IFERROR(INDEX($N$8:$Y$49,$AB21,COLUMNS($M$8:X21)),"") ->  | AP21: 14 | AR21: =IFERROR(SMALL($AQ$8:$AQ$49,ROWS($AQ$8:AQ21)),"") ->  | AT21: =IFERROR(INDEX($AD$8:$AO$49,$AR21,COLUMNS($M$8:M21)),"") ->  | AU21: =IFERROR(INDEX($AD$8:$AO$49,$AR21,COLUMNS($M$8:N21)),"") ->  | AV21: =IFERROR(INDEX($AD$8:$AO$49,$AR21,COLUMNS($M$8:O21)),"") ->  | AW21: =IFERROR(INDEX($AD$8:$AO$49,$AR21,COLUMNS($M$8:P21)),"") ->  | AX21: =IFERROR(INDEX($AD$8:$AO$49,$AR21,COLUMNS($M$8:Q21)),"") ->  | AY21: =IFERROR(INDEX($AD$8:$AO$49,$AR21,COLUMNS($M$8:R21)),"") ->  | AZ21: =IFERROR(INDEX($AD$8:$AO$49,$AR21,COLUMNS($M$8:S21)),"") ->  | BA21: =IFERROR(INDEX($AD$8:$AO$49,$AR21,COLUMNS($M$8:T21)),"") ->  | BB21: =IFERROR(INDEX($AD$8:$AO$49,$AR21,COLUMNS($M$8:U21)),"") ->  | BC21: =IFERROR(INDEX($AD$8:$AO$49,$AR21,COLUMNS($M$8:V21)),"") ->  | BD21: =IFERROR(INDEX($AD$8:$AO$49,$AR21,COLUMNS($M$8:W21)),"") ->  | BE21: =IFERROR(INDEX($AD$8:$AO$49,$AR21,COLUMNS($M$8:X21)),"") ->  | BF21: 14 | BH21: =IFERROR(SMALL($BG$8:$BG$49,ROWS($BG$8:BG21)),"") ->  | BJ21: =IFERROR(INDEX($AT$8:$BE$46,$BH21,COLUMNS($AT$8:AT21)),"") ->  | BK21: =IFERROR(INDEX($AT$8:$BE$46,$BH21,COLUMNS($AT$8:AU21)),"") ->  | BL21: =IFERROR(INDEX($AT$8:$BE$46,$BH21,COLUMNS($AT$8:AV21)),"") ->  | BM21: =IFERROR(INDEX($AT$8:$BE$46,$BH21,COLUMNS($AT$8:AW21)),"") ->  | BN21: =IFERROR(INDEX($AT$8:$BE$46,$BH21,COLUMNS($AT$8:AX21)),"") ->  | BO21: =IFERROR(INDEX($AT$8:$BE$46,$BH21,COLUMNS($AT$8:AY21)),"") ->  | BP21: =IFERROR(INDEX($AT$8:$BE$46,$BH21,COLUMNS($AT$8:AZ21)),"") ->  | BQ21: =IFERROR(INDEX($AT$8:$BE$46,$BH21,COLUMNS($AT$8:BA21)),"") ->  | BR21: =IFERROR(INDEX($AT$8:$BE$46,$BH21,COLUMNS($AT$8:BB21)),"") ->  | BS21: =IFERROR(INDEX($AT$8:$BE$46,$BH21,COLUMNS($AT$8:BC21)),"") ->  | BT21: =IFERROR(INDEX($AT$8:$BE$46,$BH21,COLUMNS($AT$8:BD21)),"") ->  | BU21: =IFERROR(INDEX($AT$8:$BE$46,$BH21,COLUMNS($AT$8:BE21)),"") ->  | BV21: 14 | BX21: =IFERROR(SMALL($BW$8:$BW$49,ROWS($BW$8:BW21)),"") ->  | BY21: =INDEX(BM21:$BM$49,1,1) ->  | BZ21: =COUNTIF($BM$8:BM21,BY21) -> 12 | CB21: =IFERROR(SMALL($CA$8:$CA$49,ROWS($CA$8:CA21)),"") ->  | CD21: =IFERROR(INDEX($BJ$8:$BU$46,$BX21,COLUMNS($BI$8:BI21)),"") ->  | CE21: =IFERROR(INDEX($BJ$8:$BU$46,$BX21,COLUMNS($BI$8:BJ21)),"") ->  | CF21: =IFERROR(INDEX($BJ$8:$BU$46,$BX21,COLUMNS($BI$8:BK21)),"") ->  | CG21: =IFERROR(INDEX($BJ$8:$BU$46,$BX21,COLUMNS($BI$8:BL21)),"") ->  | CH21: =IFERROR(INDEX($BJ$8:$BU$46,$BX21,COLUMNS($BI$8:BM21)),"") ->  | CI21: =IFERROR(INDEX($BJ$8:$BU$46,$BX21,COLUMNS($BI$8:BN21)),"") ->  | CJ21: =IFERROR(INDEX($BJ$8:$BU$46,$BX21,COLUMNS($BI$8:BO21)),"") ->  | CK21: =IFERROR(INDEX($BJ$8:$BU$46,$BX21,COLUMNS($BI$8:BP21)),"") ->  | CL21: =IFERROR(INDEX($BJ$8:$BU$46,$BX21,COLUMNS($BI$8:BQ21)),"") ->  | CM21: =IFERROR(INDEX($BJ$8:$BU$46,$BX21,COLUMNS($BI$8:BR21)),"") ->  | CN21: =IFERROR(INDEX($BJ$8:$BU$46,$BX21,COLUMNS($BI$8:BS21)),"") ->  | CO21: =IFERROR(INDEX($BJ$8:$BU$46,$BX21,COLUMNS($BI$8:BT21)),"") ->  | CP21: 14 | CR21: =IFERROR(SMALL($CQ$8:$CQ$49,ROWS($CQ$8:CQ21)),"") ->  | CT21: =IFERROR(INDEX($CD$8:$CO$49,$CR21,COLUMNS($CC$8:CC21)),"") ->  | CU21: =IFERROR(INDEX($CD$8:$CO$49,$CR21,COLUMNS($CC$8:CD21)),"") ->  | CV21: =IFERROR(INDEX($CD$8:$CO$49,$CR21,COLUMNS($CC$8:CE21)),"") ->  | CW21: =IFERROR(INDEX($CD$8:$CO$49,$CR21,COLUMNS($CC$8:CF21)),"") ->  | CX21: =IFERROR(INDEX($CD$8:$CO$49,$CR21,COLUMNS($CC$8:CG21)),"") ->  | CY21: =IFERROR(INDEX($CD$8:$CO$49,$CR21,COLUMNS($CC$8:CH21)),"") ->  | CZ21: =IFERROR(INDEX($CD$8:$CO$49,$CR21,COLUMNS($CC$8:CI21)),"") ->  | DA21: =IFERROR(INDEX($CD$8:$CO$49,$CR21,COLUMNS($CC$8:CJ21)),"") ->  | DB21: =IFERROR(INDEX($CD$8:$CO$49,$CR21,COLUMNS($CC$8:CK21)),"") ->  | DC21: =IFERROR(INDEX($CD$8:$CO$49,$CR21,COLUMNS($CC$8:CL21)),"") ->  | DD21: =IFERROR(INDEX($CD$8:$CO$49,$CR21,COLUMNS($CC$8:CM21)),"") ->  | DE21: =IFERROR(INDEX($CD$8:$CO$49,$CR21,COLUMNS($CC$8:CN21)),"") -> 
D22: Series VF: | E22: =E21*I9 -> 2.75 | G22: Series VF: | H22: =H21*I9 -> 3.2 | N22: SFH 4716AS A01 | O22: Max Rated DC operation | P22: 850 | Q22: 75 | R22: =1.5*320 -> 480 | S22: 1500 | T22: 3.1 | U22: 100 | V22: 1 | W22: 1 | X22: 15 | Y22: Automotive | Z22: 15 | AA22: 15 | AB22: =IFERROR(SMALL($AA$8:$AA$49,ROWS($AA$8:AA22)),"") ->  | AD22: =IFERROR(INDEX($N$8:$Y$49,$AB22,COLUMNS($M$8:M22)),"") ->  | AE22: =IFERROR(INDEX($N$8:$Y$49,$AB22,COLUMNS($M$8:N22)),"") ->  | AF22: =IFERROR(INDEX($N$8:$Y$49,$AB22,COLUMNS($M$8:O22)),"") ->  | AG22: =IFERROR(INDEX($N$8:$Y$49,$AB22,COLUMNS($M$8:P22)),"") ->  | AH22: =IFERROR(INDEX($N$8:$Y$49,$AB22,COLUMNS($M$8:Q22)),"") ->  | AI22: =IFERROR(INDEX($N$8:$Y$49,$AB22,COLUMNS($M$8:R22)),"") ->  | AJ22: =IFERROR(INDEX($N$8:$Y$49,$AB22,COLUMNS($M$8:S22)),"") ->  | AK22: =IFERROR(INDEX($N$8:$Y$49,$AB22,COLUMNS($M$8:T22)),"") ->  | AL22: =IFERROR(INDEX($N$8:$Y$49,$AB22,COLUMNS($M$8:U22)),"") ->  | AM22: =IFERROR(INDEX($N$8:$Y$49,$AB22,COLUMNS($M$8:V22)),"") ->  | AN22: =IFERROR(INDEX($N$8:$Y$49,$AB22,COLUMNS($M$8:W22)),"") ->  | AO22: =IFERROR(INDEX($N$8:$Y$49,$AB22,COLUMNS($M$8:X22)),"") ->  | AP22: 15 | AR22: =IFERROR(SMALL($AQ$8:$AQ$49,ROWS($AQ$8:AQ22)),"") ->  | AT22: =IFERROR(INDEX($AD$8:$AO$49,$AR22,COLUMNS($M$8:M22)),"") ->  | AU22: =IFERROR(INDEX($AD$8:$AO$49,$AR22,COLUMNS($M$8:N22)),"") ->  | AV22: =IFERROR(INDEX($AD$8:$AO$49,$AR22,COLUMNS($M$8:O22)),"") ->  | AW22: =IFERROR(INDEX($AD$8:$AO$49,$AR22,COLUMNS($M$8:P22)),"") ->  | AX22: =IFERROR(INDEX($AD$8:$AO$49,$AR22,COLUMNS($M$8:Q22)),"") ->  | AY22: =IFERROR(INDEX($AD$8:$AO$49,$AR22,COLUMNS($M$8:R22)),"") ->  | AZ22: =IFERROR(INDEX($AD$8:$AO$49,$AR22,COLUMNS($M$8:S22)),"") ->  | BA22: =IFERROR(INDEX($AD$8:$AO$49,$AR22,COLUMNS($M$8:T22)),"") ->  | BB22: =IFERROR(INDEX($AD$8:$AO$49,$AR22,COLUMNS($M$8:U22)),"") ->  | BC22: =IFERROR(INDEX($AD$8:$AO$49,$AR22,COLUMNS($M$8:V22)),"") ->  | BD22: =IFERROR(INDEX($AD$8:$AO$49,$AR22,COLUMNS($M$8:W22)),"") ->  | BE22: =IFERROR(INDEX($AD$8:$AO$49,$AR22,COLUMNS($M$8:X22)),"") ->  | BF22: 15 | BH22: =IFERROR(SMALL($BG$8:$BG$49,ROWS($BG$8:BG22)),"") ->  | BJ22: =IFERROR(INDEX($AT$8:$BE$46,$BH22,COLUMNS($AT$8:AT22)),"") ->  | BK22: =IFERROR(INDEX($AT$8:$BE$46,$BH22,COLUMNS($AT$8:AU22)),"") ->  | BL22: =IFERROR(INDEX($AT$8:$BE$46,$BH22,COLUMNS($AT$8:AV22)),"") ->  | BM22: =IFERROR(INDEX($AT$8:$BE$46,$BH22,COLUMNS($AT$8:AW22)),"") ->  | BN22: =IFERROR(INDEX($AT$8:$BE$46,$BH22,COLUMNS($AT$8:AX22)),"") ->  | BO22: =IFERROR(INDEX($AT$8:$BE$46,$BH22,COLUMNS($AT$8:AY22)),"") ->  | BP22: =IFERROR(INDEX($AT$8:$BE$46,$BH22,COLUMNS($AT$8:AZ22)),"") ->  | BQ22: =IFERROR(INDEX($AT$8:$BE$46,$BH22,COLUMNS($AT$8:BA22)),"") ->  | BR22: =IFERROR(INDEX($AT$8:$BE$46,$BH22,COLUMNS($AT$8:BB22)),"") ->  | BS22: =IFERROR(INDEX($AT$8:$BE$46,$BH22,COLUMNS($AT$8:BC22)),"") ->  | BT22: =IFERROR(INDEX($AT$8:$BE$46,$BH22,COLUMNS($AT$8:BD22)),"") ->  | BU22: =IFERROR(INDEX($AT$8:$BE$46,$BH22,COLUMNS($AT$8:BE22)),"") ->  | BV22: 15 | BX22: =IFERROR(SMALL($BW$8:$BW$49,ROWS($BW$8:BW22)),"") ->  | BY22: =INDEX(BM22:$BM$49,1,1) ->  | BZ22: =COUNTIF($BM$8:BM22,BY22) -> 13 | CB22: =IFERROR(SMALL($CA$8:$CA$49,ROWS($CA$8:CA22)),"") ->  | CD22: =IFERROR(INDEX($BJ$8:$BU$46,$BX22,COLUMNS($BI$8:BI22)),"") ->  | CE22: =IFERROR(INDEX($BJ$8:$BU$46,$BX22,COLUMNS($BI$8:BJ22)),"") ->  | CF22: =IFERROR(INDEX($BJ$8:$BU$46,$BX22,COLUMNS($BI$8:BK22)),"") ->  | CG22: =IFERROR(INDEX($BJ$8:$BU$46,$BX22,COLUMNS($BI$8:BL22)),"") ->  | CH22: =IFERROR(INDEX($BJ$8:$BU$46,$BX22,COLUMNS($BI$8:BM22)),"") ->  | CI22: =IFERROR(INDEX($BJ$8:$BU$46,$BX22,COLUMNS($BI$8:BN22)),"") ->  | CJ22: =IFERROR(INDEX($BJ$8:$BU$46,$BX22,COLUMNS($BI$8:BO22)),"") ->  | CK22: =IFERROR(INDEX($BJ$8:$BU$46,$BX22,COLUMNS($BI$8:BP22)),"") ->  | CL22: =IFERROR(INDEX($BJ$8:$BU$46,$BX22,COLUMNS($BI$8:BQ22)),"") ->  | CM22: =IFERROR(INDEX($BJ$8:$BU$46,$BX22,COLUMNS($BI$8:BR22)),"") ->  | CN22: =IFERROR(INDEX($BJ$8:$BU$46,$BX22,COLUMNS($BI$8:BS22)),"") ->  | CO22: =IFERROR(INDEX($BJ$8:$BU$46,$BX22,COLUMNS($BI$8:BT22)),"") ->  | CP22: 15 | CR22: =IFERROR(SMALL($CQ$8:$CQ$49,ROWS($CQ$8:CQ22)),"") ->  | CT22: =IFERROR(INDEX($CD$8:$CO$49,$CR22,COLUMNS($CC$8:CC22)),"") ->  | CU22: =IFERROR(INDEX($CD$8:$CO$49,$CR22,COLUMNS($CC$8:CD22)),"") ->  | CV22: =IFERROR(INDEX($CD$8:$CO$49,$CR22,COLUMNS($CC$8:CE22)),"") ->  | CW22: =IFERROR(INDEX($CD$8:$CO$49,$CR22,COLUMNS($CC$8:CF22)),"") ->  | CX22: =IFERROR(INDEX($CD$8:$CO$49,$CR22,COLUMNS($CC$8:CG22)),"") ->  | CY22: =IFERROR(INDEX($CD$8:$CO$49,$CR22,COLUMNS($CC$8:CH22)),"") ->  | CZ22: =IFERROR(INDEX($CD$8:$CO$49,$CR22,COLUMNS($CC$8:CI22)),"") ->  | DA22: =IFERROR(INDEX($CD$8:$CO$49,$CR22,COLUMNS($CC$8:CJ22)),"") ->  | DB22: =IFERROR(INDEX($CD$8:$CO$49,$CR22,COLUMNS($CC$8:CK22)),"") ->  | DC22: =IFERROR(INDEX($CD$8:$CO$49,$CR22,COLUMNS($CC$8:CL22)),"") ->  | DD22: =IFERROR(INDEX($CD$8:$CO$49,$CR22,COLUMNS($CC$8:CM22)),"") ->  | DE22: =IFERROR(INDEX($CD$8:$CO$49,$CR22,COLUMNS($CC$8:CN22)),"") -> 
D23: Heat Generated: | E23: =(E28*PI())*0.6*0.2 -> 185.4796303 | F23: mW *40% WPE | G23: Heat Generated: | H23: =(H28*PI())*0.6*0.2*H30/100 -> 0.08114733824 | I23: mW *40% WPE | N23: SFH 4716AS | O23: Max Rated DC operation | P23: 850 | Q23: 75 | R23: =1.5*400 -> 600 | S23: 1500 | T23: 3.35 | U23: 100 | V23: 1 | W23: 1 | X23: 16 | Y23: Non Automotive | Z23: 16 | AB23: =IFERROR(SMALL($AA$8:$AA$49,ROWS($AA$8:AA23)),"") ->  | AD23: =IFERROR(INDEX($N$8:$Y$49,$AB23,COLUMNS($M$8:M23)),"") ->  | AE23: =IFERROR(INDEX($N$8:$Y$49,$AB23,COLUMNS($M$8:N23)),"") ->  | AF23: =IFERROR(INDEX($N$8:$Y$49,$AB23,COLUMNS($M$8:O23)),"") ->  | AG23: =IFERROR(INDEX($N$8:$Y$49,$AB23,COLUMNS($M$8:P23)),"") ->  | AH23: =IFERROR(INDEX($N$8:$Y$49,$AB23,COLUMNS($M$8:Q23)),"") ->  | AI23: =IFERROR(INDEX($N$8:$Y$49,$AB23,COLUMNS($M$8:R23)),"") ->  | AJ23: =IFERROR(INDEX($N$8:$Y$49,$AB23,COLUMNS($M$8:S23)),"") ->  | AK23: =IFERROR(INDEX($N$8:$Y$49,$AB23,COLUMNS($M$8:T23)),"") ->  | AL23: =IFERROR(INDEX($N$8:$Y$49,$AB23,COLUMNS($M$8:U23)),"") ->  | AM23: =IFERROR(INDEX($N$8:$Y$49,$AB23,COLUMNS($M$8:V23)),"") ->  | AN23: =IFERROR(INDEX($N$8:$Y$49,$AB23,COLUMNS($M$8:W23)),"") ->  | AO23: =IFERROR(INDEX($N$8:$Y$49,$AB23,COLUMNS($M$8:X23)),"") ->  | AP23: 16 | AR23: =IFERROR(SMALL($AQ$8:$AQ$49,ROWS($AQ$8:AQ23)),"") ->  | AT23: =IFERROR(INDEX($AD$8:$AO$49,$AR23,COLUMNS($M$8:M23)),"") ->  | AU23: =IFERROR(INDEX($AD$8:$AO$49,$AR23,COLUMNS($M$8:N23)),"") ->  | AV23: =IFERROR(INDEX($AD$8:$AO$49,$AR23,COLUMNS($M$8:O23)),"") ->  | AW23: =IFERROR(INDEX($AD$8:$AO$49,$AR23,COLUMNS($M$8:P23)),"") ->  | AX23: =IFERROR(INDEX($AD$8:$AO$49,$AR23,COLUMNS($M$8:Q23)),"") ->  | AY23: =IFERROR(INDEX($AD$8:$AO$49,$AR23,COLUMNS($M$8:R23)),"") ->  | AZ23: =IFERROR(INDEX($AD$8:$AO$49,$AR23,COLUMNS($M$8:S23)),"") ->  | BA23: =IFERROR(INDEX($AD$8:$AO$49,$AR23,COLUMNS($M$8:T23)),"") ->  | BB23: =IFERROR(INDEX($AD$8:$AO$49,$AR23,COLUMNS($M$8:U23)),"") ->  | BC23: =IFERROR(INDEX($AD$8:$AO$49,$AR23,COLUMNS($M$8:V23)),"") ->  | BD23: =IFERROR(INDEX($AD$8:$AO$49,$AR23,COLUMNS($M$8:W23)),"") ->  | BE23: =IFERROR(INDEX($AD$8:$AO$49,$AR23,COLUMNS($M$8:X23)),"") ->  | BF23: 16 | BH23: =IFERROR(SMALL($BG$8:$BG$49,ROWS($BG$8:BG23)),"") ->  | BJ23: =IFERROR(INDEX($AT$8:$BE$46,$BH23,COLUMNS($AT$8:AT23)),"") ->  | BK23: =IFERROR(INDEX($AT$8:$BE$46,$BH23,COLUMNS($AT$8:AU23)),"") ->  | BL23: =IFERROR(INDEX($AT$8:$BE$46,$BH23,COLUMNS($AT$8:AV23)),"") ->  | BM23: =IFERROR(INDEX($AT$8:$BE$46,$BH23,COLUMNS($AT$8:AW23)),"") ->  | BN23: =IFERROR(INDEX($AT$8:$BE$46,$BH23,COLUMNS($AT$8:AX23)),"") ->  | BO23: =IFERROR(INDEX($AT$8:$BE$46,$BH23,COLUMNS($AT$8:AY23)),"") ->  | BP23: =IFERROR(INDEX($AT$8:$BE$46,$BH23,COLUMNS($AT$8:AZ23)),"") ->  | BQ23: =IFERROR(INDEX($AT$8:$BE$46,$BH23,COLUMNS($AT$8:BA23)),"") ->  | BR23: =IFERROR(INDEX($AT$8:$BE$46,$BH23,COLUMNS($AT$8:BB23)),"") ->  | BS23: =IFERROR(INDEX($AT$8:$BE$46,$BH23,COLUMNS($AT$8:BC23)),"") ->  | BT23: =IFERROR(INDEX($AT$8:$BE$46,$BH23,COLUMNS($AT$8:BD23)),"") ->  | BU23: =IFERROR(INDEX($AT$8:$BE$46,$BH23,COLUMNS($AT$8:BE23)),"") ->  | BV23: 16 | BX23: =IFERROR(SMALL($BW$8:$BW$49,ROWS($BW$8:BW23)),"") ->  | BY23: =INDEX(BM23:$BM$49,1,1) ->  | BZ23: =COUNTIF($BM$8:BM23,BY23) -> 14 | CB23: =IFERROR(SMALL($CA$8:$CA$49,ROWS($CA$8:CA23)),"") ->  | CD23: =IFERROR(INDEX($BJ$8:$BU$46,$BX23,COLUMNS($BI$8:BI23)),"") ->  | CE23: =IFERROR(INDEX($BJ$8:$BU$46,$BX23,COLUMNS($BI$8:BJ23)),"") ->  | CF23: =IFERROR(INDEX($BJ$8:$BU$46,$BX23,COLUMNS($BI$8:BK23)),"") ->  | CG23: =IFERROR(INDEX($BJ$8:$BU$46,$BX23,COLUMNS($BI$8:BL23)),"") ->  | CH23: =IFERROR(INDEX($BJ$8:$BU$46,$BX23,COLUMNS($BI$8:BM23)),"") ->  | CI23: =IFERROR(INDEX($BJ$8:$BU$46,$BX23,COLUMNS($BI$8:BN23)),"") ->  | CJ23: =IFERROR(INDEX($BJ$8:$BU$46,$BX23,COLUMNS($BI$8:BO23)),"") ->  | CK23: =IFERROR(INDEX($BJ$8:$BU$46,$BX23,COLUMNS($BI$8:BP23)),"") ->  | CL23: =IFERROR(INDEX($BJ$8:$BU$46,$BX23,COLUMNS($BI$8:BQ23)),"") ->  | CM23: =IFERROR(INDEX($BJ$8:$BU$46,$BX23,COLUMNS($BI$8:BR23)),"") ->  | CN23: =IFERROR(INDEX($BJ$8:$BU$46,$BX23,COLUMNS($BI$8:BS23)),"") ->  | CO23: =IFERROR(INDEX($BJ$8:$BU$46,$BX23,COLUMNS($BI$8:BT23)),"") ->  | CP23: 16 | CR23: =IFERROR(SMALL($CQ$8:$CQ$49,ROWS($CQ$8:CQ23)),"") ->  | CT23: =IFERROR(INDEX($CD$8:$CO$49,$CR23,COLUMNS($CC$8:CC23)),"") ->  | CU23: =IFERROR(INDEX($CD$8:$CO$49,$CR23,COLUMNS($CC$8:CD23)),"") ->  | CV23: =IFERROR(INDEX($CD$8:$CO$49,$CR23,COLUMNS($CC$8:CE23)),"") ->  | CW23: =IFERROR(INDEX($CD$8:$CO$49,$CR23,COLUMNS($CC$8:CF23)),"") ->  | CX23: =IFERROR(INDEX($CD$8:$CO$49,$CR23,COLUMNS($CC$8:CG23)),"") ->  | CY23: =IFERROR(INDEX($CD$8:$CO$49,$CR23,COLUMNS($CC$8:CH23)),"") ->  | CZ23: =IFERROR(INDEX($CD$8:$CO$49,$CR23,COLUMNS($CC$8:CI23)),"") ->  | DA23: =IFERROR(INDEX($CD$8:$CO$49,$CR23,COLUMNS($CC$8:CJ23)),"") ->  | DB23: =IFERROR(INDEX($CD$8:$CO$49,$CR23,COLUMNS($CC$8:CK23)),"") ->  | DC23: =IFERROR(INDEX($CD$8:$CO$49,$CR23,COLUMNS($CC$8:CL23)),"") ->  | DD23: =IFERROR(INDEX($CD$8:$CO$49,$CR23,COLUMNS($CC$8:CM23)),"") ->  | DE23: =IFERROR(INDEX($CD$8:$CO$49,$CR23,COLUMNS($CC$8:CN23)),"") -> 
D24: Peak IRI @ 25C Operation @ FWHM | E24: =CHOOSE(DD8,R8, R9,R10,R11,R12,R13,R14,R15,R16, R17,R18,R19,R20,R21,R22, R23,R24,R25,R26,R27,R28)*0.5 -> 600 | F24: mW/sr | G24: Peak IRI @ 25C Operation @ FWHM | H24: =CHOOSE(DD8,R29, R30,R31,R32,R33,R34,R35,R36,R37,R38,R39,R40,R41,R42,R43, R44,R45, R46,R47,R48,R49)*0.5 -> 2625 | I24: mW/sr | N24: SFH 4727AS A01 | O24: Max Rated DC operation | P24: 940 | Q24: 25 | R24: =1.5*1250 -> 1875 | S24: 1500 | T24: 2.7 | U24: 100 | V24: 1 | W24: 1 | X24: 17 | Y24: Automotive | Z24: 17 | AA24: 17 | AB24: =IFERROR(SMALL($AA$8:$AA$49,ROWS($AA$8:AA24)),"") ->  | AD24: =IFERROR(INDEX($N$8:$Y$49,$AB24,COLUMNS($M$8:M24)),"") ->  | AE24: =IFERROR(INDEX($N$8:$Y$49,$AB24,COLUMNS($M$8:N24)),"") ->  | AF24: =IFERROR(INDEX($N$8:$Y$49,$AB24,COLUMNS($M$8:O24)),"") ->  | AG24: =IFERROR(INDEX($N$8:$Y$49,$AB24,COLUMNS($M$8:P24)),"") ->  | AH24: =IFERROR(INDEX($N$8:$Y$49,$AB24,COLUMNS($M$8:Q24)),"") ->  | AI24: =IFERROR(INDEX($N$8:$Y$49,$AB24,COLUMNS($M$8:R24)),"") ->  | AJ24: =IFERROR(INDEX($N$8:$Y$49,$AB24,COLUMNS($M$8:S24)),"") ->  | AK24: =IFERROR(INDEX($N$8:$Y$49,$AB24,COLUMNS($M$8:T24)),"") ->  | AL24: =IFERROR(INDEX($N$8:$Y$49,$AB24,COLUMNS($M$8:U24)),"") ->  | AM24: =IFERROR(INDEX($N$8:$Y$49,$AB24,COLUMNS($M$8:V24)),"") ->  | AN24: =IFERROR(INDEX($N$8:$Y$49,$AB24,COLUMNS($M$8:W24)),"") ->  | AO24: =IFERROR(INDEX($N$8:$Y$49,$AB24,COLUMNS($M$8:X24)),"") ->  | AP24: 17 | AR24: =IFERROR(SMALL($AQ$8:$AQ$49,ROWS($AQ$8:AQ24)),"") ->  | AT24: =IFERROR(INDEX($AD$8:$AO$49,$AR24,COLUMNS($M$8:M24)),"") ->  | AU24: =IFERROR(INDEX($AD$8:$AO$49,$AR24,COLUMNS($M$8:N24)),"") ->  | AV24: =IFERROR(INDEX($AD$8:$AO$49,$AR24,COLUMNS($M$8:O24)),"") ->  | AW24: =IFERROR(INDEX($AD$8:$AO$49,$AR24,COLUMNS($M$8:P24)),"") ->  | AX24: =IFERROR(INDEX($AD$8:$AO$49,$AR24,COLUMNS($M$8:Q24)),"") ->  | AY24: =IFERROR(INDEX($AD$8:$AO$49,$AR24,COLUMNS($M$8:R24)),"") ->  | AZ24: =IFERROR(INDEX($AD$8:$AO$49,$AR24,COLUMNS($M$8:S24)),"") ->  | BA24: =IFERROR(INDEX($AD$8:$AO$49,$AR24,COLUMNS($M$8:T24)),"") ->  | BB24: =IFERROR(INDEX($AD$8:$AO$49,$AR24,COLUMNS($M$8:U24)),"") ->  | BC24: =IFERROR(INDEX($AD$8:$AO$49,$AR24,COLUMNS($M$8:V24)),"") ->  | BD24: =IFERROR(INDEX($AD$8:$AO$49,$AR24,COLUMNS($M$8:W24)),"") ->  | BE24: =IFERROR(INDEX($AD$8:$AO$49,$AR24,COLUMNS($M$8:X24)),"") ->  | BF24: 17 | BH24: =IFERROR(SMALL($BG$8:$BG$49,ROWS($BG$8:BG24)),"") ->  | BJ24: =IFERROR(INDEX($AT$8:$BE$46,$BH24,COLUMNS($AT$8:AT24)),"") ->  | BK24: =IFERROR(INDEX($AT$8:$BE$46,$BH24,COLUMNS($AT$8:AU24)),"") ->  | BL24: =IFERROR(INDEX($AT$8:$BE$46,$BH24,COLUMNS($AT$8:AV24)),"") ->  | BM24: =IFERROR(INDEX($AT$8:$BE$46,$BH24,COLUMNS($AT$8:AW24)),"") ->  | BN24: =IFERROR(INDEX($AT$8:$BE$46,$BH24,COLUMNS($AT$8:AX24)),"") ->  | BO24: =IFERROR(INDEX($AT$8:$BE$46,$BH24,COLUMNS($AT$8:AY24)),"") ->  | BP24: =IFERROR(INDEX($AT$8:$BE$46,$BH24,COLUMNS($AT$8:AZ24)),"") ->  | BQ24: =IFERROR(INDEX($AT$8:$BE$46,$BH24,COLUMNS($AT$8:BA24)),"") ->  | BR24: =IFERROR(INDEX($AT$8:$BE$46,$BH24,COLUMNS($AT$8:BB24)),"") ->  | BS24: =IFERROR(INDEX($AT$8:$BE$46,$BH24,COLUMNS($AT$8:BC24)),"") ->  | BT24: =IFERROR(INDEX($AT$8:$BE$46,$BH24,COLUMNS($AT$8:BD24)),"") ->  | BU24: =IFERROR(INDEX($AT$8:$BE$46,$BH24,COLUMNS($AT$8:BE24)),"") ->  | BV24: 17 | BX24: =IFERROR(SMALL($BW$8:$BW$49,ROWS($BW$8:BW24)),"") ->  | BY24: =INDEX(BM24:$BM$49,1,1) ->  | BZ24: =COUNTIF($BM$8:BM24,BY24) -> 15 | CB24: =IFERROR(SMALL($CA$8:$CA$49,ROWS($CA$8:CA24)),"") ->  | CD24: =IFERROR(INDEX($BJ$8:$BU$46,$BX24,COLUMNS($BI$8:BI24)),"") ->  | CE24: =IFERROR(INDEX($BJ$8:$BU$46,$BX24,COLUMNS($BI$8:BJ24)),"") ->  | CF24: =IFERROR(INDEX($BJ$8:$BU$46,$BX24,COLUMNS($BI$8:BK24)),"") ->  | CG24: =IFERROR(INDEX($BJ$8:$BU$46,$BX24,COLUMNS($BI$8:BL24)),"") ->  | CH24: =IFERROR(INDEX($BJ$8:$BU$46,$BX24,COLUMNS($BI$8:BM24)),"") ->  | CI24: =IFERROR(INDEX($BJ$8:$BU$46,$BX24,COLUMNS($BI$8:BN24)),"") ->  | CJ24: =IFERROR(INDEX($BJ$8:$BU$46,$BX24,COLUMNS($BI$8:BO24)),"") ->  | CK24: =IFERROR(INDEX($BJ$8:$BU$46,$BX24,COLUMNS($BI$8:BP24)),"") ->  | CL24: =IFERROR(INDEX($BJ$8:$BU$46,$BX24,COLUMNS($BI$8:BQ24)),"") ->  | CM24: =IFERROR(INDEX($BJ$8:$BU$46,$BX24,COLUMNS($BI$8:BR24)),"") ->  | CN24: =IFERROR(INDEX($BJ$8:$BU$46,$BX24,COLUMNS($BI$8:BS24)),"") ->  | CO24: =IFERROR(INDEX($BJ$8:$BU$46,$BX24,COLUMNS($BI$8:BT24)),"") ->  | CP24: 17 | CR24: =IFERROR(SMALL($CQ$8:$CQ$49,ROWS($CQ$8:CQ24)),"") ->  | CT24: =IFERROR(INDEX($CD$8:$CO$49,$CR24,COLUMNS($CC$8:CC24)),"") ->  | CU24: =IFERROR(INDEX($CD$8:$CO$49,$CR24,COLUMNS($CC$8:CD24)),"") ->  | CV24: =IFERROR(INDEX($CD$8:$CO$49,$CR24,COLUMNS($CC$8:CE24)),"") ->  | CW24: =IFERROR(INDEX($CD$8:$CO$49,$CR24,COLUMNS($CC$8:CF24)),"") ->  | CX24: =IFERROR(INDEX($CD$8:$CO$49,$CR24,COLUMNS($CC$8:CG24)),"") ->  | CY24: =IFERROR(INDEX($CD$8:$CO$49,$CR24,COLUMNS($CC$8:CH24)),"") ->  | CZ24: =IFERROR(INDEX($CD$8:$CO$49,$CR24,COLUMNS($CC$8:CI24)),"") ->  | DA24: =IFERROR(INDEX($CD$8:$CO$49,$CR24,COLUMNS($CC$8:CJ24)),"") ->  | DB24: =IFERROR(INDEX($CD$8:$CO$49,$CR24,COLUMNS($CC$8:CK24)),"") ->  | DC24: =IFERROR(INDEX($CD$8:$CO$49,$CR24,COLUMNS($CC$8:CL24)),"") ->  | DD24: =IFERROR(INDEX($CD$8:$CO$49,$CR24,COLUMNS($CC$8:CM24)),"") ->  | DE24: =IFERROR(INDEX($CD$8:$CO$49,$CR24,COLUMNS($CC$8:CN24)),"") -> 
N25: SFH 4725AS A01 | O25: Max Rated DC operation | P25: 940 | Q25: 40 | R25: =800*1.5 -> 1200 | S25: 1500 | T25: 2.75 | U25: 100 | V25: 1 | W25: 1 | X25: 18 | Y25: Automotive | Z25: 18 | AA25: 18 | AB25: =IFERROR(SMALL($AA$8:$AA$49,ROWS($AA$8:AA25)),"") ->  | AD25: =IFERROR(INDEX($N$8:$Y$49,$AB25,COLUMNS($M$8:M25)),"") ->  | AE25: =IFERROR(INDEX($N$8:$Y$49,$AB25,COLUMNS($M$8:N25)),"") ->  | AF25: =IFERROR(INDEX($N$8:$Y$49,$AB25,COLUMNS($M$8:O25)),"") ->  | AG25: =IFERROR(INDEX($N$8:$Y$49,$AB25,COLUMNS($M$8:P25)),"") ->  | AH25: =IFERROR(INDEX($N$8:$Y$49,$AB25,COLUMNS($M$8:Q25)),"") ->  | AI25: =IFERROR(INDEX($N$8:$Y$49,$AB25,COLUMNS($M$8:R25)),"") ->  | AJ25: =IFERROR(INDEX($N$8:$Y$49,$AB25,COLUMNS($M$8:S25)),"") ->  | AK25: =IFERROR(INDEX($N$8:$Y$49,$AB25,COLUMNS($M$8:T25)),"") ->  | AL25: =IFERROR(INDEX($N$8:$Y$49,$AB25,COLUMNS($M$8:U25)),"") ->  | AM25: =IFERROR(INDEX($N$8:$Y$49,$AB25,COLUMNS($M$8:V25)),"") ->  | AN25: =IFERROR(INDEX($N$8:$Y$49,$AB25,COLUMNS($M$8:W25)),"") ->  | AO25: =IFERROR(INDEX($N$8:$Y$49,$AB25,COLUMNS($M$8:X25)),"") ->  | AP25: 18 | AR25: =IFERROR(SMALL($AQ$8:$AQ$49,ROWS($AQ$8:AQ25)),"") ->  | AT25: =IFERROR(INDEX($AD$8:$AO$49,$AR25,COLUMNS($M$8:M25)),"") ->  | AU25: =IFERROR(INDEX($AD$8:$AO$49,$AR25,COLUMNS($M$8:N25)),"") ->  | AV25: =IFERROR(INDEX($AD$8:$AO$49,$AR25,COLUMNS($M$8:O25)),"") ->  | AW25: =IFERROR(INDEX($AD$8:$AO$49,$AR25,COLUMNS($M$8:P25)),"") ->  | AX25: =IFERROR(INDEX($AD$8:$AO$49,$AR25,COLUMNS($M$8:Q25)),"") ->  | AY25: =IFERROR(INDEX($AD$8:$AO$49,$AR25,COLUMNS($M$8:R25)),"") ->  | AZ25: =IFERROR(INDEX($AD$8:$AO$49,$AR25,COLUMNS($M$8:S25)),"") ->  | BA25: =IFERROR(INDEX($AD$8:$AO$49,$AR25,COLUMNS($M$8:T25)),"") ->  | BB25: =IFERROR(INDEX($AD$8:$AO$49,$AR25,COLUMNS($M$8:U25)),"") ->  | BC25: =IFERROR(INDEX($AD$8:$AO$49,$AR25,COLUMNS($M$8:V25)),"") ->  | BD25: =IFERROR(INDEX($AD$8:$AO$49,$AR25,COLUMNS($M$8:W25)),"") ->  | BE25: =IFERROR(INDEX($AD$8:$AO$49,$AR25,COLUMNS($M$8:X25)),"") ->  | BF25: 18 | BH25: =IFERROR(SMALL($BG$8:$BG$49,ROWS($BG$8:BG25)),"") ->  | BJ25: =IFERROR(INDEX($AT$8:$BE$46,$BH25,COLUMNS($AT$8:AT25)),"") ->  | BK25: =IFERROR(INDEX($AT$8:$BE$46,$BH25,COLUMNS($AT$8:AU25)),"") ->  | BL25: =IFERROR(INDEX($AT$8:$BE$46,$BH25,COLUMNS($AT$8:AV25)),"") ->  | BM25: =IFERROR(INDEX($AT$8:$BE$46,$BH25,COLUMNS($AT$8:AW25)),"") ->  | BN25: =IFERROR(INDEX($AT$8:$BE$46,$BH25,COLUMNS($AT$8:AX25)),"") ->  | BO25: =IFERROR(INDEX($AT$8:$BE$46,$BH25,COLUMNS($AT$8:AY25)),"") ->  | BP25: =IFERROR(INDEX($AT$8:$BE$46,$BH25,COLUMNS($AT$8:AZ25)),"") ->  | BQ25: =IFERROR(INDEX($AT$8:$BE$46,$BH25,COLUMNS($AT$8:BA25)),"") ->  | BR25: =IFERROR(INDEX($AT$8:$BE$46,$BH25,COLUMNS($AT$8:BB25)),"") ->  | BS25: =IFERROR(INDEX($AT$8:$BE$46,$BH25,COLUMNS($AT$8:BC25)),"") ->  | BT25: =IFERROR(INDEX($AT$8:$BE$46,$BH25,COLUMNS($AT$8:BD25)),"") ->  | BU25: =IFERROR(INDEX($AT$8:$BE$46,$BH25,COLUMNS($AT$8:BE25)),"") ->  | BV25: 18 | BX25: =IFERROR(SMALL($BW$8:$BW$49,ROWS($BW$8:BW25)),"") ->  | BY25: =INDEX(BM25:$BM$49,1,1) ->  | BZ25: =COUNTIF($BM$8:BM25,BY25) -> 16 | CB25: =IFERROR(SMALL($CA$8:$CA$49,ROWS($CA$8:CA25)),"") ->  | CD25: =IFERROR(INDEX($BJ$8:$BU$46,$BX25,COLUMNS($BI$8:BI25)),"") ->  | CE25: =IFERROR(INDEX($BJ$8:$BU$46,$BX25,COLUMNS($BI$8:BJ25)),"") ->  | CF25: =IFERROR(INDEX($BJ$8:$BU$46,$BX25,COLUMNS($BI$8:BK25)),"") ->  | CG25: =IFERROR(INDEX($BJ$8:$BU$46,$BX25,COLUMNS($BI$8:BL25)),"") ->  | CH25: =IFERROR(INDEX($BJ$8:$BU$46,$BX25,COLUMNS($BI$8:BM25)),"") ->  | CI25: =IFERROR(INDEX($BJ$8:$BU$46,$BX25,COLUMNS($BI$8:BN25)),"") ->  | CJ25: =IFERROR(INDEX($BJ$8:$BU$46,$BX25,COLUMNS($BI$8:BO25)),"") ->  | CK25: =IFERROR(INDEX($BJ$8:$BU$46,$BX25,COLUMNS($BI$8:BP25)),"") ->  | CL25: =IFERROR(INDEX($BJ$8:$BU$46,$BX25,COLUMNS($BI$8:BQ25)),"") ->  | CM25: =IFERROR(INDEX($BJ$8:$BU$46,$BX25,COLUMNS($BI$8:BR25)),"") ->  | CN25: =IFERROR(INDEX($BJ$8:$BU$46,$BX25,COLUMNS($BI$8:BS25)),"") ->  | CO25: =IFERROR(INDEX($BJ$8:$BU$46,$BX25,COLUMNS($BI$8:BT25)),"") ->  | CP25: 18 | CR25: =IFERROR(SMALL($CQ$8:$CQ$49,ROWS($CQ$8:CQ25)),"") ->  | CT25: =IFERROR(INDEX($CD$8:$CO$49,$CR25,COLUMNS($CC$8:CC25)),"") ->  | CU25: =IFERROR(INDEX($CD$8:$CO$49,$CR25,COLUMNS($CC$8:CD25)),"") ->  | CV25: =IFERROR(INDEX($CD$8:$CO$49,$CR25,COLUMNS($CC$8:CE25)),"") ->  | CW25: =IFERROR(INDEX($CD$8:$CO$49,$CR25,COLUMNS($CC$8:CF25)),"") ->  | CX25: =IFERROR(INDEX($CD$8:$CO$49,$CR25,COLUMNS($CC$8:CG25)),"") ->  | CY25: =IFERROR(INDEX($CD$8:$CO$49,$CR25,COLUMNS($CC$8:CH25)),"") ->  | CZ25: =IFERROR(INDEX($CD$8:$CO$49,$CR25,COLUMNS($CC$8:CI25)),"") ->  | DA25: =IFERROR(INDEX($CD$8:$CO$49,$CR25,COLUMNS($CC$8:CJ25)),"") ->  | DB25: =IFERROR(INDEX($CD$8:$CO$49,$CR25,COLUMNS($CC$8:CK25)),"") ->  | DC25: =IFERROR(INDEX($CD$8:$CO$49,$CR25,COLUMNS($CC$8:CL25)),"") ->  | DD25: =IFERROR(INDEX($CD$8:$CO$49,$CR25,COLUMNS($CC$8:CM25)),"") ->  | DE25: =IFERROR(INDEX($CD$8:$CO$49,$CR25,COLUMNS($CC$8:CN25)),"") -> 
D26: Peak IIR Max TAC˚ | E26: =E24*(1-((I7-25)*0.3)/100) -> 492 | F26: mW/sr | G26: Peak IIR Max TAC˚ @ FWHM | H26: =(H24*(1-((I7-25)*0.3)/100))/2 -> 1076.25 | I26: mW/sr | N26: SFH 4725S | O26: Max Rated DC operation | P26: 940 | Q26: 45 | R26: 630 | S26: 1000 | T26: 2.75 | U26: 100 | V26: 1 | W26: 1 | X26: 19 | Y26: Non Automotive | Z26: 19 | AB26: =IFERROR(SMALL($AA$8:$AA$49,ROWS($AA$8:AA26)),"") ->  | AD26: =IFERROR(INDEX($N$8:$Y$49,$AB26,COLUMNS($M$8:M26)),"") ->  | AE26: =IFERROR(INDEX($N$8:$Y$49,$AB26,COLUMNS($M$8:N26)),"") ->  | AF26: =IFERROR(INDEX($N$8:$Y$49,$AB26,COLUMNS($M$8:O26)),"") ->  | AG26: =IFERROR(INDEX($N$8:$Y$49,$AB26,COLUMNS($M$8:P26)),"") ->  | AH26: =IFERROR(INDEX($N$8:$Y$49,$AB26,COLUMNS($M$8:Q26)),"") ->  | AI26: =IFERROR(INDEX($N$8:$Y$49,$AB26,COLUMNS($M$8:R26)),"") ->  | AJ26: =IFERROR(INDEX($N$8:$Y$49,$AB26,COLUMNS($M$8:S26)),"") ->  | AK26: =IFERROR(INDEX($N$8:$Y$49,$AB26,COLUMNS($M$8:T26)),"") ->  | AL26: =IFERROR(INDEX($N$8:$Y$49,$AB26,COLUMNS($M$8:U26)),"") ->  | AM26: =IFERROR(INDEX($N$8:$Y$49,$AB26,COLUMNS($M$8:V26)),"") ->  | AN26: =IFERROR(INDEX($N$8:$Y$49,$AB26,COLUMNS($M$8:W26)),"") ->  | AO26: =IFERROR(INDEX($N$8:$Y$49,$AB26,COLUMNS($M$8:X26)),"") ->  | AP26: 19 | AR26: =IFERROR(SMALL($AQ$8:$AQ$49,ROWS($AQ$8:AQ26)),"") ->  | AT26: =IFERROR(INDEX($AD$8:$AO$49,$AR26,COLUMNS($M$8:M26)),"") ->  | AU26: =IFERROR(INDEX($AD$8:$AO$49,$AR26,COLUMNS($M$8:N26)),"") ->  | AV26: =IFERROR(INDEX($AD$8:$AO$49,$AR26,COLUMNS($M$8:O26)),"") ->  | AW26: =IFERROR(INDEX($AD$8:$AO$49,$AR26,COLUMNS($M$8:P26)),"") ->  | AX26: =IFERROR(INDEX($AD$8:$AO$49,$AR26,COLUMNS($M$8:Q26)),"") ->  | AY26: =IFERROR(INDEX($AD$8:$AO$49,$AR26,COLUMNS($M$8:R26)),"") ->  | AZ26: =IFERROR(INDEX($AD$8:$AO$49,$AR26,COLUMNS($M$8:S26)),"") ->  | BA26: =IFERROR(INDEX($AD$8:$AO$49,$AR26,COLUMNS($M$8:T26)),"") ->  | BB26: =IFERROR(INDEX($AD$8:$AO$49,$AR26,COLUMNS($M$8:U26)),"") ->  | BC26: =IFERROR(INDEX($AD$8:$AO$49,$AR26,COLUMNS($M$8:V26)),"") ->  | BD26: =IFERROR(INDEX($AD$8:$AO$49,$AR26,COLUMNS($M$8:W26)),"") ->  | BE26: =IFERROR(INDEX($AD$8:$AO$49,$AR26,COLUMNS($M$8:X26)),"") ->  | BF26: 19 | BH26: =IFERROR(SMALL($BG$8:$BG$49,ROWS($BG$8:BG26)),"") ->  | BJ26: =IFERROR(INDEX($AT$8:$BE$46,$BH26,COLUMNS($AT$8:AT26)),"") ->  | BK26: =IFERROR(INDEX($AT$8:$BE$46,$BH26,COLUMNS($AT$8:AU26)),"") ->  | BL26: =IFERROR(INDEX($AT$8:$BE$46,$BH26,COLUMNS($AT$8:AV26)),"") ->  | BM26: =IFERROR(INDEX($AT$8:$BE$46,$BH26,COLUMNS($AT$8:AW26)),"") ->  | BN26: =IFERROR(INDEX($AT$8:$BE$46,$BH26,COLUMNS($AT$8:AX26)),"") ->  | BO26: =IFERROR(INDEX($AT$8:$BE$46,$BH26,COLUMNS($AT$8:AY26)),"") ->  | BP26: =IFERROR(INDEX($AT$8:$BE$46,$BH26,COLUMNS($AT$8:AZ26)),"") ->  | BQ26: =IFERROR(INDEX($AT$8:$BE$46,$BH26,COLUMNS($AT$8:BA26)),"") ->  | BR26: =IFERROR(INDEX($AT$8:$BE$46,$BH26,COLUMNS($AT$8:BB26)),"") ->  | BS26: =IFERROR(INDEX($AT$8:$BE$46,$BH26,COLUMNS($AT$8:BC26)),"") ->  | BT26: =IFERROR(INDEX($AT$8:$BE$46,$BH26,COLUMNS($AT$8:BD26)),"") ->  | BU26: =IFERROR(INDEX($AT$8:$BE$46,$BH26,COLUMNS($AT$8:BE26)),"") ->  | BV26: 19 | BX26: =IFERROR(SMALL($BW$8:$BW$49,ROWS($BW$8:BW26)),"") ->  | BY26: =INDEX(BM26:$BM$49,1,1) ->  | BZ26: =COUNTIF($BM$8:BM26,BY26) -> 17 | CB26: =IFERROR(SMALL($CA$8:$CA$49,ROWS($CA$8:CA26)),"") ->  | CD26: =IFERROR(INDEX($BJ$8:$BU$46,$BX26,COLUMNS($BI$8:BI26)),"") ->  | CE26: =IFERROR(INDEX($BJ$8:$BU$46,$BX26,COLUMNS($BI$8:BJ26)),"") ->  | CF26: =IFERROR(INDEX($BJ$8:$BU$46,$BX26,COLUMNS($BI$8:BK26)),"") ->  | CG26: =IFERROR(INDEX($BJ$8:$BU$46,$BX26,COLUMNS($BI$8:BL26)),"") ->  | CH26: =IFERROR(INDEX($BJ$8:$BU$46,$BX26,COLUMNS($BI$8:BM26)),"") ->  | CI26: =IFERROR(INDEX($BJ$8:$BU$46,$BX26,COLUMNS($BI$8:BN26)),"") ->  | CJ26: =IFERROR(INDEX($BJ$8:$BU$46,$BX26,COLUMNS($BI$8:BO26)),"") ->  | CK26: =IFERROR(INDEX($BJ$8:$BU$46,$BX26,COLUMNS($BI$8:BP26)),"") ->  | CL26: =IFERROR(INDEX($BJ$8:$BU$46,$BX26,COLUMNS($BI$8:BQ26)),"") ->  | CM26: =IFERROR(INDEX($BJ$8:$BU$46,$BX26,COLUMNS($BI$8:BR26)),"") ->  | CN26: =IFERROR(INDEX($BJ$8:$BU$46,$BX26,COLUMNS($BI$8:BS26)),"") ->  | CO26: =IFERROR(INDEX($BJ$8:$BU$46,$BX26,COLUMNS($BI$8:BT26)),"") ->  | CP26: 19 | CR26: =IFERROR(SMALL($CQ$8:$CQ$49,ROWS($CQ$8:CQ26)),"") ->  | CT26: =IFERROR(INDEX($CD$8:$CO$49,$CR26,COLUMNS($CC$8:CC26)),"") ->  | CU26: =IFERROR(INDEX($CD$8:$CO$49,$CR26,COLUMNS($CC$8:CD26)),"") ->  | CV26: =IFERROR(INDEX($CD$8:$CO$49,$CR26,COLUMNS($CC$8:CE26)),"") ->  | CW26: =IFERROR(INDEX($CD$8:$CO$49,$CR26,COLUMNS($CC$8:CF26)),"") ->  | CX26: =IFERROR(INDEX($CD$8:$CO$49,$CR26,COLUMNS($CC$8:CG26)),"") ->  | CY26: =IFERROR(INDEX($CD$8:$CO$49,$CR26,COLUMNS($CC$8:CH26)),"") ->  | CZ26: =IFERROR(INDEX($CD$8:$CO$49,$CR26,COLUMNS($CC$8:CI26)),"") ->  | DA26: =IFERROR(INDEX($CD$8:$CO$49,$CR26,COLUMNS($CC$8:CJ26)),"") ->  | DB26: =IFERROR(INDEX($CD$8:$CO$49,$CR26,COLUMNS($CC$8:CK26)),"") ->  | DC26: =IFERROR(INDEX($CD$8:$CO$49,$CR26,COLUMNS($CC$8:CL26)),"") ->  | DD26: =IFERROR(INDEX($CD$8:$CO$49,$CR26,COLUMNS($CC$8:CM26)),"") ->  | DE26: =IFERROR(INDEX($CD$8:$CO$49,$CR26,COLUMNS($CC$8:CN26)),"") -> 
N27: SFH 4775S | O27: Max Rated DC operation | P27: 940 | Q27: 60 | R27: =1.5*545 -> 817.5 | S27: 1500 | T27: 2.9 | U27: 100 | V27: 1 | W27: 1 | X27: 20 | Y27: Non Automotive | Z27: 20 | AB27: =IFERROR(SMALL($AA$8:$AA$49,ROWS($AA$8:AA27)),"") ->  | AD27: =IFERROR(INDEX($N$8:$Y$49,$AB27,COLUMNS($M$8:M27)),"") ->  | AE27: =IFERROR(INDEX($N$8:$Y$49,$AB27,COLUMNS($M$8:N27)),"") ->  | AF27: =IFERROR(INDEX($N$8:$Y$49,$AB27,COLUMNS($M$8:O27)),"") ->  | AG27: =IFERROR(INDEX($N$8:$Y$49,$AB27,COLUMNS($M$8:P27)),"") ->  | AH27: =IFERROR(INDEX($N$8:$Y$49,$AB27,COLUMNS($M$8:Q27)),"") ->  | AI27: =IFERROR(INDEX($N$8:$Y$49,$AB27,COLUMNS($M$8:R27)),"") ->  | AJ27: =IFERROR(INDEX($N$8:$Y$49,$AB27,COLUMNS($M$8:S27)),"") ->  | AK27: =IFERROR(INDEX($N$8:$Y$49,$AB27,COLUMNS($M$8:T27)),"") ->  | AL27: =IFERROR(INDEX($N$8:$Y$49,$AB27,COLUMNS($M$8:U27)),"") ->  | AM27: =IFERROR(INDEX($N$8:$Y$49,$AB27,COLUMNS($M$8:V27)),"") ->  | AN27: =IFERROR(INDEX($N$8:$Y$49,$AB27,COLUMNS($M$8:W27)),"") ->  | AO27: =IFERROR(INDEX($N$8:$Y$49,$AB27,COLUMNS($M$8:X27)),"") ->  | AP27: 20 | AR27: =IFERROR(SMALL($AQ$8:$AQ$49,ROWS($AQ$8:AQ27)),"") ->  | AT27: =IFERROR(INDEX($AD$8:$AO$49,$AR27,COLUMNS($M$8:M27)),"") ->  | AU27: =IFERROR(INDEX($AD$8:$AO$49,$AR27,COLUMNS($M$8:N27)),"") ->  | AV27: =IFERROR(INDEX($AD$8:$AO$49,$AR27,COLUMNS($M$8:O27)),"") ->  | AW27: =IFERROR(INDEX($AD$8:$AO$49,$AR27,COLUMNS($M$8:P27)),"") ->  | AX27: =IFERROR(INDEX($AD$8:$AO$49,$AR27,COLUMNS($M$8:Q27)),"") ->  | AY27: =IFERROR(INDEX($AD$8:$AO$49,$AR27,COLUMNS($M$8:R27)),"") ->  | AZ27: =IFERROR(INDEX($AD$8:$AO$49,$AR27,COLUMNS($M$8:S27)),"") ->  | BA27: =IFERROR(INDEX($AD$8:$AO$49,$AR27,COLUMNS($M$8:T27)),"") ->  | BB27: =IFERROR(INDEX($AD$8:$AO$49,$AR27,COLUMNS($M$8:U27)),"") ->  | BC27: =IFERROR(INDEX($AD$8:$AO$49,$AR27,COLUMNS($M$8:V27)),"") ->  | BD27: =IFERROR(INDEX($AD$8:$AO$49,$AR27,COLUMNS($M$8:W27)),"") ->  | BE27: =IFERROR(INDEX($AD$8:$AO$49,$AR27,COLUMNS($M$8:X27)),"") ->  | BF27: 20 | BH27: =IFERROR(SMALL($BG$8:$BG$49,ROWS($BG$8:BG27)),"") ->  | BJ27: =IFERROR(INDEX($AT$8:$BE$46,$BH27,COLUMNS($AT$8:AT27)),"") ->  | BK27: =IFERROR(INDEX($AT$8:$BE$46,$BH27,COLUMNS($AT$8:AU27)),"") ->  | BL27: =IFERROR(INDEX($AT$8:$BE$46,$BH27,COLUMNS($AT$8:AV27)),"") ->  | BM27: =IFERROR(INDEX($AT$8:$BE$46,$BH27,COLUMNS($AT$8:AW27)),"") ->  | BN27: =IFERROR(INDEX($AT$8:$BE$46,$BH27,COLUMNS($AT$8:AX27)),"") ->  | BO27: =IFERROR(INDEX($AT$8:$BE$46,$BH27,COLUMNS($AT$8:AY27)),"") ->  | BP27: =IFERROR(INDEX($AT$8:$BE$46,$BH27,COLUMNS($AT$8:AZ27)),"") ->  | BQ27: =IFERROR(INDEX($AT$8:$BE$46,$BH27,COLUMNS($AT$8:BA27)),"") ->  | BR27: =IFERROR(INDEX($AT$8:$BE$46,$BH27,COLUMNS($AT$8:BB27)),"") ->  | BS27: =IFERROR(INDEX($AT$8:$BE$46,$BH27,COLUMNS($AT$8:BC27)),"") ->  | BT27: =IFERROR(INDEX($AT$8:$BE$46,$BH27,COLUMNS($AT$8:BD27)),"") ->  | BU27: =IFERROR(INDEX($AT$8:$BE$46,$BH27,COLUMNS($AT$8:BE27)),"") ->  | BV27: 20 | BX27: =IFERROR(SMALL($BW$8:$BW$49,ROWS($BW$8:BW27)),"") ->  | BY27: =INDEX(BM27:$BM$49,1,1) ->  | BZ27: =COUNTIF($BM$8:BM27,BY27) -> 18 | CB27: =IFERROR(SMALL($CA$8:$CA$49,ROWS($CA$8:CA27)),"") ->  | CD27: =IFERROR(INDEX($BJ$8:$BU$46,$BX27,COLUMNS($BI$8:BI27)),"") ->  | CE27: =IFERROR(INDEX($BJ$8:$BU$46,$BX27,COLUMNS($BI$8:BJ27)),"") ->  | CF27: =IFERROR(INDEX($BJ$8:$BU$46,$BX27,COLUMNS($BI$8:BK27)),"") ->  | CG27: =IFERROR(INDEX($BJ$8:$BU$46,$BX27,COLUMNS($BI$8:BL27)),"") ->  | CH27: =IFERROR(INDEX($BJ$8:$BU$46,$BX27,COLUMNS($BI$8:BM27)),"") ->  | CI27: =IFERROR(INDEX($BJ$8:$BU$46,$BX27,COLUMNS($BI$8:BN27)),"") ->  | CJ27: =IFERROR(INDEX($BJ$8:$BU$46,$BX27,COLUMNS($BI$8:BO27)),"") ->  | CK27: =IFERROR(INDEX($BJ$8:$BU$46,$BX27,COLUMNS($BI$8:BP27)),"") ->  | CL27: =IFERROR(INDEX($BJ$8:$BU$46,$BX27,COLUMNS($BI$8:BQ27)),"") ->  | CM27: =IFERROR(INDEX($BJ$8:$BU$46,$BX27,COLUMNS($BI$8:BR27)),"") ->  | CN27: =IFERROR(INDEX($BJ$8:$BU$46,$BX27,COLUMNS($BI$8:BS27)),"") ->  | CO27: =IFERROR(INDEX($BJ$8:$BU$46,$BX27,COLUMNS($BI$8:BT27)),"") ->  | CP27: 20 | CR27: =IFERROR(SMALL($CQ$8:$CQ$49,ROWS($CQ$8:CQ27)),"") ->  | CT27: =IFERROR(INDEX($CD$8:$CO$49,$CR27,COLUMNS($CC$8:CC27)),"") ->  | CU27: =IFERROR(INDEX($CD$8:$CO$49,$CR27,COLUMNS($CC$8:CD27)),"") ->  | CV27: =IFERROR(INDEX($CD$8:$CO$49,$CR27,COLUMNS($CC$8:CE27)),"") ->  | CW27: =IFERROR(INDEX($CD$8:$CO$49,$CR27,COLUMNS($CC$8:CF27)),"") ->  | CX27: =IFERROR(INDEX($CD$8:$CO$49,$CR27,COLUMNS($CC$8:CG27)),"") ->  | CY27: =IFERROR(INDEX($CD$8:$CO$49,$CR27,COLUMNS($CC$8:CH27)),"") ->  | CZ27: =IFERROR(INDEX($CD$8:$CO$49,$CR27,COLUMNS($CC$8:CI27)),"") ->  | DA27: =IFERROR(INDEX($CD$8:$CO$49,$CR27,COLUMNS($CC$8:CJ27)),"") ->  | DB27: =IFERROR(INDEX($CD$8:$CO$49,$CR27,COLUMNS($CC$8:CK27)),"") ->  | DC27: =IFERROR(INDEX($CD$8:$CO$49,$CR27,COLUMNS($CC$8:CL27)),"") ->  | DD27: =IFERROR(INDEX($CD$8:$CO$49,$CR27,COLUMNS($CC$8:CM27)),"") ->  | DE27: =IFERROR(INDEX($CD$8:$CO$49,$CR27,COLUMNS($CC$8:CN27)),"") -> 
D28: PEAK IIR Max TAC˚ of ALL emitters | E28: =E24*(1-((I7-25)*0.3)/100)*I9 -> 492 | F28: mW/sr | G28: PEAK IIR Max TAC˚ of ALL emitters | H28: =H24*(1-((I7-25)*0.3)/100)*I9 -> 2152.5 | I28: mW/sr | N28: SFH 4726S | O28: Max Rated DC operation | P28: 940 | Q28: 75 | R28: 250 | S28: 1000 | T28: 2.75 | U28: 100 | V28: 1 | W28: 1 | X28: 21 | Y28: Non Automotive | Z28: 21 | AB28: =IFERROR(SMALL($AA$8:$AA$49,ROWS($AA$8:AA28)),"") ->  | AD28: =IFERROR(INDEX($N$8:$Y$49,$AB28,COLUMNS($M$8:M28)),"") ->  | AE28: =IFERROR(INDEX($N$8:$Y$49,$AB28,COLUMNS($M$8:N28)),"") ->  | AF28: =IFERROR(INDEX($N$8:$Y$49,$AB28,COLUMNS($M$8:O28)),"") ->  | AG28: =IFERROR(INDEX($N$8:$Y$49,$AB28,COLUMNS($M$8:P28)),"") ->  | AH28: =IFERROR(INDEX($N$8:$Y$49,$AB28,COLUMNS($M$8:Q28)),"") ->  | AI28: =IFERROR(INDEX($N$8:$Y$49,$AB28,COLUMNS($M$8:R28)),"") ->  | AJ28: =IFERROR(INDEX($N$8:$Y$49,$AB28,COLUMNS($M$8:S28)),"") ->  | AK28: =IFERROR(INDEX($N$8:$Y$49,$AB28,COLUMNS($M$8:T28)),"") ->  | AL28: =IFERROR(INDEX($N$8:$Y$49,$AB28,COLUMNS($M$8:U28)),"") ->  | AM28: =IFERROR(INDEX($N$8:$Y$49,$AB28,COLUMNS($M$8:V28)),"") ->  | AN28: =IFERROR(INDEX($N$8:$Y$49,$AB28,COLUMNS($M$8:W28)),"") ->  | AO28: =IFERROR(INDEX($N$8:$Y$49,$AB28,COLUMNS($M$8:X28)),"") ->  | AP28: 21 | AR28: =IFERROR(SMALL($AQ$8:$AQ$49,ROWS($AQ$8:AQ28)),"") ->  | AT28: =IFERROR(INDEX($AD$8:$AO$49,$AR28,COLUMNS($M$8:M28)),"") ->  | AU28: =IFERROR(INDEX($AD$8:$AO$49,$AR28,COLUMNS($M$8:N28)),"") ->  | AV28: =IFERROR(INDEX($AD$8:$AO$49,$AR28,COLUMNS($M$8:O28)),"") ->  | AW28: =IFERROR(INDEX($AD$8:$AO$49,$AR28,COLUMNS($M$8:P28)),"") ->  | AX28: =IFERROR(INDEX($AD$8:$AO$49,$AR28,COLUMNS($M$8:Q28)),"") ->  | AY28: =IFERROR(INDEX($AD$8:$AO$49,$AR28,COLUMNS($M$8:R28)),"") ->  | AZ28: =IFERROR(INDEX($AD$8:$AO$49,$AR28,COLUMNS($M$8:S28)),"") ->  | BA28: =IFERROR(INDEX($AD$8:$AO$49,$AR28,COLUMNS($M$8:T28)),"") ->  | BB28: =IFERROR(INDEX($AD$8:$AO$49,$AR28,COLUMNS($M$8:U28)),"") ->  | BC28: =IFERROR(INDEX($AD$8:$AO$49,$AR28,COLUMNS($M$8:V28)),"") ->  | BD28: =IFERROR(INDEX($AD$8:$AO$49,$AR28,COLUMNS($M$8:W28)),"") ->  | BE28: =IFERROR(INDEX($AD$8:$AO$49,$AR28,COLUMNS($M$8:X28)),"") ->  | BF28: 21 | BH28: =IFERROR(SMALL($BG$8:$BG$49,ROWS($BG$8:BG28)),"") ->  | BJ28: =IFERROR(INDEX($AT$8:$BE$46,$BH28,COLUMNS($AT$8:AT28)),"") ->  | BK28: =IFERROR(INDEX($AT$8:$BE$46,$BH28,COLUMNS($AT$8:AU28)),"") ->  | BL28: =IFERROR(INDEX($AT$8:$BE$46,$BH28,COLUMNS($AT$8:AV28)),"") ->  | BM28: =IFERROR(INDEX($AT$8:$BE$46,$BH28,COLUMNS($AT$8:AW28)),"") ->  | BN28: =IFERROR(INDEX($AT$8:$BE$46,$BH28,COLUMNS($AT$8:AX28)),"") ->  | BO28: =IFERROR(INDEX($AT$8:$BE$46,$BH28,COLUMNS($AT$8:AY28)),"") ->  | BP28: =IFERROR(INDEX($AT$8:$BE$46,$BH28,COLUMNS($AT$8:AZ28)),"") ->  | BQ28: =IFERROR(INDEX($AT$8:$BE$46,$BH28,COLUMNS($AT$8:BA28)),"") ->  | BR28: =IFERROR(INDEX($AT$8:$BE$46,$BH28,COLUMNS($AT$8:BB28)),"") ->  | BS28: =IFERROR(INDEX($AT$8:$BE$46,$BH28,COLUMNS($AT$8:BC28)),"") ->  | BT28: =IFERROR(INDEX($AT$8:$BE$46,$BH28,COLUMNS($AT$8:BD28)),"") ->  | BU28: =IFERROR(INDEX($AT$8:$BE$46,$BH28,COLUMNS($AT$8:BE28)),"") ->  | BV28: 21 | BX28: =IFERROR(SMALL($BW$8:$BW$49,ROWS($BW$8:BW28)),"") ->  | BY28: =INDEX(BM28:$BM$49,1,1) ->  | BZ28: =COUNTIF($BM$8:BM28,BY28) -> 19 | CB28: =IFERROR(SMALL($CA$8:$CA$49,ROWS($CA$8:CA28)),"") ->  | CD28: =IFERROR(INDEX($BJ$8:$BU$46,$BX28,COLUMNS($BI$8:BI28)),"") ->  | CE28: =IFERROR(INDEX($BJ$8:$BU$46,$BX28,COLUMNS($BI$8:BJ28)),"") ->  | CF28: =IFERROR(INDEX($BJ$8:$BU$46,$BX28,COLUMNS($BI$8:BK28)),"") ->  | CG28: =IFERROR(INDEX($BJ$8:$BU$46,$BX28,COLUMNS($BI$8:BL28)),"") ->  | CH28: =IFERROR(INDEX($BJ$8:$BU$46,$BX28,COLUMNS($BI$8:BM28)),"") ->  | CI28: =IFERROR(INDEX($BJ$8:$BU$46,$BX28,COLUMNS($BI$8:BN28)),"") ->  | CJ28: =IFERROR(INDEX($BJ$8:$BU$46,$BX28,COLUMNS($BI$8:BO28)),"") ->  | CK28: =IFERROR(INDEX($BJ$8:$BU$46,$BX28,COLUMNS($BI$8:BP28)),"") ->  | CL28: =IFERROR(INDEX($BJ$8:$BU$46,$BX28,COLUMNS($BI$8:BQ28)),"") ->  | CM28: =IFERROR(INDEX($BJ$8:$BU$46,$BX28,COLUMNS($BI$8:BR28)),"") ->  | CN28: =IFERROR(INDEX($BJ$8:$BU$46,$BX28,COLUMNS($BI$8:BS28)),"") ->  | CO28: =IFERROR(INDEX($BJ$8:$BU$46,$BX28,COLUMNS($BI$8:BT28)),"") ->  | CP28: 21 | CR28: =IFERROR(SMALL($CQ$8:$CQ$49,ROWS($CQ$8:CQ28)),"") ->  | CT28: =IFERROR(INDEX($CD$8:$CO$49,$CR28,COLUMNS($CC$8:CC28)),"") ->  | CU28: =IFERROR(INDEX($CD$8:$CO$49,$CR28,COLUMNS($CC$8:CD28)),"") ->  | CV28: =IFERROR(INDEX($CD$8:$CO$49,$CR28,COLUMNS($CC$8:CE28)),"") ->  | CW28: =IFERROR(INDEX($CD$8:$CO$49,$CR28,COLUMNS($CC$8:CF28)),"") ->  | CX28: =IFERROR(INDEX($CD$8:$CO$49,$CR28,COLUMNS($CC$8:CG28)),"") ->  | CY28: =IFERROR(INDEX($CD$8:$CO$49,$CR28,COLUMNS($CC$8:CH28)),"") ->  | CZ28: =IFERROR(INDEX($CD$8:$CO$49,$CR28,COLUMNS($CC$8:CI28)),"") ->  | DA28: =IFERROR(INDEX($CD$8:$CO$49,$CR28,COLUMNS($CC$8:CJ28)),"") ->  | DB28: =IFERROR(INDEX($CD$8:$CO$49,$CR28,COLUMNS($CC$8:CK28)),"") ->  | DC28: =IFERROR(INDEX($CD$8:$CO$49,$CR28,COLUMNS($CC$8:CL28)),"") ->  | DD28: =IFERROR(INDEX($CD$8:$CO$49,$CR28,COLUMNS($CC$8:CM28)),"") ->  | DE28: =IFERROR(INDEX($CD$8:$CO$49,$CR28,COLUMNS($CC$8:CN28)),"") -> 
N29: SFH 4780S | O29: Max Rated Pulsed operation | P29: 810 | Q29: 10 | R29: =1.8*2900 -> 5220 | S29: 2000 | T29: 4.1 | U29: 0.01 | V29: 0.0002 | W29: 0.75 | X29: 1 | Y29: Non Automotive | Z29: 22 | AB29: =IFERROR(SMALL($AA$8:$AA$49,ROWS($AA$8:AA29)),"") ->  | AD29: =IFERROR(INDEX($N$8:$Y$49,$AB29,COLUMNS($M$8:M29)),"") ->  | AE29: =IFERROR(INDEX($N$8:$Y$49,$AB29,COLUMNS($M$8:N29)),"") ->  | AF29: =IFERROR(INDEX($N$8:$Y$49,$AB29,COLUMNS($M$8:O29)),"") ->  | AG29: =IFERROR(INDEX($N$8:$Y$49,$AB29,COLUMNS($M$8:P29)),"") ->  | AH29: =IFERROR(INDEX($N$8:$Y$49,$AB29,COLUMNS($M$8:Q29)),"") ->  | AI29: =IFERROR(INDEX($N$8:$Y$49,$AB29,COLUMNS($M$8:R29)),"") ->  | AJ29: =IFERROR(INDEX($N$8:$Y$49,$AB29,COLUMNS($M$8:S29)),"") ->  | AK29: =IFERROR(INDEX($N$8:$Y$49,$AB29,COLUMNS($M$8:T29)),"") ->  | AL29: =IFERROR(INDEX($N$8:$Y$49,$AB29,COLUMNS($M$8:U29)),"") ->  | AM29: =IFERROR(INDEX($N$8:$Y$49,$AB29,COLUMNS($M$8:V29)),"") ->  | AN29: =IFERROR(INDEX($N$8:$Y$49,$AB29,COLUMNS($M$8:W29)),"") ->  | AO29: =IFERROR(INDEX($N$8:$Y$49,$AB29,COLUMNS($M$8:X29)),"") ->  | AP29: 22 | AR29: =IFERROR(SMALL($AQ$8:$AQ$49,ROWS($AQ$8:AQ29)),"") ->  | AT29: =IFERROR(INDEX($AD$8:$AO$49,$AR29,COLUMNS($M$8:M29)),"") ->  | AU29: =IFERROR(INDEX($AD$8:$AO$49,$AR29,COLUMNS($M$8:N29)),"") ->  | AV29: =IFERROR(INDEX($AD$8:$AO$49,$AR29,COLUMNS($M$8:O29)),"") ->  | AW29: =IFERROR(INDEX($AD$8:$AO$49,$AR29,COLUMNS($M$8:P29)),"") ->  | AX29: =IFERROR(INDEX($AD$8:$AO$49,$AR29,COLUMNS($M$8:Q29)),"") ->  | AY29: =IFERROR(INDEX($AD$8:$AO$49,$AR29,COLUMNS($M$8:R29)),"") ->  | AZ29: =IFERROR(INDEX($AD$8:$AO$49,$AR29,COLUMNS($M$8:S29)),"") ->  | BA29: =IFERROR(INDEX($AD$8:$AO$49,$AR29,COLUMNS($M$8:T29)),"") ->  | BB29: =IFERROR(INDEX($AD$8:$AO$49,$AR29,COLUMNS($M$8:U29)),"") ->  | BC29: =IFERROR(INDEX($AD$8:$AO$49,$AR29,COLUMNS($M$8:V29)),"") ->  | BD29: =IFERROR(INDEX($AD$8:$AO$49,$AR29,COLUMNS($M$8:W29)),"") ->  | BE29: =IFERROR(INDEX($AD$8:$AO$49,$AR29,COLUMNS($M$8:X29)),"") ->  | BF29: 22 | BH29: =IFERROR(SMALL($BG$8:$BG$49,ROWS($BG$8:BG29)),"") ->  | BJ29: =IFERROR(INDEX($AT$8:$BE$46,$BH29,COLUMNS($AT$8:AT29)),"") ->  | BK29: =IFERROR(INDEX($AT$8:$BE$46,$BH29,COLUMNS($AT$8:AU29)),"") ->  | BL29: =IFERROR(INDEX($AT$8:$BE$46,$BH29,COLUMNS($AT$8:AV29)),"") ->  | BM29: =IFERROR(INDEX($AT$8:$BE$46,$BH29,COLUMNS($AT$8:AW29)),"") ->  | BN29: =IFERROR(INDEX($AT$8:$BE$46,$BH29,COLUMNS($AT$8:AX29)),"") ->  | BO29: =IFERROR(INDEX($AT$8:$BE$46,$BH29,COLUMNS($AT$8:AY29)),"") ->  | BP29: =IFERROR(INDEX($AT$8:$BE$46,$BH29,COLUMNS($AT$8:AZ29)),"") ->  | BQ29: =IFERROR(INDEX($AT$8:$BE$46,$BH29,COLUMNS($AT$8:BA29)),"") ->  | BR29: =IFERROR(INDEX($AT$8:$BE$46,$BH29,COLUMNS($AT$8:BB29)),"") ->  | BS29: =IFERROR(INDEX($AT$8:$BE$46,$BH29,COLUMNS($AT$8:BC29)),"") ->  | BT29: =IFERROR(INDEX($AT$8:$BE$46,$BH29,COLUMNS($AT$8:BD29)),"") ->  | BU29: =IFERROR(INDEX($AT$8:$BE$46,$BH29,COLUMNS($AT$8:BE29)),"") ->  | BV29: 22 | BX29: =IFERROR(SMALL($BW$8:$BW$49,ROWS($BW$8:BW29)),"") ->  | BY29: =INDEX(BM29:$BM$49,1,1) ->  | BZ29: =COUNTIF($BM$8:BM29,BY29) -> 20 | CB29: =IFERROR(SMALL($CA$8:$CA$49,ROWS($CA$8:CA29)),"") ->  | CD29: =IFERROR(INDEX($BJ$8:$BU$46,$BX29,COLUMNS($BI$8:BI29)),"") ->  | CE29: =IFERROR(INDEX($BJ$8:$BU$46,$BX29,COLUMNS($BI$8:BJ29)),"") ->  | CF29: =IFERROR(INDEX($BJ$8:$BU$46,$BX29,COLUMNS($BI$8:BK29)),"") ->  | CG29: =IFERROR(INDEX($BJ$8:$BU$46,$BX29,COLUMNS($BI$8:BL29)),"") ->  | CH29: =IFERROR(INDEX($BJ$8:$BU$46,$BX29,COLUMNS($BI$8:BM29)),"") ->  | CI29: =IFERROR(INDEX($BJ$8:$BU$46,$BX29,COLUMNS($BI$8:BN29)),"") ->  | CJ29: =IFERROR(INDEX($BJ$8:$BU$46,$BX29,COLUMNS($BI$8:BO29)),"") ->  | CK29: =IFERROR(INDEX($BJ$8:$BU$46,$BX29,COLUMNS($BI$8:BP29)),"") ->  | CL29: =IFERROR(INDEX($BJ$8:$BU$46,$BX29,COLUMNS($BI$8:BQ29)),"") ->  | CM29: =IFERROR(INDEX($BJ$8:$BU$46,$BX29,COLUMNS($BI$8:BR29)),"") ->  | CN29: =IFERROR(INDEX($BJ$8:$BU$46,$BX29,COLUMNS($BI$8:BS29)),"") ->  | CO29: =IFERROR(INDEX($BJ$8:$BU$46,$BX29,COLUMNS($BI$8:BT29)),"") ->  | CP29: 22 | CR29: =IFERROR(SMALL($CQ$8:$CQ$49,ROWS($CQ$8:CQ29)),"") ->  | CT29: =IFERROR(INDEX($CD$8:$CO$49,$CR29,COLUMNS($CC$8:CC29)),"") ->  | CU29: =IFERROR(INDEX($CD$8:$CO$49,$CR29,COLUMNS($CC$8:CD29)),"") ->  | CV29: =IFERROR(INDEX($CD$8:$CO$49,$CR29,COLUMNS($CC$8:CE29)),"") ->  | CW29: =IFERROR(INDEX($CD$8:$CO$49,$CR29,COLUMNS($CC$8:CF29)),"") ->  | CX29: =IFERROR(INDEX($CD$8:$CO$49,$CR29,COLUMNS($CC$8:CG29)),"") ->  | CY29: =IFERROR(INDEX($CD$8:$CO$49,$CR29,COLUMNS($CC$8:CH29)),"") ->  | CZ29: =IFERROR(INDEX($CD$8:$CO$49,$CR29,COLUMNS($CC$8:CI29)),"") ->  | DA29: =IFERROR(INDEX($CD$8:$CO$49,$CR29,COLUMNS($CC$8:CJ29)),"") ->  | DB29: =IFERROR(INDEX($CD$8:$CO$49,$CR29,COLUMNS($CC$8:CK29)),"") ->  | DC29: =IFERROR(INDEX($CD$8:$CO$49,$CR29,COLUMNS($CC$8:CL29)),"") ->  | DD29: =IFERROR(INDEX($CD$8:$CO$49,$CR29,COLUMNS($CC$8:CM29)),"") ->  | DE29: =IFERROR(INDEX($CD$8:$CO$49,$CR29,COLUMNS($CC$8:CN29)),"") -> 
D30: Duty Cycle: | E30: =CHOOSE(DD8,U8, U9,U10,U11,U12,U13,U14,U15,U16,U17,U18,U19,U20,U21,U22,U23,U24,U25,U26,U27,U28) -> 100 | F30: % | G30: Duty Cycle: | H30: =CHOOSE(DD8,U29, U30,U31,U32,U33,U34,U35,U36, U37,U38,U39,U40,U41,U42,U43, U44,U45, U46,U47,U48,U49) -> 0.01 | I30: % | N30: SFH 4703AS | O30: Max Rated Pulsed operation | P30: 810 | Q30: 40 | R30: =1.8*800 -> 1440 | S30: 2000 | T30: 4.1 | U30: 0.01 | V30: 0.0003 | W30: 0.75 | X30: =1+X29 -> 2 | Y30: Non Automotive | Z30: 23 | AB30: =IFERROR(SMALL($AA$8:$AA$49,ROWS($AA$8:AA30)),"") ->  | AD30: =IFERROR(INDEX($N$8:$Y$49,$AB30,COLUMNS($M$8:M30)),"") ->  | AE30: =IFERROR(INDEX($N$8:$Y$49,$AB30,COLUMNS($M$8:N30)),"") ->  | AF30: =IFERROR(INDEX($N$8:$Y$49,$AB30,COLUMNS($M$8:O30)),"") ->  | AG30: =IFERROR(INDEX($N$8:$Y$49,$AB30,COLUMNS($M$8:P30)),"") ->  | AH30: =IFERROR(INDEX($N$8:$Y$49,$AB30,COLUMNS($M$8:Q30)),"") ->  | AI30: =IFERROR(INDEX($N$8:$Y$49,$AB30,COLUMNS($M$8:R30)),"") ->  | AJ30: =IFERROR(INDEX($N$8:$Y$49,$AB30,COLUMNS($M$8:S30)),"") ->  | AK30: =IFERROR(INDEX($N$8:$Y$49,$AB30,COLUMNS($M$8:T30)),"") ->  | AL30: =IFERROR(INDEX($N$8:$Y$49,$AB30,COLUMNS($M$8:U30)),"") ->  | AM30: =IFERROR(INDEX($N$8:$Y$49,$AB30,COLUMNS($M$8:V30)),"") ->  | AN30: =IFERROR(INDEX($N$8:$Y$49,$AB30,COLUMNS($M$8:W30)),"") ->  | AO30: =IFERROR(INDEX($N$8:$Y$49,$AB30,COLUMNS($M$8:X30)),"") ->  | AP30: 23 | AR30: =IFERROR(SMALL($AQ$8:$AQ$49,ROWS($AQ$8:AQ30)),"") ->  | AT30: =IFERROR(INDEX($AD$8:$AO$49,$AR30,COLUMNS($M$8:M30)),"") ->  | AU30: =IFERROR(INDEX($AD$8:$AO$49,$AR30,COLUMNS($M$8:N30)),"") ->  | AV30: =IFERROR(INDEX($AD$8:$AO$49,$AR30,COLUMNS($M$8:O30)),"") ->  | AW30: =IFERROR(INDEX($AD$8:$AO$49,$AR30,COLUMNS($M$8:P30)),"") ->  | AX30: =IFERROR(INDEX($AD$8:$AO$49,$AR30,COLUMNS($M$8:Q30)),"") ->  | AY30: =IFERROR(INDEX($AD$8:$AO$49,$AR30,COLUMNS($M$8:R30)),"") ->  | AZ30: =IFERROR(INDEX($AD$8:$AO$49,$AR30,COLUMNS($M$8:S30)),"") ->  | BA30: =IFERROR(INDEX($AD$8:$AO$49,$AR30,COLUMNS($M$8:T30)),"") ->  | BB30: =IFERROR(INDEX($AD$8:$AO$49,$AR30,COLUMNS($M$8:U30)),"") ->  | BC30: =IFERROR(INDEX($AD$8:$AO$49,$AR30,COLUMNS($M$8:V30)),"") ->  | BD30: =IFERROR(INDEX($AD$8:$AO$49,$AR30,COLUMNS($M$8:W30)),"") ->  | BE30: =IFERROR(INDEX($AD$8:$AO$49,$AR30,COLUMNS($M$8:X30)),"") ->  | BF30: 23 | BH30: =IFERROR(SMALL($BG$8:$BG$49,ROWS($BG$8:BG30)),"") ->  | BJ30: =IFERROR(INDEX($AT$8:$BE$46,$BH30,COLUMNS($AT$8:AT30)),"") ->  | BK30: =IFERROR(INDEX($AT$8:$BE$46,$BH30,COLUMNS($AT$8:AU30)),"") ->  | BL30: =IFERROR(INDEX($AT$8:$BE$46,$BH30,COLUMNS($AT$8:AV30)),"") ->  | BM30: =IFERROR(INDEX($AT$8:$BE$46,$BH30,COLUMNS($AT$8:AW30)),"") ->  | BN30: =IFERROR(INDEX($AT$8:$BE$46,$BH30,COLUMNS($AT$8:AX30)),"") ->  | BO30: =IFERROR(INDEX($AT$8:$BE$46,$BH30,COLUMNS($AT$8:AY30)),"") ->  | BP30: =IFERROR(INDEX($AT$8:$BE$46,$BH30,COLUMNS($AT$8:AZ30)),"") ->  | BQ30: =IFERROR(INDEX($AT$8:$BE$46,$BH30,COLUMNS($AT$8:BA30)),"") ->  | BR30: =IFERROR(INDEX($AT$8:$BE$46,$BH30,COLUMNS($AT$8:BB30)),"") ->  | BS30: =IFERROR(INDEX($AT$8:$BE$46,$BH30,COLUMNS($AT$8:BC30)),"") ->  | BT30: =IFERROR(INDEX($AT$8:$BE$46,$BH30,COLUMNS($AT$8:BD30)),"") ->  | BU30: =IFERROR(INDEX($AT$8:$BE$46,$BH30,COLUMNS($AT$8:BE30)),"") ->  | BV30: 23 | BX30: =IFERROR(SMALL($BW$8:$BW$49,ROWS($BW$8:BW30)),"") ->  | BY30: =INDEX(BM30:$BM$49,1,1) ->  | BZ30: =COUNTIF($BM$8:BM30,BY30) -> 21 | CB30: =IFERROR(SMALL($CA$8:$CA$49,ROWS($CA$8:CA30)),"") ->  | CD30: =IFERROR(INDEX($BJ$8:$BU$46,$BX30,COLUMNS($BI$8:BI30)),"") ->  | CE30: =IFERROR(INDEX($BJ$8:$BU$46,$BX30,COLUMNS($BI$8:BJ30)),"") ->  | CF30: =IFERROR(INDEX($BJ$8:$BU$46,$BX30,COLUMNS($BI$8:BK30)),"") ->  | CG30: =IFERROR(INDEX($BJ$8:$BU$46,$BX30,COLUMNS($BI$8:BL30)),"") ->  | CH30: =IFERROR(INDEX($BJ$8:$BU$46,$BX30,COLUMNS($BI$8:BM30)),"") ->  | CI30: =IFERROR(INDEX($BJ$8:$BU$46,$BX30,COLUMNS($BI$8:BN30)),"") ->  | CJ30: =IFERROR(INDEX($BJ$8:$BU$46,$BX30,COLUMNS($BI$8:BO30)),"") ->  | CK30: =IFERROR(INDEX($BJ$8:$BU$46,$BX30,COLUMNS($BI$8:BP30)),"") ->  | CL30: =IFERROR(INDEX($BJ$8:$BU$46,$BX30,COLUMNS($BI$8:BQ30)),"") ->  | CM30: =IFERROR(INDEX($BJ$8:$BU$46,$BX30,COLUMNS($BI$8:BR30)),"") ->  | CN30: =IFERROR(INDEX($BJ$8:$BU$46,$BX30,COLUMNS($BI$8:BS30)),"") ->  | CO30: =IFERROR(INDEX($BJ$8:$BU$46,$BX30,COLUMNS($BI$8:BT30)),"") ->  | CP30: 23 | CR30: =IFERROR(SMALL($CQ$8:$CQ$49,ROWS($CQ$8:CQ30)),"") ->  | CT30: =IFERROR(INDEX($CD$8:$CO$49,$CR30,COLUMNS($CC$8:CC30)),"") ->  | CU30: =IFERROR(INDEX($CD$8:$CO$49,$CR30,COLUMNS($CC$8:CD30)),"") ->  | CV30: =IFERROR(INDEX($CD$8:$CO$49,$CR30,COLUMNS($CC$8:CE30)),"") ->  | CW30: =IFERROR(INDEX($CD$8:$CO$49,$CR30,COLUMNS($CC$8:CF30)),"") ->  | CX30: =IFERROR(INDEX($CD$8:$CO$49,$CR30,COLUMNS($CC$8:CG30)),"") ->  | CY30: =IFERROR(INDEX($CD$8:$CO$49,$CR30,COLUMNS($CC$8:CH30)),"") ->  | CZ30: =IFERROR(INDEX($CD$8:$CO$49,$CR30,COLUMNS($CC$8:CI30)),"") ->  | DA30: =IFERROR(INDEX($CD$8:$CO$49,$CR30,COLUMNS($CC$8:CJ30)),"") ->  | DB30: =IFERROR(INDEX($CD$8:$CO$49,$CR30,COLUMNS($CC$8:CK30)),"") ->  | DC30: =IFERROR(INDEX($CD$8:$CO$49,$CR30,COLUMNS($CC$8:CL30)),"") ->  | DD30: =IFERROR(INDEX($CD$8:$CO$49,$CR30,COLUMNS($CC$8:CM30)),"") ->  | DE30: =IFERROR(INDEX($CD$8:$CO$49,$CR30,COLUMNS($CC$8:CN30)),"") -> 
N31: SFH 4717AS A01 | O31: Max Rated Pulsed operation | P31: 850 | Q31: 25 | R31: =4.2*1250 -> 5250 | S31: 5000 | T31: 3.5 | U31: 0.01 | V31: 0.0001 | W31: 1 | X31: =1+X30 -> 3 | Y31: Automotive | Z31: 24 | AA31: 24 | AB31: =IFERROR(SMALL($AA$8:$AA$49,ROWS($AA$8:AA31)),"") ->  | AD31: =IFERROR(INDEX($N$8:$Y$49,$AB31,COLUMNS($M$8:M31)),"") ->  | AE31: =IFERROR(INDEX($N$8:$Y$49,$AB31,COLUMNS($M$8:N31)),"") ->  | AF31: =IFERROR(INDEX($N$8:$Y$49,$AB31,COLUMNS($M$8:O31)),"") ->  | AG31: =IFERROR(INDEX($N$8:$Y$49,$AB31,COLUMNS($M$8:P31)),"") ->  | AH31: =IFERROR(INDEX($N$8:$Y$49,$AB31,COLUMNS($M$8:Q31)),"") ->  | AI31: =IFERROR(INDEX($N$8:$Y$49,$AB31,COLUMNS($M$8:R31)),"") ->  | AJ31: =IFERROR(INDEX($N$8:$Y$49,$AB31,COLUMNS($M$8:S31)),"") ->  | AK31: =IFERROR(INDEX($N$8:$Y$49,$AB31,COLUMNS($M$8:T31)),"") ->  | AL31: =IFERROR(INDEX($N$8:$Y$49,$AB31,COLUMNS($M$8:U31)),"") ->  | AM31: =IFERROR(INDEX($N$8:$Y$49,$AB31,COLUMNS($M$8:V31)),"") ->  | AN31: =IFERROR(INDEX($N$8:$Y$49,$AB31,COLUMNS($M$8:W31)),"") ->  | AO31: =IFERROR(INDEX($N$8:$Y$49,$AB31,COLUMNS($M$8:X31)),"") ->  | AP31: 24 | AR31: =IFERROR(SMALL($AQ$8:$AQ$49,ROWS($AQ$8:AQ31)),"") ->  | AT31: =IFERROR(INDEX($AD$8:$AO$49,$AR31,COLUMNS($M$8:M31)),"") ->  | AU31: =IFERROR(INDEX($AD$8:$AO$49,$AR31,COLUMNS($M$8:N31)),"") ->  | AV31: =IFERROR(INDEX($AD$8:$AO$49,$AR31,COLUMNS($M$8:O31)),"") ->  | AW31: =IFERROR(INDEX($AD$8:$AO$49,$AR31,COLUMNS($M$8:P31)),"") ->  | AX31: =IFERROR(INDEX($AD$8:$AO$49,$AR31,COLUMNS($M$8:Q31)),"") ->  | AY31: =IFERROR(INDEX($AD$8:$AO$49,$AR31,COLUMNS($M$8:R31)),"") ->  | AZ31: =IFERROR(INDEX($AD$8:$AO$49,$AR31,COLUMNS($M$8:S31)),"") ->  | BA31: =IFERROR(INDEX($AD$8:$AO$49,$AR31,COLUMNS($M$8:T31)),"") ->  | BB31: =IFERROR(INDEX($AD$8:$AO$49,$AR31,COLUMNS($M$8:U31)),"") ->  | BC31: =IFERROR(INDEX($AD$8:$AO$49,$AR31,COLUMNS($M$8:V31)),"") ->  | BD31: =IFERROR(INDEX($AD$8:$AO$49,$AR31,COLUMNS($M$8:W31)),"") ->  | BE31: =IFERROR(INDEX($AD$8:$AO$49,$AR31,COLUMNS($M$8:X31)),"") ->  | BF31: 24 | BH31: =IFERROR(SMALL($BG$8:$BG$49,ROWS($BG$8:BG31)),"") ->  | BJ31: =IFERROR(INDEX($AT$8:$BE$46,$BH31,COLUMNS($AT$8:AT31)),"") ->  | BK31: =IFERROR(INDEX($AT$8:$BE$46,$BH31,COLUMNS($AT$8:AU31)),"") ->  | BL31: =IFERROR(INDEX($AT$8:$BE$46,$BH31,COLUMNS($AT$8:AV31)),"") ->  | BM31: =IFERROR(INDEX($AT$8:$BE$46,$BH31,COLUMNS($AT$8:AW31)),"") ->  | BN31: =IFERROR(INDEX($AT$8:$BE$46,$BH31,COLUMNS($AT$8:AX31)),"") ->  | BO31: =IFERROR(INDEX($AT$8:$BE$46,$BH31,COLUMNS($AT$8:AY31)),"") ->  | BP31: =IFERROR(INDEX($AT$8:$BE$46,$BH31,COLUMNS($AT$8:AZ31)),"") ->  | BQ31: =IFERROR(INDEX($AT$8:$BE$46,$BH31,COLUMNS($AT$8:BA31)),"") ->  | BR31: =IFERROR(INDEX($AT$8:$BE$46,$BH31,COLUMNS($AT$8:BB31)),"") ->  | BS31: =IFERROR(INDEX($AT$8:$BE$46,$BH31,COLUMNS($AT$8:BC31)),"") ->  | BT31: =IFERROR(INDEX($AT$8:$BE$46,$BH31,COLUMNS($AT$8:BD31)),"") ->  | BU31: =IFERROR(INDEX($AT$8:$BE$46,$BH31,COLUMNS($AT$8:BE31)),"") ->  | BV31: 24 | BX31: =IFERROR(SMALL($BW$8:$BW$49,ROWS($BW$8:BW31)),"") ->  | BY31: =INDEX(BM31:$BM$49,1,1) ->  | BZ31: =COUNTIF($BM$8:BM31,BY31) -> 22 | CB31: =IFERROR(SMALL($CA$8:$CA$49,ROWS($CA$8:CA31)),"") ->  | CD31: =IFERROR(INDEX($BJ$8:$BU$46,$BX31,COLUMNS($BI$8:BI31)),"") ->  | CE31: =IFERROR(INDEX($BJ$8:$BU$46,$BX31,COLUMNS($BI$8:BJ31)),"") ->  | CF31: =IFERROR(INDEX($BJ$8:$BU$46,$BX31,COLUMNS($BI$8:BK31)),"") ->  | CG31: =IFERROR(INDEX($BJ$8:$BU$46,$BX31,COLUMNS($BI$8:BL31)),"") ->  | CH31: =IFERROR(INDEX($BJ$8:$BU$46,$BX31,COLUMNS($BI$8:BM31)),"") ->  | CI31: =IFERROR(INDEX($BJ$8:$BU$46,$BX31,COLUMNS($BI$8:BN31)),"") ->  | CJ31: =IFERROR(INDEX($BJ$8:$BU$46,$BX31,COLUMNS($BI$8:BO31)),"") ->  | CK31: =IFERROR(INDEX($BJ$8:$BU$46,$BX31,COLUMNS($BI$8:BP31)),"") ->  | CL31: =IFERROR(INDEX($BJ$8:$BU$46,$BX31,COLUMNS($BI$8:BQ31)),"") ->  | CM31: =IFERROR(INDEX($BJ$8:$BU$46,$BX31,COLUMNS($BI$8:BR31)),"") ->  | CN31: =IFERROR(INDEX($BJ$8:$BU$46,$BX31,COLUMNS($BI$8:BS31)),"") ->  | CO31: =IFERROR(INDEX($BJ$8:$BU$46,$BX31,COLUMNS($BI$8:BT31)),"") ->  | CP31: 24 | CR31: =IFERROR(SMALL($CQ$8:$CQ$49,ROWS($CQ$8:CQ31)),"") ->  | CT31: =IFERROR(INDEX($CD$8:$CO$49,$CR31,COLUMNS($CC$8:CC31)),"") ->  | CU31: =IFERROR(INDEX($CD$8:$CO$49,$CR31,COLUMNS($CC$8:CD31)),"") ->  | CV31: =IFERROR(INDEX($CD$8:$CO$49,$CR31,COLUMNS($CC$8:CE31)),"") ->  | CW31: =IFERROR(INDEX($CD$8:$CO$49,$CR31,COLUMNS($CC$8:CF31)),"") ->  | CX31: =IFERROR(INDEX($CD$8:$CO$49,$CR31,COLUMNS($CC$8:CG31)),"") ->  | CY31: =IFERROR(INDEX($CD$8:$CO$49,$CR31,COLUMNS($CC$8:CH31)),"") ->  | CZ31: =IFERROR(INDEX($CD$8:$CO$49,$CR31,COLUMNS($CC$8:CI31)),"") ->  | DA31: =IFERROR(INDEX($CD$8:$CO$49,$CR31,COLUMNS($CC$8:CJ31)),"") ->  | DB31: =IFERROR(INDEX($CD$8:$CO$49,$CR31,COLUMNS($CC$8:CK31)),"") ->  | DC31: =IFERROR(INDEX($CD$8:$CO$49,$CR31,COLUMNS($CC$8:CL31)),"") ->  | DD31: =IFERROR(INDEX($CD$8:$CO$49,$CR31,COLUMNS($CC$8:CM31)),"") ->  | DE31: =IFERROR(INDEX($CD$8:$CO$49,$CR31,COLUMNS($CC$8:CN31)),"") -> 
D32: t pulse: | E32: =CHOOSE(DD8,V8, V9,V10,V11,V12,V13,V14,V15,V16,V17,V18,V19,V20,V21,V22,V23,V24,V25,V26,V27,V28) -> 1 | F32: second | G32: t pulse: | H32: =CHOOSE(DD8, V29, V30,V31,V32,V33,V34,V35,V36,V37,V38,V39,V40,V41,V42,V43,V44,V45,V46,V47,V48,V49) -> 0.0005 | I32: second | N32: SFH 4713A | O32: Max Rated Pulsed operation | P32: 850 | Q32: 40 | R32: 500 | S32: 1000 | T32: 1.8 | U32: 1 | V32: 1 | W32: 0.75 | X32: =1+X31 -> 4 | Y32: Non Automotive | Z32: 25 | AB32: =IFERROR(SMALL($AA$8:$AA$49,ROWS($AA$8:AA32)),"") ->  | AD32: =IFERROR(INDEX($N$8:$Y$49,$AB32,COLUMNS($M$8:M32)),"") ->  | AE32: =IFERROR(INDEX($N$8:$Y$49,$AB32,COLUMNS($M$8:N32)),"") ->  | AF32: =IFERROR(INDEX($N$8:$Y$49,$AB32,COLUMNS($M$8:O32)),"") ->  | AG32: =IFERROR(INDEX($N$8:$Y$49,$AB32,COLUMNS($M$8:P32)),"") ->  | AH32: =IFERROR(INDEX($N$8:$Y$49,$AB32,COLUMNS($M$8:Q32)),"") ->  | AI32: =IFERROR(INDEX($N$8:$Y$49,$AB32,COLUMNS($M$8:R32)),"") ->  | AJ32: =IFERROR(INDEX($N$8:$Y$49,$AB32,COLUMNS($M$8:S32)),"") ->  | AK32: =IFERROR(INDEX($N$8:$Y$49,$AB32,COLUMNS($M$8:T32)),"") ->  | AL32: =IFERROR(INDEX($N$8:$Y$49,$AB32,COLUMNS($M$8:U32)),"") ->  | AM32: =IFERROR(INDEX($N$8:$Y$49,$AB32,COLUMNS($M$8:V32)),"") ->  | AN32: =IFERROR(INDEX($N$8:$Y$49,$AB32,COLUMNS($M$8:W32)),"") ->  | AO32: =IFERROR(INDEX($N$8:$Y$49,$AB32,COLUMNS($M$8:X32)),"") ->  | AP32: 25 | AR32: =IFERROR(SMALL($AQ$8:$AQ$49,ROWS($AQ$8:AQ32)),"") ->  | AT32: =IFERROR(INDEX($AD$8:$AO$49,$AR32,COLUMNS($M$8:M32)),"") ->  | AU32: =IFERROR(INDEX($AD$8:$AO$49,$AR32,COLUMNS($M$8:N32)),"") ->  | AV32: =IFERROR(INDEX($AD$8:$AO$49,$AR32,COLUMNS($M$8:O32)),"") ->  | AW32: =IFERROR(INDEX($AD$8:$AO$49,$AR32,COLUMNS($M$8:P32)),"") ->  | AX32: =IFERROR(INDEX($AD$8:$AO$49,$AR32,COLUMNS($M$8:Q32)),"") ->  | AY32: =IFERROR(INDEX($AD$8:$AO$49,$AR32,COLUMNS($M$8:R32)),"") ->  | AZ32: =IFERROR(INDEX($AD$8:$AO$49,$AR32,COLUMNS($M$8:S32)),"") ->  | BA32: =IFERROR(INDEX($AD$8:$AO$49,$AR32,COLUMNS($M$8:T32)),"") ->  | BB32: =IFERROR(INDEX($AD$8:$AO$49,$AR32,COLUMNS($M$8:U32)),"") ->  | BC32: =IFERROR(INDEX($AD$8:$AO$49,$AR32,COLUMNS($M$8:V32)),"") ->  | BD32: =IFERROR(INDEX($AD$8:$AO$49,$AR32,COLUMNS($M$8:W32)),"") ->  | BE32: =IFERROR(INDEX($AD$8:$AO$49,$AR32,COLUMNS($M$8:X32)),"") ->  | BF32: 25 | BH32: =IFERROR(SMALL($BG$8:$BG$49,ROWS($BG$8:BG32)),"") ->  | BJ32: =IFERROR(INDEX($AT$8:$BE$46,$BH32,COLUMNS($AT$8:AT32)),"") ->  | BK32: =IFERROR(INDEX($AT$8:$BE$46,$BH32,COLUMNS($AT$8:AU32)),"") ->  | BL32: =IFERROR(INDEX($AT$8:$BE$46,$BH32,COLUMNS($AT$8:AV32)),"") ->  | BM32: =IFERROR(INDEX($AT$8:$BE$46,$BH32,COLUMNS($AT$8:AW32)),"") ->  | BN32: =IFERROR(INDEX($AT$8:$BE$46,$BH32,COLUMNS($AT$8:AX32)),"") ->  | BO32: =IFERROR(INDEX($AT$8:$BE$46,$BH32,COLUMNS($AT$8:AY32)),"") ->  | BP32: =IFERROR(INDEX($AT$8:$BE$46,$BH32,COLUMNS($AT$8:AZ32)),"") ->  | BQ32: =IFERROR(INDEX($AT$8:$BE$46,$BH32,COLUMNS($AT$8:BA32)),"") ->  | BR32: =IFERROR(INDEX($AT$8:$BE$46,$BH32,COLUMNS($AT$8:BB32)),"") ->  | BS32: =IFERROR(INDEX($AT$8:$BE$46,$BH32,COLUMNS($AT$8:BC32)),"") ->  | BT32: =IFERROR(INDEX($AT$8:$BE$46,$BH32,COLUMNS($AT$8:BD32)),"") ->  | BU32: =IFERROR(INDEX($AT$8:$BE$46,$BH32,COLUMNS($AT$8:BE32)),"") ->  | BV32: 25 | BX32: =IFERROR(SMALL($BW$8:$BW$49,ROWS($BW$8:BW32)),"") ->  | BY32: =INDEX(BM32:$BM$49,1,1) ->  | BZ32: =COUNTIF($BM$8:BM32,BY32) -> 23 | CB32: =IFERROR(SMALL($CA$8:$CA$49,ROWS($CA$8:CA32)),"") ->  | CD32: =IFERROR(INDEX($BJ$8:$BU$46,$BX32,COLUMNS($BI$8:BI32)),"") ->  | CE32: =IFERROR(INDEX($BJ$8:$BU$46,$BX32,COLUMNS($BI$8:BJ32)),"") ->  | CF32: =IFERROR(INDEX($BJ$8:$BU$46,$BX32,COLUMNS($BI$8:BK32)),"") ->  | CG32: =IFERROR(INDEX($BJ$8:$BU$46,$BX32,COLUMNS($BI$8:BL32)),"") ->  | CH32: =IFERROR(INDEX($BJ$8:$BU$46,$BX32,COLUMNS($BI$8:BM32)),"") ->  | CI32: =IFERROR(INDEX($BJ$8:$BU$46,$BX32,COLUMNS($BI$8:BN32)),"") ->  | CJ32: =IFERROR(INDEX($BJ$8:$BU$46,$BX32,COLUMNS($BI$8:BO32)),"") ->  | CK32: =IFERROR(INDEX($BJ$8:$BU$46,$BX32,COLUMNS($BI$8:BP32)),"") ->  | CL32: =IFERROR(INDEX($BJ$8:$BU$46,$BX32,COLUMNS($BI$8:BQ32)),"") ->  | CM32: =IFERROR(INDEX($BJ$8:$BU$46,$BX32,COLUMNS($BI$8:BR32)),"") ->  | CN32: =IFERROR(INDEX($BJ$8:$BU$46,$BX32,COLUMNS($BI$8:BS32)),"") ->  | CO32: =IFERROR(INDEX($BJ$8:$BU$46,$BX32,COLUMNS($BI$8:BT32)),"") ->  | CP32: 25 | CR32: =IFERROR(SMALL($CQ$8:$CQ$49,ROWS($CQ$8:CQ32)),"") ->  | CT32: =IFERROR(INDEX($CD$8:$CO$49,$CR32,COLUMNS($CC$8:CC32)),"") ->  | CU32: =IFERROR(INDEX($CD$8:$CO$49,$CR32,COLUMNS($CC$8:CD32)),"") ->  | CV32: =IFERROR(INDEX($CD$8:$CO$49,$CR32,COLUMNS($CC$8:CE32)),"") ->  | CW32: =IFERROR(INDEX($CD$8:$CO$49,$CR32,COLUMNS($CC$8:CF32)),"") ->  | CX32: =IFERROR(INDEX($CD$8:$CO$49,$CR32,COLUMNS($CC$8:CG32)),"") ->  | CY32: =IFERROR(INDEX($CD$8:$CO$49,$CR32,COLUMNS($CC$8:CH32)),"") ->  | CZ32: =IFERROR(INDEX($CD$8:$CO$49,$CR32,COLUMNS($CC$8:CI32)),"") ->  | DA32: =IFERROR(INDEX($CD$8:$CO$49,$CR32,COLUMNS($CC$8:CJ32)),"") ->  | DB32: =IFERROR(INDEX($CD$8:$CO$49,$CR32,COLUMNS($CC$8:CK32)),"") ->  | DC32: =IFERROR(INDEX($CD$8:$CO$49,$CR32,COLUMNS($CC$8:CL32)),"") ->  | DD32: =IFERROR(INDEX($CD$8:$CO$49,$CR32,COLUMNS($CC$8:CM32)),"") ->  | DE32: =IFERROR(INDEX($CD$8:$CO$49,$CR32,COLUMNS($CC$8:CN32)),"") -> 
N33: SFH 4715AS A01 | O33: Max Rated Pulsed operation | P33: 850 | Q33: 40 | R33: =4.2*800 -> 3360 | S33: 5000 | T33: 3.5 | U33: 0.01 | V33: 0.0001 | W33: 1 | X33: 5 | Y33: Automotive | Z33: 26 | AA33: 26 | AB33: =IFERROR(SMALL($AA$8:$AA$49,ROWS($AA$8:AA33)),"") ->  | AD33: =IFERROR(INDEX($N$8:$Y$49,$AB33,COLUMNS($M$8:M33)),"") ->  | AE33: =IFERROR(INDEX($N$8:$Y$49,$AB33,COLUMNS($M$8:N33)),"") ->  | AF33: =IFERROR(INDEX($N$8:$Y$49,$AB33,COLUMNS($M$8:O33)),"") ->  | AG33: =IFERROR(INDEX($N$8:$Y$49,$AB33,COLUMNS($M$8:P33)),"") ->  | AH33: =IFERROR(INDEX($N$8:$Y$49,$AB33,COLUMNS($M$8:Q33)),"") ->  | AI33: =IFERROR(INDEX($N$8:$Y$49,$AB33,COLUMNS($M$8:R33)),"") ->  | AJ33: =IFERROR(INDEX($N$8:$Y$49,$AB33,COLUMNS($M$8:S33)),"") ->  | AK33: =IFERROR(INDEX($N$8:$Y$49,$AB33,COLUMNS($M$8:T33)),"") ->  | AL33: =IFERROR(INDEX($N$8:$Y$49,$AB33,COLUMNS($M$8:U33)),"") ->  | AM33: =IFERROR(INDEX($N$8:$Y$49,$AB33,COLUMNS($M$8:V33)),"") ->  | AN33: =IFERROR(INDEX($N$8:$Y$49,$AB33,COLUMNS($M$8:W33)),"") ->  | AO33: =IFERROR(INDEX($N$8:$Y$49,$AB33,COLUMNS($M$8:X33)),"") ->  | AP33: 26 | AR33: =IFERROR(SMALL($AQ$8:$AQ$49,ROWS($AQ$8:AQ33)),"") ->  | AT33: =IFERROR(INDEX($AD$8:$AO$49,$AR33,COLUMNS($M$8:M33)),"") ->  | AU33: =IFERROR(INDEX($AD$8:$AO$49,$AR33,COLUMNS($M$8:N33)),"") ->  | AV33: =IFERROR(INDEX($AD$8:$AO$49,$AR33,COLUMNS($M$8:O33)),"") ->  | AW33: =IFERROR(INDEX($AD$8:$AO$49,$AR33,COLUMNS($M$8:P33)),"") ->  | AX33: =IFERROR(INDEX($AD$8:$AO$49,$AR33,COLUMNS($M$8:Q33)),"") ->  | AY33: =IFERROR(INDEX($AD$8:$AO$49,$AR33,COLUMNS($M$8:R33)),"") ->  | AZ33: =IFERROR(INDEX($AD$8:$AO$49,$AR33,COLUMNS($M$8:S33)),"") ->  | BA33: =IFERROR(INDEX($AD$8:$AO$49,$AR33,COLUMNS($M$8:T33)),"") ->  | BB33: =IFERROR(INDEX($AD$8:$AO$49,$AR33,COLUMNS($M$8:U33)),"") ->  | BC33: =IFERROR(INDEX($AD$8:$AO$49,$AR33,COLUMNS($M$8:V33)),"") ->  | BD33: =IFERROR(INDEX($AD$8:$AO$49,$AR33,COLUMNS($M$8:W33)),"") ->  | BE33: =IFERROR(INDEX($AD$8:$AO$49,$AR33,COLUMNS($M$8:X33)),"") ->  | BF33: 26 | BH33: =IFERROR(SMALL($BG$8:$BG$49,ROWS($BG$8:BG33)),"") ->  | BJ33: =IFERROR(INDEX($AT$8:$BE$46,$BH33,COLUMNS($AT$8:AT33)),"") ->  | BK33: =IFERROR(INDEX($AT$8:$BE$46,$BH33,COLUMNS($AT$8:AU33)),"") ->  | BL33: =IFERROR(INDEX($AT$8:$BE$46,$BH33,COLUMNS($AT$8:AV33)),"") ->  | BM33: =IFERROR(INDEX($AT$8:$BE$46,$BH33,COLUMNS($AT$8:AW33)),"") ->  | BN33: =IFERROR(INDEX($AT$8:$BE$46,$BH33,COLUMNS($AT$8:AX33)),"") ->  | BO33: =IFERROR(INDEX($AT$8:$BE$46,$BH33,COLUMNS($AT$8:AY33)),"") ->  | BP33: =IFERROR(INDEX($AT$8:$BE$46,$BH33,COLUMNS($AT$8:AZ33)),"") ->  | BQ33: =IFERROR(INDEX($AT$8:$BE$46,$BH33,COLUMNS($AT$8:BA33)),"") ->  | BR33: =IFERROR(INDEX($AT$8:$BE$46,$BH33,COLUMNS($AT$8:BB33)),"") ->  | BS33: =IFERROR(INDEX($AT$8:$BE$46,$BH33,COLUMNS($AT$8:BC33)),"") ->  | BT33: =IFERROR(INDEX($AT$8:$BE$46,$BH33,COLUMNS($AT$8:BD33)),"") ->  | BU33: =IFERROR(INDEX($AT$8:$BE$46,$BH33,COLUMNS($AT$8:BE33)),"") ->  | BV33: 26 | BX33: =IFERROR(SMALL($BW$8:$BW$49,ROWS($BW$8:BW33)),"") ->  | BY33: =INDEX(BM33:$BM$49,1,1) ->  | BZ33: =COUNTIF($BM$8:BM33,BY33) -> 24 | CB33: =IFERROR(SMALL($CA$8:$CA$49,ROWS($CA$8:CA33)),"") ->  | CD33: =IFERROR(INDEX($BJ$8:$BU$46,$BX33,COLUMNS($BI$8:BI33)),"") ->  | CE33: =IFERROR(INDEX($BJ$8:$BU$46,$BX33,COLUMNS($BI$8:BJ33)),"") ->  | CF33: =IFERROR(INDEX($BJ$8:$BU$46,$BX33,COLUMNS($BI$8:BK33)),"") ->  | CG33: =IFERROR(INDEX($BJ$8:$BU$46,$BX33,COLUMNS($BI$8:BL33)),"") ->  | CH33: =IFERROR(INDEX($BJ$8:$BU$46,$BX33,COLUMNS($BI$8:BM33)),"") ->  | CI33: =IFERROR(INDEX($BJ$8:$BU$46,$BX33,COLUMNS($BI$8:BN33)),"") ->  | CJ33: =IFERROR(INDEX($BJ$8:$BU$46,$BX33,COLUMNS($BI$8:BO33)),"") ->  | CK33: =IFERROR(INDEX($BJ$8:$BU$46,$BX33,COLUMNS($BI$8:BP33)),"") ->  | CL33: =IFERROR(INDEX($BJ$8:$BU$46,$BX33,COLUMNS($BI$8:BQ33)),"") ->  | CM33: =IFERROR(INDEX($BJ$8:$BU$46,$BX33,COLUMNS($BI$8:BR33)),"") ->  | CN33: =IFERROR(INDEX($BJ$8:$BU$46,$BX33,COLUMNS($BI$8:BS33)),"") ->  | CO33: =IFERROR(INDEX($BJ$8:$BU$46,$BX33,COLUMNS($BI$8:BT33)),"") ->  | CP33: 26 | CR33: =IFERROR(SMALL($CQ$8:$CQ$49,ROWS($CQ$8:CQ33)),"") ->  | CT33: =IFERROR(INDEX($CD$8:$CO$49,$CR33,COLUMNS($CC$8:CC33)),"") ->  | CU33: =IFERROR(INDEX($CD$8:$CO$49,$CR33,COLUMNS($CC$8:CD33)),"") ->  | CV33: =IFERROR(INDEX($CD$8:$CO$49,$CR33,COLUMNS($CC$8:CE33)),"") ->  | CW33: =IFERROR(INDEX($CD$8:$CO$49,$CR33,COLUMNS($CC$8:CF33)),"") ->  | CX33: =IFERROR(INDEX($CD$8:$CO$49,$CR33,COLUMNS($CC$8:CG33)),"") ->  | CY33: =IFERROR(INDEX($CD$8:$CO$49,$CR33,COLUMNS($CC$8:CH33)),"") ->  | CZ33: =IFERROR(INDEX($CD$8:$CO$49,$CR33,COLUMNS($CC$8:CI33)),"") ->  | DA33: =IFERROR(INDEX($CD$8:$CO$49,$CR33,COLUMNS($CC$8:CJ33)),"") ->  | DB33: =IFERROR(INDEX($CD$8:$CO$49,$CR33,COLUMNS($CC$8:CK33)),"") ->  | DC33: =IFERROR(INDEX($CD$8:$CO$49,$CR33,COLUMNS($CC$8:CL33)),"") ->  | DD33: =IFERROR(INDEX($CD$8:$CO$49,$CR33,COLUMNS($CC$8:CM33)),"") ->  | DE33: =IFERROR(INDEX($CD$8:$CO$49,$CR33,COLUMNS($CC$8:CN33)),"") -> 
D34: AVERAGE IRI: | E34: =(E28*E30)/100 -> 492 | F34: mW/Sr/s | G34: AVERAGE IRI: | H34: =(H28*H30)/100 -> 0.21525 | I34: mW/Sr/s | N34: SFH 4711A | O34: Max Rated Pulsed operation | P34: 850 | Q34: 45 | R34: =200*1.8 -> 360 | S34: 1000 | T34: 2.1 | U34: 0.01 | V34: 0.0001 | W34: 0.5 | X34: 6 | Y34: Non Automotive | Z34: 27 | AB34: =IFERROR(SMALL($AA$8:$AA$49,ROWS($AA$8:AA34)),"") ->  | AD34: =IFERROR(INDEX($N$8:$Y$49,$AB34,COLUMNS($M$8:M34)),"") ->  | AE34: =IFERROR(INDEX($N$8:$Y$49,$AB34,COLUMNS($M$8:N34)),"") ->  | AF34: =IFERROR(INDEX($N$8:$Y$49,$AB34,COLUMNS($M$8:O34)),"") ->  | AG34: =IFERROR(INDEX($N$8:$Y$49,$AB34,COLUMNS($M$8:P34)),"") ->  | AH34: =IFERROR(INDEX($N$8:$Y$49,$AB34,COLUMNS($M$8:Q34)),"") ->  | AI34: =IFERROR(INDEX($N$8:$Y$49,$AB34,COLUMNS($M$8:R34)),"") ->  | AJ34: =IFERROR(INDEX($N$8:$Y$49,$AB34,COLUMNS($M$8:S34)),"") ->  | AK34: =IFERROR(INDEX($N$8:$Y$49,$AB34,COLUMNS($M$8:T34)),"") ->  | AL34: =IFERROR(INDEX($N$8:$Y$49,$AB34,COLUMNS($M$8:U34)),"") ->  | AM34: =IFERROR(INDEX($N$8:$Y$49,$AB34,COLUMNS($M$8:V34)),"") ->  | AN34: =IFERROR(INDEX($N$8:$Y$49,$AB34,COLUMNS($M$8:W34)),"") ->  | AO34: =IFERROR(INDEX($N$8:$Y$49,$AB34,COLUMNS($M$8:X34)),"") ->  | AP34: 27 | AR34: =IFERROR(SMALL($AQ$8:$AQ$49,ROWS($AQ$8:AQ34)),"") ->  | AT34: =IFERROR(INDEX($AD$8:$AO$49,$AR34,COLUMNS($M$8:M34)),"") ->  | AU34: =IFERROR(INDEX($AD$8:$AO$49,$AR34,COLUMNS($M$8:N34)),"") ->  | AV34: =IFERROR(INDEX($AD$8:$AO$49,$AR34,COLUMNS($M$8:O34)),"") ->  | AW34: =IFERROR(INDEX($AD$8:$AO$49,$AR34,COLUMNS($M$8:P34)),"") ->  | AX34: =IFERROR(INDEX($AD$8:$AO$49,$AR34,COLUMNS($M$8:Q34)),"") ->  | AY34: =IFERROR(INDEX($AD$8:$AO$49,$AR34,COLUMNS($M$8:R34)),"") ->  | AZ34: =IFERROR(INDEX($AD$8:$AO$49,$AR34,COLUMNS($M$8:S34)),"") ->  | BA34: =IFERROR(INDEX($AD$8:$AO$49,$AR34,COLUMNS($M$8:T34)),"") ->  | BB34: =IFERROR(INDEX($AD$8:$AO$49,$AR34,COLUMNS($M$8:U34)),"") ->  | BC34: =IFERROR(INDEX($AD$8:$AO$49,$AR34,COLUMNS($M$8:V34)),"") ->  | BD34: =IFERROR(INDEX($AD$8:$AO$49,$AR34,COLUMNS($M$8:W34)),"") ->  | BE34: =IFERROR(INDEX($AD$8:$AO$49,$AR34,COLUMNS($M$8:X34)),"") ->  | BF34: 27 | BH34: =IFERROR(SMALL($BG$8:$BG$49,ROWS($BG$8:BG34)),"") ->  | BJ34: =IFERROR(INDEX($AT$8:$BE$46,$BH34,COLUMNS($AT$8:AT34)),"") ->  | BK34: =IFERROR(INDEX($AT$8:$BE$46,$BH34,COLUMNS($AT$8:AU34)),"") ->  | BL34: =IFERROR(INDEX($AT$8:$BE$46,$BH34,COLUMNS($AT$8:AV34)),"") ->  | BM34: =IFERROR(INDEX($AT$8:$BE$46,$BH34,COLUMNS($AT$8:AW34)),"") ->  | BN34: =IFERROR(INDEX($AT$8:$BE$46,$BH34,COLUMNS($AT$8:AX34)),"") ->  | BO34: =IFERROR(INDEX($AT$8:$BE$46,$BH34,COLUMNS($AT$8:AY34)),"") ->  | BP34: =IFERROR(INDEX($AT$8:$BE$46,$BH34,COLUMNS($AT$8:AZ34)),"") ->  | BQ34: =IFERROR(INDEX($AT$8:$BE$46,$BH34,COLUMNS($AT$8:BA34)),"") ->  | BR34: =IFERROR(INDEX($AT$8:$BE$46,$BH34,COLUMNS($AT$8:BB34)),"") ->  | BS34: =IFERROR(INDEX($AT$8:$BE$46,$BH34,COLUMNS($AT$8:BC34)),"") ->  | BT34: =IFERROR(INDEX($AT$8:$BE$46,$BH34,COLUMNS($AT$8:BD34)),"") ->  | BU34: =IFERROR(INDEX($AT$8:$BE$46,$BH34,COLUMNS($AT$8:BE34)),"") ->  | BV34: 27 | BX34: =IFERROR(SMALL($BW$8:$BW$49,ROWS($BW$8:BW34)),"") ->  | BY34: =INDEX(BM34:$BM$49,1,1) ->  | BZ34: =COUNTIF($BM$8:BM34,BY34) -> 25 | CB34: =IFERROR(SMALL($CA$8:$CA$49,ROWS($CA$8:CA34)),"") ->  | CD34: =IFERROR(INDEX($BJ$8:$BU$46,$BX34,COLUMNS($BI$8:BI34)),"") ->  | CE34: =IFERROR(INDEX($BJ$8:$BU$46,$BX34,COLUMNS($BI$8:BJ34)),"") ->  | CF34: =IFERROR(INDEX($BJ$8:$BU$46,$BX34,COLUMNS($BI$8:BK34)),"") ->  | CG34: =IFERROR(INDEX($BJ$8:$BU$46,$BX34,COLUMNS($BI$8:BL34)),"") ->  | CH34: =IFERROR(INDEX($BJ$8:$BU$46,$BX34,COLUMNS($BI$8:BM34)),"") ->  | CI34: =IFERROR(INDEX($BJ$8:$BU$46,$BX34,COLUMNS($BI$8:BN34)),"") ->  | CJ34: =IFERROR(INDEX($BJ$8:$BU$46,$BX34,COLUMNS($BI$8:BO34)),"") ->  | CK34: =IFERROR(INDEX($BJ$8:$BU$46,$BX34,COLUMNS($BI$8:BP34)),"") ->  | CL34: =IFERROR(INDEX($BJ$8:$BU$46,$BX34,COLUMNS($BI$8:BQ34)),"") ->  | CM34: =IFERROR(INDEX($BJ$8:$BU$46,$BX34,COLUMNS($BI$8:BR34)),"") ->  | CN34: =IFERROR(INDEX($BJ$8:$BU$46,$BX34,COLUMNS($BI$8:BS34)),"") ->  | CO34: =IFERROR(INDEX($BJ$8:$BU$46,$BX34,COLUMNS($BI$8:BT34)),"") ->  | CP34: 27 | CR34: =IFERROR(SMALL($CQ$8:$CQ$49,ROWS($CQ$8:CQ34)),"") ->  | CT34: =IFERROR(INDEX($CD$8:$CO$49,$CR34,COLUMNS($CC$8:CC34)),"") ->  | CU34: =IFERROR(INDEX($CD$8:$CO$49,$CR34,COLUMNS($CC$8:CD34)),"") ->  | CV34: =IFERROR(INDEX($CD$8:$CO$49,$CR34,COLUMNS($CC$8:CE34)),"") ->  | CW34: =IFERROR(INDEX($CD$8:$CO$49,$CR34,COLUMNS($CC$8:CF34)),"") ->  | CX34: =IFERROR(INDEX($CD$8:$CO$49,$CR34,COLUMNS($CC$8:CG34)),"") ->  | CY34: =IFERROR(INDEX($CD$8:$CO$49,$CR34,COLUMNS($CC$8:CH34)),"") ->  | CZ34: =IFERROR(INDEX($CD$8:$CO$49,$CR34,COLUMNS($CC$8:CI34)),"") ->  | DA34: =IFERROR(INDEX($CD$8:$CO$49,$CR34,COLUMNS($CC$8:CJ34)),"") ->  | DB34: =IFERROR(INDEX($CD$8:$CO$49,$CR34,COLUMNS($CC$8:CK34)),"") ->  | DC34: =IFERROR(INDEX($CD$8:$CO$49,$CR34,COLUMNS($CC$8:CL34)),"") ->  | DD34: =IFERROR(INDEX($CD$8:$CO$49,$CR34,COLUMNS($CC$8:CM34)),"") ->  | DE34: =IFERROR(INDEX($CD$8:$CO$49,$CR34,COLUMNS($CC$8:CN34)),"") -> 
N35: SFH 4715S | O35: Max Rated Pulsed operation | P35: 850 | Q35: 45 | R35: =4.1*630 -> 2583 | S35: 5000 | T35: 3.5 | U35: 0.01 | V35: 0.0001 | W35: 1 | X35: 7 | Y35: Non Automotive | Z35: 28 | AB35: =IFERROR(SMALL($AA$8:$AA$49,ROWS($AA$8:AA35)),"") ->  | AD35: =IFERROR(INDEX($N$8:$Y$49,$AB35,COLUMNS($M$8:M35)),"") ->  | AE35: =IFERROR(INDEX($N$8:$Y$49,$AB35,COLUMNS($M$8:N35)),"") ->  | AF35: =IFERROR(INDEX($N$8:$Y$49,$AB35,COLUMNS($M$8:O35)),"") ->  | AG35: =IFERROR(INDEX($N$8:$Y$49,$AB35,COLUMNS($M$8:P35)),"") ->  | AH35: =IFERROR(INDEX($N$8:$Y$49,$AB35,COLUMNS($M$8:Q35)),"") ->  | AI35: =IFERROR(INDEX($N$8:$Y$49,$AB35,COLUMNS($M$8:R35)),"") ->  | AJ35: =IFERROR(INDEX($N$8:$Y$49,$AB35,COLUMNS($M$8:S35)),"") ->  | AK35: =IFERROR(INDEX($N$8:$Y$49,$AB35,COLUMNS($M$8:T35)),"") ->  | AL35: =IFERROR(INDEX($N$8:$Y$49,$AB35,COLUMNS($M$8:U35)),"") ->  | AM35: =IFERROR(INDEX($N$8:$Y$49,$AB35,COLUMNS($M$8:V35)),"") ->  | AN35: =IFERROR(INDEX($N$8:$Y$49,$AB35,COLUMNS($M$8:W35)),"") ->  | AO35: =IFERROR(INDEX($N$8:$Y$49,$AB35,COLUMNS($M$8:X35)),"") ->  | AP35: 28 | AR35: =IFERROR(SMALL($AQ$8:$AQ$49,ROWS($AQ$8:AQ35)),"") ->  | AT35: =IFERROR(INDEX($AD$8:$AO$49,$AR35,COLUMNS($M$8:M35)),"") ->  | AU35: =IFERROR(INDEX($AD$8:$AO$49,$AR35,COLUMNS($M$8:N35)),"") ->  | AV35: =IFERROR(INDEX($AD$8:$AO$49,$AR35,COLUMNS($M$8:O35)),"") ->  | AW35: =IFERROR(INDEX($AD$8:$AO$49,$AR35,COLUMNS($M$8:P35)),"") ->  | AX35: =IFERROR(INDEX($AD$8:$AO$49,$AR35,COLUMNS($M$8:Q35)),"") ->  | AY35: =IFERROR(INDEX($AD$8:$AO$49,$AR35,COLUMNS($M$8:R35)),"") ->  | AZ35: =IFERROR(INDEX($AD$8:$AO$49,$AR35,COLUMNS($M$8:S35)),"") ->  | BA35: =IFERROR(INDEX($AD$8:$AO$49,$AR35,COLUMNS($M$8:T35)),"") ->  | BB35: =IFERROR(INDEX($AD$8:$AO$49,$AR35,COLUMNS($M$8:U35)),"") ->  | BC35: =IFERROR(INDEX($AD$8:$AO$49,$AR35,COLUMNS($M$8:V35)),"") ->  | BD35: =IFERROR(INDEX($AD$8:$AO$49,$AR35,COLUMNS($M$8:W35)),"") ->  | BE35: =IFERROR(INDEX($AD$8:$AO$49,$AR35,COLUMNS($M$8:X35)),"") ->  | BF35: 28 | BH35: =IFERROR(SMALL($BG$8:$BG$49,ROWS($BG$8:BG35)),"") ->  | BJ35: =IFERROR(INDEX($AT$8:$BE$46,$BH35,COLUMNS($AT$8:AT35)),"") ->  | BK35: =IFERROR(INDEX($AT$8:$BE$46,$BH35,COLUMNS($AT$8:AU35)),"") ->  | BL35: =IFERROR(INDEX($AT$8:$BE$46,$BH35,COLUMNS($AT$8:AV35)),"") ->  | BM35: =IFERROR(INDEX($AT$8:$BE$46,$BH35,COLUMNS($AT$8:AW35)),"") ->  | BN35: =IFERROR(INDEX($AT$8:$BE$46,$BH35,COLUMNS($AT$8:AX35)),"") ->  | BO35: =IFERROR(INDEX($AT$8:$BE$46,$BH35,COLUMNS($AT$8:AY35)),"") ->  | BP35: =IFERROR(INDEX($AT$8:$BE$46,$BH35,COLUMNS($AT$8:AZ35)),"") ->  | BQ35: =IFERROR(INDEX($AT$8:$BE$46,$BH35,COLUMNS($AT$8:BA35)),"") ->  | BR35: =IFERROR(INDEX($AT$8:$BE$46,$BH35,COLUMNS($AT$8:BB35)),"") ->  | BS35: =IFERROR(INDEX($AT$8:$BE$46,$BH35,COLUMNS($AT$8:BC35)),"") ->  | BT35: =IFERROR(INDEX($AT$8:$BE$46,$BH35,COLUMNS($AT$8:BD35)),"") ->  | BU35: =IFERROR(INDEX($AT$8:$BE$46,$BH35,COLUMNS($AT$8:BE35)),"") ->  | BV35: 28 | BX35: =IFERROR(SMALL($BW$8:$BW$49,ROWS($BW$8:BW35)),"") ->  | BY35: =INDEX(BM35:$BM$49,1,1) ->  | BZ35: =COUNTIF($BM$8:BM35,BY35) -> 26 | CB35: =IFERROR(SMALL($CA$8:$CA$49,ROWS($CA$8:CA35)),"") ->  | CD35: =IFERROR(INDEX($BJ$8:$BU$46,$BX35,COLUMNS($BI$8:BI35)),"") ->  | CE35: =IFERROR(INDEX($BJ$8:$BU$46,$BX35,COLUMNS($BI$8:BJ35)),"") ->  | CF35: =IFERROR(INDEX($BJ$8:$BU$46,$BX35,COLUMNS($BI$8:BK35)),"") ->  | CG35: =IFERROR(INDEX($BJ$8:$BU$46,$BX35,COLUMNS($BI$8:BL35)),"") ->  | CH35: =IFERROR(INDEX($BJ$8:$BU$46,$BX35,COLUMNS($BI$8:BM35)),"") ->  | CI35: =IFERROR(INDEX($BJ$8:$BU$46,$BX35,COLUMNS($BI$8:BN35)),"") ->  | CJ35: =IFERROR(INDEX($BJ$8:$BU$46,$BX35,COLUMNS($BI$8:BO35)),"") ->  | CK35: =IFERROR(INDEX($BJ$8:$BU$46,$BX35,COLUMNS($BI$8:BP35)),"") ->  | CL35: =IFERROR(INDEX($BJ$8:$BU$46,$BX35,COLUMNS($BI$8:BQ35)),"") ->  | CM35: =IFERROR(INDEX($BJ$8:$BU$46,$BX35,COLUMNS($BI$8:BR35)),"") ->  | CN35: =IFERROR(INDEX($BJ$8:$BU$46,$BX35,COLUMNS($BI$8:BS35)),"") ->  | CO35: =IFERROR(INDEX($BJ$8:$BU$46,$BX35,COLUMNS($BI$8:BT35)),"") ->  | CP35: 28 | CR35: =IFERROR(SMALL($CQ$8:$CQ$49,ROWS($CQ$8:CQ35)),"") ->  | CT35: =IFERROR(INDEX($CD$8:$CO$49,$CR35,COLUMNS($CC$8:CC35)),"") ->  | CU35: =IFERROR(INDEX($CD$8:$CO$49,$CR35,COLUMNS($CC$8:CD35)),"") ->  | CV35: =IFERROR(INDEX($CD$8:$CO$49,$CR35,COLUMNS($CC$8:CE35)),"") ->  | CW35: =IFERROR(INDEX($CD$8:$CO$49,$CR35,COLUMNS($CC$8:CF35)),"") ->  | CX35: =IFERROR(INDEX($CD$8:$CO$49,$CR35,COLUMNS($CC$8:CG35)),"") ->  | CY35: =IFERROR(INDEX($CD$8:$CO$49,$CR35,COLUMNS($CC$8:CH35)),"") ->  | CZ35: =IFERROR(INDEX($CD$8:$CO$49,$CR35,COLUMNS($CC$8:CI35)),"") ->  | DA35: =IFERROR(INDEX($CD$8:$CO$49,$CR35,COLUMNS($CC$8:CJ35)),"") ->  | DB35: =IFERROR(INDEX($CD$8:$CO$49,$CR35,COLUMNS($CC$8:CK35)),"") ->  | DC35: =IFERROR(INDEX($CD$8:$CO$49,$CR35,COLUMNS($CC$8:CL35)),"") ->  | DD35: =IFERROR(INDEX($CD$8:$CO$49,$CR35,COLUMNS($CC$8:CM35)),"") ->  | DE35: =IFERROR(INDEX($CD$8:$CO$49,$CR35,COLUMNS($CC$8:CN35)),"") -> 
D36: Irradiance at target: | E36: =E28/(I11)^2 -> 0.0492 | F36: mW/cm2 | G36: Irradiance at target: | H36: =H28/(I11)^2 -> 0.21525 | I36: mW/cm2 | N36: SFH 4715A | O36: Max Rated Pulsed operation | P36: 850 | Q36: 45 | R36: =2.8*500 -> 1400 | S36: 3000 | T36: 2.2 | U36: 0.01 | V36: 0.002 | W36: 1 | X36: 8 | Y36: Non Automotive | Z36: 29 | AB36: =IFERROR(SMALL($AA$8:$AA$49,ROWS($AA$8:AA36)),"") ->  | AD36: =IFERROR(INDEX($N$8:$Y$49,$AB36,COLUMNS($M$8:M36)),"") ->  | AE36: =IFERROR(INDEX($N$8:$Y$49,$AB36,COLUMNS($M$8:N36)),"") ->  | AF36: =IFERROR(INDEX($N$8:$Y$49,$AB36,COLUMNS($M$8:O36)),"") ->  | AG36: =IFERROR(INDEX($N$8:$Y$49,$AB36,COLUMNS($M$8:P36)),"") ->  | AH36: =IFERROR(INDEX($N$8:$Y$49,$AB36,COLUMNS($M$8:Q36)),"") ->  | AI36: =IFERROR(INDEX($N$8:$Y$49,$AB36,COLUMNS($M$8:R36)),"") ->  | AJ36: =IFERROR(INDEX($N$8:$Y$49,$AB36,COLUMNS($M$8:S36)),"") ->  | AK36: =IFERROR(INDEX($N$8:$Y$49,$AB36,COLUMNS($M$8:T36)),"") ->  | AL36: =IFERROR(INDEX($N$8:$Y$49,$AB36,COLUMNS($M$8:U36)),"") ->  | AM36: =IFERROR(INDEX($N$8:$Y$49,$AB36,COLUMNS($M$8:V36)),"") ->  | AN36: =IFERROR(INDEX($N$8:$Y$49,$AB36,COLUMNS($M$8:W36)),"") ->  | AO36: =IFERROR(INDEX($N$8:$Y$49,$AB36,COLUMNS($M$8:X36)),"") ->  | AP36: 29 | AR36: =IFERROR(SMALL($AQ$8:$AQ$49,ROWS($AQ$8:AQ36)),"") ->  | AT36: =IFERROR(INDEX($AD$8:$AO$49,$AR36,COLUMNS($M$8:M36)),"") ->  | AU36: =IFERROR(INDEX($AD$8:$AO$49,$AR36,COLUMNS($M$8:N36)),"") ->  | AV36: =IFERROR(INDEX($AD$8:$AO$49,$AR36,COLUMNS($M$8:O36)),"") ->  | AW36: =IFERROR(INDEX($AD$8:$AO$49,$AR36,COLUMNS($M$8:P36)),"") ->  | AX36: =IFERROR(INDEX($AD$8:$AO$49,$AR36,COLUMNS($M$8:Q36)),"") ->  | AY36: =IFERROR(INDEX($AD$8:$AO$49,$AR36,COLUMNS($M$8:R36)),"") ->  | AZ36: =IFERROR(INDEX($AD$8:$AO$49,$AR36,COLUMNS($M$8:S36)),"") ->  | BA36: =IFERROR(INDEX($AD$8:$AO$49,$AR36,COLUMNS($M$8:T36)),"") ->  | BB36: =IFERROR(INDEX($AD$8:$AO$49,$AR36,COLUMNS($M$8:U36)),"") ->  | BC36: =IFERROR(INDEX($AD$8:$AO$49,$AR36,COLUMNS($M$8:V36)),"") ->  | BD36: =IFERROR(INDEX($AD$8:$AO$49,$AR36,COLUMNS($M$8:W36)),"") ->  | BE36: =IFERROR(INDEX($AD$8:$AO$49,$AR36,COLUMNS($M$8:X36)),"") ->  | BF36: 29 | BH36: =IFERROR(SMALL($BG$8:$BG$49,ROWS($BG$8:BG36)),"") ->  | BJ36: =IFERROR(INDEX($AT$8:$BE$46,$BH36,COLUMNS($AT$8:AT36)),"") ->  | BK36: =IFERROR(INDEX($AT$8:$BE$46,$BH36,COLUMNS($AT$8:AU36)),"") ->  | BL36: =IFERROR(INDEX($AT$8:$BE$46,$BH36,COLUMNS($AT$8:AV36)),"") ->  | BM36: =IFERROR(INDEX($AT$8:$BE$46,$BH36,COLUMNS($AT$8:AW36)),"") ->  | BN36: =IFERROR(INDEX($AT$8:$BE$46,$BH36,COLUMNS($AT$8:AX36)),"") ->  | BO36: =IFERROR(INDEX($AT$8:$BE$46,$BH36,COLUMNS($AT$8:AY36)),"") ->  | BP36: =IFERROR(INDEX($AT$8:$BE$46,$BH36,COLUMNS($AT$8:AZ36)),"") ->  | BQ36: =IFERROR(INDEX($AT$8:$BE$46,$BH36,COLUMNS($AT$8:BA36)),"") ->  | BR36: =IFERROR(INDEX($AT$8:$BE$46,$BH36,COLUMNS($AT$8:BB36)),"") ->  | BS36: =IFERROR(INDEX($AT$8:$BE$46,$BH36,COLUMNS($AT$8:BC36)),"") ->  | BT36: =IFERROR(INDEX($AT$8:$BE$46,$BH36,COLUMNS($AT$8:BD36)),"") ->  | BU36: =IFERROR(INDEX($AT$8:$BE$46,$BH36,COLUMNS($AT$8:BE36)),"") ->  | BV36: 29 | BX36: =IFERROR(SMALL($BW$8:$BW$49,ROWS($BW$8:BW36)),"") ->  | BY36: =INDEX(BM36:$BM$49,1,1) ->  | BZ36: =COUNTIF($BM$8:BM36,BY36) -> 27 | CB36: =IFERROR(SMALL($CA$8:$CA$49,ROWS($CA$8:CA36)),"") ->  | CD36: =IFERROR(INDEX($BJ$8:$BU$46,$BX36,COLUMNS($BI$8:BI36)),"") ->  | CE36: =IFERROR(INDEX($BJ$8:$BU$46,$BX36,COLUMNS($BI$8:BJ36)),"") ->  | CF36: =IFERROR(INDEX($BJ$8:$BU$46,$BX36,COLUMNS($BI$8:BK36)),"") ->  | CG36: =IFERROR(INDEX($BJ$8:$BU$46,$BX36,COLUMNS($BI$8:BL36)),"") ->  | CH36: =IFERROR(INDEX($BJ$8:$BU$46,$BX36,COLUMNS($BI$8:BM36)),"") ->  | CI36: =IFERROR(INDEX($BJ$8:$BU$46,$BX36,COLUMNS($BI$8:BN36)),"") ->  | CJ36: =IFERROR(INDEX($BJ$8:$BU$46,$BX36,COLUMNS($BI$8:BO36)),"") ->  | CK36: =IFERROR(INDEX($BJ$8:$BU$46,$BX36,COLUMNS($BI$8:BP36)),"") ->  | CL36: =IFERROR(INDEX($BJ$8:$BU$46,$BX36,COLUMNS($BI$8:BQ36)),"") ->  | CM36: =IFERROR(INDEX($BJ$8:$BU$46,$BX36,COLUMNS($BI$8:BR36)),"") ->  | CN36: =IFERROR(INDEX($BJ$8:$BU$46,$BX36,COLUMNS($BI$8:BS36)),"") ->  | CO36: =IFERROR(INDEX($BJ$8:$BU$46,$BX36,COLUMNS($BI$8:BT36)),"") ->  | CP36: 29 | CR36: =IFERROR(SMALL($CQ$8:$CQ$49,ROWS($CQ$8:CQ36)),"") ->  | CT36: =IFERROR(INDEX($CD$8:$CO$49,$CR36,COLUMNS($CC$8:CC36)),"") ->  | CU36: =IFERROR(INDEX($CD$8:$CO$49,$CR36,COLUMNS($CC$8:CD36)),"") ->  | CV36: =IFERROR(INDEX($CD$8:$CO$49,$CR36,COLUMNS($CC$8:CE36)),"") ->  | CW36: =IFERROR(INDEX($CD$8:$CO$49,$CR36,COLUMNS($CC$8:CF36)),"") ->  | CX36: =IFERROR(INDEX($CD$8:$CO$49,$CR36,COLUMNS($CC$8:CG36)),"") ->  | CY36: =IFERROR(INDEX($CD$8:$CO$49,$CR36,COLUMNS($CC$8:CH36)),"") ->  | CZ36: =IFERROR(INDEX($CD$8:$CO$49,$CR36,COLUMNS($CC$8:CI36)),"") ->  | DA36: =IFERROR(INDEX($CD$8:$CO$49,$CR36,COLUMNS($CC$8:CJ36)),"") ->  | DB36: =IFERROR(INDEX($CD$8:$CO$49,$CR36,COLUMNS($CC$8:CK36)),"") ->  | DC36: =IFERROR(INDEX($CD$8:$CO$49,$CR36,COLUMNS($CC$8:CL36)),"") ->  | DD36: =IFERROR(INDEX($CD$8:$CO$49,$CR36,COLUMNS($CC$8:CM36)),"") ->  | DE36: =IFERROR(INDEX($CD$8:$CO$49,$CR36,COLUMNS($CC$8:CN36)),"") -> 
N37: SFH 4715AS | O37: Max Rated Pulsed operation | P37: 850 | Q37: 45 | R37: =800*2.8 -> 2240 | S37: 3000 | T37: 3.8 | U37: 0.01 | V37: 0.001 | W37: 1 | X37: 9 | Y37: Non Automotive | Z37: 30 | AB37: =IFERROR(SMALL($AA$8:$AA$49,ROWS($AA$8:AA37)),"") ->  | AD37: =IFERROR(INDEX($N$8:$Y$49,$AB37,COLUMNS($M$8:M37)),"") ->  | AE37: =IFERROR(INDEX($N$8:$Y$49,$AB37,COLUMNS($M$8:N37)),"") ->  | AF37: =IFERROR(INDEX($N$8:$Y$49,$AB37,COLUMNS($M$8:O37)),"") ->  | AG37: =IFERROR(INDEX($N$8:$Y$49,$AB37,COLUMNS($M$8:P37)),"") ->  | AH37: =IFERROR(INDEX($N$8:$Y$49,$AB37,COLUMNS($M$8:Q37)),"") ->  | AI37: =IFERROR(INDEX($N$8:$Y$49,$AB37,COLUMNS($M$8:R37)),"") ->  | AJ37: =IFERROR(INDEX($N$8:$Y$49,$AB37,COLUMNS($M$8:S37)),"") ->  | AK37: =IFERROR(INDEX($N$8:$Y$49,$AB37,COLUMNS($M$8:T37)),"") ->  | AL37: =IFERROR(INDEX($N$8:$Y$49,$AB37,COLUMNS($M$8:U37)),"") ->  | AM37: =IFERROR(INDEX($N$8:$Y$49,$AB37,COLUMNS($M$8:V37)),"") ->  | AN37: =IFERROR(INDEX($N$8:$Y$49,$AB37,COLUMNS($M$8:W37)),"") ->  | AO37: =IFERROR(INDEX($N$8:$Y$49,$AB37,COLUMNS($M$8:X37)),"") ->  | AP37: 30 | AR37: =IFERROR(SMALL($AQ$8:$AQ$49,ROWS($AQ$8:AQ37)),"") ->  | AT37: =IFERROR(INDEX($AD$8:$AO$49,$AR37,COLUMNS($M$8:M37)),"") ->  | AU37: =IFERROR(INDEX($AD$8:$AO$49,$AR37,COLUMNS($M$8:N37)),"") ->  | AV37: =IFERROR(INDEX($AD$8:$AO$49,$AR37,COLUMNS($M$8:O37)),"") ->  | AW37: =IFERROR(INDEX($AD$8:$AO$49,$AR37,COLUMNS($M$8:P37)),"") ->  | AX37: =IFERROR(INDEX($AD$8:$AO$49,$AR37,COLUMNS($M$8:Q37)),"") ->  | AY37: =IFERROR(INDEX($AD$8:$AO$49,$AR37,COLUMNS($M$8:R37)),"") ->  | AZ37: =IFERROR(INDEX($AD$8:$AO$49,$AR37,COLUMNS($M$8:S37)),"") ->  | BA37: =IFERROR(INDEX($AD$8:$AO$49,$AR37,COLUMNS($M$8:T37)),"") ->  | BB37: =IFERROR(INDEX($AD$8:$AO$49,$AR37,COLUMNS($M$8:U37)),"") ->  | BC37: =IFERROR(INDEX($AD$8:$AO$49,$AR37,COLUMNS($M$8:V37)),"") ->  | BD37: =IFERROR(INDEX($AD$8:$AO$49,$AR37,COLUMNS($M$8:W37)),"") ->  | BE37: =IFERROR(INDEX($AD$8:$AO$49,$AR37,COLUMNS($M$8:X37)),"") ->  | BF37: 30 | BH37: =IFERROR(SMALL($BG$8:$BG$49,ROWS($BG$8:BG37)),"") ->  | BJ37: =IFERROR(INDEX($AT$8:$BE$46,$BH37,COLUMNS($AT$8:AT37)),"") ->  | BK37: =IFERROR(INDEX($AT$8:$BE$46,$BH37,COLUMNS($AT$8:AU37)),"") ->  | BL37: =IFERROR(INDEX($AT$8:$BE$46,$BH37,COLUMNS($AT$8:AV37)),"") ->  | BM37: =IFERROR(INDEX($AT$8:$BE$46,$BH37,COLUMNS($AT$8:AW37)),"") ->  | BN37: =IFERROR(INDEX($AT$8:$BE$46,$BH37,COLUMNS($AT$8:AX37)),"") ->  | BO37: =IFERROR(INDEX($AT$8:$BE$46,$BH37,COLUMNS($AT$8:AY37)),"") ->  | BP37: =IFERROR(INDEX($AT$8:$BE$46,$BH37,COLUMNS($AT$8:AZ37)),"") ->  | BQ37: =IFERROR(INDEX($AT$8:$BE$46,$BH37,COLUMNS($AT$8:BA37)),"") ->  | BR37: =IFERROR(INDEX($AT$8:$BE$46,$BH37,COLUMNS($AT$8:BB37)),"") ->  | BS37: =IFERROR(INDEX($AT$8:$BE$46,$BH37,COLUMNS($AT$8:BC37)),"") ->  | BT37: =IFERROR(INDEX($AT$8:$BE$46,$BH37,COLUMNS($AT$8:BD37)),"") ->  | BU37: =IFERROR(INDEX($AT$8:$BE$46,$BH37,COLUMNS($AT$8:BE37)),"") ->  | BV37: 30 | BX37: =IFERROR(SMALL($BW$8:$BW$49,ROWS($BW$8:BW37)),"") ->  | BY37: =INDEX(BM37:$BM$49,1,1) ->  | BZ37: =COUNTIF($BM$8:BM37,BY37) -> 28 | CB37: =IFERROR(SMALL($CA$8:$CA$49,ROWS($CA$8:CA37)),"") ->  | CD37: =IFERROR(INDEX($BJ$8:$BU$46,$BX37,COLUMNS($BI$8:BI37)),"") ->  | CE37: =IFERROR(INDEX($BJ$8:$BU$46,$BX37,COLUMNS($BI$8:BJ37)),"") ->  | CF37: =IFERROR(INDEX($BJ$8:$BU$46,$BX37,COLUMNS($BI$8:BK37)),"") ->  | CG37: =IFERROR(INDEX($BJ$8:$BU$46,$BX37,COLUMNS($BI$8:BL37)),"") ->  | CH37: =IFERROR(INDEX($BJ$8:$BU$46,$BX37,COLUMNS($BI$8:BM37)),"") ->  | CI37: =IFERROR(INDEX($BJ$8:$BU$46,$BX37,COLUMNS($BI$8:BN37)),"") ->  | CJ37: =IFERROR(INDEX($BJ$8:$BU$46,$BX37,COLUMNS($BI$8:BO37)),"") ->  | CK37: =IFERROR(INDEX($BJ$8:$BU$46,$BX37,COLUMNS($BI$8:BP37)),"") ->  | CL37: =IFERROR(INDEX($BJ$8:$BU$46,$BX37,COLUMNS($BI$8:BQ37)),"") ->  | CM37: =IFERROR(INDEX($BJ$8:$BU$46,$BX37,COLUMNS($BI$8:BR37)),"") ->  | CN37: =IFERROR(INDEX($BJ$8:$BU$46,$BX37,COLUMNS($BI$8:BS37)),"") ->  | CO37: =IFERROR(INDEX($BJ$8:$BU$46,$BX37,COLUMNS($BI$8:BT37)),"") ->  | CP37: 30 | CR37: =IFERROR(SMALL($CQ$8:$CQ$49,ROWS($CQ$8:CQ37)),"") ->  | CT37: =IFERROR(INDEX($CD$8:$CO$49,$CR37,COLUMNS($CC$8:CC37)),"") ->  | CU37: =IFERROR(INDEX($CD$8:$CO$49,$CR37,COLUMNS($CC$8:CD37)),"") ->  | CV37: =IFERROR(INDEX($CD$8:$CO$49,$CR37,COLUMNS($CC$8:CE37)),"") ->  | CW37: =IFERROR(INDEX($CD$8:$CO$49,$CR37,COLUMNS($CC$8:CF37)),"") ->  | CX37: =IFERROR(INDEX($CD$8:$CO$49,$CR37,COLUMNS($CC$8:CG37)),"") ->  | CY37: =IFERROR(INDEX($CD$8:$CO$49,$CR37,COLUMNS($CC$8:CH37)),"") ->  | CZ37: =IFERROR(INDEX($CD$8:$CO$49,$CR37,COLUMNS($CC$8:CI37)),"") ->  | DA37: =IFERROR(INDEX($CD$8:$CO$49,$CR37,COLUMNS($CC$8:CJ37)),"") ->  | DB37: =IFERROR(INDEX($CD$8:$CO$49,$CR37,COLUMNS($CC$8:CK37)),"") ->  | DC37: =IFERROR(INDEX($CD$8:$CO$49,$CR37,COLUMNS($CC$8:CL37)),"") ->  | DD37: =IFERROR(INDEX($CD$8:$CO$49,$CR37,COLUMNS($CC$8:CM37)),"") ->  | DE37: =IFERROR(INDEX($CD$8:$CO$49,$CR37,COLUMNS($CC$8:CN37)),"") -> 
D38: Flux hitting target field at range: | E38: =I13*E36 -> 1096.422 | F38: mW | G38: Flux hitting target field at range: | H38: =I13*H36 -> 4796.84625 | I38: mW | N38: SFH 4715 | O38: Max Rated Pulsed operation | P38: 850 | Q38: 45 | R38: =4.2*320 -> 1344 | S38: 5000 | T38: 2 | U38: 0.01 | V38: 0.0005 | W38: 1 | X38: 10 | Y38: Non Automotive | Z38: 31 | AB38: =IFERROR(SMALL($AA$8:$AA$49,ROWS($AA$8:AA38)),"") ->  | AD38: =IFERROR(INDEX($N$8:$Y$49,$AB38,COLUMNS($M$8:M38)),"") ->  | AE38: =IFERROR(INDEX($N$8:$Y$49,$AB38,COLUMNS($M$8:N38)),"") ->  | AF38: =IFERROR(INDEX($N$8:$Y$49,$AB38,COLUMNS($M$8:O38)),"") ->  | AG38: =IFERROR(INDEX($N$8:$Y$49,$AB38,COLUMNS($M$8:P38)),"") ->  | AH38: =IFERROR(INDEX($N$8:$Y$49,$AB38,COLUMNS($M$8:Q38)),"") ->  | AI38: =IFERROR(INDEX($N$8:$Y$49,$AB38,COLUMNS($M$8:R38)),"") ->  | AJ38: =IFERROR(INDEX($N$8:$Y$49,$AB38,COLUMNS($M$8:S38)),"") ->  | AK38: =IFERROR(INDEX($N$8:$Y$49,$AB38,COLUMNS($M$8:T38)),"") ->  | AL38: =IFERROR(INDEX($N$8:$Y$49,$AB38,COLUMNS($M$8:U38)),"") ->  | AM38: =IFERROR(INDEX($N$8:$Y$49,$AB38,COLUMNS($M$8:V38)),"") ->  | AN38: =IFERROR(INDEX($N$8:$Y$49,$AB38,COLUMNS($M$8:W38)),"") ->  | AO38: =IFERROR(INDEX($N$8:$Y$49,$AB38,COLUMNS($M$8:X38)),"") ->  | AP38: 31 | AR38: =IFERROR(SMALL($AQ$8:$AQ$49,ROWS($AQ$8:AQ38)),"") ->  | AT38: =IFERROR(INDEX($AD$8:$AO$49,$AR38,COLUMNS($M$8:M38)),"") ->  | AU38: =IFERROR(INDEX($AD$8:$AO$49,$AR38,COLUMNS($M$8:N38)),"") ->  | AV38: =IFERROR(INDEX($AD$8:$AO$49,$AR38,COLUMNS($M$8:O38)),"") ->  | AW38: =IFERROR(INDEX($AD$8:$AO$49,$AR38,COLUMNS($M$8:P38)),"") ->  | AX38: =IFERROR(INDEX($AD$8:$AO$49,$AR38,COLUMNS($M$8:Q38)),"") ->  | AY38: =IFERROR(INDEX($AD$8:$AO$49,$AR38,COLUMNS($M$8:R38)),"") ->  | AZ38: =IFERROR(INDEX($AD$8:$AO$49,$AR38,COLUMNS($M$8:S38)),"") ->  | BA38: =IFERROR(INDEX($AD$8:$AO$49,$AR38,COLUMNS($M$8:T38)),"") ->  | BB38: =IFERROR(INDEX($AD$8:$AO$49,$AR38,COLUMNS($M$8:U38)),"") ->  | BC38: =IFERROR(INDEX($AD$8:$AO$49,$AR38,COLUMNS($M$8:V38)),"") ->  | BD38: =IFERROR(INDEX($AD$8:$AO$49,$AR38,COLUMNS($M$8:W38)),"") ->  | BE38: =IFERROR(INDEX($AD$8:$AO$49,$AR38,COLUMNS($M$8:X38)),"") ->  | BF38: 31 | BH38: =IFERROR(SMALL($BG$8:$BG$49,ROWS($BG$8:BG38)),"") ->  | BJ38: =IFERROR(INDEX($AT$8:$BE$46,$BH38,COLUMNS($AT$8:AT38)),"") ->  | BK38: =IFERROR(INDEX($AT$8:$BE$46,$BH38,COLUMNS($AT$8:AU38)),"") ->  | BL38: =IFERROR(INDEX($AT$8:$BE$46,$BH38,COLUMNS($AT$8:AV38)),"") ->  | BM38: =IFERROR(INDEX($AT$8:$BE$46,$BH38,COLUMNS($AT$8:AW38)),"") ->  | BN38: =IFERROR(INDEX($AT$8:$BE$46,$BH38,COLUMNS($AT$8:AX38)),"") ->  | BO38: =IFERROR(INDEX($AT$8:$BE$46,$BH38,COLUMNS($AT$8:AY38)),"") ->  | BP38: =IFERROR(INDEX($AT$8:$BE$46,$BH38,COLUMNS($AT$8:AZ38)),"") ->  | BQ38: =IFERROR(INDEX($AT$8:$BE$46,$BH38,COLUMNS($AT$8:BA38)),"") ->  | BR38: =IFERROR(INDEX($AT$8:$BE$46,$BH38,COLUMNS($AT$8:BB38)),"") ->  | BS38: =IFERROR(INDEX($AT$8:$BE$46,$BH38,COLUMNS($AT$8:BC38)),"") ->  | BT38: =IFERROR(INDEX($AT$8:$BE$46,$BH38,COLUMNS($AT$8:BD38)),"") ->  | BU38: =IFERROR(INDEX($AT$8:$BE$46,$BH38,COLUMNS($AT$8:BE38)),"") ->  | BV38: 31 | BX38: =IFERROR(SMALL($BW$8:$BW$49,ROWS($BW$8:BW38)),"") ->  | BY38: =INDEX(BM38:$BM$49,1,1) ->  | BZ38: =COUNTIF($BM$8:BM38,BY38) -> 29 | CB38: =IFERROR(SMALL($CA$8:$CA$49,ROWS($CA$8:CA38)),"") ->  | CD38: =IFERROR(INDEX($BJ$8:$BU$46,$BX38,COLUMNS($BI$8:BI38)),"") ->  | CE38: =IFERROR(INDEX($BJ$8:$BU$46,$BX38,COLUMNS($BI$8:BJ38)),"") ->  | CF38: =IFERROR(INDEX($BJ$8:$BU$46,$BX38,COLUMNS($BI$8:BK38)),"") ->  | CG38: =IFERROR(INDEX($BJ$8:$BU$46,$BX38,COLUMNS($BI$8:BL38)),"") ->  | CH38: =IFERROR(INDEX($BJ$8:$BU$46,$BX38,COLUMNS($BI$8:BM38)),"") ->  | CI38: =IFERROR(INDEX($BJ$8:$BU$46,$BX38,COLUMNS($BI$8:BN38)),"") ->  | CJ38: =IFERROR(INDEX($BJ$8:$BU$46,$BX38,COLUMNS($BI$8:BO38)),"") ->  | CK38: =IFERROR(INDEX($BJ$8:$BU$46,$BX38,COLUMNS($BI$8:BP38)),"") ->  | CL38: =IFERROR(INDEX($BJ$8:$BU$46,$BX38,COLUMNS($BI$8:BQ38)),"") ->  | CM38: =IFERROR(INDEX($BJ$8:$BU$46,$BX38,COLUMNS($BI$8:BR38)),"") ->  | CN38: =IFERROR(INDEX($BJ$8:$BU$46,$BX38,COLUMNS($BI$8:BS38)),"") ->  | CO38: =IFERROR(INDEX($BJ$8:$BU$46,$BX38,COLUMNS($BI$8:BT38)),"") ->  | CP38: 31 | CR38: =IFERROR(SMALL($CQ$8:$CQ$49,ROWS($CQ$8:CQ38)),"") ->  | CT38: =IFERROR(INDEX($CD$8:$CO$49,$CR38,COLUMNS($CC$8:CC38)),"") ->  | CU38: =IFERROR(INDEX($CD$8:$CO$49,$CR38,COLUMNS($CC$8:CD38)),"") ->  | CV38: =IFERROR(INDEX($CD$8:$CO$49,$CR38,COLUMNS($CC$8:CE38)),"") ->  | CW38: =IFERROR(INDEX($CD$8:$CO$49,$CR38,COLUMNS($CC$8:CF38)),"") ->  | CX38: =IFERROR(INDEX($CD$8:$CO$49,$CR38,COLUMNS($CC$8:CG38)),"") ->  | CY38: =IFERROR(INDEX($CD$8:$CO$49,$CR38,COLUMNS($CC$8:CH38)),"") ->  | CZ38: =IFERROR(INDEX($CD$8:$CO$49,$CR38,COLUMNS($CC$8:CI38)),"") ->  | DA38: =IFERROR(INDEX($CD$8:$CO$49,$CR38,COLUMNS($CC$8:CJ38)),"") ->  | DB38: =IFERROR(INDEX($CD$8:$CO$49,$CR38,COLUMNS($CC$8:CK38)),"") ->  | DC38: =IFERROR(INDEX($CD$8:$CO$49,$CR38,COLUMNS($CC$8:CL38)),"") ->  | DD38: =IFERROR(INDEX($CD$8:$CO$49,$CR38,COLUMNS($CC$8:CM38)),"") ->  | DE38: =IFERROR(INDEX($CD$8:$CO$49,$CR38,COLUMNS($CC$8:CN38)),"") -> 
N39: SFH 4770S | O39: Max Rated Pulsed operation | P39: 850 | Q39: 60 | R39: =2.8*560 -> 1568 | S39: 3000 | T39: 3.7 | U39: 0.01 | V39: 0.005 | W39: 1 | X39: 11 | Y39: Non Automotive | Z39: 32 | AB39: =IFERROR(SMALL($AA$8:$AA$49,ROWS($AA$8:AA39)),"") ->  | AD39: =IFERROR(INDEX($N$8:$Y$49,$AB39,COLUMNS($M$8:M39)),"") ->  | AE39: =IFERROR(INDEX($N$8:$Y$49,$AB39,COLUMNS($M$8:N39)),"") ->  | AF39: =IFERROR(INDEX($N$8:$Y$49,$AB39,COLUMNS($M$8:O39)),"") ->  | AG39: =IFERROR(INDEX($N$8:$Y$49,$AB39,COLUMNS($M$8:P39)),"") ->  | AH39: =IFERROR(INDEX($N$8:$Y$49,$AB39,COLUMNS($M$8:Q39)),"") ->  | AI39: =IFERROR(INDEX($N$8:$Y$49,$AB39,COLUMNS($M$8:R39)),"") ->  | AJ39: =IFERROR(INDEX($N$8:$Y$49,$AB39,COLUMNS($M$8:S39)),"") ->  | AK39: =IFERROR(INDEX($N$8:$Y$49,$AB39,COLUMNS($M$8:T39)),"") ->  | AL39: =IFERROR(INDEX($N$8:$Y$49,$AB39,COLUMNS($M$8:U39)),"") ->  | AM39: =IFERROR(INDEX($N$8:$Y$49,$AB39,COLUMNS($M$8:V39)),"") ->  | AN39: =IFERROR(INDEX($N$8:$Y$49,$AB39,COLUMNS($M$8:W39)),"") ->  | AO39: =IFERROR(INDEX($N$8:$Y$49,$AB39,COLUMNS($M$8:X39)),"") ->  | AP39: 32 | AR39: =IFERROR(SMALL($AQ$8:$AQ$49,ROWS($AQ$8:AQ39)),"") ->  | AT39: =IFERROR(INDEX($AD$8:$AO$49,$AR39,COLUMNS($M$8:M39)),"") ->  | AU39: =IFERROR(INDEX($AD$8:$AO$49,$AR39,COLUMNS($M$8:N39)),"") ->  | AV39: =IFERROR(INDEX($AD$8:$AO$49,$AR39,COLUMNS($M$8:O39)),"") ->  | AW39: =IFERROR(INDEX($AD$8:$AO$49,$AR39,COLUMNS($M$8:P39)),"") ->  | AX39: =IFERROR(INDEX($AD$8:$AO$49,$AR39,COLUMNS($M$8:Q39)),"") ->  | AY39: =IFERROR(INDEX($AD$8:$AO$49,$AR39,COLUMNS($M$8:R39)),"") ->  | AZ39: =IFERROR(INDEX($AD$8:$AO$49,$AR39,COLUMNS($M$8:S39)),"") ->  | BA39: =IFERROR(INDEX($AD$8:$AO$49,$AR39,COLUMNS($M$8:T39)),"") ->  | BB39: =IFERROR(INDEX($AD$8:$AO$49,$AR39,COLUMNS($M$8:U39)),"") ->  | BC39: =IFERROR(INDEX($AD$8:$AO$49,$AR39,COLUMNS($M$8:V39)),"") ->  | BD39: =IFERROR(INDEX($AD$8:$AO$49,$AR39,COLUMNS($M$8:W39)),"") ->  | BE39: =IFERROR(INDEX($AD$8:$AO$49,$AR39,COLUMNS($M$8:X39)),"") ->  | BF39: 32 | BH39: =IFERROR(SMALL($BG$8:$BG$49,ROWS($BG$8:BG39)),"") ->  | BJ39: =IFERROR(INDEX($AT$8:$BE$46,$BH39,COLUMNS($AT$8:AT39)),"") ->  | BK39: =IFERROR(INDEX($AT$8:$BE$46,$BH39,COLUMNS($AT$8:AU39)),"") ->  | BL39: =IFERROR(INDEX($AT$8:$BE$46,$BH39,COLUMNS($AT$8:AV39)),"") ->  | BM39: =IFERROR(INDEX($AT$8:$BE$46,$BH39,COLUMNS($AT$8:AW39)),"") ->  | BN39: =IFERROR(INDEX($AT$8:$BE$46,$BH39,COLUMNS($AT$8:AX39)),"") ->  | BO39: =IFERROR(INDEX($AT$8:$BE$46,$BH39,COLUMNS($AT$8:AY39)),"") ->  | BP39: =IFERROR(INDEX($AT$8:$BE$46,$BH39,COLUMNS($AT$8:AZ39)),"") ->  | BQ39: =IFERROR(INDEX($AT$8:$BE$46,$BH39,COLUMNS($AT$8:BA39)),"") ->  | BR39: =IFERROR(INDEX($AT$8:$BE$46,$BH39,COLUMNS($AT$8:BB39)),"") ->  | BS39: =IFERROR(INDEX($AT$8:$BE$46,$BH39,COLUMNS($AT$8:BC39)),"") ->  | BT39: =IFERROR(INDEX($AT$8:$BE$46,$BH39,COLUMNS($AT$8:BD39)),"") ->  | BU39: =IFERROR(INDEX($AT$8:$BE$46,$BH39,COLUMNS($AT$8:BE39)),"") ->  | BV39: 32 | BX39: =IFERROR(SMALL($BW$8:$BW$49,ROWS($BW$8:BW39)),"") ->  | BY39: =INDEX(BM39:$BM$49,1,1) ->  | BZ39: =COUNTIF($BM$8:BM39,BY39) -> 30 | CB39: =IFERROR(SMALL($CA$8:$CA$49,ROWS($CA$8:CA39)),"") ->  | CD39: =IFERROR(INDEX($BJ$8:$BU$46,$BX39,COLUMNS($BI$8:BI39)),"") ->  | CE39: =IFERROR(INDEX($BJ$8:$BU$46,$BX39,COLUMNS($BI$8:BJ39)),"") ->  | CF39: =IFERROR(INDEX($BJ$8:$BU$46,$BX39,COLUMNS($BI$8:BK39)),"") ->  | CG39: =IFERROR(INDEX($BJ$8:$BU$46,$BX39,COLUMNS($BI$8:BL39)),"") ->  | CH39: =IFERROR(INDEX($BJ$8:$BU$46,$BX39,COLUMNS($BI$8:BM39)),"") ->  | CI39: =IFERROR(INDEX($BJ$8:$BU$46,$BX39,COLUMNS($BI$8:BN39)),"") ->  | CJ39: =IFERROR(INDEX($BJ$8:$BU$46,$BX39,COLUMNS($BI$8:BO39)),"") ->  | CK39: =IFERROR(INDEX($BJ$8:$BU$46,$BX39,COLUMNS($BI$8:BP39)),"") ->  | CL39: =IFERROR(INDEX($BJ$8:$BU$46,$BX39,COLUMNS($BI$8:BQ39)),"") ->  | CM39: =IFERROR(INDEX($BJ$8:$BU$46,$BX39,COLUMNS($BI$8:BR39)),"") ->  | CN39: =IFERROR(INDEX($BJ$8:$BU$46,$BX39,COLUMNS($BI$8:BS39)),"") ->  | CO39: =IFERROR(INDEX($BJ$8:$BU$46,$BX39,COLUMNS($BI$8:BT39)),"") ->  | CP39: 32 | CR39: =IFERROR(SMALL($CQ$8:$CQ$49,ROWS($CQ$8:CQ39)),"") ->  | CT39: =IFERROR(INDEX($CD$8:$CO$49,$CR39,COLUMNS($CC$8:CC39)),"") ->  | CU39: =IFERROR(INDEX($CD$8:$CO$49,$CR39,COLUMNS($CC$8:CD39)),"") ->  | CV39: =IFERROR(INDEX($CD$8:$CO$49,$CR39,COLUMNS($CC$8:CE39)),"") ->  | CW39: =IFERROR(INDEX($CD$8:$CO$49,$CR39,COLUMNS($CC$8:CF39)),"") ->  | CX39: =IFERROR(INDEX($CD$8:$CO$49,$CR39,COLUMNS($CC$8:CG39)),"") ->  | CY39: =IFERROR(INDEX($CD$8:$CO$49,$CR39,COLUMNS($CC$8:CH39)),"") ->  | CZ39: =IFERROR(INDEX($CD$8:$CO$49,$CR39,COLUMNS($CC$8:CI39)),"") ->  | DA39: =IFERROR(INDEX($CD$8:$CO$49,$CR39,COLUMNS($CC$8:CJ39)),"") ->  | DB39: =IFERROR(INDEX($CD$8:$CO$49,$CR39,COLUMNS($CC$8:CK39)),"") ->  | DC39: =IFERROR(INDEX($CD$8:$CO$49,$CR39,COLUMNS($CC$8:CL39)),"") ->  | DD39: =IFERROR(INDEX($CD$8:$CO$49,$CR39,COLUMNS($CC$8:CM39)),"") ->  | DE39: =IFERROR(INDEX($CD$8:$CO$49,$CR39,COLUMNS($CC$8:CN39)),"") -> 
D40: Total flux reflected from target: | E40: =I15/100*E38 -> 109.6422 | F40: mW | G40: Total flux reflected from target: | H40: =I15/100*H38 -> 479.684625 | I40: mW | N40: SFH 4714A | O40: Max Rated Pulsed operation | P40: 850 | Q40: 75 | R40: =R19*1 -> 200 | S40: 1000 | T40: 1.75 | U40: 1 | V40: 1 | W40: 0.75 | X40: 12 | Y40: Non Automotive | Z40: 33 | AB40: =IFERROR(SMALL($AA$8:$AA$49,ROWS($AA$8:AA40)),"") ->  | AD40: =IFERROR(INDEX($N$8:$Y$49,$AB40,COLUMNS($M$8:M40)),"") ->  | AE40: =IFERROR(INDEX($N$8:$Y$49,$AB40,COLUMNS($M$8:N40)),"") ->  | AF40: =IFERROR(INDEX($N$8:$Y$49,$AB40,COLUMNS($M$8:O40)),"") ->  | AG40: =IFERROR(INDEX($N$8:$Y$49,$AB40,COLUMNS($M$8:P40)),"") ->  | AH40: =IFERROR(INDEX($N$8:$Y$49,$AB40,COLUMNS($M$8:Q40)),"") ->  | AI40: =IFERROR(INDEX($N$8:$Y$49,$AB40,COLUMNS($M$8:R40)),"") ->  | AJ40: =IFERROR(INDEX($N$8:$Y$49,$AB40,COLUMNS($M$8:S40)),"") ->  | AK40: =IFERROR(INDEX($N$8:$Y$49,$AB40,COLUMNS($M$8:T40)),"") ->  | AL40: =IFERROR(INDEX($N$8:$Y$49,$AB40,COLUMNS($M$8:U40)),"") ->  | AM40: =IFERROR(INDEX($N$8:$Y$49,$AB40,COLUMNS($M$8:V40)),"") ->  | AN40: =IFERROR(INDEX($N$8:$Y$49,$AB40,COLUMNS($M$8:W40)),"") ->  | AO40: =IFERROR(INDEX($N$8:$Y$49,$AB40,COLUMNS($M$8:X40)),"") ->  | AP40: 33 | AR40: =IFERROR(SMALL($AQ$8:$AQ$49,ROWS($AQ$8:AQ40)),"") ->  | AT40: =IFERROR(INDEX($AD$8:$AO$49,$AR40,COLUMNS($M$8:M40)),"") ->  | AU40: =IFERROR(INDEX($AD$8:$AO$49,$AR40,COLUMNS($M$8:N40)),"") ->  | AV40: =IFERROR(INDEX($AD$8:$AO$49,$AR40,COLUMNS($M$8:O40)),"") ->  | AW40: =IFERROR(INDEX($AD$8:$AO$49,$AR40,COLUMNS($M$8:P40)),"") ->  | AX40: =IFERROR(INDEX($AD$8:$AO$49,$AR40,COLUMNS($M$8:Q40)),"") ->  | AY40: =IFERROR(INDEX($AD$8:$AO$49,$AR40,COLUMNS($M$8:R40)),"") ->  | AZ40: =IFERROR(INDEX($AD$8:$AO$49,$AR40,COLUMNS($M$8:S40)),"") ->  | BA40: =IFERROR(INDEX($AD$8:$AO$49,$AR40,COLUMNS($M$8:T40)),"") ->  | BB40: =IFERROR(INDEX($AD$8:$AO$49,$AR40,COLUMNS($M$8:U40)),"") ->  | BC40: =IFERROR(INDEX($AD$8:$AO$49,$AR40,COLUMNS($M$8:V40)),"") ->  | BD40: =IFERROR(INDEX($AD$8:$AO$49,$AR40,COLUMNS($M$8:W40)),"") ->  | BE40: =IFERROR(INDEX($AD$8:$AO$49,$AR40,COLUMNS($M$8:X40)),"") ->  | BF40: 33 | BH40: =IFERROR(SMALL($BG$8:$BG$49,ROWS($BG$8:BG40)),"") ->  | BJ40: =IFERROR(INDEX($AT$8:$BE$46,$BH40,COLUMNS($AT$8:AT40)),"") ->  | BK40: =IFERROR(INDEX($AT$8:$BE$46,$BH40,COLUMNS($AT$8:AU40)),"") ->  | BL40: =IFERROR(INDEX($AT$8:$BE$46,$BH40,COLUMNS($AT$8:AV40)),"") ->  | BM40: =IFERROR(INDEX($AT$8:$BE$46,$BH40,COLUMNS($AT$8:AW40)),"") ->  | BN40: =IFERROR(INDEX($AT$8:$BE$46,$BH40,COLUMNS($AT$8:AX40)),"") ->  | BO40: =IFERROR(INDEX($AT$8:$BE$46,$BH40,COLUMNS($AT$8:AY40)),"") ->  | BP40: =IFERROR(INDEX($AT$8:$BE$46,$BH40,COLUMNS($AT$8:AZ40)),"") ->  | BQ40: =IFERROR(INDEX($AT$8:$BE$46,$BH40,COLUMNS($AT$8:BA40)),"") ->  | BR40: =IFERROR(INDEX($AT$8:$BE$46,$BH40,COLUMNS($AT$8:BB40)),"") ->  | BS40: =IFERROR(INDEX($AT$8:$BE$46,$BH40,COLUMNS($AT$8:BC40)),"") ->  | BT40: =IFERROR(INDEX($AT$8:$BE$46,$BH40,COLUMNS($AT$8:BD40)),"") ->  | BU40: =IFERROR(INDEX($AT$8:$BE$46,$BH40,COLUMNS($AT$8:BE40)),"") ->  | BV40: 33 | BX40: =IFERROR(SMALL($BW$8:$BW$49,ROWS($BW$8:BW40)),"") ->  | BY40: =INDEX(BM40:$BM$49,1,1) ->  | BZ40: =COUNTIF($BM$8:BM40,BY40) -> 31 | CB40: =IFERROR(SMALL($CA$8:$CA$49,ROWS($CA$8:CA40)),"") ->  | CD40: =IFERROR(INDEX($BJ$8:$BU$46,$BX40,COLUMNS($BI$8:BI40)),"") ->  | CE40: =IFERROR(INDEX($BJ$8:$BU$46,$BX40,COLUMNS($BI$8:BJ40)),"") ->  | CF40: =IFERROR(INDEX($BJ$8:$BU$46,$BX40,COLUMNS($BI$8:BK40)),"") ->  | CG40: =IFERROR(INDEX($BJ$8:$BU$46,$BX40,COLUMNS($BI$8:BL40)),"") ->  | CH40: =IFERROR(INDEX($BJ$8:$BU$46,$BX40,COLUMNS($BI$8:BM40)),"") ->  | CI40: =IFERROR(INDEX($BJ$8:$BU$46,$BX40,COLUMNS($BI$8:BN40)),"") ->  | CJ40: =IFERROR(INDEX($BJ$8:$BU$46,$BX40,COLUMNS($BI$8:BO40)),"") ->  | CK40: =IFERROR(INDEX($BJ$8:$BU$46,$BX40,COLUMNS($BI$8:BP40)),"") ->  | CL40: =IFERROR(INDEX($BJ$8:$BU$46,$BX40,COLUMNS($BI$8:BQ40)),"") ->  | CM40: =IFERROR(INDEX($BJ$8:$BU$46,$BX40,COLUMNS($BI$8:BR40)),"") ->  | CN40: =IFERROR(INDEX($BJ$8:$BU$46,$BX40,COLUMNS($BI$8:BS40)),"") ->  | CO40: =IFERROR(INDEX($BJ$8:$BU$46,$BX40,COLUMNS($BI$8:BT40)),"") ->  | CP40: 33 | CR40: =IFERROR(SMALL($CQ$8:$CQ$49,ROWS($CQ$8:CQ40)),"") ->  | CT40: =IFERROR(INDEX($CD$8:$CO$49,$CR40,COLUMNS($CC$8:CC40)),"") ->  | CU40: =IFERROR(INDEX($CD$8:$CO$49,$CR40,COLUMNS($CC$8:CD40)),"") ->  | CV40: =IFERROR(INDEX($CD$8:$CO$49,$CR40,COLUMNS($CC$8:CE40)),"") ->  | CW40: =IFERROR(INDEX($CD$8:$CO$49,$CR40,COLUMNS($CC$8:CF40)),"") ->  | CX40: =IFERROR(INDEX($CD$8:$CO$49,$CR40,COLUMNS($CC$8:CG40)),"") ->  | CY40: =IFERROR(INDEX($CD$8:$CO$49,$CR40,COLUMNS($CC$8:CH40)),"") ->  | CZ40: =IFERROR(INDEX($CD$8:$CO$49,$CR40,COLUMNS($CC$8:CI40)),"") ->  | DA40: =IFERROR(INDEX($CD$8:$CO$49,$CR40,COLUMNS($CC$8:CJ40)),"") ->  | DB40: =IFERROR(INDEX($CD$8:$CO$49,$CR40,COLUMNS($CC$8:CK40)),"") ->  | DC40: =IFERROR(INDEX($CD$8:$CO$49,$CR40,COLUMNS($CC$8:CL40)),"") ->  | DD40: =IFERROR(INDEX($CD$8:$CO$49,$CR40,COLUMNS($CC$8:CM40)),"") ->  | DE40: =IFERROR(INDEX($CD$8:$CO$49,$CR40,COLUMNS($CC$8:CN40)),"") -> 
N41: SFH 4716A | O41: Max Rated Pulsed operation | P41: 850 | Q41: 75 | R41: =2.8*200 -> 560 | S41: 3000 | T41: 2.2 | U41: 0.01 | V41: 0.01 | W41: 1 | X41: 13 | Y41: Non Automotive | Z41: 34 | AB41: =IFERROR(SMALL($AA$8:$AA$49,ROWS($AA$8:AA41)),"") ->  | AD41: =IFERROR(INDEX($N$8:$Y$49,$AB41,COLUMNS($M$8:M41)),"") ->  | AE41: =IFERROR(INDEX($N$8:$Y$49,$AB41,COLUMNS($M$8:N41)),"") ->  | AF41: =IFERROR(INDEX($N$8:$Y$49,$AB41,COLUMNS($M$8:O41)),"") ->  | AG41: =IFERROR(INDEX($N$8:$Y$49,$AB41,COLUMNS($M$8:P41)),"") ->  | AH41: =IFERROR(INDEX($N$8:$Y$49,$AB41,COLUMNS($M$8:Q41)),"") ->  | AI41: =IFERROR(INDEX($N$8:$Y$49,$AB41,COLUMNS($M$8:R41)),"") ->  | AJ41: =IFERROR(INDEX($N$8:$Y$49,$AB41,COLUMNS($M$8:S41)),"") ->  | AK41: =IFERROR(INDEX($N$8:$Y$49,$AB41,COLUMNS($M$8:T41)),"") ->  | AL41: =IFERROR(INDEX($N$8:$Y$49,$AB41,COLUMNS($M$8:U41)),"") ->  | AM41: =IFERROR(INDEX($N$8:$Y$49,$AB41,COLUMNS($M$8:V41)),"") ->  | AN41: =IFERROR(INDEX($N$8:$Y$49,$AB41,COLUMNS($M$8:W41)),"") ->  | AO41: =IFERROR(INDEX($N$8:$Y$49,$AB41,COLUMNS($M$8:X41)),"") ->  | AP41: 34 | AR41: =IFERROR(SMALL($AQ$8:$AQ$49,ROWS($AQ$8:AQ41)),"") ->  | AT41: =IFERROR(INDEX($AD$8:$AO$49,$AR41,COLUMNS($M$8:M41)),"") ->  | AU41: =IFERROR(INDEX($AD$8:$AO$49,$AR41,COLUMNS($M$8:N41)),"") ->  | AV41: =IFERROR(INDEX($AD$8:$AO$49,$AR41,COLUMNS($M$8:O41)),"") ->  | AW41: =IFERROR(INDEX($AD$8:$AO$49,$AR41,COLUMNS($M$8:P41)),"") ->  | AX41: =IFERROR(INDEX($AD$8:$AO$49,$AR41,COLUMNS($M$8:Q41)),"") ->  | AY41: =IFERROR(INDEX($AD$8:$AO$49,$AR41,COLUMNS($M$8:R41)),"") ->  | AZ41: =IFERROR(INDEX($AD$8:$AO$49,$AR41,COLUMNS($M$8:S41)),"") ->  | BA41: =IFERROR(INDEX($AD$8:$AO$49,$AR41,COLUMNS($M$8:T41)),"") ->  | BB41: =IFERROR(INDEX($AD$8:$AO$49,$AR41,COLUMNS($M$8:U41)),"") ->  | BC41: =IFERROR(INDEX($AD$8:$AO$49,$AR41,COLUMNS($M$8:V41)),"") ->  | BD41: =IFERROR(INDEX($AD$8:$AO$49,$AR41,COLUMNS($M$8:W41)),"") ->  | BE41: =IFERROR(INDEX($AD$8:$AO$49,$AR41,COLUMNS($M$8:X41)),"") ->  | BF41: 34 | BH41: =IFERROR(SMALL($BG$8:$BG$49,ROWS($BG$8:BG41)),"") ->  | BJ41: =IFERROR(INDEX($AT$8:$BE$46,$BH41,COLUMNS($AT$8:AT41)),"") ->  | BK41: =IFERROR(INDEX($AT$8:$BE$46,$BH41,COLUMNS($AT$8:AU41)),"") ->  | BL41: =IFERROR(INDEX($AT$8:$BE$46,$BH41,COLUMNS($AT$8:AV41)),"") ->  | BM41: =IFERROR(INDEX($AT$8:$BE$46,$BH41,COLUMNS($AT$8:AW41)),"") ->  | BN41: =IFERROR(INDEX($AT$8:$BE$46,$BH41,COLUMNS($AT$8:AX41)),"") ->  | BO41: =IFERROR(INDEX($AT$8:$BE$46,$BH41,COLUMNS($AT$8:AY41)),"") ->  | BP41: =IFERROR(INDEX($AT$8:$BE$46,$BH41,COLUMNS($AT$8:AZ41)),"") ->  | BQ41: =IFERROR(INDEX($AT$8:$BE$46,$BH41,COLUMNS($AT$8:BA41)),"") ->  | BR41: =IFERROR(INDEX($AT$8:$BE$46,$BH41,COLUMNS($AT$8:BB41)),"") ->  | BS41: =IFERROR(INDEX($AT$8:$BE$46,$BH41,COLUMNS($AT$8:BC41)),"") ->  | BT41: =IFERROR(INDEX($AT$8:$BE$46,$BH41,COLUMNS($AT$8:BD41)),"") ->  | BU41: =IFERROR(INDEX($AT$8:$BE$46,$BH41,COLUMNS($AT$8:BE41)),"") ->  | BV41: 34 | BX41: =IFERROR(SMALL($BW$8:$BW$49,ROWS($BW$8:BW41)),"") ->  | BY41: =INDEX(BM41:$BM$49,1,1) ->  | BZ41: =COUNTIF($BM$8:BM41,BY41) -> 32 | CB41: =IFERROR(SMALL($CA$8:$CA$49,ROWS($CA$8:CA41)),"") ->  | CD41: =IFERROR(INDEX($BJ$8:$BU$46,$BX41,COLUMNS($BI$8:BI41)),"") ->  | CE41: =IFERROR(INDEX($BJ$8:$BU$46,$BX41,COLUMNS($BI$8:BJ41)),"") ->  | CF41: =IFERROR(INDEX($BJ$8:$BU$46,$BX41,COLUMNS($BI$8:BK41)),"") ->  | CG41: =IFERROR(INDEX($BJ$8:$BU$46,$BX41,COLUMNS($BI$8:BL41)),"") ->  | CH41: =IFERROR(INDEX($BJ$8:$BU$46,$BX41,COLUMNS($BI$8:BM41)),"") ->  | CI41: =IFERROR(INDEX($BJ$8:$BU$46,$BX41,COLUMNS($BI$8:BN41)),"") ->  | CJ41: =IFERROR(INDEX($BJ$8:$BU$46,$BX41,COLUMNS($BI$8:BO41)),"") ->  | CK41: =IFERROR(INDEX($BJ$8:$BU$46,$BX41,COLUMNS($BI$8:BP41)),"") ->  | CL41: =IFERROR(INDEX($BJ$8:$BU$46,$BX41,COLUMNS($BI$8:BQ41)),"") ->  | CM41: =IFERROR(INDEX($BJ$8:$BU$46,$BX41,COLUMNS($BI$8:BR41)),"") ->  | CN41: =IFERROR(INDEX($BJ$8:$BU$46,$BX41,COLUMNS($BI$8:BS41)),"") ->  | CO41: =IFERROR(INDEX($BJ$8:$BU$46,$BX41,COLUMNS($BI$8:BT41)),"") ->  | CP41: 34 | CR41: =IFERROR(SMALL($CQ$8:$CQ$49,ROWS($CQ$8:CQ41)),"") ->  | CT41: =IFERROR(INDEX($CD$8:$CO$49,$CR41,COLUMNS($CC$8:CC41)),"") ->  | CU41: =IFERROR(INDEX($CD$8:$CO$49,$CR41,COLUMNS($CC$8:CD41)),"") ->  | CV41: =IFERROR(INDEX($CD$8:$CO$49,$CR41,COLUMNS($CC$8:CE41)),"") ->  | CW41: =IFERROR(INDEX($CD$8:$CO$49,$CR41,COLUMNS($CC$8:CF41)),"") ->  | CX41: =IFERROR(INDEX($CD$8:$CO$49,$CR41,COLUMNS($CC$8:CG41)),"") ->  | CY41: =IFERROR(INDEX($CD$8:$CO$49,$CR41,COLUMNS($CC$8:CH41)),"") ->  | CZ41: =IFERROR(INDEX($CD$8:$CO$49,$CR41,COLUMNS($CC$8:CI41)),"") ->  | DA41: =IFERROR(INDEX($CD$8:$CO$49,$CR41,COLUMNS($CC$8:CJ41)),"") ->  | DB41: =IFERROR(INDEX($CD$8:$CO$49,$CR41,COLUMNS($CC$8:CK41)),"") ->  | DC41: =IFERROR(INDEX($CD$8:$CO$49,$CR41,COLUMNS($CC$8:CL41)),"") ->  | DD41: =IFERROR(INDEX($CD$8:$CO$49,$CR41,COLUMNS($CC$8:CM41)),"") ->  | DE41: =IFERROR(INDEX($CD$8:$CO$49,$CR41,COLUMNS($CC$8:CN41)),"") -> 
D42: Intensity returning from Lambertian target: | E42: =E40/PI() -> 34.9001962 | F42: mW/Sr | G42: Intensity returning from Lambertian target: | H42: =H40/PI() -> 152.6883584 | I42: mW/Sr | N42: SFH 4716AS | O42: Max Rated Pulsed operation | P42: 850 | Q42: 75 | R42: =2.9*400 -> 1160 | S42: 3000 | T42: 3.8 | U42: 0.01 | V42: 0.0025 | W42: 1 | X42: 14 | Y42: Non Automotive | Z42: 35 | AB42: =IFERROR(SMALL($AA$8:$AA$49,ROWS($AA$8:AA42)),"") ->  | AD42: =IFERROR(INDEX($N$8:$Y$49,$AB42,COLUMNS($M$8:M42)),"") ->  | AE42: =IFERROR(INDEX($N$8:$Y$49,$AB42,COLUMNS($M$8:N42)),"") ->  | AF42: =IFERROR(INDEX($N$8:$Y$49,$AB42,COLUMNS($M$8:O42)),"") ->  | AG42: =IFERROR(INDEX($N$8:$Y$49,$AB42,COLUMNS($M$8:P42)),"") ->  | AH42: =IFERROR(INDEX($N$8:$Y$49,$AB42,COLUMNS($M$8:Q42)),"") ->  | AI42: =IFERROR(INDEX($N$8:$Y$49,$AB42,COLUMNS($M$8:R42)),"") ->  | AJ42: =IFERROR(INDEX($N$8:$Y$49,$AB42,COLUMNS($M$8:S42)),"") ->  | AK42: =IFERROR(INDEX($N$8:$Y$49,$AB42,COLUMNS($M$8:T42)),"") ->  | AL42: =IFERROR(INDEX($N$8:$Y$49,$AB42,COLUMNS($M$8:U42)),"") ->  | AM42: =IFERROR(INDEX($N$8:$Y$49,$AB42,COLUMNS($M$8:V42)),"") ->  | AN42: =IFERROR(INDEX($N$8:$Y$49,$AB42,COLUMNS($M$8:W42)),"") ->  | AO42: =IFERROR(INDEX($N$8:$Y$49,$AB42,COLUMNS($M$8:X42)),"") ->  | AP42: 35 | AR42: =IFERROR(SMALL($AQ$8:$AQ$49,ROWS($AQ$8:AQ42)),"") ->  | AT42: =IFERROR(INDEX($AD$8:$AO$49,$AR42,COLUMNS($M$8:M42)),"") ->  | AU42: =IFERROR(INDEX($AD$8:$AO$49,$AR42,COLUMNS($M$8:N42)),"") ->  | AV42: =IFERROR(INDEX($AD$8:$AO$49,$AR42,COLUMNS($M$8:O42)),"") ->  | AW42: =IFERROR(INDEX($AD$8:$AO$49,$AR42,COLUMNS($M$8:P42)),"") ->  | AX42: =IFERROR(INDEX($AD$8:$AO$49,$AR42,COLUMNS($M$8:Q42)),"") ->  | AY42: =IFERROR(INDEX($AD$8:$AO$49,$AR42,COLUMNS($M$8:R42)),"") ->  | AZ42: =IFERROR(INDEX($AD$8:$AO$49,$AR42,COLUMNS($M$8:S42)),"") ->  | BA42: =IFERROR(INDEX($AD$8:$AO$49,$AR42,COLUMNS($M$8:T42)),"") ->  | BB42: =IFERROR(INDEX($AD$8:$AO$49,$AR42,COLUMNS($M$8:U42)),"") ->  | BC42: =IFERROR(INDEX($AD$8:$AO$49,$AR42,COLUMNS($M$8:V42)),"") ->  | BD42: =IFERROR(INDEX($AD$8:$AO$49,$AR42,COLUMNS($M$8:W42)),"") ->  | BE42: =IFERROR(INDEX($AD$8:$AO$49,$AR42,COLUMNS($M$8:X42)),"") ->  | BF42: 35 | BH42: =IFERROR(SMALL($BG$8:$BG$49,ROWS($BG$8:BG42)),"") ->  | BJ42: =IFERROR(INDEX($AT$8:$BE$46,$BH42,COLUMNS($AT$8:AT42)),"") ->  | BK42: =IFERROR(INDEX($AT$8:$BE$46,$BH42,COLUMNS($AT$8:AU42)),"") ->  | BL42: =IFERROR(INDEX($AT$8:$BE$46,$BH42,COLUMNS($AT$8:AV42)),"") ->  | BM42: =IFERROR(INDEX($AT$8:$BE$46,$BH42,COLUMNS($AT$8:AW42)),"") ->  | BN42: =IFERROR(INDEX($AT$8:$BE$46,$BH42,COLUMNS($AT$8:AX42)),"") ->  | BO42: =IFERROR(INDEX($AT$8:$BE$46,$BH42,COLUMNS($AT$8:AY42)),"") ->  | BP42: =IFERROR(INDEX($AT$8:$BE$46,$BH42,COLUMNS($AT$8:AZ42)),"") ->  | BQ42: =IFERROR(INDEX($AT$8:$BE$46,$BH42,COLUMNS($AT$8:BA42)),"") ->  | BR42: =IFERROR(INDEX($AT$8:$BE$46,$BH42,COLUMNS($AT$8:BB42)),"") ->  | BS42: =IFERROR(INDEX($AT$8:$BE$46,$BH42,COLUMNS($AT$8:BC42)),"") ->  | BT42: =IFERROR(INDEX($AT$8:$BE$46,$BH42,COLUMNS($AT$8:BD42)),"") ->  | BU42: =IFERROR(INDEX($AT$8:$BE$46,$BH42,COLUMNS($AT$8:BE42)),"") ->  | BV42: 35 | BX42: =IFERROR(SMALL($BW$8:$BW$49,ROWS($BW$8:BW42)),"") ->  | BY42: =INDEX(BM42:$BM$49,1,1) ->  | BZ42: =COUNTIF($BM$8:BM42,BY42) -> 33 | CB42: =IFERROR(SMALL($CA$8:$CA$49,ROWS($CA$8:CA42)),"") ->  | CD42: =IFERROR(INDEX($BJ$8:$BU$46,$BX42,COLUMNS($BI$8:BI42)),"") ->  | CE42: =IFERROR(INDEX($BJ$8:$BU$46,$BX42,COLUMNS($BI$8:BJ42)),"") ->  | CF42: =IFERROR(INDEX($BJ$8:$BU$46,$BX42,COLUMNS($BI$8:BK42)),"") ->  | CG42: =IFERROR(INDEX($BJ$8:$BU$46,$BX42,COLUMNS($BI$8:BL42)),"") ->  | CH42: =IFERROR(INDEX($BJ$8:$BU$46,$BX42,COLUMNS($BI$8:BM42)),"") ->  | CI42: =IFERROR(INDEX($BJ$8:$BU$46,$BX42,COLUMNS($BI$8:BN42)),"") ->  | CJ42: =IFERROR(INDEX($BJ$8:$BU$46,$BX42,COLUMNS($BI$8:BO42)),"") ->  | CK42: =IFERROR(INDEX($BJ$8:$BU$46,$BX42,COLUMNS($BI$8:BP42)),"") ->  | CL42: =IFERROR(INDEX($BJ$8:$BU$46,$BX42,COLUMNS($BI$8:BQ42)),"") ->  | CM42: =IFERROR(INDEX($BJ$8:$BU$46,$BX42,COLUMNS($BI$8:BR42)),"") ->  | CN42: =IFERROR(INDEX($BJ$8:$BU$46,$BX42,COLUMNS($BI$8:BS42)),"") ->  | CO42: =IFERROR(INDEX($BJ$8:$BU$46,$BX42,COLUMNS($BI$8:BT42)),"") ->  | CP42: 35 | CR42: =IFERROR(SMALL($CQ$8:$CQ$49,ROWS($CQ$8:CQ42)),"") ->  | CT42: =IFERROR(INDEX($CD$8:$CO$49,$CR42,COLUMNS($CC$8:CC42)),"") ->  | CU42: =IFERROR(INDEX($CD$8:$CO$49,$CR42,COLUMNS($CC$8:CD42)),"") ->  | CV42: =IFERROR(INDEX($CD$8:$CO$49,$CR42,COLUMNS($CC$8:CE42)),"") ->  | CW42: =IFERROR(INDEX($CD$8:$CO$49,$CR42,COLUMNS($CC$8:CF42)),"") ->  | CX42: =IFERROR(INDEX($CD$8:$CO$49,$CR42,COLUMNS($CC$8:CG42)),"") ->  | CY42: =IFERROR(INDEX($CD$8:$CO$49,$CR42,COLUMNS($CC$8:CH42)),"") ->  | CZ42: =IFERROR(INDEX($CD$8:$CO$49,$CR42,COLUMNS($CC$8:CI42)),"") ->  | DA42: =IFERROR(INDEX($CD$8:$CO$49,$CR42,COLUMNS($CC$8:CJ42)),"") ->  | DB42: =IFERROR(INDEX($CD$8:$CO$49,$CR42,COLUMNS($CC$8:CK42)),"") ->  | DC42: =IFERROR(INDEX($CD$8:$CO$49,$CR42,COLUMNS($CC$8:CL42)),"") ->  | DD42: =IFERROR(INDEX($CD$8:$CO$49,$CR42,COLUMNS($CC$8:CM42)),"") ->  | DE42: =IFERROR(INDEX($CD$8:$CO$49,$CR42,COLUMNS($CC$8:CN42)),"") -> 
N43: SFH 4716S | O43: Max Rated Pulsed operation | P43: 850 | Q43: 75 | R43: =4.2*250 -> 1050 | S43: 5000 | T43: 3.55 | U43: 0.01 | V43: 0.00035 | W43: 1 | X43: 15 | Y43: Non Automotive | Z43: 36 | AB43: =IFERROR(SMALL($AA$8:$AA$49,ROWS($AA$8:AA43)),"") ->  | AD43: =IFERROR(INDEX($N$8:$Y$49,$AB43,COLUMNS($M$8:M43)),"") ->  | AE43: =IFERROR(INDEX($N$8:$Y$49,$AB43,COLUMNS($M$8:N43)),"") ->  | AF43: =IFERROR(INDEX($N$8:$Y$49,$AB43,COLUMNS($M$8:O43)),"") ->  | AG43: =IFERROR(INDEX($N$8:$Y$49,$AB43,COLUMNS($M$8:P43)),"") ->  | AH43: =IFERROR(INDEX($N$8:$Y$49,$AB43,COLUMNS($M$8:Q43)),"") ->  | AI43: =IFERROR(INDEX($N$8:$Y$49,$AB43,COLUMNS($M$8:R43)),"") ->  | AJ43: =IFERROR(INDEX($N$8:$Y$49,$AB43,COLUMNS($M$8:S43)),"") ->  | AK43: =IFERROR(INDEX($N$8:$Y$49,$AB43,COLUMNS($M$8:T43)),"") ->  | AL43: =IFERROR(INDEX($N$8:$Y$49,$AB43,COLUMNS($M$8:U43)),"") ->  | AM43: =IFERROR(INDEX($N$8:$Y$49,$AB43,COLUMNS($M$8:V43)),"") ->  | AN43: =IFERROR(INDEX($N$8:$Y$49,$AB43,COLUMNS($M$8:W43)),"") ->  | AO43: =IFERROR(INDEX($N$8:$Y$49,$AB43,COLUMNS($M$8:X43)),"") ->  | AP43: 36 | AR43: =IFERROR(SMALL($AQ$8:$AQ$49,ROWS($AQ$8:AQ43)),"") ->  | AT43: =IFERROR(INDEX($AD$8:$AO$49,$AR43,COLUMNS($M$8:M43)),"") ->  | AU43: =IFERROR(INDEX($AD$8:$AO$49,$AR43,COLUMNS($M$8:N43)),"") ->  | AV43: =IFERROR(INDEX($AD$8:$AO$49,$AR43,COLUMNS($M$8:O43)),"") ->  | AW43: =IFERROR(INDEX($AD$8:$AO$49,$AR43,COLUMNS($M$8:P43)),"") ->  | AX43: =IFERROR(INDEX($AD$8:$AO$49,$AR43,COLUMNS($M$8:Q43)),"") ->  | AY43: =IFERROR(INDEX($AD$8:$AO$49,$AR43,COLUMNS($M$8:R43)),"") ->  | AZ43: =IFERROR(INDEX($AD$8:$AO$49,$AR43,COLUMNS($M$8:S43)),"") ->  | BA43: =IFERROR(INDEX($AD$8:$AO$49,$AR43,COLUMNS($M$8:T43)),"") ->  | BB43: =IFERROR(INDEX($AD$8:$AO$49,$AR43,COLUMNS($M$8:U43)),"") ->  | BC43: =IFERROR(INDEX($AD$8:$AO$49,$AR43,COLUMNS($M$8:V43)),"") ->  | BD43: =IFERROR(INDEX($AD$8:$AO$49,$AR43,COLUMNS($M$8:W43)),"") ->  | BE43: =IFERROR(INDEX($AD$8:$AO$49,$AR43,COLUMNS($M$8:X43)),"") ->  | BF43: 36 | BH43: =IFERROR(SMALL($BG$8:$BG$49,ROWS($BG$8:BG43)),"") ->  | BJ43: =IFERROR(INDEX($AT$8:$BE$46,$BH43,COLUMNS($AT$8:AT43)),"") ->  | BK43: =IFERROR(INDEX($AT$8:$BE$46,$BH43,COLUMNS($AT$8:AU43)),"") ->  | BL43: =IFERROR(INDEX($AT$8:$BE$46,$BH43,COLUMNS($AT$8:AV43)),"") ->  | BM43: =IFERROR(INDEX($AT$8:$BE$46,$BH43,COLUMNS($AT$8:AW43)),"") ->  | BN43: =IFERROR(INDEX($AT$8:$BE$46,$BH43,COLUMNS($AT$8:AX43)),"") ->  | BO43: =IFERROR(INDEX($AT$8:$BE$46,$BH43,COLUMNS($AT$8:AY43)),"") ->  | BP43: =IFERROR(INDEX($AT$8:$BE$46,$BH43,COLUMNS($AT$8:AZ43)),"") ->  | BQ43: =IFERROR(INDEX($AT$8:$BE$46,$BH43,COLUMNS($AT$8:BA43)),"") ->  | BR43: =IFERROR(INDEX($AT$8:$BE$46,$BH43,COLUMNS($AT$8:BB43)),"") ->  | BS43: =IFERROR(INDEX($AT$8:$BE$46,$BH43,COLUMNS($AT$8:BC43)),"") ->  | BT43: =IFERROR(INDEX($AT$8:$BE$46,$BH43,COLUMNS($AT$8:BD43)),"") ->  | BU43: =IFERROR(INDEX($AT$8:$BE$46,$BH43,COLUMNS($AT$8:BE43)),"") ->  | BV43: 36 | BX43: =IFERROR(SMALL($BW$8:$BW$49,ROWS($BW$8:BW43)),"") ->  | BY43: =INDEX(BM43:$BM$49,1,1) ->  | BZ43: =COUNTIF($BM$8:BM43,BY43) -> 34 | CB43: =IFERROR(SMALL($CA$8:$CA$49,ROWS($CA$8:CA43)),"") ->  | CD43: =IFERROR(INDEX($BJ$8:$BU$46,$BX43,COLUMNS($BI$8:BI43)),"") ->  | CE43: =IFERROR(INDEX($BJ$8:$BU$46,$BX43,COLUMNS($BI$8:BJ43)),"") ->  | CF43: =IFERROR(INDEX($BJ$8:$BU$46,$BX43,COLUMNS($BI$8:BK43)),"") ->  | CG43: =IFERROR(INDEX($BJ$8:$BU$46,$BX43,COLUMNS($BI$8:BL43)),"") ->  | CH43: =IFERROR(INDEX($BJ$8:$BU$46,$BX43,COLUMNS($BI$8:BM43)),"") ->  | CI43: =IFERROR(INDEX($BJ$8:$BU$46,$BX43,COLUMNS($BI$8:BN43)),"") ->  | CJ43: =IFERROR(INDEX($BJ$8:$BU$46,$BX43,COLUMNS($BI$8:BO43)),"") ->  | CK43: =IFERROR(INDEX($BJ$8:$BU$46,$BX43,COLUMNS($BI$8:BP43)),"") ->  | CL43: =IFERROR(INDEX($BJ$8:$BU$46,$BX43,COLUMNS($BI$8:BQ43)),"") ->  | CM43: =IFERROR(INDEX($BJ$8:$BU$46,$BX43,COLUMNS($BI$8:BR43)),"") ->  | CN43: =IFERROR(INDEX($BJ$8:$BU$46,$BX43,COLUMNS($BI$8:BS43)),"") ->  | CO43: =IFERROR(INDEX($BJ$8:$BU$46,$BX43,COLUMNS($BI$8:BT43)),"") ->  | CP43: 36 | CR43: =IFERROR(SMALL($CQ$8:$CQ$49,ROWS($CQ$8:CQ43)),"") ->  | CT43: =IFERROR(INDEX($CD$8:$CO$49,$CR43,COLUMNS($CC$8:CC43)),"") ->  | CU43: =IFERROR(INDEX($CD$8:$CO$49,$CR43,COLUMNS($CC$8:CD43)),"") ->  | CV43: =IFERROR(INDEX($CD$8:$CO$49,$CR43,COLUMNS($CC$8:CE43)),"") ->  | CW43: =IFERROR(INDEX($CD$8:$CO$49,$CR43,COLUMNS($CC$8:CF43)),"") ->  | CX43: =IFERROR(INDEX($CD$8:$CO$49,$CR43,COLUMNS($CC$8:CG43)),"") ->  | CY43: =IFERROR(INDEX($CD$8:$CO$49,$CR43,COLUMNS($CC$8:CH43)),"") ->  | CZ43: =IFERROR(INDEX($CD$8:$CO$49,$CR43,COLUMNS($CC$8:CI43)),"") ->  | DA43: =IFERROR(INDEX($CD$8:$CO$49,$CR43,COLUMNS($CC$8:CJ43)),"") ->  | DB43: =IFERROR(INDEX($CD$8:$CO$49,$CR43,COLUMNS($CC$8:CK43)),"") ->  | DC43: =IFERROR(INDEX($CD$8:$CO$49,$CR43,COLUMNS($CC$8:CL43)),"") ->  | DD43: =IFERROR(INDEX($CD$8:$CO$49,$CR43,COLUMNS($CC$8:CM43)),"") ->  | DE43: =IFERROR(INDEX($CD$8:$CO$49,$CR43,COLUMNS($CC$8:CN43)),"") -> 
D44: Irradiance at Camera Imager: | E44: =E42/(I11)^2 -> 0.00349001962 | F44: mW/cm2 | G44: Irradiance at Camera Imager: | H44: =H42/(I11)^2 -> 0.01526883584 | I44: mW/cm2 | N44: SFH 4716AS A01 | O44: Max Rated Pulsed operation | P44: 850 | Q44: 75 | R44: =4.1*320 -> 1312 | S44: 5000 | T44: 3.5 | U44: 0.01 | V44: 0.001 | W44: 1 | X44: 16 | Y44: Automotive | Z44: 37 | AA44: 37 | AB44: =IFERROR(SMALL($AA$8:$AA$49,ROWS($AA$8:AA44)),"") ->  | AD44: =IFERROR(INDEX($N$8:$Y$49,$AB44,COLUMNS($M$8:M44)),"") ->  | AE44: =IFERROR(INDEX($N$8:$Y$49,$AB44,COLUMNS($M$8:N44)),"") ->  | AF44: =IFERROR(INDEX($N$8:$Y$49,$AB44,COLUMNS($M$8:O44)),"") ->  | AG44: =IFERROR(INDEX($N$8:$Y$49,$AB44,COLUMNS($M$8:P44)),"") ->  | AH44: =IFERROR(INDEX($N$8:$Y$49,$AB44,COLUMNS($M$8:Q44)),"") ->  | AI44: =IFERROR(INDEX($N$8:$Y$49,$AB44,COLUMNS($M$8:R44)),"") ->  | AJ44: =IFERROR(INDEX($N$8:$Y$49,$AB44,COLUMNS($M$8:S44)),"") ->  | AK44: =IFERROR(INDEX($N$8:$Y$49,$AB44,COLUMNS($M$8:T44)),"") ->  | AL44: =IFERROR(INDEX($N$8:$Y$49,$AB44,COLUMNS($M$8:U44)),"") ->  | AM44: =IFERROR(INDEX($N$8:$Y$49,$AB44,COLUMNS($M$8:V44)),"") ->  | AN44: =IFERROR(INDEX($N$8:$Y$49,$AB44,COLUMNS($M$8:W44)),"") ->  | AO44: =IFERROR(INDEX($N$8:$Y$49,$AB44,COLUMNS($M$8:X44)),"") ->  | AP44: 37 | AR44: =IFERROR(SMALL($AQ$8:$AQ$49,ROWS($AQ$8:AQ44)),"") ->  | AT44: =IFERROR(INDEX($AD$8:$AO$49,$AR44,COLUMNS($M$8:M44)),"") ->  | AU44: =IFERROR(INDEX($AD$8:$AO$49,$AR44,COLUMNS($M$8:N44)),"") ->  | AV44: =IFERROR(INDEX($AD$8:$AO$49,$AR44,COLUMNS($M$8:O44)),"") ->  | AW44: =IFERROR(INDEX($AD$8:$AO$49,$AR44,COLUMNS($M$8:P44)),"") ->  | AX44: =IFERROR(INDEX($AD$8:$AO$49,$AR44,COLUMNS($M$8:Q44)),"") ->  | AY44: =IFERROR(INDEX($AD$8:$AO$49,$AR44,COLUMNS($M$8:R44)),"") ->  | AZ44: =IFERROR(INDEX($AD$8:$AO$49,$AR44,COLUMNS($M$8:S44)),"") ->  | BA44: =IFERROR(INDEX($AD$8:$AO$49,$AR44,COLUMNS($M$8:T44)),"") ->  | BB44: =IFERROR(INDEX($AD$8:$AO$49,$AR44,COLUMNS($M$8:U44)),"") ->  | BC44: =IFERROR(INDEX($AD$8:$AO$49,$AR44,COLUMNS($M$8:V44)),"") ->  | BD44: =IFERROR(INDEX($AD$8:$AO$49,$AR44,COLUMNS($M$8:W44)),"") ->  | BE44: =IFERROR(INDEX($AD$8:$AO$49,$AR44,COLUMNS($M$8:X44)),"") ->  | BF44: 37 | BH44: =IFERROR(SMALL($BG$8:$BG$49,ROWS($BG$8:BG44)),"") ->  | BJ44: =IFERROR(INDEX($AT$8:$BE$46,$BH44,COLUMNS($AT$8:AT44)),"") ->  | BK44: =IFERROR(INDEX($AT$8:$BE$46,$BH44,COLUMNS($AT$8:AU44)),"") ->  | BL44: =IFERROR(INDEX($AT$8:$BE$46,$BH44,COLUMNS($AT$8:AV44)),"") ->  | BM44: =IFERROR(INDEX($AT$8:$BE$46,$BH44,COLUMNS($AT$8:AW44)),"") ->  | BN44: =IFERROR(INDEX($AT$8:$BE$46,$BH44,COLUMNS($AT$8:AX44)),"") ->  | BO44: =IFERROR(INDEX($AT$8:$BE$46,$BH44,COLUMNS($AT$8:AY44)),"") ->  | BP44: =IFERROR(INDEX($AT$8:$BE$46,$BH44,COLUMNS($AT$8:AZ44)),"") ->  | BQ44: =IFERROR(INDEX($AT$8:$BE$46,$BH44,COLUMNS($AT$8:BA44)),"") ->  | BR44: =IFERROR(INDEX($AT$8:$BE$46,$BH44,COLUMNS($AT$8:BB44)),"") ->  | BS44: =IFERROR(INDEX($AT$8:$BE$46,$BH44,COLUMNS($AT$8:BC44)),"") ->  | BT44: =IFERROR(INDEX($AT$8:$BE$46,$BH44,COLUMNS($AT$8:BD44)),"") ->  | BU44: =IFERROR(INDEX($AT$8:$BE$46,$BH44,COLUMNS($AT$8:BE44)),"") ->  | BV44: 37 | BX44: =IFERROR(SMALL($BW$8:$BW$49,ROWS($BW$8:BW44)),"") ->  | BY44: =INDEX(BM44:$BM$49,1,1) ->  | BZ44: =COUNTIF($BM$8:BM44,BY44) -> 35 | CB44: =IFERROR(SMALL($CA$8:$CA$49,ROWS($CA$8:CA44)),"") ->  | CD44: =IFERROR(INDEX($BJ$8:$BU$46,$BX44,COLUMNS($BI$8:BI44)),"") ->  | CE44: =IFERROR(INDEX($BJ$8:$BU$46,$BX44,COLUMNS($BI$8:BJ44)),"") ->  | CF44: =IFERROR(INDEX($BJ$8:$BU$46,$BX44,COLUMNS($BI$8:BK44)),"") ->  | CG44: =IFERROR(INDEX($BJ$8:$BU$46,$BX44,COLUMNS($BI$8:BL44)),"") ->  | CH44: =IFERROR(INDEX($BJ$8:$BU$46,$BX44,COLUMNS($BI$8:BM44)),"") ->  | CI44: =IFERROR(INDEX($BJ$8:$BU$46,$BX44,COLUMNS($BI$8:BN44)),"") ->  | CJ44: =IFERROR(INDEX($BJ$8:$BU$46,$BX44,COLUMNS($BI$8:BO44)),"") ->  | CK44: =IFERROR(INDEX($BJ$8:$BU$46,$BX44,COLUMNS($BI$8:BP44)),"") ->  | CL44: =IFERROR(INDEX($BJ$8:$BU$46,$BX44,COLUMNS($BI$8:BQ44)),"") ->  | CM44: =IFERROR(INDEX($BJ$8:$BU$46,$BX44,COLUMNS($BI$8:BR44)),"") ->  | CN44: =IFERROR(INDEX($BJ$8:$BU$46,$BX44,COLUMNS($BI$8:BS44)),"") ->  | CO44: =IFERROR(INDEX($BJ$8:$BU$46,$BX44,COLUMNS($BI$8:BT44)),"") ->  | CP44: 37 | CR44: =IFERROR(SMALL($CQ$8:$CQ$49,ROWS($CQ$8:CQ44)),"") ->  | CT44: =IFERROR(INDEX($CD$8:$CO$49,$CR44,COLUMNS($CC$8:CC44)),"") ->  | CU44: =IFERROR(INDEX($CD$8:$CO$49,$CR44,COLUMNS($CC$8:CD44)),"") ->  | CV44: =IFERROR(INDEX($CD$8:$CO$49,$CR44,COLUMNS($CC$8:CE44)),"") ->  | CW44: =IFERROR(INDEX($CD$8:$CO$49,$CR44,COLUMNS($CC$8:CF44)),"") ->  | CX44: =IFERROR(INDEX($CD$8:$CO$49,$CR44,COLUMNS($CC$8:CG44)),"") ->  | CY44: =IFERROR(INDEX($CD$8:$CO$49,$CR44,COLUMNS($CC$8:CH44)),"") ->  | CZ44: =IFERROR(INDEX($CD$8:$CO$49,$CR44,COLUMNS($CC$8:CI44)),"") ->  | DA44: =IFERROR(INDEX($CD$8:$CO$49,$CR44,COLUMNS($CC$8:CJ44)),"") ->  | DB44: =IFERROR(INDEX($CD$8:$CO$49,$CR44,COLUMNS($CC$8:CK44)),"") ->  | DC44: =IFERROR(INDEX($CD$8:$CO$49,$CR44,COLUMNS($CC$8:CL44)),"") ->  | DD44: =IFERROR(INDEX($CD$8:$CO$49,$CR44,COLUMNS($CC$8:CM44)),"") ->  | DE44: =IFERROR(INDEX($CD$8:$CO$49,$CR44,COLUMNS($CC$8:CN44)),"") -> 
E45: =E44*1000 -> 3.49001962 | F45: µw/cm2 | H45: =H44*1000 -> 15.26883584 | I45: µw/cm2 | N45: SFH 4725AS A01 | O45: Max Rated Pulsed operation | P45: 940 | Q45: 40 | R45: =800*4.2 -> 3360 | S45: 5000 | T45: 3.2 | U45: 0.01 | V45: 0.0008 | W45: 1 | X45: 17 | Y45: Automotive | Z45: 38 | AA45: 38 | AB45: =IFERROR(SMALL($AA$8:$AA$49,ROWS($AA$8:AA45)),"") ->  | AD45: =IFERROR(INDEX($N$8:$Y$49,$AB45,COLUMNS($M$8:M45)),"") ->  | AE45: =IFERROR(INDEX($N$8:$Y$49,$AB45,COLUMNS($M$8:N45)),"") ->  | AF45: =IFERROR(INDEX($N$8:$Y$49,$AB45,COLUMNS($M$8:O45)),"") ->  | AG45: =IFERROR(INDEX($N$8:$Y$49,$AB45,COLUMNS($M$8:P45)),"") ->  | AH45: =IFERROR(INDEX($N$8:$Y$49,$AB45,COLUMNS($M$8:Q45)),"") ->  | AI45: =IFERROR(INDEX($N$8:$Y$49,$AB45,COLUMNS($M$8:R45)),"") ->  | AJ45: =IFERROR(INDEX($N$8:$Y$49,$AB45,COLUMNS($M$8:S45)),"") ->  | AK45: =IFERROR(INDEX($N$8:$Y$49,$AB45,COLUMNS($M$8:T45)),"") ->  | AL45: =IFERROR(INDEX($N$8:$Y$49,$AB45,COLUMNS($M$8:U45)),"") ->  | AM45: =IFERROR(INDEX($N$8:$Y$49,$AB45,COLUMNS($M$8:V45)),"") ->  | AN45: =IFERROR(INDEX($N$8:$Y$49,$AB45,COLUMNS($M$8:W45)),"") ->  | AO45: =IFERROR(INDEX($N$8:$Y$49,$AB45,COLUMNS($M$8:X45)),"") ->  | AP45: 38 | AR45: =IFERROR(SMALL($AQ$8:$AQ$49,ROWS($AQ$8:AQ45)),"") ->  | AT45: =IFERROR(INDEX($AD$8:$AO$49,$AR45,COLUMNS($M$8:M45)),"") ->  | AU45: =IFERROR(INDEX($AD$8:$AO$49,$AR45,COLUMNS($M$8:N45)),"") ->  | AV45: =IFERROR(INDEX($AD$8:$AO$49,$AR45,COLUMNS($M$8:O45)),"") ->  | AW45: =IFERROR(INDEX($AD$8:$AO$49,$AR45,COLUMNS($M$8:P45)),"") ->  | AX45: =IFERROR(INDEX($AD$8:$AO$49,$AR45,COLUMNS($M$8:Q45)),"") ->  | AY45: =IFERROR(INDEX($AD$8:$AO$49,$AR45,COLUMNS($M$8:R45)),"") ->  | AZ45: =IFERROR(INDEX($AD$8:$AO$49,$AR45,COLUMNS($M$8:S45)),"") ->  | BA45: =IFERROR(INDEX($AD$8:$AO$49,$AR45,COLUMNS($M$8:T45)),"") ->  | BB45: =IFERROR(INDEX($AD$8:$AO$49,$AR45,COLUMNS($M$8:U45)),"") ->  | BC45: =IFERROR(INDEX($AD$8:$AO$49,$AR45,COLUMNS($M$8:V45)),"") ->  | BD45: =IFERROR(INDEX($AD$8:$AO$49,$AR45,COLUMNS($M$8:W45)),"") ->  | BE45: =IFERROR(INDEX($AD$8:$AO$49,$AR45,COLUMNS($M$8:X45)),"") ->  | BF45: 38 | BH45: =IFERROR(SMALL($BG$8:$BG$49,ROWS($BG$8:BG45)),"") ->  | BJ45: =IFERROR(INDEX($AT$8:$BE$46,$BH45,COLUMNS($AT$8:AT45)),"") ->  | BK45: =IFERROR(INDEX($AT$8:$BE$46,$BH45,COLUMNS($AT$8:AU45)),"") ->  | BL45: =IFERROR(INDEX($AT$8:$BE$46,$BH45,COLUMNS($AT$8:AV45)),"") ->  | BM45: =IFERROR(INDEX($AT$8:$BE$46,$BH45,COLUMNS($AT$8:AW45)),"") ->  | BN45: =IFERROR(INDEX($AT$8:$BE$46,$BH45,COLUMNS($AT$8:AX45)),"") ->  | BO45: =IFERROR(INDEX($AT$8:$BE$46,$BH45,COLUMNS($AT$8:AY45)),"") ->  | BP45: =IFERROR(INDEX($AT$8:$BE$46,$BH45,COLUMNS($AT$8:AZ45)),"") ->  | BQ45: =IFERROR(INDEX($AT$8:$BE$46,$BH45,COLUMNS($AT$8:BA45)),"") ->  | BR45: =IFERROR(INDEX($AT$8:$BE$46,$BH45,COLUMNS($AT$8:BB45)),"") ->  | BS45: =IFERROR(INDEX($AT$8:$BE$46,$BH45,COLUMNS($AT$8:BC45)),"") ->  | BT45: =IFERROR(INDEX($AT$8:$BE$46,$BH45,COLUMNS($AT$8:BD45)),"") ->  | BU45: =IFERROR(INDEX($AT$8:$BE$46,$BH45,COLUMNS($AT$8:BE45)),"") ->  | BV45: 38 | BX45: =IFERROR(SMALL($BW$8:$BW$49,ROWS($BW$8:BW45)),"") ->  | BY45: =INDEX(BM45:$BM$49,1,1) ->  | BZ45: =COUNTIF($BM$8:BM45,BY45) -> 36 | CB45: =IFERROR(SMALL($CA$8:$CA$49,ROWS($CA$8:CA45)),"") ->  | CD45: =IFERROR(INDEX($BJ$8:$BU$46,$BX45,COLUMNS($BI$8:BI45)),"") ->  | CE45: =IFERROR(INDEX($BJ$8:$BU$46,$BX45,COLUMNS($BI$8:BJ45)),"") ->  | CF45: =IFERROR(INDEX($BJ$8:$BU$46,$BX45,COLUMNS($BI$8:BK45)),"") ->  | CG45: =IFERROR(INDEX($BJ$8:$BU$46,$BX45,COLUMNS($BI$8:BL45)),"") ->  | CH45: =IFERROR(INDEX($BJ$8:$BU$46,$BX45,COLUMNS($BI$8:BM45)),"") ->  | CI45: =IFERROR(INDEX($BJ$8:$BU$46,$BX45,COLUMNS($BI$8:BN45)),"") ->  | CJ45: =IFERROR(INDEX($BJ$8:$BU$46,$BX45,COLUMNS($BI$8:BO45)),"") ->  | CK45: =IFERROR(INDEX($BJ$8:$BU$46,$BX45,COLUMNS($BI$8:BP45)),"") ->  | CL45: =IFERROR(INDEX($BJ$8:$BU$46,$BX45,COLUMNS($BI$8:BQ45)),"") ->  | CM45: =IFERROR(INDEX($BJ$8:$BU$46,$BX45,COLUMNS($BI$8:BR45)),"") ->  | CN45: =IFERROR(INDEX($BJ$8:$BU$46,$BX45,COLUMNS($BI$8:BS45)),"") ->  | CO45: =IFERROR(INDEX($BJ$8:$BU$46,$BX45,COLUMNS($BI$8:BT45)),"") ->  | CP45: 38 | CR45: =IFERROR(SMALL($CQ$8:$CQ$49,ROWS($CQ$8:CQ45)),"") ->  | CT45: =IFERROR(INDEX($CD$8:$CO$49,$CR45,COLUMNS($CC$8:CC45)),"") ->  | CU45: =IFERROR(INDEX($CD$8:$CO$49,$CR45,COLUMNS($CC$8:CD45)),"") ->  | CV45: =IFERROR(INDEX($CD$8:$CO$49,$CR45,COLUMNS($CC$8:CE45)),"") ->  | CW45: =IFERROR(INDEX($CD$8:$CO$49,$CR45,COLUMNS($CC$8:CF45)),"") ->  | CX45: =IFERROR(INDEX($CD$8:$CO$49,$CR45,COLUMNS($CC$8:CG45)),"") ->  | CY45: =IFERROR(INDEX($CD$8:$CO$49,$CR45,COLUMNS($CC$8:CH45)),"") ->  | CZ45: =IFERROR(INDEX($CD$8:$CO$49,$CR45,COLUMNS($CC$8:CI45)),"") ->  | DA45: =IFERROR(INDEX($CD$8:$CO$49,$CR45,COLUMNS($CC$8:CJ45)),"") ->  | DB45: =IFERROR(INDEX($CD$8:$CO$49,$CR45,COLUMNS($CC$8:CK45)),"") ->  | DC45: =IFERROR(INDEX($CD$8:$CO$49,$CR45,COLUMNS($CC$8:CL45)),"") ->  | DD45: =IFERROR(INDEX($CD$8:$CO$49,$CR45,COLUMNS($CC$8:CM45)),"") ->  | DE45: =IFERROR(INDEX($CD$8:$CO$49,$CR45,COLUMNS($CC$8:CN45)),"") -> 
N46: SFH 4727AS A01 | O46: Max Rated Pulsed operation | P46: 940 | Q46: 25 | R46: =4.2*1250 -> 5250 | S46: 5000 | T46: 3.2 | U46: 0.01 | V46: 0.0005 | W46: 1 | X46: 18 | Y46: Automotive | Z46: 39 | AA46: 39 | AB46: =IFERROR(SMALL($AA$8:$AA$49,ROWS($AA$8:AA46)),"") ->  | AD46: =IFERROR(INDEX($N$8:$Y$49,$AB46,COLUMNS($M$8:M46)),"") ->  | AE46: =IFERROR(INDEX($N$8:$Y$49,$AB46,COLUMNS($M$8:N46)),"") ->  | AF46: =IFERROR(INDEX($N$8:$Y$49,$AB46,COLUMNS($M$8:O46)),"") ->  | AG46: =IFERROR(INDEX($N$8:$Y$49,$AB46,COLUMNS($M$8:P46)),"") ->  | AH46: =IFERROR(INDEX($N$8:$Y$49,$AB46,COLUMNS($M$8:Q46)),"") ->  | AI46: =IFERROR(INDEX($N$8:$Y$49,$AB46,COLUMNS($M$8:R46)),"") ->  | AJ46: =IFERROR(INDEX($N$8:$Y$49,$AB46,COLUMNS($M$8:S46)),"") ->  | AK46: =IFERROR(INDEX($N$8:$Y$49,$AB46,COLUMNS($M$8:T46)),"") ->  | AL46: =IFERROR(INDEX($N$8:$Y$49,$AB46,COLUMNS($M$8:U46)),"") ->  | AM46: =IFERROR(INDEX($N$8:$Y$49,$AB46,COLUMNS($M$8:V46)),"") ->  | AN46: =IFERROR(INDEX($N$8:$Y$49,$AB46,COLUMNS($M$8:W46)),"") ->  | AO46: =IFERROR(INDEX($N$8:$Y$49,$AB46,COLUMNS($M$8:X46)),"") ->  | AP46: 39 | AR46: =IFERROR(SMALL($AQ$8:$AQ$49,ROWS($AQ$8:AQ46)),"") ->  | AT46: =IFERROR(INDEX($AD$8:$AO$49,$AR46,COLUMNS($M$8:M46)),"") ->  | AU46: =IFERROR(INDEX($AD$8:$AO$49,$AR46,COLUMNS($M$8:N46)),"") ->  | AV46: =IFERROR(INDEX($AD$8:$AO$49,$AR46,COLUMNS($M$8:O46)),"") ->  | AW46: =IFERROR(INDEX($AD$8:$AO$49,$AR46,COLUMNS($M$8:P46)),"") ->  | AX46: =IFERROR(INDEX($AD$8:$AO$49,$AR46,COLUMNS($M$8:Q46)),"") ->  | AY46: =IFERROR(INDEX($AD$8:$AO$49,$AR46,COLUMNS($M$8:R46)),"") ->  | AZ46: =IFERROR(INDEX($AD$8:$AO$49,$AR46,COLUMNS($M$8:S46)),"") ->  | BA46: =IFERROR(INDEX($AD$8:$AO$49,$AR46,COLUMNS($M$8:T46)),"") ->  | BB46: =IFERROR(INDEX($AD$8:$AO$49,$AR46,COLUMNS($M$8:U46)),"") ->  | BC46: =IFERROR(INDEX($AD$8:$AO$49,$AR46,COLUMNS($M$8:V46)),"") ->  | BD46: =IFERROR(INDEX($AD$8:$AO$49,$AR46,COLUMNS($M$8:W46)),"") ->  | BE46: =IFERROR(INDEX($AD$8:$AO$49,$AR46,COLUMNS($M$8:X46)),"") ->  | BF46: 39 | BH46: =IFERROR(SMALL($BG$8:$BG$49,ROWS($BG$8:BG46)),"") ->  | BJ46: =IFERROR(INDEX($AT$8:$BE$46,$BH46,COLUMNS($AT$8:AT46)),"") ->  | BK46: =IFERROR(INDEX($AT$8:$BE$46,$BH46,COLUMNS($AT$8:AU46)),"") ->  | BL46: =IFERROR(INDEX($AT$8:$BE$46,$BH46,COLUMNS($AT$8:AV46)),"") ->  | BM46: =IFERROR(INDEX($AT$8:$BE$46,$BH46,COLUMNS($AT$8:AW46)),"") ->  | BN46: =IFERROR(INDEX($AT$8:$BE$46,$BH46,COLUMNS($AT$8:AX46)),"") ->  | BO46: =IFERROR(INDEX($AT$8:$BE$46,$BH46,COLUMNS($AT$8:AY46)),"") ->  | BP46: =IFERROR(INDEX($AT$8:$BE$46,$BH46,COLUMNS($AT$8:AZ46)),"") ->  | BQ46: =IFERROR(INDEX($AT$8:$BE$46,$BH46,COLUMNS($AT$8:BA46)),"") ->  | BR46: =IFERROR(INDEX($AT$8:$BE$46,$BH46,COLUMNS($AT$8:BB46)),"") ->  | BS46: =IFERROR(INDEX($AT$8:$BE$46,$BH46,COLUMNS($AT$8:BC46)),"") ->  | BT46: =IFERROR(INDEX($AT$8:$BE$46,$BH46,COLUMNS($AT$8:BD46)),"") ->  | BU46: =IFERROR(INDEX($AT$8:$BE$46,$BH46,COLUMNS($AT$8:BE46)),"") ->  | BV46: 39 | BX46: =IFERROR(SMALL($BW$8:$BW$49,ROWS($BW$8:BW46)),"") ->  | BY46: =INDEX(BM46:$BM$49,1,1) ->  | BZ46: =COUNTIF($BM$8:BM46,BY46) -> 37 | CB46: =IFERROR(SMALL($CA$8:$CA$49,ROWS($CA$8:CA46)),"") ->  | CD46: =IFERROR(INDEX($BJ$8:$BU$46,$BX46,COLUMNS($BI$8:BI46)),"") ->  | CE46: =IFERROR(INDEX($BJ$8:$BU$46,$BX46,COLUMNS($BI$8:BJ46)),"") ->  | CF46: =IFERROR(INDEX($BJ$8:$BU$46,$BX46,COLUMNS($BI$8:BK46)),"") ->  | CG46: =IFERROR(INDEX($BJ$8:$BU$46,$BX46,COLUMNS($BI$8:BL46)),"") ->  | CH46: =IFERROR(INDEX($BJ$8:$BU$46,$BX46,COLUMNS($BI$8:BM46)),"") ->  | CI46: =IFERROR(INDEX($BJ$8:$BU$46,$BX46,COLUMNS($BI$8:BN46)),"") ->  | CJ46: =IFERROR(INDEX($BJ$8:$BU$46,$BX46,COLUMNS($BI$8:BO46)),"") ->  | CK46: =IFERROR(INDEX($BJ$8:$BU$46,$BX46,COLUMNS($BI$8:BP46)),"") ->  | CL46: =IFERROR(INDEX($BJ$8:$BU$46,$BX46,COLUMNS($BI$8:BQ46)),"") ->  | CM46: =IFERROR(INDEX($BJ$8:$BU$46,$BX46,COLUMNS($BI$8:BR46)),"") ->  | CN46: =IFERROR(INDEX($BJ$8:$BU$46,$BX46,COLUMNS($BI$8:BS46)),"") ->  | CO46: =IFERROR(INDEX($BJ$8:$BU$46,$BX46,COLUMNS($BI$8:BT46)),"") ->  | CP46: 39 | CR46: =IFERROR(SMALL($CQ$8:$CQ$49,ROWS($CQ$8:CQ46)),"") ->  | CT46: =IFERROR(INDEX($CD$8:$CO$49,$CR46,COLUMNS($CC$8:CC46)),"") ->  | CU46: =IFERROR(INDEX($CD$8:$CO$49,$CR46,COLUMNS($CC$8:CD46)),"") ->  | CV46: =IFERROR(INDEX($CD$8:$CO$49,$CR46,COLUMNS($CC$8:CE46)),"") ->  | CW46: =IFERROR(INDEX($CD$8:$CO$49,$CR46,COLUMNS($CC$8:CF46)),"") ->  | CX46: =IFERROR(INDEX($CD$8:$CO$49,$CR46,COLUMNS($CC$8:CG46)),"") ->  | CY46: =IFERROR(INDEX($CD$8:$CO$49,$CR46,COLUMNS($CC$8:CH46)),"") ->  | CZ46: =IFERROR(INDEX($CD$8:$CO$49,$CR46,COLUMNS($CC$8:CI46)),"") ->  | DA46: =IFERROR(INDEX($CD$8:$CO$49,$CR46,COLUMNS($CC$8:CJ46)),"") ->  | DB46: =IFERROR(INDEX($CD$8:$CO$49,$CR46,COLUMNS($CC$8:CK46)),"") ->  | DC46: =IFERROR(INDEX($CD$8:$CO$49,$CR46,COLUMNS($CC$8:CL46)),"") ->  | DD46: =IFERROR(INDEX($CD$8:$CO$49,$CR46,COLUMNS($CC$8:CM46)),"") ->  | DE46: =IFERROR(INDEX($CD$8:$CO$49,$CR46,COLUMNS($CC$8:CN46)),"") -> 
B47: Sensor Criteria: | N47: SFH 4725S | O47: Max Rated Pulsed operation | P47: 940 | Q47: 45 | R47: =4.2*630 -> 2646 | S47: 5000 | T47: 3.4 | U47: 0.01 | V47: 0.0003 | W47: 1 | X47: 19 | Y47: Non Automotive | Z47: 40 | AB47: =IFERROR(SMALL($AA$8:$AA$49,ROWS($AA$8:AA47)),"") ->  | AD47: =IFERROR(INDEX($N$8:$Y$49,$AB47,COLUMNS($M$8:M47)),"") ->  | AE47: =IFERROR(INDEX($N$8:$Y$49,$AB47,COLUMNS($M$8:N47)),"") ->  | AF47: =IFERROR(INDEX($N$8:$Y$49,$AB47,COLUMNS($M$8:O47)),"") ->  | AG47: =IFERROR(INDEX($N$8:$Y$49,$AB47,COLUMNS($M$8:P47)),"") ->  | AH47: =IFERROR(INDEX($N$8:$Y$49,$AB47,COLUMNS($M$8:Q47)),"") ->  | AI47: =IFERROR(INDEX($N$8:$Y$49,$AB47,COLUMNS($M$8:R47)),"") ->  | AJ47: =IFERROR(INDEX($N$8:$Y$49,$AB47,COLUMNS($M$8:S47)),"") ->  | AK47: =IFERROR(INDEX($N$8:$Y$49,$AB47,COLUMNS($M$8:T47)),"") ->  | AL47: =IFERROR(INDEX($N$8:$Y$49,$AB47,COLUMNS($M$8:U47)),"") ->  | AM47: =IFERROR(INDEX($N$8:$Y$49,$AB47,COLUMNS($M$8:V47)),"") ->  | AN47: =IFERROR(INDEX($N$8:$Y$49,$AB47,COLUMNS($M$8:W47)),"") ->  | AO47: =IFERROR(INDEX($N$8:$Y$49,$AB47,COLUMNS($M$8:X47)),"") ->  | AP47: 40 | AR47: =IFERROR(SMALL($AQ$8:$AQ$49,ROWS($AQ$8:AQ47)),"") ->  | AT47: =IFERROR(INDEX($AD$8:$AO$49,$AR47,COLUMNS($M$8:M47)),"") ->  | AU47: =IFERROR(INDEX($AD$8:$AO$49,$AR47,COLUMNS($M$8:N47)),"") ->  | AV47: =IFERROR(INDEX($AD$8:$AO$49,$AR47,COLUMNS($M$8:O47)),"") ->  | AW47: =IFERROR(INDEX($AD$8:$AO$49,$AR47,COLUMNS($M$8:P47)),"") ->  | AX47: =IFERROR(INDEX($AD$8:$AO$49,$AR47,COLUMNS($M$8:Q47)),"") ->  | AY47: =IFERROR(INDEX($AD$8:$AO$49,$AR47,COLUMNS($M$8:R47)),"") ->  | AZ47: =IFERROR(INDEX($AD$8:$AO$49,$AR47,COLUMNS($M$8:S47)),"") ->  | BA47: =IFERROR(INDEX($AD$8:$AO$49,$AR47,COLUMNS($M$8:T47)),"") ->  | BB47: =IFERROR(INDEX($AD$8:$AO$49,$AR47,COLUMNS($M$8:U47)),"") ->  | BC47: =IFERROR(INDEX($AD$8:$AO$49,$AR47,COLUMNS($M$8:V47)),"") ->  | BD47: =IFERROR(INDEX($AD$8:$AO$49,$AR47,COLUMNS($M$8:W47)),"") ->  | BE47: =IFERROR(INDEX($AD$8:$AO$49,$AR47,COLUMNS($M$8:X47)),"") ->  | BF47: 40 | BH47: =IFERROR(SMALL($BG$8:$BG$49,ROWS($BG$8:BG47)),"") ->  | BJ47: =IFERROR(INDEX($AT$8:$BE$46,$BH47,COLUMNS($AT$8:AT47)),"") ->  | BK47: =IFERROR(INDEX($AT$8:$BE$46,$BH47,COLUMNS($AT$8:AU47)),"") ->  | BL47: =IFERROR(INDEX($AT$8:$BE$46,$BH47,COLUMNS($AT$8:AV47)),"") ->  | BM47: =IFERROR(INDEX($AT$8:$BE$46,$BH47,COLUMNS($AT$8:AW47)),"") ->  | BN47: =IFERROR(INDEX($AT$8:$BE$46,$BH47,COLUMNS($AT$8:AX47)),"") ->  | BO47: =IFERROR(INDEX($AT$8:$BE$46,$BH47,COLUMNS($AT$8:AY47)),"") ->  | BP47: =IFERROR(INDEX($AT$8:$BE$46,$BH47,COLUMNS($AT$8:AZ47)),"") ->  | BQ47: =IFERROR(INDEX($AT$8:$BE$46,$BH47,COLUMNS($AT$8:BA47)),"") ->  | BR47: =IFERROR(INDEX($AT$8:$BE$46,$BH47,COLUMNS($AT$8:BB47)),"") ->  | BS47: =IFERROR(INDEX($AT$8:$BE$46,$BH47,COLUMNS($AT$8:BC47)),"") ->  | BT47: =IFERROR(INDEX($AT$8:$BE$46,$BH47,COLUMNS($AT$8:BD47)),"") ->  | BU47: =IFERROR(INDEX($AT$8:$BE$46,$BH47,COLUMNS($AT$8:BE47)),"") ->  | BV47: 40 | BX47: =IFERROR(SMALL($BW$8:$BW$49,ROWS($BW$8:BW47)),"") ->  | BY47: =INDEX(BM47:$BM$49,1,1) ->  | BZ47: =COUNTIF($BM$8:BM47,BY47) -> 38 | CB47: =IFERROR(SMALL($CA$8:$CA$49,ROWS($CA$8:CA47)),"") ->  | CD47: =IFERROR(INDEX($BJ$8:$BU$46,$BX47,COLUMNS($BI$8:BI47)),"") ->  | CE47: =IFERROR(INDEX($BJ$8:$BU$46,$BX47,COLUMNS($BI$8:BJ47)),"") ->  | CF47: =IFERROR(INDEX($BJ$8:$BU$46,$BX47,COLUMNS($BI$8:BK47)),"") ->  | CG47: =IFERROR(INDEX($BJ$8:$BU$46,$BX47,COLUMNS($BI$8:BL47)),"") ->  | CH47: =IFERROR(INDEX($BJ$8:$BU$46,$BX47,COLUMNS($BI$8:BM47)),"") ->  | CI47: =IFERROR(INDEX($BJ$8:$BU$46,$BX47,COLUMNS($BI$8:BN47)),"") ->  | CJ47: =IFERROR(INDEX($BJ$8:$BU$46,$BX47,COLUMNS($BI$8:BO47)),"") ->  | CK47: =IFERROR(INDEX($BJ$8:$BU$46,$BX47,COLUMNS($BI$8:BP47)),"") ->  | CL47: =IFERROR(INDEX($BJ$8:$BU$46,$BX47,COLUMNS($BI$8:BQ47)),"") ->  | CM47: =IFERROR(INDEX($BJ$8:$BU$46,$BX47,COLUMNS($BI$8:BR47)),"") ->  | CN47: =IFERROR(INDEX($BJ$8:$BU$46,$BX47,COLUMNS($BI$8:BS47)),"") ->  | CO47: =IFERROR(INDEX($BJ$8:$BU$46,$BX47,COLUMNS($BI$8:BT47)),"") ->  | CP47: 40 | CR47: =IFERROR(SMALL($CQ$8:$CQ$49,ROWS($CQ$8:CQ47)),"") ->  | CT47: =IFERROR(INDEX($CD$8:$CO$49,$CR47,COLUMNS($CC$8:CC47)),"") ->  | CU47: =IFERROR(INDEX($CD$8:$CO$49,$CR47,COLUMNS($CC$8:CD47)),"") ->  | CV47: =IFERROR(INDEX($CD$8:$CO$49,$CR47,COLUMNS($CC$8:CE47)),"") ->  | CW47: =IFERROR(INDEX($CD$8:$CO$49,$CR47,COLUMNS($CC$8:CF47)),"") ->  | CX47: =IFERROR(INDEX($CD$8:$CO$49,$CR47,COLUMNS($CC$8:CG47)),"") ->  | CY47: =IFERROR(INDEX($CD$8:$CO$49,$CR47,COLUMNS($CC$8:CH47)),"") ->  | CZ47: =IFERROR(INDEX($CD$8:$CO$49,$CR47,COLUMNS($CC$8:CI47)),"") ->  | DA47: =IFERROR(INDEX($CD$8:$CO$49,$CR47,COLUMNS($CC$8:CJ47)),"") ->  | DB47: =IFERROR(INDEX($CD$8:$CO$49,$CR47,COLUMNS($CC$8:CK47)),"") ->  | DC47: =IFERROR(INDEX($CD$8:$CO$49,$CR47,COLUMNS($CC$8:CL47)),"") ->  | DD47: =IFERROR(INDEX($CD$8:$CO$49,$CR47,COLUMNS($CC$8:CM47)),"") ->  | DE47: =IFERROR(INDEX($CD$8:$CO$49,$CR47,COLUMNS($CC$8:CN47)),"") -> 
D48: QE @ λ or sensor with associated QE: | E48: SFH 2400 @λ=940 nm | G48: % | H48: Collection Optics FOV: | I48: 180 | J48: ˚ | N48: SFH 4775S | O48: Max Rated Pulsed operation | P48: 940 | Q48: 60 | R48: =545*2.8 -> 1526 | S48: 3000 | T48: 3.3 | U48: 0.01 | V48: 0.0009 | W48: 1 | X48: 20 | Y48: Non Automotive | Z48: 41 | AB48: =IFERROR(SMALL($AA$8:$AA$49,ROWS($AA$8:AA48)),"") ->  | AD48: =IFERROR(INDEX($N$8:$Y$49,$AB48,COLUMNS($M$8:M48)),"") ->  | AE48: =IFERROR(INDEX($N$8:$Y$49,$AB48,COLUMNS($M$8:N48)),"") ->  | AF48: =IFERROR(INDEX($N$8:$Y$49,$AB48,COLUMNS($M$8:O48)),"") ->  | AG48: =IFERROR(INDEX($N$8:$Y$49,$AB48,COLUMNS($M$8:P48)),"") ->  | AH48: =IFERROR(INDEX($N$8:$Y$49,$AB48,COLUMNS($M$8:Q48)),"") ->  | AI48: =IFERROR(INDEX($N$8:$Y$49,$AB48,COLUMNS($M$8:R48)),"") ->  | AJ48: =IFERROR(INDEX($N$8:$Y$49,$AB48,COLUMNS($M$8:S48)),"") ->  | AK48: =IFERROR(INDEX($N$8:$Y$49,$AB48,COLUMNS($M$8:T48)),"") ->  | AL48: =IFERROR(INDEX($N$8:$Y$49,$AB48,COLUMNS($M$8:U48)),"") ->  | AM48: =IFERROR(INDEX($N$8:$Y$49,$AB48,COLUMNS($M$8:V48)),"") ->  | AN48: =IFERROR(INDEX($N$8:$Y$49,$AB48,COLUMNS($M$8:W48)),"") ->  | AO48: =IFERROR(INDEX($N$8:$Y$49,$AB48,COLUMNS($M$8:X48)),"") ->  | AP48: 41 | AR48: =IFERROR(SMALL($AQ$8:$AQ$49,ROWS($AQ$8:AQ48)),"") ->  | AT48: =IFERROR(INDEX($AD$8:$AO$49,$AR48,COLUMNS($M$8:M48)),"") ->  | AU48: =IFERROR(INDEX($AD$8:$AO$49,$AR48,COLUMNS($M$8:N48)),"") ->  | AV48: =IFERROR(INDEX($AD$8:$AO$49,$AR48,COLUMNS($M$8:O48)),"") ->  | AW48: =IFERROR(INDEX($AD$8:$AO$49,$AR48,COLUMNS($M$8:P48)),"") ->  | AX48: =IFERROR(INDEX($AD$8:$AO$49,$AR48,COLUMNS($M$8:Q48)),"") ->  | AY48: =IFERROR(INDEX($AD$8:$AO$49,$AR48,COLUMNS($M$8:R48)),"") ->  | AZ48: =IFERROR(INDEX($AD$8:$AO$49,$AR48,COLUMNS($M$8:S48)),"") ->  | BA48: =IFERROR(INDEX($AD$8:$AO$49,$AR48,COLUMNS($M$8:T48)),"") ->  | BB48: =IFERROR(INDEX($AD$8:$AO$49,$AR48,COLUMNS($M$8:U48)),"") ->  | BC48: =IFERROR(INDEX($AD$8:$AO$49,$AR48,COLUMNS($M$8:V48)),"") ->  | BD48: =IFERROR(INDEX($AD$8:$AO$49,$AR48,COLUMNS($M$8:W48)),"") ->  | BE48: =IFERROR(INDEX($AD$8:$AO$49,$AR48,COLUMNS($M$8:X48)),"") ->  | BF48: 41 | BH48: =IFERROR(SMALL($BG$8:$BG$49,ROWS($BG$8:BG48)),"") ->  | BJ48: =IFERROR(INDEX($AT$8:$BE$46,$BH48,COLUMNS($AT$8:AT48)),"") ->  | BK48: =IFERROR(INDEX($AT$8:$BE$46,$BH48,COLUMNS($AT$8:AU48)),"") ->  | BL48: =IFERROR(INDEX($AT$8:$BE$46,$BH48,COLUMNS($AT$8:AV48)),"") ->  | BM48: =IFERROR(INDEX($AT$8:$BE$46,$BH48,COLUMNS($AT$8:AW48)),"") ->  | BN48: =IFERROR(INDEX($AT$8:$BE$46,$BH48,COLUMNS($AT$8:AX48)),"") ->  | BO48: =IFERROR(INDEX($AT$8:$BE$46,$BH48,COLUMNS($AT$8:AY48)),"") ->  | BP48: =IFERROR(INDEX($AT$8:$BE$46,$BH48,COLUMNS($AT$8:AZ48)),"") ->  | BQ48: =IFERROR(INDEX($AT$8:$BE$46,$BH48,COLUMNS($AT$8:BA48)),"") ->  | BR48: =IFERROR(INDEX($AT$8:$BE$46,$BH48,COLUMNS($AT$8:BB48)),"") ->  | BS48: =IFERROR(INDEX($AT$8:$BE$46,$BH48,COLUMNS($AT$8:BC48)),"") ->  | BT48: =IFERROR(INDEX($AT$8:$BE$46,$BH48,COLUMNS($AT$8:BD48)),"") ->  | BU48: =IFERROR(INDEX($AT$8:$BE$46,$BH48,COLUMNS($AT$8:BE48)),"") ->  | BV48: 41 | BX48: =IFERROR(SMALL($BW$8:$BW$49,ROWS($BW$8:BW48)),"") ->  | BY48: =INDEX(BM48:$BM$49,1,1) ->  | BZ48: =COUNTIF($BM$8:BM48,BY48) -> 39 | CB48: =IFERROR(SMALL($CA$8:$CA$49,ROWS($CA$8:CA48)),"") ->  | CD48: =IFERROR(INDEX($BJ$8:$BU$46,$BX48,COLUMNS($BI$8:BI48)),"") ->  | CE48: =IFERROR(INDEX($BJ$8:$BU$46,$BX48,COLUMNS($BI$8:BJ48)),"") ->  | CF48: =IFERROR(INDEX($BJ$8:$BU$46,$BX48,COLUMNS($BI$8:BK48)),"") ->  | CG48: =IFERROR(INDEX($BJ$8:$BU$46,$BX48,COLUMNS($BI$8:BL48)),"") ->  | CH48: =IFERROR(INDEX($BJ$8:$BU$46,$BX48,COLUMNS($BI$8:BM48)),"") ->  | CI48: =IFERROR(INDEX($BJ$8:$BU$46,$BX48,COLUMNS($BI$8:BN48)),"") ->  | CJ48: =IFERROR(INDEX($BJ$8:$BU$46,$BX48,COLUMNS($BI$8:BO48)),"") ->  | CK48: =IFERROR(INDEX($BJ$8:$BU$46,$BX48,COLUMNS($BI$8:BP48)),"") ->  | CL48: =IFERROR(INDEX($BJ$8:$BU$46,$BX48,COLUMNS($BI$8:BQ48)),"") ->  | CM48: =IFERROR(INDEX($BJ$8:$BU$46,$BX48,COLUMNS($BI$8:BR48)),"") ->  | CN48: =IFERROR(INDEX($BJ$8:$BU$46,$BX48,COLUMNS($BI$8:BS48)),"") ->  | CO48: =IFERROR(INDEX($BJ$8:$BU$46,$BX48,COLUMNS($BI$8:BT48)),"") ->  | CP48: 41 | CR48: =IFERROR(SMALL($CQ$8:$CQ$49,ROWS($CQ$8:CQ48)),"") ->  | CT48: =IFERROR(INDEX($CD$8:$CO$49,$CR48,COLUMNS($CC$8:CC48)),"") ->  | CU48: =IFERROR(INDEX($CD$8:$CO$49,$CR48,COLUMNS($CC$8:CD48)),"") ->  | CV48: =IFERROR(INDEX($CD$8:$CO$49,$CR48,COLUMNS($CC$8:CE48)),"") ->  | CW48: =IFERROR(INDEX($CD$8:$CO$49,$CR48,COLUMNS($CC$8:CF48)),"") ->  | CX48: =IFERROR(INDEX($CD$8:$CO$49,$CR48,COLUMNS($CC$8:CG48)),"") ->  | CY48: =IFERROR(INDEX($CD$8:$CO$49,$CR48,COLUMNS($CC$8:CH48)),"") ->  | CZ48: =IFERROR(INDEX($CD$8:$CO$49,$CR48,COLUMNS($CC$8:CI48)),"") ->  | DA48: =IFERROR(INDEX($CD$8:$CO$49,$CR48,COLUMNS($CC$8:CJ48)),"") ->  | DB48: =IFERROR(INDEX($CD$8:$CO$49,$CR48,COLUMNS($CC$8:CK48)),"") ->  | DC48: =IFERROR(INDEX($CD$8:$CO$49,$CR48,COLUMNS($CC$8:CL48)),"") ->  | DD48: =IFERROR(INDEX($CD$8:$CO$49,$CR48,COLUMNS($CC$8:CM48)),"") ->  | DE48: =IFERROR(INDEX($CD$8:$CO$49,$CR48,COLUMNS($CC$8:CN48)),"") -> 
N49: SFH 4726S | O49: Max Rated Pulsed operation | P49: 940 | Q49: 75 | R49: =4.2*250 -> 1050 | S49: 5000 | T49: 3.4 | U49: 0.01 | V49: 0.0005 | W49: 1 | X49: 21 | Y49: Non Automotive | Z49: 42 | AB49: =IFERROR(SMALL($AA$8:$AA$49,ROWS($AA$8:AA49)),"") ->  | AD49: =IFERROR(INDEX($N$8:$Y$49,$AB49,COLUMNS($M$8:M49)),"") ->  | AE49: =IFERROR(INDEX($N$8:$Y$49,$AB49,COLUMNS($M$8:N49)),"") ->  | AF49: =IFERROR(INDEX($N$8:$Y$49,$AB49,COLUMNS($M$8:O49)),"") ->  | AG49: =IFERROR(INDEX($N$8:$Y$49,$AB49,COLUMNS($M$8:P49)),"") ->  | AH49: =IFERROR(INDEX($N$8:$Y$49,$AB49,COLUMNS($M$8:Q49)),"") ->  | AI49: =IFERROR(INDEX($N$8:$Y$49,$AB49,COLUMNS($M$8:R49)),"") ->  | AJ49: =IFERROR(INDEX($N$8:$Y$49,$AB49,COLUMNS($M$8:S49)),"") ->  | AK49: =IFERROR(INDEX($N$8:$Y$49,$AB49,COLUMNS($M$8:T49)),"") ->  | AL49: =IFERROR(INDEX($N$8:$Y$49,$AB49,COLUMNS($M$8:U49)),"") ->  | AM49: =IFERROR(INDEX($N$8:$Y$49,$AB49,COLUMNS($M$8:V49)),"") ->  | AN49: =IFERROR(INDEX($N$8:$Y$49,$AB49,COLUMNS($M$8:W49)),"") ->  | AO49: =IFERROR(INDEX($N$8:$Y$49,$AB49,COLUMNS($M$8:X49)),"") ->  | AP49: 42 | AR49: =IFERROR(SMALL($AQ$8:$AQ$49,ROWS($AQ$8:AQ49)),"") ->  | AT49: =IFERROR(INDEX($AD$8:$AO$49,$AR49,COLUMNS($M$8:M49)),"") ->  | AU49: =IFERROR(INDEX($AD$8:$AO$49,$AR49,COLUMNS($M$8:N49)),"") ->  | AV49: =IFERROR(INDEX($AD$8:$AO$49,$AR49,COLUMNS($M$8:O49)),"") ->  | AW49: =IFERROR(INDEX($AD$8:$AO$49,$AR49,COLUMNS($M$8:P49)),"") ->  | AX49: =IFERROR(INDEX($AD$8:$AO$49,$AR49,COLUMNS($M$8:Q49)),"") ->  | AY49: =IFERROR(INDEX($AD$8:$AO$49,$AR49,COLUMNS($M$8:R49)),"") ->  | AZ49: =IFERROR(INDEX($AD$8:$AO$49,$AR49,COLUMNS($M$8:S49)),"") ->  | BA49: =IFERROR(INDEX($AD$8:$AO$49,$AR49,COLUMNS($M$8:T49)),"") ->  | BB49: =IFERROR(INDEX($AD$8:$AO$49,$AR49,COLUMNS($M$8:U49)),"") ->  | BC49: =IFERROR(INDEX($AD$8:$AO$49,$AR49,COLUMNS($M$8:V49)),"") ->  | BD49: =IFERROR(INDEX($AD$8:$AO$49,$AR49,COLUMNS($M$8:W49)),"") ->  | BE49: =IFERROR(INDEX($AD$8:$AO$49,$AR49,COLUMNS($M$8:X49)),"") ->  | BF49: 42 | BH49: =IFERROR(SMALL($BG$8:$BG$49,ROWS($BG$8:BG49)),"") ->  | BJ49: =IFERROR(INDEX($AT$8:$BE$46,$BH49,COLUMNS($AT$8:AT49)),"") ->  | BK49: =IFERROR(INDEX($AT$8:$BE$46,$BH49,COLUMNS($AT$8:AU49)),"") ->  | BL49: =IFERROR(INDEX($AT$8:$BE$46,$BH49,COLUMNS($AT$8:AV49)),"") ->  | BM49: =IFERROR(INDEX($AT$8:$BE$46,$BH49,COLUMNS($AT$8:AW49)),"") ->  | BN49: =IFERROR(INDEX($AT$8:$BE$46,$BH49,COLUMNS($AT$8:AX49)),"") ->  | BO49: =IFERROR(INDEX($AT$8:$BE$46,$BH49,COLUMNS($AT$8:AY49)),"") ->  | BP49: =IFERROR(INDEX($AT$8:$BE$46,$BH49,COLUMNS($AT$8:AZ49)),"") ->  | BQ49: =IFERROR(INDEX($AT$8:$BE$46,$BH49,COLUMNS($AT$8:BA49)),"") ->  | BR49: =IFERROR(INDEX($AT$8:$BE$46,$BH49,COLUMNS($AT$8:BB49)),"") ->  | BS49: =IFERROR(INDEX($AT$8:$BE$46,$BH49,COLUMNS($AT$8:BC49)),"") ->  | BT49: =IFERROR(INDEX($AT$8:$BE$46,$BH49,COLUMNS($AT$8:BD49)),"") ->  | BU49: =IFERROR(INDEX($AT$8:$BE$46,$BH49,COLUMNS($AT$8:BE49)),"") ->  | BV49: 42 | BX49: =IFERROR(SMALL($BW$8:$BW$49,ROWS($BW$8:BW49)),"") ->  | BY49: =INDEX(BM49:$BM$49,1,1) ->  | BZ49: =COUNTIF($BM$8:BM49,BY49) -> 40 | CB49: =IFERROR(SMALL($CA$8:$CA$49,ROWS($CA$8:CA49)),"") ->  | CD49: =IFERROR(INDEX($BJ$8:$BU$46,$BX49,COLUMNS($BI$8:BI49)),"") ->  | CE49: =IFERROR(INDEX($BJ$8:$BU$46,$BX49,COLUMNS($BI$8:BJ49)),"") ->  | CF49: =IFERROR(INDEX($BJ$8:$BU$46,$BX49,COLUMNS($BI$8:BK49)),"") ->  | CG49: =IFERROR(INDEX($BJ$8:$BU$46,$BX49,COLUMNS($BI$8:BL49)),"") ->  | CH49: =IFERROR(INDEX($BJ$8:$BU$46,$BX49,COLUMNS($BI$8:BM49)),"") ->  | CI49: =IFERROR(INDEX($BJ$8:$BU$46,$BX49,COLUMNS($BI$8:BN49)),"") ->  | CJ49: =IFERROR(INDEX($BJ$8:$BU$46,$BX49,COLUMNS($BI$8:BO49)),"") ->  | CK49: =IFERROR(INDEX($BJ$8:$BU$46,$BX49,COLUMNS($BI$8:BP49)),"") ->  | CL49: =IFERROR(INDEX($BJ$8:$BU$46,$BX49,COLUMNS($BI$8:BQ49)),"") ->  | CM49: =IFERROR(INDEX($BJ$8:$BU$46,$BX49,COLUMNS($BI$8:BR49)),"") ->  | CN49: =IFERROR(INDEX($BJ$8:$BU$46,$BX49,COLUMNS($BI$8:BS49)),"") ->  | CO49: =IFERROR(INDEX($BJ$8:$BU$46,$BX49,COLUMNS($BI$8:BT49)),"") ->  | CP49: 42 | CR49: =IFERROR(SMALL($CQ$8:$CQ$49,ROWS($CQ$8:CQ49)),"") ->  | CT49: =IFERROR(INDEX($CD$8:$CO$49,$CR49,COLUMNS($CC$8:CC49)),"") ->  | CU49: =IFERROR(INDEX($CD$8:$CO$49,$CR49,COLUMNS($CC$8:CD49)),"") ->  | CV49: =IFERROR(INDEX($CD$8:$CO$49,$CR49,COLUMNS($CC$8:CE49)),"") ->  | CW49: =IFERROR(INDEX($CD$8:$CO$49,$CR49,COLUMNS($CC$8:CF49)),"") ->  | CX49: =IFERROR(INDEX($CD$8:$CO$49,$CR49,COLUMNS($CC$8:CG49)),"") ->  | CY49: =IFERROR(INDEX($CD$8:$CO$49,$CR49,COLUMNS($CC$8:CH49)),"") ->  | CZ49: =IFERROR(INDEX($CD$8:$CO$49,$CR49,COLUMNS($CC$8:CI49)),"") ->  | DA49: =IFERROR(INDEX($CD$8:$CO$49,$CR49,COLUMNS($CC$8:CJ49)),"") ->  | DB49: =IFERROR(INDEX($CD$8:$CO$49,$CR49,COLUMNS($CC$8:CK49)),"") ->  | DC49: =IFERROR(INDEX($CD$8:$CO$49,$CR49,COLUMNS($CC$8:CL49)),"") ->  | DD49: =IFERROR(INDEX($CD$8:$CO$49,$CR49,COLUMNS($CC$8:CM49)),"") ->  | DE49: =IFERROR(INDEX($CD$8:$CO$49,$CR49,COLUMNS($CC$8:CN49)),"") -> 
N50: LED Model Number | O50: Operation | P50: WL | Q50: HA | R50: Max RI | S50: Forward Current | T50: Forward Voltage | U50: Duty Cycle | V50: t_pulse | Y50: Q# | Z50: 43 | AB50: =IFERROR(SMALL($AA$8:$AA$46,ROWS($AA$8:AA50)),"") ->  | AD50: =IFERROR(INDEX($N$8:$Y$49,$AB50,COLUMNS($M$8:M50)),"") ->  | AE50: =IFERROR(INDEX($N$8:$Y$49,$AB50,COLUMNS($M$8:N50)),"") ->  | AF50: =IFERROR(INDEX($N$8:$Y$49,$AB50,COLUMNS($M$8:O50)),"") ->  | AG50: =IFERROR(INDEX($N$8:$Y$49,$AB50,COLUMNS($M$8:P50)),"") ->  | AH50: =IFERROR(INDEX($N$8:$Y$49,$AB50,COLUMNS($M$8:Q50)),"") ->  | AI50: =IFERROR(INDEX($N$8:$Y$49,$AB50,COLUMNS($M$8:R50)),"") ->  | AJ50: =IFERROR(INDEX($N$8:$Y$49,$AB50,COLUMNS($M$8:S50)),"") ->  | AK50: =IFERROR(INDEX($N$8:$Y$49,$AB50,COLUMNS($M$8:T50)),"") ->  | AL50: =IFERROR(INDEX($N$8:$Y$49,$AB50,COLUMNS($M$8:U50)),"") ->  | AM50: =IFERROR(INDEX($N$8:$Y$49,$AB50,COLUMNS($M$8:V50)),"") ->  | AN50: =IFERROR(INDEX($N$8:$Y$49,$AB50,COLUMNS($M$8:W50)),"") ->  | AO50: =IFERROR(INDEX($N$8:$Y$49,$AB50,COLUMNS($M$8:X50)),"") -> 
D51: Sensor Irradiance: | E51: =$E$45*($I$48/180) -> 3.49001962 | F51: µw/cm2 | G51: Sensor Irradiance: | H51: =$H$45*($I$48/180) -> 15.26883584 | I51: µw/cm2 | Y51: =IF($E$11=N55,X55,"") ->  | BE51: =IFERROR(SMALL($BD$51:$BD$80,ROWS($BD$51:BD51)),"") -> 
Y52: =IF($E$11=N56,X56,"") ->  | BE52: =IFERROR(SMALL($BD$51:$BD$80,ROWS($BD$51:BD52)),"") -> 
D53: Number of Pixels: | E53: =$AT$55 -> 1 | G53: Number of Pixels: | H53: =$AT$55 -> 1 | N53: Hard Coded Sensor Data | Y53: =IF($E$11=N57,X57,"") ->  | BD53: =IF($E$48=AU53,BC53,"") ->  | BE53: =IFERROR(SMALL($BD$51:$BD$80,ROWS($BD$51:BD53)),"") -> 
N54: WL | O54: Brand/Model | P54: QE | Q54: Pixel Size (Cm) | R54: Number of Pixels | X54: H1 | Y54: H2 | Z54: H3 | AB54: WL | AD54: QE | AE54: Pixel Size (cm) | AF54: Number of Pixels | AK54: H1 | AL54: H2 | AM54: H3 | AP54: WL | AR54: QE | AS54: Pixel Size (um)
D55: Pixel Size: | E55: =$AS$55*10000 -> 1000 | F55: µm | G55: Pixel Size: | H55: =$AS$55*10000 -> 1000 | I55: µm | N55: 810 | O55: Generic QE = 25% @λ=810 nm | P55: 25 | Q55: =0.000112 -> 0.000112 | R55: 8000000 | X55: 1 | Y55: =IF($E$11=N55,X55,"") ->  | Z55: =IFERROR(SMALL($Y$55:$Y$83,ROWS($Y$55:Y55)),"") -> 21 | AB55: =IFERROR(INDEX($N$55:$U$84,$Z55,COLUMNS($M$55:M55)),"") -> 940 | AC55: =IFERROR(INDEX($N$55:$U$84,$Z55,COLUMNS($M$55:N55)),"") -> Generic QE = 10% @λ=940 nm | AD55: =IFERROR(INDEX($N$55:$U$84,$Z55,COLUMNS($M$55:O55)),"") -> 10 | AE55: =IFERROR(INDEX($N$55:$U$84,$Z55,COLUMNS($M$55:P55)),"") -> 0.000112 | AF55: =IFERROR(INDEX($N$55:$U$84,$Z55,COLUMNS($M$55:Q55)),"") -> 8000000 | AG55: =IFERROR(INDEX($N$55:$U$84,$Z55,COLUMNS($M$55:R55)),"") -> 0 | AH55: =IFERROR(INDEX($N$55:$U$84,$Z55,COLUMNS($M$55:S55)),"") -> 0 | AI55: =IFERROR(INDEX($N$55:$U$84,$Z55,COLUMNS($M$55:T55)),"") -> 0 | AK55: 1 | AL55: =IF($E$48=AC55,AK55,"") ->  | AM55: =IFERROR(SMALL($AL$55:$AL$84,ROWS($AL$55:AL55)),"") -> 7 | AP55: =IFERROR(INDEX($AB$55:$AI$84,$AM55,COLUMNS($M$55:M55)),"") -> 940 | AQ55: =IFERROR(INDEX($AB$55:$AI$84,$AM55,COLUMNS($M$55:N55)),"") -> SFH 2400 @λ=940 nm | AR55: =IFERROR(INDEX($AB$55:$AI$84,$AM55,COLUMNS($M$55:O55)),"") -> 90 | AS55: =IFERROR(INDEX($AB$55:$AI$84,$AM55,COLUMNS($M$55:P55)),"") -> 0.1 | AT55: =IFERROR(INDEX($AB$55:$AI$84,$AM55,COLUMNS($M$55:Q55)),"") -> 1 | AU55: =IFERROR(INDEX($AB$55:$AI$84,$AM55,COLUMNS($M$55:R55)),"") -> 0 | AV55: =IFERROR(INDEX($AB$55:$AI$84,$AM55,COLUMNS($M$55:S55)),"") -> 0 | AW55: =IFERROR(INDEX($AB$55:$AJ$84,$AM55,COLUMNS($AS$51:AZ51)),"") -> 0 | AX55: =IFERROR(INDEX($AB$55:$AJ$84,$AM55,COLUMNS($AS$51:BA51)),"") -> 0 | AY55: =IFERROR(INDEX($AB$55:$AJ$84,$AM55,COLUMNS($AS$51:BB51)),"") ->  | AZ55: =IFERROR(INDEX($AB$55:$AJ$84,$AM55,COLUMNS($AS$51:BC51)),"") -> 
N56: 810 | O56: 1.0 Mp (1280H x 800V) monochrome GS camera @λ=810 nm | P56: 28 | Q56: 0.0003 | R56: 1000000 | X56: 2 | Y56: =IF($E$11=N56,X56,"") ->  | Z56: =IFERROR(SMALL($Y$55:$Y$83,ROWS($Y$55:Y56)),"") -> 22 | AB56: =IFERROR(INDEX($N$55:$U$84,$Z56,COLUMNS($M$55:M56)),"") -> 940 | AC56: =IFERROR(INDEX($N$55:$U$84,$Z56,COLUMNS($M$55:N56)),"") -> 1.0 Mp (1280H x 800V) monochrome GS camera @λ=940 nm | AD56: =IFERROR(INDEX($N$55:$U$84,$Z56,COLUMNS($M$55:O56)),"") -> 9.5 | AE56: =IFERROR(INDEX($N$55:$U$84,$Z56,COLUMNS($M$55:P56)),"") -> 0.0003 | AF56: =IFERROR(INDEX($N$55:$U$84,$Z56,COLUMNS($M$55:Q56)),"") -> 1000000 | AG56: =IFERROR(INDEX($N$55:$U$84,$Z56,COLUMNS($M$55:R56)),"") -> 0 | AH56: =IFERROR(INDEX($N$55:$U$84,$Z56,COLUMNS($M$55:S56)),"") -> 0 | AI56: =IFERROR(INDEX($N$55:$U$84,$Z56,COLUMNS($M$55:T56)),"") -> 0 | AK56: =1+AK55 -> 2 | AL56: =IF($E$48=AC56,AK56,"") ->  | AM56: =IFERROR(SMALL($AL$55:$AL$84,ROWS($AL$55:AL56)),"") ->  | AP56: =IFERROR(INDEX($AB$55:$AI$84,$AM56,COLUMNS($M$55:M56)),"") ->  | AQ56: =IFERROR(INDEX($AB$55:$AI$84,$AM56,COLUMNS($M$55:N56)),"") ->  | AR56: =IFERROR(INDEX($AB$55:$AI$84,$AM56,COLUMNS($M$55:O56)),"") ->  | AS56: =IFERROR(INDEX($AB$55:$AI$84,$AM56,COLUMNS($M$55:P56)),"") ->  | AT56: =IFERROR(INDEX($AB$55:$AI$84,$AM56,COLUMNS($M$55:Q56)),"") ->  | AU56: =IFERROR(INDEX($AB$55:$AI$84,$AM56,COLUMNS($M$55:R56)),"") ->  | AV56: =IFERROR(INDEX($AB$55:$AI$84,$AM56,COLUMNS($M$55:S56)),"") ->  | AW56: =IFERROR(INDEX($AB$55:$AJ$84,$AM56,COLUMNS($AS$51:AZ52)),"") ->  | AX56: =IFERROR(INDEX($AB$55:$AJ$84,$AM56,COLUMNS($AS$51:BA52)),"") ->  | AY56: =IFERROR(INDEX($AB$55:$AJ$84,$AM56,COLUMNS($AS$51:BB52)),"") ->  | AZ56: =IFERROR(INDEX($AB$55:$AJ$84,$AM56,COLUMNS($AS$51:BC52)),"") -> 
D57: Signal: | E57: =(E51/1)*($AS$55)^2*$AR$55/100*$AT$55 -> 0.03141017658 | F57: µA | G57: Signal: | H57: =(H51/1)*($AS$55)^2*$AR$55/100*$AT$55 -> 0.1374195225 | I57: µA | N57: 810 | O57: 0.5 Mp (640H x 480V) VGA Rolling Shutter @λ=810 nm | P57: 28 | Q57: 0.0006 | R57: 307200 | X57: 3 | Z57: =IFERROR(SMALL($Y$55:$Y$83,ROWS($Y$55:Y57)),"") -> 23 | AB57: =IFERROR(INDEX($N$55:$U$84,$Z57,COLUMNS($M$55:M57)),"") -> 940 | AC57: =IFERROR(INDEX($N$55:$U$84,$Z57,COLUMNS($M$55:N57)),"") -> 0.5 Mp (640H x 480V) VGA Rolling Shutter @λ=940 nm | AD57: =IFERROR(INDEX($N$55:$U$84,$Z57,COLUMNS($M$55:O57)),"") -> 10 | AE57: =IFERROR(INDEX($N$55:$U$84,$Z57,COLUMNS($M$55:P57)),"") -> 0.0006 | AF57: =IFERROR(INDEX($N$55:$U$84,$Z57,COLUMNS($M$55:Q57)),"") -> 307200 | AG57: =IFERROR(INDEX($N$55:$U$84,$Z57,COLUMNS($M$55:R57)),"") -> 0 | AH57: =IFERROR(INDEX($N$55:$U$84,$Z57,COLUMNS($M$55:S57)),"") -> 0 | AI57: =IFERROR(INDEX($N$55:$U$84,$Z57,COLUMNS($M$55:T57)),"") -> 0 | AK57: =1+AK56 -> 3 | AM57: =IFERROR(SMALL($AL$55:$AL$84,ROWS($AL$55:AL57)),"") ->  | AP57: =IFERROR(INDEX($AB$55:$AI$84,$AM57,COLUMNS($M$55:M57)),"") ->  | AQ57: =IFERROR(INDEX($AB$55:$AI$84,$AM57,COLUMNS($M$55:N57)),"") ->  | AR57: =IFERROR(INDEX($AB$55:$AI$84,$AM57,COLUMNS($M$55:O57)),"") ->  | AS57: =IFERROR(INDEX($AB$55:$AI$84,$AM57,COLUMNS($M$55:P57)),"") ->  | AT57: =IFERROR(INDEX($AB$55:$AI$84,$AM57,COLUMNS($M$55:Q57)),"") ->  | AU57: =IFERROR(INDEX($AB$55:$AI$84,$AM57,COLUMNS($M$55:R57)),"") ->  | AV57: =IFERROR(INDEX($AB$55:$AI$84,$AM57,COLUMNS($M$55:S57)),"") ->  | AW57: =IFERROR(INDEX($AB$55:$AJ$84,$AM57,COLUMNS($AS$51:AZ53)),"") ->  | AX57: =IFERROR(INDEX($AB$55:$AJ$84,$AM57,COLUMNS($AS$51:BA53)),"") ->  | AY57: =IFERROR(INDEX($AB$55:$AJ$84,$AM57,COLUMNS($AS$51:BB53)),"") ->  | AZ57: =IFERROR(INDEX($AB$55:$AJ$84,$AM57,COLUMNS($AS$51:BC53)),"") -> 
N58: 810 | O58: 8 Mp IR sensitized CMOS @λ=810 nm | P58: 15 | Q58: 0.000112 | R58: 8080000 | X58: 4 | Z58: =IFERROR(SMALL($Y$55:$Y$83,ROWS($Y$55:Y58)),"") -> 24 | AB58: =IFERROR(INDEX($N$55:$U$84,$Z58,COLUMNS($M$55:M58)),"") -> 940 | AC58: =IFERROR(INDEX($N$55:$U$84,$Z58,COLUMNS($M$55:N58)),"") -> 8 Mp IR sensitized CMOS @λ=940 nm | AD58: =IFERROR(INDEX($N$55:$U$84,$Z58,COLUMNS($M$55:O58)),"") -> 6 | AE58: =IFERROR(INDEX($N$55:$U$84,$Z58,COLUMNS($M$55:P58)),"") -> 0.000112 | AF58: =IFERROR(INDEX($N$55:$U$84,$Z58,COLUMNS($M$55:Q58)),"") -> 8080000 | AG58: =IFERROR(INDEX($N$55:$U$84,$Z58,COLUMNS($M$55:R58)),"") -> 0 | AH58: =IFERROR(INDEX($N$55:$U$84,$Z58,COLUMNS($M$55:S58)),"") -> 0 | AI58: =IFERROR(INDEX($N$55:$U$84,$Z58,COLUMNS($M$55:T58)),"") -> 0 | AK58: 4 | AM58: =IFERROR(SMALL($AL$55:$AL$84,ROWS($AL$55:AL58)),"") ->  | AP58: =IFERROR(INDEX($AB$55:$AI$84,$AM58,COLUMNS($M$55:M58)),"") ->  | AQ58: =IFERROR(INDEX($AB$55:$AI$84,$AM58,COLUMNS($M$55:N58)),"") ->  | AR58: =IFERROR(INDEX($AB$55:$AI$84,$AM58,COLUMNS($M$55:O58)),"") ->  | AS58: =IFERROR(INDEX($AB$55:$AI$84,$AM58,COLUMNS($M$55:P58)),"") ->  | AT58: =IFERROR(INDEX($AB$55:$AI$84,$AM58,COLUMNS($M$55:Q58)),"") ->  | AU58: =IFERROR(INDEX($AB$55:$AI$84,$AM58,COLUMNS($M$55:R58)),"") ->  | AV58: =IFERROR(INDEX($AB$55:$AI$84,$AM58,COLUMNS($M$55:S58)),"") ->  | AW58: =IFERROR(INDEX($AB$55:$AJ$84,$AM58,COLUMNS($AS$51:AZ54)),"") ->  | AX58: =IFERROR(INDEX($AB$55:$AJ$84,$AM58,COLUMNS($AS$51:BA54)),"") ->  | AY58: =IFERROR(INDEX($AB$55:$AJ$84,$AM58,COLUMNS($AS$51:BB54)),"") ->  | AZ58: =IFERROR(INDEX($AB$55:$AJ$84,$AM58,COLUMNS($AS$51:BC54)),"") -> 
N59: 810 | O59: 10.8 Mp (3840 x 2190) CMOS Rolling Shutter @λ=810 nm | P59: 15 | Q59: 0.00034 | R59: 10800000 | X59: 5 | Z59: =IFERROR(SMALL($Y$55:$Y$83,ROWS($Y$55:Y59)),"") -> 25 | AB59: =IFERROR(INDEX($N$55:$U$84,$Z59,COLUMNS($M$55:M59)),"") -> 940 | AC59: =IFERROR(INDEX($N$55:$U$84,$Z59,COLUMNS($M$55:N59)),"") -> 10.8 Mp (3840 x 2190) CMOS Rolling Shutter @λ=940 nm | AD59: =IFERROR(INDEX($N$55:$U$84,$Z59,COLUMNS($M$55:O59)),"") -> 6 | AE59: =IFERROR(INDEX($N$55:$U$84,$Z59,COLUMNS($M$55:P59)),"") -> 0.00034 | AF59: =IFERROR(INDEX($N$55:$U$84,$Z59,COLUMNS($M$55:Q59)),"") -> 10800000 | AG59: =IFERROR(INDEX($N$55:$U$84,$Z59,COLUMNS($M$55:R59)),"") -> 0 | AH59: =IFERROR(INDEX($N$55:$U$84,$Z59,COLUMNS($M$55:S59)),"") -> 0 | AI59: =IFERROR(INDEX($N$55:$U$84,$Z59,COLUMNS($M$55:T59)),"") -> 0 | AK59: 5 | AM59: =IFERROR(SMALL($AL$55:$AL$84,ROWS($AL$55:AL59)),"") ->  | AP59: =IFERROR(INDEX($AB$55:$AI$84,$AM59,COLUMNS($M$55:M59)),"") ->  | AQ59: =IFERROR(INDEX($AB$55:$AI$84,$AM59,COLUMNS($M$55:N59)),"") ->  | AR59: =IFERROR(INDEX($AB$55:$AI$84,$AM59,COLUMNS($M$55:O59)),"") ->  | AS59: =IFERROR(INDEX($AB$55:$AI$84,$AM59,COLUMNS($M$55:P59)),"") ->  | AT59: =IFERROR(INDEX($AB$55:$AI$84,$AM59,COLUMNS($M$55:Q59)),"") ->  | AU59: =IFERROR(INDEX($AB$55:$AI$84,$AM59,COLUMNS($M$55:R59)),"") ->  | AV59: =IFERROR(INDEX($AB$55:$AI$84,$AM59,COLUMNS($M$55:S59)),"") ->  | AW59: =IFERROR(INDEX($AB$55:$AJ$84,$AM59,COLUMNS($AS$51:AZ55)),"") ->  | AX59: =IFERROR(INDEX($AB$55:$AJ$84,$AM59,COLUMNS($AS$51:BA55)),"") ->  | AY59: =IFERROR(INDEX($AB$55:$AJ$84,$AM59,COLUMNS($AS$51:BB55)),"") ->  | AZ59: =IFERROR(INDEX($AB$55:$AJ$84,$AM59,COLUMNS($AS$51:BC55)),"") -> 
D60: 780 < λ < 3000nm | X60: 6 | Z60: =IFERROR(SMALL($Y$55:$Y$83,ROWS($Y$55:Y60)),"") -> 27 | AB60: =IFERROR(INDEX($N$55:$U$84,$Z60,COLUMNS($M$55:M60)),"") -> 940 | AC60: =IFERROR(INDEX($N$55:$U$84,$Z60,COLUMNS($M$55:N60)),"") -> BP W 34 S @λ=940 nm | AD60: =IFERROR(INDEX($N$55:$U$84,$Z60,COLUMNS($M$55:O60)),"") -> 75 | AE60: =IFERROR(INDEX($N$55:$U$84,$Z60,COLUMNS($M$55:P60)),"") -> 0.265 | AF60: =IFERROR(INDEX($N$55:$U$84,$Z60,COLUMNS($M$55:Q60)),"") -> 1 | AG60: =IFERROR(INDEX($N$55:$U$84,$Z60,COLUMNS($M$55:R60)),"") -> 0 | AH60: =IFERROR(INDEX($N$55:$U$84,$Z60,COLUMNS($M$55:S60)),"") -> 0 | AI60: =IFERROR(INDEX($N$55:$U$84,$Z60,COLUMNS($M$55:T60)),"") -> 0 | AK60: 6 | AM60: =IFERROR(SMALL($AL$55:$AL$84,ROWS($AL$55:AL60)),"") ->  | AP60: =IFERROR(INDEX($AB$55:$AI$84,$AM60,COLUMNS($M$55:M60)),"") ->  | AQ60: =IFERROR(INDEX($AB$55:$AI$84,$AM60,COLUMNS($M$55:N60)),"") ->  | AR60: =IFERROR(INDEX($AB$55:$AI$84,$AM60,COLUMNS($M$55:O60)),"") ->  | AS60: =IFERROR(INDEX($AB$55:$AI$84,$AM60,COLUMNS($M$55:P60)),"") ->  | AT60: =IFERROR(INDEX($AB$55:$AI$84,$AM60,COLUMNS($M$55:Q60)),"") ->  | AU60: =IFERROR(INDEX($AB$55:$AI$84,$AM60,COLUMNS($M$55:R60)),"") ->  | AV60: =IFERROR(INDEX($AB$55:$AI$84,$AM60,COLUMNS($M$55:S60)),"") ->  | AW60: =IFERROR(INDEX($AB$55:$AJ$84,$AM60,COLUMNS($AS$51:AZ56)),"") ->  | AX60: =IFERROR(INDEX($AB$55:$AJ$84,$AM60,COLUMNS($AS$51:BA56)),"") ->  | AY60: =IFERROR(INDEX($AB$55:$AJ$84,$AM60,COLUMNS($AS$51:BB56)),"") ->  | AZ60: =IFERROR(INDEX($AB$55:$AJ$84,$AM60,COLUMNS($AS$51:BC56)),"") -> 
B61: Corneal Exposure Hazard: | K61: Ref: IEC62471, Hazard Value Reported | N61: 810 | O61: BP W 34 S @λ=810 nm | P61: 95 | Q61: 0.265 | R61: 1 | X61: 7 | Z61: =IFERROR(SMALL($Y$55:$Y$83,ROWS($Y$55:Y61)),"") -> 28 | AB61: =IFERROR(INDEX($N$55:$U$84,$Z61,COLUMNS($M$55:M61)),"") -> 940 | AC61: =IFERROR(INDEX($N$55:$U$84,$Z61,COLUMNS($M$55:N61)),"") -> SFH 2400 @λ=940 nm | AD61: =IFERROR(INDEX($N$55:$U$84,$Z61,COLUMNS($M$55:O61)),"") -> 90 | AE61: =IFERROR(INDEX($N$55:$U$84,$Z61,COLUMNS($M$55:P61)),"") -> 0.1 | AF61: =IFERROR(INDEX($N$55:$U$84,$Z61,COLUMNS($M$55:Q61)),"") -> 1 | AG61: =IFERROR(INDEX($N$55:$U$84,$Z61,COLUMNS($M$55:R61)),"") -> 0 | AH61: =IFERROR(INDEX($N$55:$U$84,$Z61,COLUMNS($M$55:S61)),"") -> 0 | AI61: =IFERROR(INDEX($N$55:$U$84,$Z61,COLUMNS($M$55:T61)),"") -> 0 | AK61: 7 | AL61: 7 | AM61: =IFERROR(SMALL($AL$55:$AL$84,ROWS($AL$55:AL61)),"") ->  | AP61: =IFERROR(INDEX($AB$55:$AI$84,$AM61,COLUMNS($M$55:M61)),"") ->  | AQ61: =IFERROR(INDEX($AB$55:$AI$84,$AM61,COLUMNS($M$55:N61)),"") ->  | AR61: =IFERROR(INDEX($AB$55:$AI$84,$AM61,COLUMNS($M$55:O61)),"") ->  | AS61: =IFERROR(INDEX($AB$55:$AI$84,$AM61,COLUMNS($M$55:P61)),"") ->  | AT61: =IFERROR(INDEX($AB$55:$AI$84,$AM61,COLUMNS($M$55:Q61)),"") ->  | AU61: =IFERROR(INDEX($AB$55:$AI$84,$AM61,COLUMNS($M$55:R61)),"") ->  | AV61: =IFERROR(INDEX($AB$55:$AI$84,$AM61,COLUMNS($M$55:S61)),"") ->  | AW61: =IFERROR(INDEX($AB$55:$AJ$84,$AM61,COLUMNS($AS$51:AZ57)),"") ->  | AX61: =IFERROR(INDEX($AB$55:$AJ$84,$AM61,COLUMNS($AS$51:BA57)),"") ->  | AY61: =IFERROR(INDEX($AB$55:$AJ$84,$AM61,COLUMNS($AS$51:BB57)),"") ->  | AZ61: =IFERROR(INDEX($AB$55:$AJ$84,$AM61,COLUMNS($AS$51:BC57)),"") -> 
D62: Risk Group: | E62: Low Risk | G62: Exposure Time | H62: =AD86 -> 100 | I62: seconds | K62: for 200mm source-eye seperation | N62: 810 | O62: SFH 2400 @λ=810 nm | P62: 78 | Q62: 0.1 | R62: 1 | X62: 8 | Z62: =IFERROR(SMALL($Y$55:$Y$83,ROWS($Y$55:Y62)),"") -> 29 | AB62: =IFERROR(INDEX($N$55:$U$84,$Z62,COLUMNS($M$55:M62)),"") -> 940 | AC62: =IFERROR(INDEX($N$55:$U$84,$Z62,COLUMNS($M$55:N62)),"") -> SFH 2701 @λ=940 nm | AD62: =IFERROR(INDEX($N$55:$U$84,$Z62,COLUMNS($M$55:O62)),"") -> 60 | AE62: =IFERROR(INDEX($N$55:$U$84,$Z62,COLUMNS($M$55:P62)),"") -> 0.0006 | AF62: =IFERROR(INDEX($N$55:$U$84,$Z62,COLUMNS($M$55:Q62)),"") -> 1 | AG62: =IFERROR(INDEX($N$55:$U$84,$Z62,COLUMNS($M$55:R62)),"") -> 0 | AH62: =IFERROR(INDEX($N$55:$U$84,$Z62,COLUMNS($M$55:S62)),"") -> 0 | AI62: =IFERROR(INDEX($N$55:$U$84,$Z62,COLUMNS($M$55:T62)),"") -> 0 | AK62: 8 | AM62: =IFERROR(SMALL($AL$55:$AL$84,ROWS($AL$55:AL62)),"") ->  | AP62: =IFERROR(INDEX($AB$55:$AI$84,$AM62,COLUMNS($M$55:M62)),"") ->  | AQ62: =IFERROR(INDEX($AB$55:$AI$84,$AM62,COLUMNS($M$55:N62)),"") ->  | AR62: =IFERROR(INDEX($AB$55:$AI$84,$AM62,COLUMNS($M$55:O62)),"") ->  | AS62: =IFERROR(INDEX($AB$55:$AI$84,$AM62,COLUMNS($M$55:P62)),"") ->  | AT62: =IFERROR(INDEX($AB$55:$AI$84,$AM62,COLUMNS($M$55:Q62)),"") ->  | AU62: =IFERROR(INDEX($AB$55:$AI$84,$AM62,COLUMNS($M$55:R62)),"") ->  | AV62: =IFERROR(INDEX($AB$55:$AI$84,$AM62,COLUMNS($M$55:S62)),"") ->  | AW62: =IFERROR(INDEX($AB$55:$AJ$84,$AM62,COLUMNS($AS$51:AZ58)),"") ->  | AX62: =IFERROR(INDEX($AB$55:$AJ$84,$AM62,COLUMNS($AS$51:BA58)),"") ->  | AY62: =IFERROR(INDEX($AB$55:$AJ$84,$AM62,COLUMNS($AS$51:BB58)),"") ->  | AZ62: =IFERROR(INDEX($AB$55:$AJ$84,$AM62,COLUMNS($AS$51:BC58)),"") -> 
G63: Lens Factor | H63: =IF(E13=10,8,IF(E13=20, 6,IF(E13=25,5,IF(E13=40,4, IF(E13=45,3, IF(E13=60,1, IF(E13=75,1))))))) -> 5 | K63: Ref: EIC62471, Eqn. 4.11 | N63: 810 | O63: SFH 2701 @λ=810 nm | P63: 100 | Q63: 0.0006 | R63: 1 | X63: 9 | Z63: =IFERROR(SMALL($Y$55:$Y$83,ROWS($Y$55:Y63)),"") ->  | AB63: =IFERROR(INDEX($N$55:$U$84,$Z63,COLUMNS($M$55:M63)),"") ->  | AC63: =IFERROR(INDEX($N$55:$U$84,$Z63,COLUMNS($M$55:N63)),"") ->  | AD63: =IFERROR(INDEX($N$55:$U$84,$Z63,COLUMNS($M$55:O63)),"") ->  | AE63: =IFERROR(INDEX($N$55:$U$84,$Z63,COLUMNS($M$55:P63)),"") ->  | AF63: =IFERROR(INDEX($N$55:$U$84,$Z63,COLUMNS($M$55:Q63)),"") ->  | AG63: =IFERROR(INDEX($N$55:$U$84,$Z63,COLUMNS($M$55:R63)),"") ->  | AH63: =IFERROR(INDEX($N$55:$U$84,$Z63,COLUMNS($M$55:S63)),"") ->  | AI63: =IFERROR(INDEX($N$55:$U$84,$Z63,COLUMNS($M$55:T63)),"") ->  | AK63: 9 | AM63: =IFERROR(SMALL($AL$55:$AL$84,ROWS($AL$55:AL63)),"") ->  | AP63: =IFERROR(INDEX($AB$55:$AI$84,$AM63,COLUMNS($M$55:M63)),"") ->  | AQ63: =IFERROR(INDEX($AB$55:$AI$84,$AM63,COLUMNS($M$55:N63)),"") ->  | AR63: =IFERROR(INDEX($AB$55:$AI$84,$AM63,COLUMNS($M$55:O63)),"") ->  | AS63: =IFERROR(INDEX($AB$55:$AI$84,$AM63,COLUMNS($M$55:P63)),"") ->  | AT63: =IFERROR(INDEX($AB$55:$AI$84,$AM63,COLUMNS($M$55:Q63)),"") ->  | AU63: =IFERROR(INDEX($AB$55:$AI$84,$AM63,COLUMNS($M$55:R63)),"") ->  | AV63: =IFERROR(INDEX($AB$55:$AI$84,$AM63,COLUMNS($M$55:S63)),"") ->  | AW63: =IFERROR(INDEX($AB$55:$AJ$84,$AM63,COLUMNS($AS$51:AZ59)),"") ->  | AX63: =IFERROR(INDEX($AB$55:$AJ$84,$AM63,COLUMNS($AS$51:BA59)),"") ->  | AY63: =IFERROR(INDEX($AB$55:$AJ$84,$AM63,COLUMNS($AS$51:BB59)),"") ->  | AZ63: =IFERROR(INDEX($AB$55:$AJ$84,$AM63,COLUMNS($AS$51:BC59)),"") -> 
G64: Exposure Limit, EIR: | H64: =AC86 -> 57 | I64: mW/cm2 | X64: 10 | Z64: =IFERROR(SMALL($Y$55:$Y$83,ROWS($Y$55:Y64)),"") ->  | AB64: =IFERROR(INDEX($N$55:$U$84,$Z64,COLUMNS($M$55:M64)),"") ->  | AC64: =IFERROR(INDEX($N$55:$U$84,$Z64,COLUMNS($M$55:N64)),"") ->  | AD64: =IFERROR(INDEX($N$55:$U$84,$Z64,COLUMNS($M$55:O64)),"") ->  | AE64: =IFERROR(INDEX($N$55:$U$84,$Z64,COLUMNS($M$55:P64)),"") ->  | AF64: =IFERROR(INDEX($N$55:$U$84,$Z64,COLUMNS($M$55:Q64)),"") ->  | AG64: =IFERROR(INDEX($N$55:$U$84,$Z64,COLUMNS($M$55:R64)),"") ->  | AH64: =IFERROR(INDEX($N$55:$U$84,$Z64,COLUMNS($M$55:S64)),"") ->  | AI64: =IFERROR(INDEX($N$55:$U$84,$Z64,COLUMNS($M$55:T64)),"") ->  | AK64: 10 | AM64: =IFERROR(SMALL($AL$55:$AL$84,ROWS($AL$55:AL64)),"") ->  | AP64: =IFERROR(INDEX($AB$55:$AI$84,$AM64,COLUMNS($M$55:M64)),"") ->  | AQ64: =IFERROR(INDEX($AB$55:$AI$84,$AM64,COLUMNS($M$55:N64)),"") ->  | AR64: =IFERROR(INDEX($AB$55:$AI$84,$AM64,COLUMNS($M$55:O64)),"") ->  | AS64: =IFERROR(INDEX($AB$55:$AI$84,$AM64,COLUMNS($M$55:P64)),"") ->  | AT64: =IFERROR(INDEX($AB$55:$AI$84,$AM64,COLUMNS($M$55:Q64)),"") ->  | AU64: =IFERROR(INDEX($AB$55:$AI$84,$AM64,COLUMNS($M$55:R64)),"") ->  | AV64: =IFERROR(INDEX($AB$55:$AI$84,$AM64,COLUMNS($M$55:S64)),"") ->  | AW64: =IFERROR(INDEX($AB$55:$AJ$84,$AM64,COLUMNS($AS$51:AZ60)),"") ->  | AX64: =IFERROR(INDEX($AB$55:$AJ$84,$AM64,COLUMNS($AS$51:BA60)),"") ->  | AY64: =IFERROR(INDEX($AB$55:$AJ$84,$AM64,COLUMNS($AS$51:BB60)),"") ->  | AZ64: =IFERROR(INDEX($AB$55:$AJ$84,$AM64,COLUMNS($AS$51:BC60)),"") -> 
N65: 850 | O65: Generic QE = 20% @λ=850 nm | P65: 20 | Q65: =0.000112 -> 0.000112 | R65: 8000000 | X65: 11 | Z65: =IFERROR(SMALL($Y$55:$Y$83,ROWS($Y$55:Y65)),"") ->  | AB65: =IFERROR(INDEX($N$55:$U$84,$Z65,COLUMNS($M$55:M65)),"") ->  | AC65: =IFERROR(INDEX($N$55:$U$84,$Z65,COLUMNS($M$55:N65)),"") ->  | AD65: =IFERROR(INDEX($N$55:$U$84,$Z65,COLUMNS($M$55:O65)),"") ->  | AE65: =IFERROR(INDEX($N$55:$U$84,$Z65,COLUMNS($M$55:P65)),"") ->  | AF65: =IFERROR(INDEX($N$55:$U$84,$Z65,COLUMNS($M$55:Q65)),"") ->  | AG65: =IFERROR(INDEX($N$55:$U$84,$Z65,COLUMNS($M$55:R65)),"") ->  | AH65: =IFERROR(INDEX($N$55:$U$84,$Z65,COLUMNS($M$55:S65)),"") ->  | AI65: =IFERROR(INDEX($N$55:$U$84,$Z65,COLUMNS($M$55:T65)),"") ->  | AK65: 11 | AM65: =IFERROR(SMALL($AL$55:$AL$84,ROWS($AL$55:AL65)),"") ->  | AP65: =IFERROR(INDEX($AB$55:$AI$84,$AM65,COLUMNS($M$55:M65)),"") ->  | AQ65: =IFERROR(INDEX($AB$55:$AI$84,$AM65,COLUMNS($M$55:N65)),"") ->  | AR65: =IFERROR(INDEX($AB$55:$AI$84,$AM65,COLUMNS($M$55:O65)),"") ->  | AS65: =IFERROR(INDEX($AB$55:$AI$84,$AM65,COLUMNS($M$55:P65)),"") ->  | AT65: =IFERROR(INDEX($AB$55:$AI$84,$AM65,COLUMNS($M$55:Q65)),"") ->  | AU65: =IFERROR(INDEX($AB$55:$AI$84,$AM65,COLUMNS($M$55:R65)),"") ->  | AV65: =IFERROR(INDEX($AB$55:$AI$84,$AM65,COLUMNS($M$55:S65)),"") ->  | AW65: =IFERROR(INDEX($AB$55:$AJ$84,$AM65,COLUMNS($AS$51:AZ61)),"") ->  | AX65: =IFERROR(INDEX($AB$55:$AJ$84,$AM65,COLUMNS($AS$51:BA61)),"") ->  | AY65: =IFERROR(INDEX($AB$55:$AJ$84,$AM65,COLUMNS($AS$51:BB61)),"") ->  | AZ65: =IFERROR(INDEX($AB$55:$AJ$84,$AM65,COLUMNS($AS$51:BC61)),"") -> 
B66: Viewing Condition: | N66: 850 | O66: 1.0 Mp (1280H x 800V) monochrome camera @λ=850 nm | P66: 21 | Q66: 0.0003 | R66: 1000000 | X66: 12 | Z66: =IFERROR(SMALL($Y$55:$Y$83,ROWS($Y$55:Y66)),"") ->  | AB66: =IFERROR(INDEX($N$55:$U$84,$Z66,COLUMNS($M$55:M66)),"") ->  | AC66: =IFERROR(INDEX($N$55:$U$84,$Z66,COLUMNS($M$55:N66)),"") ->  | AD66: =IFERROR(INDEX($N$55:$U$84,$Z66,COLUMNS($M$55:O66)),"") ->  | AE66: =IFERROR(INDEX($N$55:$U$84,$Z66,COLUMNS($M$55:P66)),"") ->  | AF66: =IFERROR(INDEX($N$55:$U$84,$Z66,COLUMNS($M$55:Q66)),"") ->  | AG66: =IFERROR(INDEX($N$55:$U$84,$Z66,COLUMNS($M$55:R66)),"") ->  | AH66: =IFERROR(INDEX($N$55:$U$84,$Z66,COLUMNS($M$55:S66)),"") ->  | AI66: =IFERROR(INDEX($N$55:$U$84,$Z66,COLUMNS($M$55:T66)),"") ->  | AK66: 12 | AM66: =IFERROR(SMALL($AL$55:$AL$84,ROWS($AL$55:AL66)),"") ->  | AP66: =IFERROR(INDEX($AB$55:$AI$84,$AM66,COLUMNS($M$55:M66)),"") ->  | AQ66: =IFERROR(INDEX($AB$55:$AI$84,$AM66,COLUMNS($M$55:N66)),"") ->  | AR66: =IFERROR(INDEX($AB$55:$AI$84,$AM66,COLUMNS($M$55:O66)),"") ->  | AS66: =IFERROR(INDEX($AB$55:$AI$84,$AM66,COLUMNS($M$55:P66)),"") ->  | AT66: =IFERROR(INDEX($AB$55:$AI$84,$AM66,COLUMNS($M$55:Q66)),"") ->  | AU66: =IFERROR(INDEX($AB$55:$AI$84,$AM66,COLUMNS($M$55:R66)),"") ->  | AV66: =IFERROR(INDEX($AB$55:$AI$84,$AM66,COLUMNS($M$55:S66)),"") ->  | AW66: =IFERROR(INDEX($AB$55:$AJ$84,$AM66,COLUMNS($AS$51:AZ62)),"") ->  | AX66: =IFERROR(INDEX($AB$55:$AJ$84,$AM66,COLUMNS($AS$51:BA62)),"") ->  | AY66: =IFERROR(INDEX($AB$55:$AJ$84,$AM66,COLUMNS($AS$51:BB62)),"") ->  | AZ66: =IFERROR(INDEX($AB$55:$AJ$84,$AM66,COLUMNS($AS$51:BC62)),"") -> 
D67: PEAK IIR Max -40C˚ | G67: PEAK IIR Max -40C˚ | N67: 850 | O67: 0.5 Mp (640H x 480V) VGA Rolling Shutter @λ=850 nm | P67: 21 | Q67: 0.0006 | R67: 307200 | X67: 13 | Z67: =IFERROR(SMALL($Y$55:$Y$83,ROWS($Y$55:Y67)),"") ->  | AB67: =IFERROR(INDEX($N$55:$U$84,$Z67,COLUMNS($M$55:M67)),"") ->  | AC67: =IFERROR(INDEX($N$55:$U$84,$Z67,COLUMNS($M$55:N67)),"") ->  | AD67: =IFERROR(INDEX($N$55:$U$84,$Z67,COLUMNS($M$55:O67)),"") ->  | AE67: =IFERROR(INDEX($N$55:$U$84,$Z67,COLUMNS($M$55:P67)),"") ->  | AF67: =IFERROR(INDEX($N$55:$U$84,$Z67,COLUMNS($M$55:Q67)),"") ->  | AG67: =IFERROR(INDEX($N$55:$U$84,$Z67,COLUMNS($M$55:R67)),"") ->  | AH67: =IFERROR(INDEX($N$55:$U$84,$Z67,COLUMNS($M$55:S67)),"") ->  | AI67: =IFERROR(INDEX($N$55:$U$84,$Z67,COLUMNS($M$55:T67)),"") ->  | AK67: 13 | AM67: =IFERROR(SMALL($AL$55:$AL$84,ROWS($AL$55:AL67)),"") ->  | AP67: =IFERROR(INDEX($AB$55:$AI$84,$AM67,COLUMNS($M$55:M67)),"") ->  | AQ67: =IFERROR(INDEX($AB$55:$AI$84,$AM67,COLUMNS($M$55:N67)),"") ->  | AR67: =IFERROR(INDEX($AB$55:$AI$84,$AM67,COLUMNS($M$55:O67)),"") ->  | AS67: =IFERROR(INDEX($AB$55:$AI$84,$AM67,COLUMNS($M$55:P67)),"") ->  | AT67: =IFERROR(INDEX($AB$55:$AI$84,$AM67,COLUMNS($M$55:Q67)),"") ->  | AU67: =IFERROR(INDEX($AB$55:$AI$84,$AM67,COLUMNS($M$55:R67)),"") ->  | AV67: =IFERROR(INDEX($AB$55:$AI$84,$AM67,COLUMNS($M$55:S67)),"") ->  | AW67: =IFERROR(INDEX($AB$55:$AJ$84,$AM67,COLUMNS($AS$51:AZ63)),"") ->  | AX67: =IFERROR(INDEX($AB$55:$AJ$84,$AM67,COLUMNS($AS$51:BA63)),"") ->  | AY67: =IFERROR(INDEX($AB$55:$AJ$84,$AM67,COLUMNS($AS$51:BB63)),"") ->  | AZ67: =IFERROR(INDEX($AB$55:$AJ$84,$AM67,COLUMNS($AS$51:BC63)),"") -> 
D68: of ALL emitters (worst case) | E68: =E28*1.3 -> 639.6 | F68: mW/Sr | G68: of ALL emitters (worst case) | H68: =H28*1.3 -> 2798.25 | I68: mW/Sr | N68: 850 | O68: 8 Mp IR sensitized CMOS @λ=850 nm | P68: 12 | Q68: 0.000112 | R68: 8080000 | X68: 14 | Z68: =IFERROR(SMALL($Y$55:$Y$83,ROWS($Y$55:Y68)),"") ->  | AB68: =IFERROR(INDEX($N$55:$U$84,$Z68,COLUMNS($M$55:M68)),"") ->  | AC68: =IFERROR(INDEX($N$55:$U$84,$Z68,COLUMNS($M$55:N68)),"") ->  | AD68: =IFERROR(INDEX($N$55:$U$84,$Z68,COLUMNS($M$55:O68)),"") ->  | AE68: =IFERROR(INDEX($N$55:$U$84,$Z68,COLUMNS($M$55:P68)),"") ->  | AF68: =IFERROR(INDEX($N$55:$U$84,$Z68,COLUMNS($M$55:Q68)),"") ->  | AG68: =IFERROR(INDEX($N$55:$U$84,$Z68,COLUMNS($M$55:R68)),"") ->  | AH68: =IFERROR(INDEX($N$55:$U$84,$Z68,COLUMNS($M$55:S68)),"") ->  | AI68: =IFERROR(INDEX($N$55:$U$84,$Z68,COLUMNS($M$55:T68)),"") ->  | AK68: 14 | AM68: =IFERROR(SMALL($AL$55:$AL$84,ROWS($AL$55:AL68)),"") ->  | AP68: =IFERROR(INDEX($AB$55:$AI$84,$AM68,COLUMNS($M$55:M68)),"") ->  | AQ68: =IFERROR(INDEX($AB$55:$AI$84,$AM68,COLUMNS($M$55:N68)),"") ->  | AR68: =IFERROR(INDEX($AB$55:$AI$84,$AM68,COLUMNS($M$55:O68)),"") ->  | AS68: =IFERROR(INDEX($AB$55:$AI$84,$AM68,COLUMNS($M$55:P68)),"") ->  | AT68: =IFERROR(INDEX($AB$55:$AI$84,$AM68,COLUMNS($M$55:Q68)),"") ->  | AU68: =IFERROR(INDEX($AB$55:$AI$84,$AM68,COLUMNS($M$55:R68)),"") ->  | AV68: =IFERROR(INDEX($AB$55:$AI$84,$AM68,COLUMNS($M$55:S68)),"") ->  | AW68: =IFERROR(INDEX($AB$55:$AJ$84,$AM68,COLUMNS($AS$51:AZ64)),"") ->  | AX68: =IFERROR(INDEX($AB$55:$AJ$84,$AM68,COLUMNS($AS$51:BA64)),"") ->  | AY68: =IFERROR(INDEX($AB$55:$AJ$84,$AM68,COLUMNS($AS$51:BB64)),"") ->  | AZ68: =IFERROR(INDEX($AB$55:$AJ$84,$AM68,COLUMNS($AS$51:BC64)),"") -> 
K69: Ref: EIC62471, Eqn. 4.11 | N69: 850 | O69: 10.8 Mp (3840 x 2190) CMOS Rolling Shutter @λ=850 nm | P69: 12 | Q69: 0.00034 | R69: 10800000 | X69: 15 | Z69: =IFERROR(SMALL($Y$55:$Y$83,ROWS($Y$55:Y69)),"") ->  | AB69: =IFERROR(INDEX($N$55:$U$84,$Z69,COLUMNS($M$55:M69)),"") ->  | AC69: =IFERROR(INDEX($N$55:$U$84,$Z69,COLUMNS($M$55:N69)),"") ->  | AD69: =IFERROR(INDEX($N$55:$U$84,$Z69,COLUMNS($M$55:O69)),"") ->  | AE69: =IFERROR(INDEX($N$55:$U$84,$Z69,COLUMNS($M$55:P69)),"") ->  | AF69: =IFERROR(INDEX($N$55:$U$84,$Z69,COLUMNS($M$55:Q69)),"") ->  | AG69: =IFERROR(INDEX($N$55:$U$84,$Z69,COLUMNS($M$55:R69)),"") ->  | AH69: =IFERROR(INDEX($N$55:$U$84,$Z69,COLUMNS($M$55:S69)),"") ->  | AI69: =IFERROR(INDEX($N$55:$U$84,$Z69,COLUMNS($M$55:T69)),"") ->  | AK69: 15 | AM69: =IFERROR(SMALL($AL$55:$AL$84,ROWS($AL$55:AL69)),"") ->  | AP69: =IFERROR(INDEX($AB$55:$AI$84,$AM69,COLUMNS($M$55:M69)),"") ->  | AQ69: =IFERROR(INDEX($AB$55:$AI$84,$AM69,COLUMNS($M$55:N69)),"") ->  | AR69: =IFERROR(INDEX($AB$55:$AI$84,$AM69,COLUMNS($M$55:O69)),"") ->  | AS69: =IFERROR(INDEX($AB$55:$AI$84,$AM69,COLUMNS($M$55:P69)),"") ->  | AT69: =IFERROR(INDEX($AB$55:$AI$84,$AM69,COLUMNS($M$55:Q69)),"") ->  | AU69: =IFERROR(INDEX($AB$55:$AI$84,$AM69,COLUMNS($M$55:R69)),"") ->  | AV69: =IFERROR(INDEX($AB$55:$AI$84,$AM69,COLUMNS($M$55:S69)),"") ->  | AW69: =IFERROR(INDEX($AB$55:$AJ$84,$AM69,COLUMNS($AS$51:AZ65)),"") ->  | AX69: =IFERROR(INDEX($AB$55:$AJ$84,$AM69,COLUMNS($AS$51:BA65)),"") ->  | AY69: =IFERROR(INDEX($AB$55:$AJ$84,$AM69,COLUMNS($AS$51:BB65)),"") ->  | AZ69: =IFERROR(INDEX($AB$55:$AJ$84,$AM69,COLUMNS($AS$51:BC65)),"") -> 
D70: Duty Cycle: | E70: =(CHOOSE(DD8,U8, U9,U10,U11,U12,U13,U14,U15,U16,U17,U18,U19,U20,U21,U22, U23,U24,U25, U26,U27,U28))/100 -> 1 | F70: (between 0 and 1) | G70: Duty Cycle: | H70: =CHOOSE(DD8,U29,U30,U31,U32,U33,U34,U35,U36,U37,U38,U39,U40,U41,U42,U43,U44,U45,U46,U47,U48,U49)/100 -> 0.0001 | I70: (between 0 and 1) | X70: 16 | Z70: =IFERROR(SMALL($Y$55:$Y$83,ROWS($Y$55:Y70)),"") ->  | AB70: =IFERROR(INDEX($N$55:$U$84,$Z70,COLUMNS($M$55:M70)),"") ->  | AC70: =IFERROR(INDEX($N$55:$U$84,$Z70,COLUMNS($M$55:N70)),"") ->  | AD70: =IFERROR(INDEX($N$55:$U$84,$Z70,COLUMNS($M$55:O70)),"") ->  | AE70: =IFERROR(INDEX($N$55:$U$84,$Z70,COLUMNS($M$55:P70)),"") ->  | AF70: =IFERROR(INDEX($N$55:$U$84,$Z70,COLUMNS($M$55:Q70)),"") ->  | AG70: =IFERROR(INDEX($N$55:$U$84,$Z70,COLUMNS($M$55:R70)),"") ->  | AH70: =IFERROR(INDEX($N$55:$U$84,$Z70,COLUMNS($M$55:S70)),"") ->  | AI70: =IFERROR(INDEX($N$55:$U$84,$Z70,COLUMNS($M$55:T70)),"") ->  | AK70: 16 | AM70: =IFERROR(SMALL($AL$55:$AL$84,ROWS($AL$55:AL70)),"") ->  | AP70: =IFERROR(INDEX($AB$55:$AI$84,$AM70,COLUMNS($M$55:M70)),"") ->  | AQ70: =IFERROR(INDEX($AB$55:$AI$84,$AM70,COLUMNS($M$55:N70)),"") ->  | AR70: =IFERROR(INDEX($AB$55:$AI$84,$AM70,COLUMNS($M$55:O70)),"") ->  | AS70: =IFERROR(INDEX($AB$55:$AI$84,$AM70,COLUMNS($M$55:P70)),"") ->  | AT70: =IFERROR(INDEX($AB$55:$AI$84,$AM70,COLUMNS($M$55:Q70)),"") ->  | AU70: =IFERROR(INDEX($AB$55:$AI$84,$AM70,COLUMNS($M$55:R70)),"") ->  | AV70: =IFERROR(INDEX($AB$55:$AI$84,$AM70,COLUMNS($M$55:S70)),"") ->  | AW70: =IFERROR(INDEX($AB$55:$AJ$84,$AM70,COLUMNS($AS$51:AZ66)),"") ->  | AX70: =IFERROR(INDEX($AB$55:$AJ$84,$AM70,COLUMNS($AS$51:BA66)),"") ->  | AY70: =IFERROR(INDEX($AB$55:$AJ$84,$AM70,COLUMNS($AS$51:BB66)),"") ->  | AZ70: =IFERROR(INDEX($AB$55:$AJ$84,$AM70,COLUMNS($AS$51:BC66)),"") -> 
K71: Ref: IEC62471, Eqn. 4.11 | N71: 850 | O71: BP W 34 S @λ=850 nm | P71: 100 | Q71: 0.265 | R71: 1 | X71: 17 | Z71: =IFERROR(SMALL($Y$55:$Y$83,ROWS($Y$55:Y71)),"") ->  | AB71: =IFERROR(INDEX($N$55:$U$84,$Z71,COLUMNS($M$55:M71)),"") ->  | AC71: =IFERROR(INDEX($N$55:$U$84,$Z71,COLUMNS($M$55:N71)),"") ->  | AD71: =IFERROR(INDEX($N$55:$U$84,$Z71,COLUMNS($M$55:O71)),"") ->  | AE71: =IFERROR(INDEX($N$55:$U$84,$Z71,COLUMNS($M$55:P71)),"") ->  | AF71: =IFERROR(INDEX($N$55:$U$84,$Z71,COLUMNS($M$55:Q71)),"") ->  | AG71: =IFERROR(INDEX($N$55:$U$84,$Z71,COLUMNS($M$55:R71)),"") ->  | AH71: =IFERROR(INDEX($N$55:$U$84,$Z71,COLUMNS($M$55:S71)),"") ->  | AI71: =IFERROR(INDEX($N$55:$U$84,$Z71,COLUMNS($M$55:T71)),"") ->  | AK71: 17 | AM71: =IFERROR(SMALL($AL$55:$AL$84,ROWS($AL$55:AL71)),"") ->  | AP71: =IFERROR(INDEX($AB$55:$AI$84,$AM71,COLUMNS($M$55:M71)),"") ->  | AQ71: =IFERROR(INDEX($AB$55:$AI$84,$AM71,COLUMNS($M$55:N71)),"") ->  | AR71: =IFERROR(INDEX($AB$55:$AI$84,$AM71,COLUMNS($M$55:O71)),"") ->  | AS71: =IFERROR(INDEX($AB$55:$AI$84,$AM71,COLUMNS($M$55:P71)),"") ->  | AT71: =IFERROR(INDEX($AB$55:$AI$84,$AM71,COLUMNS($M$55:Q71)),"") ->  | AU71: =IFERROR(INDEX($AB$55:$AI$84,$AM71,COLUMNS($M$55:R71)),"") ->  | AV71: =IFERROR(INDEX($AB$55:$AI$84,$AM71,COLUMNS($M$55:S71)),"") ->  | AW71: =IFERROR(INDEX($AB$55:$AJ$84,$AM71,COLUMNS($AS$51:AZ67)),"") ->  | AX71: =IFERROR(INDEX($AB$55:$AJ$84,$AM71,COLUMNS($AS$51:BA67)),"") ->  | AY71: =IFERROR(INDEX($AB$55:$AJ$84,$AM71,COLUMNS($AS$51:BB67)),"") ->  | AZ71: =IFERROR(INDEX($AB$55:$AJ$84,$AM71,COLUMNS($AS$51:BC67)),"") -> 
D72: Eye safe distance from LED to Eye > | E72: =SQRT(E68*E70*(H63/H64)) -> 7.490344662 | F72: cm | G72: Eye safe distance from LED to Eye > | H72: =SQRT((H68*(H70)*H63)/H64) -> 0.1566717991 | I72: cm | N72: 850 | O72: SFH 2400 @λ=850 nm | P72: 90 | Q72: 0.1 | R72: 1 | X72: 18 | Z72: =IFERROR(SMALL($Y$55:$Y$83,ROWS($Y$55:Y72)),"") ->  | AB72: =IFERROR(INDEX($N$55:$U$84,$Z72,COLUMNS($M$55:M72)),"") ->  | AC72: =IFERROR(INDEX($N$55:$U$84,$Z72,COLUMNS($M$55:N72)),"") ->  | AD72: =IFERROR(INDEX($N$55:$U$84,$Z72,COLUMNS($M$55:O72)),"") ->  | AE72: =IFERROR(INDEX($N$55:$U$84,$Z72,COLUMNS($M$55:P72)),"") ->  | AF72: =IFERROR(INDEX($N$55:$U$84,$Z72,COLUMNS($M$55:Q72)),"") ->  | AG72: =IFERROR(INDEX($N$55:$U$84,$Z72,COLUMNS($M$55:R72)),"") ->  | AH72: =IFERROR(INDEX($N$55:$U$84,$Z72,COLUMNS($M$55:S72)),"") ->  | AI72: =IFERROR(INDEX($N$55:$U$84,$Z72,COLUMNS($M$55:T72)),"") ->  | AK72: 18 | AM72: =IFERROR(SMALL($AL$55:$AL$84,ROWS($AL$55:AL72)),"") ->  | AP72: =IFERROR(INDEX($AB$55:$AI$84,$AM72,COLUMNS($M$55:M72)),"") ->  | AQ72: =IFERROR(INDEX($AB$55:$AI$84,$AM72,COLUMNS($M$55:N72)),"") ->  | AR72: =IFERROR(INDEX($AB$55:$AI$84,$AM72,COLUMNS($M$55:O72)),"") ->  | AS72: =IFERROR(INDEX($AB$55:$AI$84,$AM72,COLUMNS($M$55:P72)),"") ->  | AT72: =IFERROR(INDEX($AB$55:$AI$84,$AM72,COLUMNS($M$55:Q72)),"") ->  | AU72: =IFERROR(INDEX($AB$55:$AI$84,$AM72,COLUMNS($M$55:R72)),"") ->  | AV72: =IFERROR(INDEX($AB$55:$AI$84,$AM72,COLUMNS($M$55:S72)),"") ->  | AW72: =IFERROR(INDEX($AB$55:$AJ$84,$AM72,COLUMNS($AS$51:AZ68)),"") ->  | AX72: =IFERROR(INDEX($AB$55:$AJ$84,$AM72,COLUMNS($AS$51:BA68)),"") ->  | AY72: =IFERROR(INDEX($AB$55:$AJ$84,$AM72,COLUMNS($AS$51:BB68)),"") ->  | AZ72: =IFERROR(INDEX($AB$55:$AJ$84,$AM72,COLUMNS($AS$51:BC68)),"") -> 
N73: 850 | O73: SFH 2701 @λ=850 nm | P73: 95 | Q73: 0.0006 | R73: 1 | X73: 19 | Z73: =IFERROR(SMALL($Y$55:$Y$83,ROWS($Y$55:Y73)),"") ->  | AB73: =IFERROR(INDEX($N$55:$U$84,$Z73,COLUMNS($M$55:M73)),"") ->  | AC73: =IFERROR(INDEX($N$55:$U$84,$Z73,COLUMNS($M$55:N73)),"") ->  | AD73: =IFERROR(INDEX($N$55:$U$84,$Z73,COLUMNS($M$55:O73)),"") ->  | AE73: =IFERROR(INDEX($N$55:$U$84,$Z73,COLUMNS($M$55:P73)),"") ->  | AF73: =IFERROR(INDEX($N$55:$U$84,$Z73,COLUMNS($M$55:Q73)),"") ->  | AG73: =IFERROR(INDEX($N$55:$U$84,$Z73,COLUMNS($M$55:R73)),"") ->  | AH73: =IFERROR(INDEX($N$55:$U$84,$Z73,COLUMNS($M$55:S73)),"") ->  | AI73: =IFERROR(INDEX($N$55:$U$84,$Z73,COLUMNS($M$55:T73)),"") ->  | AK73: 19 | AM73: =IFERROR(SMALL($AL$55:$AL$84,ROWS($AL$55:AL73)),"") ->  | AP73: =IFERROR(INDEX($AB$55:$AI$84,$AM73,COLUMNS($M$55:M73)),"") ->  | AQ73: =IFERROR(INDEX($AB$55:$AI$84,$AM73,COLUMNS($M$55:N73)),"") ->  | AR73: =IFERROR(INDEX($AB$55:$AI$84,$AM73,COLUMNS($M$55:O73)),"") ->  | AS73: =IFERROR(INDEX($AB$55:$AI$84,$AM73,COLUMNS($M$55:P73)),"") ->  | AT73: =IFERROR(INDEX($AB$55:$AI$84,$AM73,COLUMNS($M$55:Q73)),"") ->  | AU73: =IFERROR(INDEX($AB$55:$AI$84,$AM73,COLUMNS($M$55:R73)),"") ->  | AV73: =IFERROR(INDEX($AB$55:$AI$84,$AM73,COLUMNS($M$55:S73)),"") ->  | AW73: =IFERROR(INDEX($AB$55:$AJ$84,$AM73,COLUMNS($AS$51:AZ69)),"") ->  | AX73: =IFERROR(INDEX($AB$55:$AJ$84,$AM73,COLUMNS($AS$51:BA69)),"") ->  | AY73: =IFERROR(INDEX($AB$55:$AJ$84,$AM73,COLUMNS($AS$51:BB69)),"") ->  | AZ73: =IFERROR(INDEX($AB$55:$AJ$84,$AM73,COLUMNS($AS$51:BC69)),"") -> 
X74: 20 | Z74: =IFERROR(SMALL($Y$55:$Y$83,ROWS($Y$55:Y74)),"") ->  | AB74: =IFERROR(INDEX($N$55:$U$84,$Z74,COLUMNS($M$55:M74)),"") ->  | AC74: =IFERROR(INDEX($N$55:$U$84,$Z74,COLUMNS($M$55:N74)),"") ->  | AD74: =IFERROR(INDEX($N$55:$U$84,$Z74,COLUMNS($M$55:O74)),"") ->  | AE74: =IFERROR(INDEX($N$55:$U$84,$Z74,COLUMNS($M$55:P74)),"") ->  | AF74: =IFERROR(INDEX($N$55:$U$84,$Z74,COLUMNS($M$55:Q74)),"") ->  | AG74: =IFERROR(INDEX($N$55:$U$84,$Z74,COLUMNS($M$55:R74)),"") ->  | AH74: =IFERROR(INDEX($N$55:$U$84,$Z74,COLUMNS($M$55:S74)),"") ->  | AI74: =IFERROR(INDEX($N$55:$U$84,$Z74,COLUMNS($M$55:T74)),"") ->  | AK74: 20 | AM74: =IFERROR(SMALL($AL$55:$AL$84,ROWS($AL$55:AL74)),"") ->  | AP74: =IFERROR(INDEX($AB$55:$AI$84,$AM74,COLUMNS($M$55:M74)),"") ->  | AQ74: =IFERROR(INDEX($AB$55:$AI$84,$AM74,COLUMNS($M$55:N74)),"") ->  | AR74: =IFERROR(INDEX($AB$55:$AI$84,$AM74,COLUMNS($M$55:O74)),"") ->  | AS74: =IFERROR(INDEX($AB$55:$AI$84,$AM74,COLUMNS($M$55:P74)),"") ->  | AT74: =IFERROR(INDEX($AB$55:$AI$84,$AM74,COLUMNS($M$55:Q74)),"") ->  | AU74: =IFERROR(INDEX($AB$55:$AI$84,$AM74,COLUMNS($M$55:R74)),"") ->  | AV74: =IFERROR(INDEX($AB$55:$AI$84,$AM74,COLUMNS($M$55:S74)),"") ->  | AW74: =IFERROR(INDEX($AB$55:$AJ$84,$AM74,COLUMNS($AS$51:AZ70)),"") ->  | AX74: =IFERROR(INDEX($AB$55:$AJ$84,$AM74,COLUMNS($AS$51:BA70)),"") ->  | AY74: =IFERROR(INDEX($AB$55:$AJ$84,$AM74,COLUMNS($AS$51:BB70)),"") ->  | AZ74: =IFERROR(INDEX($AB$55:$AJ$84,$AM74,COLUMNS($AS$51:BC70)),"") -> 
B75: Retinal Thermal Hazard: | D75: 380 < λ < 1400nm | N75: 940 | O75: Generic QE = 10% @λ=940 nm | P75: 10 | Q75: =0.000112 -> 0.000112 | R75: 8000000 | X75: =X74+1 -> 21 | Y75: 21 | Z75: =IFERROR(SMALL($Y$55:$Y$83,ROWS($Y$55:Y75)),"") ->  | AB75: =IFERROR(INDEX($N$55:$U$84,$Z75,COLUMNS($M$55:M75)),"") ->  | AC75: =IFERROR(INDEX($N$55:$U$84,$Z75,COLUMNS($M$55:N75)),"") ->  | AD75: =IFERROR(INDEX($N$55:$U$84,$Z75,COLUMNS($M$55:O75)),"") ->  | AE75: =IFERROR(INDEX($N$55:$U$84,$Z75,COLUMNS($M$55:P75)),"") ->  | AF75: =IFERROR(INDEX($N$55:$U$84,$Z75,COLUMNS($M$55:Q75)),"") ->  | AG75: =IFERROR(INDEX($N$55:$U$84,$Z75,COLUMNS($M$55:R75)),"") ->  | AH75: =IFERROR(INDEX($N$55:$U$84,$Z75,COLUMNS($M$55:S75)),"") ->  | AI75: =IFERROR(INDEX($N$55:$U$84,$Z75,COLUMNS($M$55:T75)),"") ->  | AK75: 21 | AM75: =IFERROR(SMALL($AL$55:$AL$84,ROWS($AL$55:AL75)),"") ->  | AP75: =IFERROR(INDEX($AB$55:$AI$84,$AM75,COLUMNS($M$55:M75)),"") ->  | AQ75: =IFERROR(INDEX($AB$55:$AI$84,$AM75,COLUMNS($M$55:N75)),"") ->  | AR75: =IFERROR(INDEX($AB$55:$AI$84,$AM75,COLUMNS($M$55:O75)),"") ->  | AS75: =IFERROR(INDEX($AB$55:$AI$84,$AM75,COLUMNS($M$55:P75)),"") ->  | AT75: =IFERROR(INDEX($AB$55:$AI$84,$AM75,COLUMNS($M$55:Q75)),"") ->  | AU75: =IFERROR(INDEX($AB$55:$AI$84,$AM75,COLUMNS($M$55:R75)),"") ->  | AV75: =IFERROR(INDEX($AB$55:$AI$84,$AM75,COLUMNS($M$55:S75)),"") ->  | AW75: =IFERROR(INDEX($AB$55:$AJ$84,$AM75,COLUMNS($AS$51:AZ71)),"") ->  | AX75: =IFERROR(INDEX($AB$55:$AJ$84,$AM75,COLUMNS($AS$51:BA71)),"") ->  | AY75: =IFERROR(INDEX($AB$55:$AJ$84,$AM75,COLUMNS($AS$51:BB71)),"") ->  | AZ75: =IFERROR(INDEX($AB$55:$AJ$84,$AM75,COLUMNS($AS$51:BC71)),"") -> 
D76: Exposure Time: | E76: =H62 -> 100 | F76: s | G76: Burn Hazard Weighting Function R(λ): | H76: =IF(E11=810,0.602056,IF(E11=850,0.501187,IF(E11=940,0.331131,""))) -> 0.331131 | N76: 940 | O76: 1.0 Mp (1280H x 800V) monochrome GS camera @λ=940 nm | P76: 9.5 | Q76: 0.0003 | R76: 1000000 | X76: =X75+1 -> 22 | Y76: 22 | Z76: =IFERROR(SMALL($Y$55:$Y$83,ROWS($Y$55:Y76)),"") ->  | AB76: =IFERROR(INDEX($N$55:$U$84,$Z76,COLUMNS($M$55:M76)),"") ->  | AC76: =IFERROR(INDEX($N$55:$U$84,$Z76,COLUMNS($M$55:N76)),"") ->  | AD76: =IFERROR(INDEX($N$55:$U$84,$Z76,COLUMNS($M$55:O76)),"") ->  | AE76: =IFERROR(INDEX($N$55:$U$84,$Z76,COLUMNS($M$55:P76)),"") ->  | AF76: =IFERROR(INDEX($N$55:$U$84,$Z76,COLUMNS($M$55:Q76)),"") ->  | AG76: =IFERROR(INDEX($N$55:$U$84,$Z76,COLUMNS($M$55:R76)),"") ->  | AH76: =IFERROR(INDEX($N$55:$U$84,$Z76,COLUMNS($M$55:S76)),"") ->  | AI76: =IFERROR(INDEX($N$55:$U$84,$Z76,COLUMNS($M$55:T76)),"") ->  | AK76: 22 | AM76: =IFERROR(SMALL($AL$55:$AL$84,ROWS($AL$55:AL76)),"") ->  | AP76: =IFERROR(INDEX($AB$55:$AI$84,$AM76,COLUMNS($M$55:M76)),"") ->  | AQ76: =IFERROR(INDEX($AB$55:$AI$84,$AM76,COLUMNS($M$55:N76)),"") ->  | AR76: =IFERROR(INDEX($AB$55:$AI$84,$AM76,COLUMNS($M$55:O76)),"") ->  | AS76: =IFERROR(INDEX($AB$55:$AI$84,$AM76,COLUMNS($M$55:P76)),"") ->  | AT76: =IFERROR(INDEX($AB$55:$AI$84,$AM76,COLUMNS($M$55:Q76)),"") ->  | AU76: =IFERROR(INDEX($AB$55:$AI$84,$AM76,COLUMNS($M$55:R76)),"") ->  | AV76: =IFERROR(INDEX($AB$55:$AI$84,$AM76,COLUMNS($M$55:S76)),"") ->  | AW76: =IFERROR(INDEX($AB$55:$AJ$84,$AM76,COLUMNS($AS$51:AZ72)),"") ->  | AX76: =IFERROR(INDEX($AB$55:$AJ$84,$AM76,COLUMNS($AS$51:BA72)),"") ->  | AY76: =IFERROR(INDEX($AB$55:$AJ$84,$AM76,COLUMNS($AS$51:BB72)),"") ->  | AZ76: =IFERROR(INDEX($AB$55:$AJ$84,$AM76,COLUMNS($AS$51:BC72)),"") -> 
N77: 940 | O77: 0.5 Mp (640H x 480V) VGA Rolling Shutter @λ=940 nm | P77: 10 | Q77: 0.0006 | R77: 307200 | X77: 23 | Y77: 23 | Z77: =IFERROR(SMALL($Y$55:$Y$83,ROWS($Y$55:Y77)),"") ->  | AB77: =IFERROR(INDEX($N$55:$U$84,$Z77,COLUMNS($M$55:M77)),"") ->  | AC77: =IFERROR(INDEX($N$55:$U$84,$Z77,COLUMNS($M$55:N77)),"") ->  | AD77: =IFERROR(INDEX($N$55:$U$84,$Z77,COLUMNS($M$55:O77)),"") ->  | AE77: =IFERROR(INDEX($N$55:$U$84,$Z77,COLUMNS($M$55:P77)),"") ->  | AF77: =IFERROR(INDEX($N$55:$U$84,$Z77,COLUMNS($M$55:Q77)),"") ->  | AG77: =IFERROR(INDEX($N$55:$U$84,$Z77,COLUMNS($M$55:R77)),"") ->  | AH77: =IFERROR(INDEX($N$55:$U$84,$Z77,COLUMNS($M$55:S77)),"") ->  | AI77: =IFERROR(INDEX($N$55:$U$84,$Z77,COLUMNS($M$55:T77)),"") ->  | AK77: 23 | AM77: =IFERROR(SMALL($AL$55:$AL$84,ROWS($AL$55:AL77)),"") ->  | AP77: =IFERROR(INDEX($AB$55:$AI$84,$AM77,COLUMNS($M$55:M77)),"") ->  | AQ77: =IFERROR(INDEX($AB$55:$AI$84,$AM77,COLUMNS($M$55:N77)),"") ->  | AR77: =IFERROR(INDEX($AB$55:$AI$84,$AM77,COLUMNS($M$55:O77)),"") ->  | AS77: =IFERROR(INDEX($AB$55:$AI$84,$AM77,COLUMNS($M$55:P77)),"") ->  | AT77: =IFERROR(INDEX($AB$55:$AI$84,$AM77,COLUMNS($M$55:Q77)),"") ->  | AU77: =IFERROR(INDEX($AB$55:$AI$84,$AM77,COLUMNS($M$55:R77)),"") ->  | AV77: =IFERROR(INDEX($AB$55:$AI$84,$AM77,COLUMNS($M$55:S77)),"") ->  | AW77: =IFERROR(INDEX($AB$55:$AJ$84,$AM77,COLUMNS($AS$51:AZ73)),"") ->  | AX77: =IFERROR(INDEX($AB$55:$AJ$84,$AM77,COLUMNS($AS$51:BA73)),"") ->  | AY77: =IFERROR(INDEX($AB$55:$AJ$84,$AM77,COLUMNS($AS$51:BB73)),"") ->  | AZ77: =IFERROR(INDEX($AB$55:$AJ$84,$AM77,COLUMNS($AS$51:BC73)),"") -> 
G78: Divergence | H78: 0.011 | I78: rad | J78: Ref: IEC62471, Table 4.2 | N78: 940 | O78: 8 Mp IR sensitized CMOS @λ=940 nm | P78: 6 | Q78: 0.000112 | R78: 8080000 | X78: 24 | Y78: 24 | Z78: =IFERROR(SMALL($Y$55:$Y$83,ROWS($Y$55:Y78)),"") ->  | AB78: =IFERROR(INDEX($N$55:$U$84,$Z78,COLUMNS($M$55:M78)),"") ->  | AC78: =IFERROR(INDEX($N$55:$U$84,$Z78,COLUMNS($M$55:N78)),"") ->  | AD78: =IFERROR(INDEX($N$55:$U$84,$Z78,COLUMNS($M$55:O78)),"") ->  | AE78: =IFERROR(INDEX($N$55:$U$84,$Z78,COLUMNS($M$55:P78)),"") ->  | AF78: =IFERROR(INDEX($N$55:$U$84,$Z78,COLUMNS($M$55:Q78)),"") ->  | AG78: =IFERROR(INDEX($N$55:$U$84,$Z78,COLUMNS($M$55:R78)),"") ->  | AH78: =IFERROR(INDEX($N$55:$U$84,$Z78,COLUMNS($M$55:S78)),"") ->  | AI78: =IFERROR(INDEX($N$55:$U$84,$Z78,COLUMNS($M$55:T78)),"") ->  | AK78: 24 | AM78: =IFERROR(SMALL($AL$55:$AL$84,ROWS($AL$55:AL78)),"") ->  | AP78: =IFERROR(INDEX($AB$55:$AI$84,$AM78,COLUMNS($M$55:M78)),"") ->  | AQ78: =IFERROR(INDEX($AB$55:$AI$84,$AM78,COLUMNS($M$55:N78)),"") ->  | AR78: =IFERROR(INDEX($AB$55:$AI$84,$AM78,COLUMNS($M$55:O78)),"") ->  | AS78: =IFERROR(INDEX($AB$55:$AI$84,$AM78,COLUMNS($M$55:P78)),"") ->  | AT78: =IFERROR(INDEX($AB$55:$AI$84,$AM78,COLUMNS($M$55:Q78)),"") ->  | AU78: =IFERROR(INDEX($AB$55:$AI$84,$AM78,COLUMNS($M$55:R78)),"") ->  | AV78: =IFERROR(INDEX($AB$55:$AI$84,$AM78,COLUMNS($M$55:S78)),"") ->  | AW78: =IFERROR(INDEX($AB$55:$AJ$84,$AM78,COLUMNS($AS$51:AZ74)),"") ->  | AX78: =IFERROR(INDEX($AB$55:$AJ$84,$AM78,COLUMNS($AS$51:BA74)),"") ->  | AY78: =IFERROR(INDEX($AB$55:$AJ$84,$AM78,COLUMNS($AS$51:BB74)),"") ->  | AZ78: =IFERROR(INDEX($AB$55:$AJ$84,$AM78,COLUMNS($AS$51:BC74)),"") -> 
N79: 940 | O79: 10.8 Mp (3840 x 2190) CMOS Rolling Shutter @λ=940 nm | P79: 6 | Q79: 0.00034 | R79: 10800000 | X79: 25 | Y79: 25 | Z79: =IFERROR(SMALL($Y$55:$Y$83,ROWS($Y$55:Y79)),"") ->  | AB79: =IFERROR(INDEX($N$55:$U$84,$Z79,COLUMNS($M$55:M79)),"") ->  | AC79: =IFERROR(INDEX($N$55:$U$84,$Z79,COLUMNS($M$55:N79)),"") ->  | AD79: =IFERROR(INDEX($N$55:$U$84,$Z79,COLUMNS($M$55:O79)),"") ->  | AE79: =IFERROR(INDEX($N$55:$U$84,$Z79,COLUMNS($M$55:P79)),"") ->  | AF79: =IFERROR(INDEX($N$55:$U$84,$Z79,COLUMNS($M$55:Q79)),"") ->  | AG79: =IFERROR(INDEX($N$55:$U$84,$Z79,COLUMNS($M$55:R79)),"") ->  | AH79: =IFERROR(INDEX($N$55:$U$84,$Z79,COLUMNS($M$55:S79)),"") ->  | AI79: =IFERROR(INDEX($N$55:$U$84,$Z79,COLUMNS($M$55:T79)),"") ->  | AK79: 25 | AM79: =IFERROR(SMALL($AL$55:$AL$84,ROWS($AL$55:AL79)),"") ->  | AP79: =IFERROR(INDEX($AB$55:$AI$84,$AM79,COLUMNS($M$55:M79)),"") ->  | AQ79: =IFERROR(INDEX($AB$55:$AI$84,$AM79,COLUMNS($M$55:N79)),"") ->  | AR79: =IFERROR(INDEX($AB$55:$AI$84,$AM79,COLUMNS($M$55:O79)),"") ->  | AS79: =IFERROR(INDEX($AB$55:$AI$84,$AM79,COLUMNS($M$55:P79)),"") ->  | AT79: =IFERROR(INDEX($AB$55:$AI$84,$AM79,COLUMNS($M$55:Q79)),"") ->  | AU79: =IFERROR(INDEX($AB$55:$AI$84,$AM79,COLUMNS($M$55:R79)),"") ->  | AV79: =IFERROR(INDEX($AB$55:$AI$84,$AM79,COLUMNS($M$55:S79)),"") ->  | AW79: =IFERROR(INDEX($AB$55:$AJ$84,$AM79,COLUMNS($AS$51:AZ75)),"") ->  | AX79: =IFERROR(INDEX($AB$55:$AJ$84,$AM79,COLUMNS($AS$51:BA75)),"") ->  | AY79: =IFERROR(INDEX($AB$55:$AJ$84,$AM79,COLUMNS($AS$51:BB75)),"") ->  | AZ79: =IFERROR(INDEX($AB$55:$AJ$84,$AM79,COLUMNS($AS$51:BC75)),"") -> 
X80: 26 | Z80: =IFERROR(SMALL($Y$55:$Y$83,ROWS($Y$55:Y80)),"") ->  | AB80: =IFERROR(INDEX($N$55:$U$84,$Z80,COLUMNS($M$55:M80)),"") ->  | AC80: =IFERROR(INDEX($N$55:$U$84,$Z80,COLUMNS($M$55:N80)),"") ->  | AD80: =IFERROR(INDEX($N$55:$U$84,$Z80,COLUMNS($M$55:O80)),"") ->  | AE80: =IFERROR(INDEX($N$55:$U$84,$Z80,COLUMNS($M$55:P80)),"") ->  | AF80: =IFERROR(INDEX($N$55:$U$84,$Z80,COLUMNS($M$55:Q80)),"") ->  | AG80: =IFERROR(INDEX($N$55:$U$84,$Z80,COLUMNS($M$55:R80)),"") ->  | AH80: =IFERROR(INDEX($N$55:$U$84,$Z80,COLUMNS($M$55:S80)),"") ->  | AI80: =IFERROR(INDEX($N$55:$U$84,$Z80,COLUMNS($M$55:T80)),"") ->  | AK80: 26 | AM80: =IFERROR(SMALL($AL$55:$AL$84,ROWS($AL$55:AL80)),"") ->  | AP80: =IFERROR(INDEX($AB$55:$AI$84,$AM80,COLUMNS($M$55:M80)),"") ->  | AQ80: =IFERROR(INDEX($AB$55:$AI$84,$AM80,COLUMNS($M$55:N80)),"") ->  | AR80: =IFERROR(INDEX($AB$55:$AI$84,$AM80,COLUMNS($M$55:O80)),"") ->  | AS80: =IFERROR(INDEX($AB$55:$AI$84,$AM80,COLUMNS($M$55:P80)),"") ->  | AT80: =IFERROR(INDEX($AB$55:$AI$84,$AM80,COLUMNS($M$55:Q80)),"") ->  | AU80: =IFERROR(INDEX($AB$55:$AI$84,$AM80,COLUMNS($M$55:R80)),"") ->  | AV80: =IFERROR(INDEX($AB$55:$AI$84,$AM80,COLUMNS($M$55:S80)),"") ->  | AW80: =IFERROR(INDEX($AB$55:$AJ$84,$AM80,COLUMNS($AS$51:AZ76)),"") ->  | AX80: =IFERROR(INDEX($AB$55:$AJ$84,$AM80,COLUMNS($AS$51:BA76)),"") ->  | AY80: =IFERROR(INDEX($AB$55:$AJ$84,$AM80,COLUMNS($AS$51:BB76)),"") ->  | AZ80: =IFERROR(INDEX($AB$55:$AJ$84,$AM80,COLUMNS($AS$51:BC76)),"") -> 
D81: PEAK IIR Max TAC˚ of ALL emitters | E81: =E28 -> 492 | F81: mW/Sr | G81: PEAK IIR Max TAC˚ of ALL emitters | H81: =H28 -> 2152.5 | I81: mW/Sr | N81: 940 | O81: BP W 34 S @λ=940 nm | P81: 75 | Q81: 0.265 | R81: 1 | X81: 27 | Y81: 27 | Z81: =IFERROR(SMALL($Y$55:$Y$83,ROWS($Y$55:Y81)),"") ->  | AB81: =IFERROR(INDEX($N$55:$U$84,$Z81,COLUMNS($M$55:M81)),"") ->  | AC81: =IFERROR(INDEX($N$55:$U$84,$Z81,COLUMNS($M$55:N81)),"") ->  | AD81: =IFERROR(INDEX($N$55:$U$84,$Z81,COLUMNS($M$55:O81)),"") ->  | AE81: =IFERROR(INDEX($N$55:$U$84,$Z81,COLUMNS($M$55:P81)),"") ->  | AF81: =IFERROR(INDEX($N$55:$U$84,$Z81,COLUMNS($M$55:Q81)),"") ->  | AG81: =IFERROR(INDEX($N$55:$U$84,$Z81,COLUMNS($M$55:R81)),"") ->  | AH81: =IFERROR(INDEX($N$55:$U$84,$Z81,COLUMNS($M$55:S81)),"") ->  | AI81: =IFERROR(INDEX($N$55:$U$84,$Z81,COLUMNS($M$55:T81)),"") ->  | AK81: 27 | AM81: =IFERROR(SMALL($AL$55:$AL$84,ROWS($AL$55:AL81)),"") ->  | AP81: =IFERROR(INDEX($AB$55:$AI$84,$AM81,COLUMNS($M$55:M81)),"") ->  | AQ81: =IFERROR(INDEX($AB$55:$AI$84,$AM81,COLUMNS($M$55:N81)),"") ->  | AR81: =IFERROR(INDEX($AB$55:$AI$84,$AM81,COLUMNS($M$55:O81)),"") ->  | AS81: =IFERROR(INDEX($AB$55:$AI$84,$AM81,COLUMNS($M$55:P81)),"") ->  | AT81: =IFERROR(INDEX($AB$55:$AI$84,$AM81,COLUMNS($M$55:Q81)),"") ->  | AU81: =IFERROR(INDEX($AB$55:$AI$84,$AM81,COLUMNS($M$55:R81)),"") ->  | AV81: =IFERROR(INDEX($AB$55:$AI$84,$AM81,COLUMNS($M$55:S81)),"") ->  | AW81: =IFERROR(INDEX($AB$55:$AJ$84,$AM81,COLUMNS($AS$51:AZ77)),"") ->  | AX81: =IFERROR(INDEX($AB$55:$AJ$84,$AM81,COLUMNS($AS$51:BA77)),"") ->  | AY81: =IFERROR(INDEX($AB$55:$AJ$84,$AM81,COLUMNS($AS$51:BB77)),"") ->  | AZ81: =IFERROR(INDEX($AB$55:$AJ$84,$AM81,COLUMNS($AS$51:BC77)),"") -> 
N82: 940 | O82: SFH 2400 @λ=940 nm | P82: 90 | Q82: 0.1 | R82: 1 | X82: 28 | Y82: 28 | Z82: =IFERROR(SMALL($Y$55:$Y$83,ROWS($Y$55:Y82)),"") ->  | AB82: =IFERROR(INDEX($N$55:$U$84,$Z82,COLUMNS($M$55:M82)),"") ->  | AC82: =IFERROR(INDEX($N$55:$U$84,$Z82,COLUMNS($M$55:N82)),"") ->  | AD82: =IFERROR(INDEX($N$55:$U$84,$Z82,COLUMNS($M$55:O82)),"") ->  | AE82: =IFERROR(INDEX($N$55:$U$84,$Z82,COLUMNS($M$55:P82)),"") ->  | AF82: =IFERROR(INDEX($N$55:$U$84,$Z82,COLUMNS($M$55:Q82)),"") ->  | AG82: =IFERROR(INDEX($N$55:$U$84,$Z82,COLUMNS($M$55:R82)),"") ->  | AH82: =IFERROR(INDEX($N$55:$U$84,$Z82,COLUMNS($M$55:S82)),"") ->  | AI82: =IFERROR(INDEX($N$55:$U$84,$Z82,COLUMNS($M$55:T82)),"") ->  | AK82: 28 | AM82: =IFERROR(SMALL($AL$55:$AL$84,ROWS($AL$55:AL82)),"") ->  | AP82: =IFERROR(INDEX($AB$55:$AI$84,$AM82,COLUMNS($M$55:M82)),"") ->  | AQ82: =IFERROR(INDEX($AB$55:$AI$84,$AM82,COLUMNS($M$55:N82)),"") ->  | AR82: =IFERROR(INDEX($AB$55:$AI$84,$AM82,COLUMNS($M$55:O82)),"") ->  | AS82: =IFERROR(INDEX($AB$55:$AI$84,$AM82,COLUMNS($M$55:P82)),"") ->  | AT82: =IFERROR(INDEX($AB$55:$AI$84,$AM82,COLUMNS($M$55:Q82)),"") ->  | AU82: =IFERROR(INDEX($AB$55:$AI$84,$AM82,COLUMNS($M$55:R82)),"") ->  | AV82: =IFERROR(INDEX($AB$55:$AI$84,$AM82,COLUMNS($M$55:S82)),"") ->  | AW82: =IFERROR(INDEX($AB$55:$AJ$84,$AM82,COLUMNS($AS$51:AZ78)),"") ->  | AX82: =IFERROR(INDEX($AB$55:$AJ$84,$AM82,COLUMNS($AS$51:BA78)),"") ->  | AY82: =IFERROR(INDEX($AB$55:$AJ$84,$AM82,COLUMNS($AS$51:BB78)),"") ->  | AZ82: =IFERROR(INDEX($AB$55:$AJ$84,$AM82,COLUMNS($AS$51:BC78)),"") -> 
D83: PEAK IIR Max -40C˚ of ALL emitters (worst case) | E83: =E81*1.3 -> 639.6 | F83: mW/Sr | G83: PEAK IIR Max -40C˚ of ALL emitters (worst case) | H83: =H81*1.3 -> 2798.25 | I83: mW/Sr | N83: 940 | O83: SFH 2701 @λ=940 nm | P83: 60 | Q83: 0.0006 | R83: 1 | X83: 29 | Y83: 29 | Z83: =IFERROR(SMALL($Y$55:$Y$83,ROWS($Y$55:Y83)),"") ->  | AB83: =IFERROR(INDEX($N$55:$U$84,$Z83,COLUMNS($M$55:M83)),"") ->  | AC83: =IFERROR(INDEX($N$55:$U$84,$Z83,COLUMNS($M$55:N83)),"") ->  | AD83: =IFERROR(INDEX($N$55:$U$84,$Z83,COLUMNS($M$55:O83)),"") ->  | AE83: =IFERROR(INDEX($N$55:$U$84,$Z83,COLUMNS($M$55:P83)),"") ->  | AF83: =IFERROR(INDEX($N$55:$U$84,$Z83,COLUMNS($M$55:Q83)),"") ->  | AG83: =IFERROR(INDEX($N$55:$U$84,$Z83,COLUMNS($M$55:R83)),"") ->  | AH83: =IFERROR(INDEX($N$55:$U$84,$Z83,COLUMNS($M$55:S83)),"") ->  | AI83: =IFERROR(INDEX($N$55:$U$84,$Z83,COLUMNS($M$55:T83)),"") ->  | AK83: 29 | AM83: =IFERROR(SMALL($AL$55:$AL$84,ROWS($AL$55:AL83)),"") ->  | AP83: =IFERROR(INDEX($AB$55:$AI$84,$AM83,COLUMNS($M$55:M83)),"") ->  | AQ83: =IFERROR(INDEX($AB$55:$AI$84,$AM83,COLUMNS($M$55:N83)),"") ->  | AR83: =IFERROR(INDEX($AB$55:$AI$84,$AM83,COLUMNS($M$55:O83)),"") ->  | AS83: =IFERROR(INDEX($AB$55:$AI$84,$AM83,COLUMNS($M$55:P83)),"") ->  | AT83: =IFERROR(INDEX($AB$55:$AI$84,$AM83,COLUMNS($M$55:Q83)),"") ->  | AU83: =IFERROR(INDEX($AB$55:$AI$84,$AM83,COLUMNS($M$55:R83)),"") ->  | AV83: =IFERROR(INDEX($AB$55:$AI$84,$AM83,COLUMNS($M$55:S83)),"") ->  | AW83: =IFERROR(INDEX($AB$55:$AJ$84,$AM83,COLUMNS($AS$51:AZ79)),"") ->  | AX83: =IFERROR(INDEX($AB$55:$AJ$84,$AM83,COLUMNS($AS$51:BA79)),"") ->  | AY83: =IFERROR(INDEX($AB$55:$AJ$84,$AM83,COLUMNS($AS$51:BB79)),"") ->  | AZ83: =IFERROR(INDEX($AB$55:$AJ$84,$AM83,COLUMNS($AS$51:BC79)),"") -> 
X84: 30 | Z84: =IFERROR(SMALL($Y$55:$Y$83,ROWS($Y$55:Y84)),"") ->  | AB84: =IFERROR(INDEX($N$55:$U$84,$Z84,COLUMNS($M$55:M84)),"") ->  | AC84: =IFERROR(INDEX($N$55:$U$84,$Z84,COLUMNS($M$55:N84)),"") ->  | AD84: =IFERROR(INDEX($N$55:$U$84,$Z84,COLUMNS($M$55:O84)),"") ->  | AE84: =IFERROR(INDEX($N$55:$U$84,$Z84,COLUMNS($M$55:P84)),"") ->  | AF84: =IFERROR(INDEX($N$55:$U$84,$Z84,COLUMNS($M$55:Q84)),"") ->  | AG84: =IFERROR(INDEX($N$55:$U$84,$Z84,COLUMNS($M$55:R84)),"") ->  | AH84: =IFERROR(INDEX($N$55:$U$84,$Z84,COLUMNS($M$55:S84)),"") ->  | AI84: =IFERROR(INDEX($N$55:$U$84,$Z84,COLUMNS($M$55:T84)),"") ->  | AK84: 30 | AM84: =IFERROR(SMALL($AL$55:$AL$84,ROWS($AL$55:AL84)),"") ->  | AP84: =IFERROR(INDEX($AB$55:$AI$84,$AM84,COLUMNS($M$55:M84)),"") ->  | AQ84: =IFERROR(INDEX($AB$55:$AI$84,$AM84,COLUMNS($M$55:N84)),"") ->  | AR84: =IFERROR(INDEX($AB$55:$AI$84,$AM84,COLUMNS($M$55:O84)),"") ->  | AS84: =IFERROR(INDEX($AB$55:$AI$84,$AM84,COLUMNS($M$55:P84)),"") ->  | AT84: =IFERROR(INDEX($AB$55:$AI$84,$AM84,COLUMNS($M$55:Q84)),"") ->  | AU84: =IFERROR(INDEX($AB$55:$AI$84,$AM84,COLUMNS($M$55:R84)),"") ->  | AV84: =IFERROR(INDEX($AB$55:$AI$84,$AM84,COLUMNS($M$55:S84)),"") ->  | AW84: =IFERROR(INDEX($AB$55:$AJ$84,$AM84,COLUMNS($AS$51:AZ80)),"") ->  | AX84: =IFERROR(INDEX($AB$55:$AJ$84,$AM84,COLUMNS($AS$51:BA80)),"") ->  | AY84: =IFERROR(INDEX($AB$55:$AJ$84,$AM84,COLUMNS($AS$51:BB80)),"") ->  | AZ84: =IFERROR(INDEX($AB$55:$AJ$84,$AM84,COLUMNS($AS$51:BC80)),"") -> 
D85: α=laser divergence: | E85: =DB8/(200) -> 2.5e-06 | F85: rad, d>=20cm | G85: α=laser divergence: | H85: =DB8/(200) -> 2.5e-06 | I85: rad, d>=20cm
N86: Exempt | O86: 10 | P86: 1000 | X86: 1 | Y86: =IF($E$62=N86,X86,"") ->  | Z86: =IFERROR(SMALL($Y$86:$Y$89,ROWS($Y$86:Y86)),"") -> 2 | AB86: =IFERROR(INDEX($N$86:$U$91,$Z86,COLUMNS($M$55:M55)),"") -> Low Risk | AC86: =IFERROR(INDEX($N$86:$U$91,$Z86,COLUMNS($M$55:N55)),"") -> 57 | AD86: =IFERROR(INDEX($N$86:$U$91,$Z86,COLUMNS($M$55:O55)),"") -> 100 | AE86: =IFERROR(INDEX($N$86:$U$91,$Z86,COLUMNS($M$55:P55)),"") -> 0 | AF86: =IFERROR(INDEX($N$86:$U$91,$Z86,COLUMNS($M$55:Q55)),"") -> 0 | AG86: =IFERROR(INDEX($N$86:$U$91,$Z86,COLUMNS($M$55:R55)),"") -> 0 | AH86: =IFERROR(INDEX($N$86:$U$91,$Z86,COLUMNS($M$55:S55)),"") -> 0
D87: α=laser divergence < 0.011?: | E87: =IF(E85<0.011, "Divergence Okay", "Divergence Not Okay") -> Divergence Okay | G87: α=laser divergence < 0.011?: | H87: =IF(H85<0.011, "Divergance Okay", "Divergence Not Okay") -> Divergance Okay | N87: Low Risk | O87: 57 | P87: 100 | X87: 2 | Y87: =IF($E$62=N87,X87,"") -> 2 | Z87: =IFERROR(SMALL($Y$86:$Y$89,ROWS($Y$86:Y87)),"") -> 
N88: Moderate Risk | O88: 320 | P88: 10 | X88: 3 | Z88: =IFERROR(SMALL($Y$86:$Y$89,ROWS($Y$86:Y88)),"") -> 
D89: Retinal Thermal Hazard: | E89: =(E83*H76*E70)/3.8 -> 55.73457568 | F89: mW/(Sr cm2) | G89: Retinal Thermal Hazard: | H89: =(H83*H76*H70)/3.8 -> 0.02438387686 | I89: mW/(Sr cm2) | X89: 4 | Z89: =IFERROR(SMALL($Y$86:$Y$89,ROWS($Y$86:Y89)),"") -> 
D91: Safety Factor, Limit/LIR: | E91: =600/H78 -> 54545.45455 | F91: mW/(Sr cm2) | G91: Safety Factor, Limit/LIR: | H91: =600/H78 -> 54545.45455 | I91: mW/(Sr cm2)
D93: Retinal Thermal Hazard Limit > Retinal Thermal Hazard? | E93: =IF(E89>E91,"Not eye safe", "Eye Safe") -> Eye Safe | G93: Retinal Thermal Hazard Limit > Retinal Thermal Hazard? | H93: =IF(H89>H91,"Not eye safe", "Eye Safe") -> Eye Safe
F94: t>10s | I94: t>10s
